Workbook

Sheet Intro
B2: CALCUL DE LA FRANCHISE OPTIMALE 2021
B4: Des macros sont utilisées pour calculer la franchise optimale. Veuillez les activer (version Excel 2013 et 2016) :
B6: A : Une bande jaune apparaît sous le ruban du menu et la barre d'outils. Cliquez sur "Activer le contenu"
B16: B : Si l'avertissement de sécurité ne s'affiche pas comme ci-dessus, il faut ajuster les paramètres de sécurité :
B18: 1. Fichier -> Options | E18: 2. Centre de gestion de la confidentialité -> Paramètres du Centre de gestion de la confidentialité
B45: 3. Paramètres des macros -> Désactiver toutes les macros avec notification
B69: 4. Réouvrir le fichier Excel
B73: Pour plus d'informations, consultez Microsoft Support technique

Sheet OptimaleFranchise
B2: CALCUL DE LA FRANCHISE OPTIMALE 2020
B6: 1. Âge | X6: Montants en francs
N7: Franchise | R7: =IF(Parameter!$G$3="Kinder (0-18 Jahre)",0,300) -> 0 | T7: =IF(Parameter!$G$3="Kinder (0-18 Jahre)",100,500) -> 100 | V7: =IF(Parameter!$G$3="Kinder (0-18 Jahre)",200,1000) -> 200 | X7: =IF(Parameter!$G$3="Kinder (0-18 Jahre)",300,1500) -> 300 | Z7: =IF(Parameter!$G$3="Kinder (0-18 Jahre)",400,2000) -> 400 | AB7: =IF(Parameter!$G$3="Kinder (0-18 Jahre)",500,2500) -> 500 | AD7: =IF(Parameter!$G$3="Kinder (0-18 Jahre)",600,"") -> 600
B8: 2. Assurance
N9: Prime mensuelle | R9: =Parameter!T24 ->  | T9: =Parameter!U24 ->  | V9: =Parameter!V24 ->  | X9: =Parameter!W24 ->  | Z9: =Parameter!X24 ->  | AB9: =Parameter!Y24 ->  | AD9: =IF(Parameter!G3="Kinder (0-18 Jahre)",Parameter!Z24,"") -> 
B10: 3. Désignation du tarif
B12: Rabais pour plusieurs enfants | N12: Prime annuelle | R12: =R9*12 ->  | T12: =T9*12 ->  | V12: =V9*12 ->  | X12: =X9*12 ->  | Z12: =Z9*12 ->  | AB12: =AB9*12 ->  | AD12: =IF(AD9="","",AD9*12) -> 
N13: Part de franchise | R13: =MIN(Parameter!$H$34,R7) -> 0 | T13: =MIN(Parameter!$H$34,T7) -> 100 | V13: =MIN(Parameter!$H$34,V7) -> 200 | X13: =MIN(Parameter!$H$34,X7) -> 300 | Z13: =MIN(Parameter!$H$34,Z7) -> 400 | AB13: =MIN(Parameter!$H$34,AB7) -> 500 | AD13: =IF(Parameter!G3="Kinder (0-18 Jahre)",MIN(Parameter!$H$34,AD7),"") -> 600
B14: 4. NPA / localité | N14: ="Quote-part (10% / Max. " & Parameter!I38 & ")" -> Quote-part (10% / Max. 350) | R14: =MIN(Parameter!I38,(Parameter!$H$34-OptimaleFranchise!R13)*0.1) -> 190 | T14: =MIN(Parameter!I38,(Parameter!$H$34-OptimaleFranchise!T13)*0.1) -> 180 | V14: =MIN(Parameter!I38,(Parameter!$H$34-OptimaleFranchise!V13)*0.1) -> 170 | X14: =MIN(Parameter!I38,(Parameter!$H$34-OptimaleFranchise!X13)*0.1) -> 160 | Z14: =MIN(Parameter!I38,(Parameter!$H$34-OptimaleFranchise!Z13)*0.1) -> 150 | AB14: =MIN(Parameter!I38,(Parameter!$H$34-OptimaleFranchise!AB13)*0.1) -> 140 | AD14: =IF(Parameter!G3="Kinder (0-18 Jahre)",MIN(Parameter!I38,(Parameter!$H$34-OptimaleFranchise!AD13)*0.1),"") -> 130
B16: 5. Couverture accidents | N16: Dépenses annuelles totales | R16: =SUM(R12:R14) ->  | T16: =SUM(T12:T14) ->  | V16: =SUM(V12:V14) ->  | X16: =SUM(X12:X14) ->  | Z16: =SUM(Z12:Z14) ->  | AB16: =SUM(AB12:AB14) ->  | AD16: =IF(Parameter!G3="Kinder (0-18 Jahre)",SUM(AD12:AD14),"") -> 
B18: 6. Estimation des frais médicaux
N19: =IF(Parameter!U33>0,"Le calcul n'a pas pu être réalisé.",IF(Parameter!U35=0,"L'assurance (" &Parameter!G4&") ne propose pas d'assurance pour le NPA indiqué.","Pour des dépenses de santé prévues/estimées à " & Parameter!H34 & " francs, la franchise optimale est de " & Parameter!U29 & " francs.")) -> Le calcul n'a pas pu être réalisé.
B22: = Informations complémentaires

Sheet Schnittpunkt (hidden)
A2: Eine Interessante Information ist der Schnittpunkt bei der grafischen Darstellung der Linien mit der höchsten und der tiefsten Franchise. Die Herleitung ist etwas kompliziert…
A4: Die Gesamtkosten berechnen sich wie folgt
A5: Gesamtkosten = Prämien + Franchise + Selbstbehalt
B8: GK = Gesamtkosten
B9: P = Prämien
B10: x = Gesundheitsausgaben
B11: F = Franchise
B12: MS = Maximaler Selbstbehalt (350/700)
A14: Um den Schnittpunkt der Linien zu berechnen, müssen die Gesamtkosten der tiefsten Franchise (t) mit den Gesamtkosten der höchsten Franchise (h) gleichgesetzt werden
A17: Diese Gleichung sollte nach x aufgelöst werden. P, F und MS sind Konstanten.
A21: Mathematisch ist auch eine Umforumung möglich:
B27: A: | D27: Teil A sieht konkret wie folgt aus:
D28: Bsp: | M28: 0 | N28: 300 | O28: 600 | P28: 900 | Q28: 1200 | R28: 1500 | S28: 1800 | T28: 2100 | U28: 2400 | V28: 2700 | W28: 3000 | X28: 3300
D29: Ft = 300 | M29: =MIN(M28,2500)-MIN(M28,300) -> 0 | N29: 0 | O29: 300 | P29: 600 | Q29: 900 | R29: 1200 | S29: 1500 | T29: 1800 | U29: 2100 | V29: 2200 | W29: 2200 | X29: 2200
D30: Fh = 2500
B35: Allgemein gilt:
B46: B: | D46: Teil B sieht konkret wie folgt aus:
D47: Bsp:
D48: Ft = 300 | Q48: 0 | R48: 300 | S48: 600 | T48: 900 | U48: 1200 | V48: 1500 | W48: 1800 | X48: 2100 | Y48: 2400 | Z48: 2700 | AA48: 3000 | AB48: 3300 | AC48: 3600 | AD48: 3900 | AE48: 4200 | AF48: 4500 | AG48: 4800 | AH48: 5100 | AI48: 5400 | AJ48: 5700 | AK48: 6000 | AL48: 6300 | AM48: 6600 | AN48: 6900 | AO48: 7200 | AP48: 7500 | AQ48: 7800 | AR48: 8100 | AS48: 8400 | AT48: 8700 | AU48: 9000 | AV48: 9300 | AW48: 9600 | AX48: 9900 | AY48: 10200 | AZ48: 10500 | BA48: 10800 | BB48: 11100 | BC48: 11400
D49: Fh = 2500 | Q49: =MIN(700,MAX(Q48-300,0)*0.1) - MIN(700,MAX(Q48-2500,0)*0.1) -> 0 | R49: =MIN(700,MAX(R48-300,0)*0.1) - MIN(700,MAX(R48-2500,0)*0.1) -> 0 | S49: 30 | T49: 60 | U49: 90 | V49: 120 | W49: 150 | X49: 180 | Y49: 210 | Z49: 220 | AA49: 220 | AB49: 220 | AC49: 220 | AD49: 220 | AE49: 220 | AF49: 220 | AG49: 220 | AH49: 220 | AI49: 220 | AJ49: 220 | AK49: 220 | AL49: 220 | AM49: 220 | AN49: 220 | AO49: 220 | AP49: 200 | AQ49: 170 | AR49: 140 | AS49: 110 | AT49: 80 | AU49: 50 | AV49: 20 | AW49: 0 | AX49: 0 | AY49: 0 | AZ49: 0 | BA49: 0 | BB49: 0 | BC49: 0
D50: MS = 700
B59: Allgemein gilt:
B78: Es gibt drei mögliche Fälle mit Schnittpunkten:
B80: Fall1: x < Ft => gemäss der Herleitung oben müsste in dem Fall Pt = Ph. Das macht keine Sinn.
B82: Fall 2: Ft < x < Fh
B84: In dem Fall gilt:
B85: A = x - Ft
B86: B = (x - Ft)*0.1
B88: somit wird aus
B92: die neue Formel
B99: Fall 3: x > Fh
B101: In dem Fall gilt:
B102: A = Fh - Ft = konstant, d.h. unabhängig von x
B103: B = (Fh - Ft)*0.1 = konstant, d.h. unabhängig von x
B105: somit gilt:
H108: Wenn diese Bedingung erfüllt ist, dann überschneiden sich die Linien und es gibt unendlich viele Schnittpunkte
B116: Es wird also nur der 2. Fall betrachet (Ft < x < Fh). Die Formel gilt: x = (Pt - Ph + 0.9Ft) / 0.9 (Herleitung siehe oben)
B118: Daten von Tabellenblatt "Optimale Franchise"
B119: F (Franchise) | C119: =OptimaleFranchise!R7 -> 0 | D119: =OptimaleFranchise!T7 -> 100 | E119: =OptimaleFranchise!V7 -> 200 | F119: =OptimaleFranchise!X7 -> 300 | G119: =OptimaleFranchise!Z7 -> 400 | H119: =OptimaleFranchise!AB7 -> 500 | I119: =OptimaleFranchise!AD7 -> 600
B120: P (Prämie) | C120: =OptimaleFranchise!R12 ->  | D120: =OptimaleFranchise!T12 ->  | E120: =OptimaleFranchise!V12 ->  | F120: =OptimaleFranchise!X12 ->  | G120: =OptimaleFranchise!Z12 ->  | H120: =OptimaleFranchise!AB12 ->  | I120: =OptimaleFranchise!AD12 -> 
C123: Kinder | D123: Erwachsene
B124: Pt = | C124: =IF(C120>0,C120,IF(D120>0,D120,0)) ->  | D124: =IF(C120>0,C120,IF(D120>0,D120,0)) -> 
B125: Ph = | C125: =IF(I120>0,I120,IF(H120>0,H120,IF(G120>0,G120,0))) ->  | D125: =IF(H120>0,H120,IF(G120>0,G120,0)) -> 
B126: Ft = | C126: =IF(C120>0,C119,IF(D120>0,D119,0)) ->  | D126: =IF(C120>0,C119,IF(D120>0,D119,0)) -> 
B127: Fh = | C127: =IF(I120>0,I119,IF(H120>0,H119,IF(G120>0,G119,0))) ->  | D127: =IF(H120>0,H119,IF(G120>0,G119,0)) -> 
B129: x = | C129: =(C124-C125+0.9*C126)/0.9 ->  | D129: =(D124-D125+0.9*D126)/0.9 -> 
B131: Kontrolle1 | C131: =IF(AND(C129>C126,C129<C127),1,0) ->  | D131: =IF(AND(D129>D126,D129<D127),1,0) ->  | E131: Wenn Bedingung Ft < x < Fh erfüllt ist, wird 1 angezeigt.
B132: Kontrolle2 | C132: =IF(OR(C125=0,C124=0),0,1) ->  | D132: =IF(OR(D125=0,D124=0),0,1) ->  | E132: Wenn es entweder keine Pt oder Ph gibt, kann kein Schnittpunkt berechnet werden
B133: Berechnung Möglich? | C133: =IF(ISERROR(C131+C132),"Nein",IF(C131+C132=2,"Ja","Nein")) -> Nein | D133: =IF(ISERROR(D131+D132),"Nein",IF(D131+D132=2,"Ja","Nein")) -> Nein
B135: Folgender Satz erscheint in dem Fall unterhalb der Grafik:
B137: Kinder: | D137: ="L'intersection des lignes de la franchise la plus basse (" & C126 & " francs) et de la franchise la plus élevée (" & C127 & " francs) indique le niveau des prestations de santé au-dessus duquel une modification de la franchise est financièrement intéressante :" -> 
D138: ="Si les prestations de santé s'élèvent à moins de " & ROUND(C129,2) & " francs, il convient de choisir la franchise la plus élevée. Si elles sont plus élevées, il est conseillé de choisir la franchise la plus basse." -> 
B140: Erwachsene: | D140: ="L'intersection des lignes de la franchise la plus basse (" & D126 & " francs) et de la franchise la plus élevée (" & D127 & " francs) indique le niveau des prestations de santé au-dessus duquel une modification de la franchise est financièrement intéressante :" -> 
D141: ="Si les prestations de santé s'élèvent à moins de " & ROUND(D129,2) & " francs, il convient de choisir la franchise la plus élevée. Si elles sont plus élevées, il est conseillé de choisir la franchise la plus basse." -> 

Sheet G_K (hidden)
L4: Exemple de lecture du graphique :
L5: Avec des dépenses de santé (axe des x) s'élevant à 1000 francs, un
L6: enfant avec une franchise de 0 franc (ligne rouge) doit payer lui-même
L7: ="un total d'environ "& ROUND(Kostenspanne!M5,0) & " francs de primes." -> 
L8: À cela s'ajoute une quote-part de 100 francs pour les prestations de
L9: ="santé obtenues. Le coût total s'élève donc à "&ROUND(Kostenspanne!M38,0)&" francs." -> 
L11: =IF(Kostenspanne!M43="","","Si une franchise de 500 francs (ligne bleue) a été choisie dans le même") -> 
L12: =IF(Kostenspanne!M43="","","cas (prestations de santé de 1000 francs), les primes annuelles ne") -> 
L13: =IF(Kostenspanne!M43="",""," s'élèvent qu'à " & ROUND(Kostenspanne!C10,0) & " francs. Toutefois, la franchise (500 francs) et une") -> 
L14: =IF(Kostenspanne!M43="",""," quote-part sur le montant restant (10 % de 500) doivent encore être ") -> 
L15: =IF(Kostenspanne!M43="","","payées. Le coût total s'élève donc à " & ROUND(Kostenspanne!M43,0) & " francs.") -> 
B32: =IF(Schnittpunkt!C133="Ja",Schnittpunkt!D137,"") -> 
B33: =IF(Schnittpunkt!C133="Ja",Schnittpunkt!D138,"") -> 

Sheet G_E (hidden)
L7: Exemple de lecture du graphique :
L8: Avec des dépenses de santé (axe des x) s'élevant à 3000 francs, une
L9: personne adulte ayant une franchise de 300 francs (ligne rouge) doit
L10: ="payer elle-même pour les primes au total environ "& ROUND(Kostenspanne!AG5,0) & " francs." -> 
L12: Il faut y ajouter la franchise (300 francs) et la quote-part de 270
L13: francs ((3000-300)*10%). Les dépenses totales s'élèvent donc à
L14: =ROUND(Kostenspanne!AG38,0) &" francs." -> 
B32: =IF(Schnittpunkt!D133="Ja",Schnittpunkt!D140,"") -> 
B33: =IF(Schnittpunkt!D133="Ja",Schnittpunkt!D141,"") -> 

Sheet Parameter (hidden)
F1: Auswahl gemäss Tabellenblatt "Optimale Franchise" | K1: Referenz in den Tabellenblättern (Erwachsene, JungErw oder Kind) | Q1: Zeile herausfiltern | S1: Erwachsene
A2: Letzte Zeilen / Spalten | S2: MatrixStart | T2: =ADDRESS(1,1,1,1,"Erwachsene") -> Erwachsene!$A$1
B3: Erwahsene | C3: Junge Erw | D3: Kinder | F3: 0. Alter | G3: Kinder (0-18 Jahre) | L3: Erwachsene | M3: JungeErw | N3: Kinder | P3: Ausgewählt | S3: MatrixEnd | T3: =ADDRESS(B4,B5,1,1,"Erwachsene") -> Erwachsene!$TD$215
A4: Zeilen | B4: =MAX(Erwachsene!F:F) -> 215 | C4: =MAX(JungErw!F:F) -> 215 | D4: =MAX(Kind!F:F) -> 311 | F4: 1. KK | K4: MatrixStart1 | L4: =ADDRESS(B9,2,1,1,"Erwachsene") -> Erwachsene!$B$9 | M4: =ADDRESS(C9,2,1,1,"JungErw") -> JungErw!$B$9 | N4: =ADDRESS(D9,2,1,1,"Kind") -> Kind!$B$9
A5: Spalten | B5: =MAX(Erwachsene!7:7) -> 524 | C5: =MAX(JungErw!7:7) -> 524 | D5: =MAX(Kind!7:7) -> 610 | K5: MatrixEnd1 | L5: =ADDRESS(B4,6,1,1,"Erwachsene") -> Erwachsene!$F$215 | M5: =ADDRESS(C4,6,1,1,"JungErw") -> JungErw!$F$215 | N5: =ADDRESS(D4,6,1,1,"Kind") -> Kind!$F$311 | S5: FRA-300 | T5: FRA-500 | U5: FRA-1000 | V5: FRA-1500 | W5: FRA-2000 | X5: FRA-2500
K6: Zeile1 | L6: =VLOOKUP($G$4,INDIRECT(L4):INDIRECT(L5),5,FALSE) ->  | M6: =VLOOKUP(G4,INDIRECT(M4):INDIRECT(M5),5,FALSE) ->  | N6: =VLOOKUP(G4,INDIRECT(N4):INDIRECT(N5),5,FALSE) ->  | P6: =IF($G$3="Erwachsene (ab 26 Jahre)",L6,IF($G$3="Junge Erwachsene (19-25 Jahre)",M6,N6)) ->  | S6: =INDEX(INDIRECT($T$2):INDIRECT($T$3),L14,L31) ->  | T6: =INDEX(INDIRECT($T$2):INDIRECT($T$3),L14,L31+1) ->  | U6: =INDEX(INDIRECT($T$2):INDIRECT($T$3),L14,L31+2) ->  | V6: =INDEX(INDIRECT($T$2):INDIRECT($T$3),L14,L31+3) ->  | W6: =INDEX(INDIRECT($T$2):INDIRECT($T$3),L14,L31+4) ->  | X6: =INDEX(INDIRECT($T$2):INDIRECT($T$3),L14,L31+5) -> 
A7: Erste Zeile / Spalte
B8: Erwahsene | C8: Junge Erw | D8: Kinder | F8: 2. Tarif | K8: MatrixStart2 | L8: =ADDRESS(L6,4,1,1,"Erwachsene") ->  | M8: =ADDRESS(M6,4,1,1,"JungErw") ->  | N8: =ADDRESS(N6,4,1,1,"Kind") ->  | S8: Junge Erwachsene
A9: Zeilen | B9: 9 | C9: 9 | D9: 9 | K9: MatrixEnd2 | L9: =L5 -> Erwachsene!$F$215 | M9: =M5 -> JungErw!$F$215 | N9: =N5 -> Kind!$F$311 | S9: MatrixStart | T9: =ADDRESS(1,1,1,1,"JungErw") -> JungErw!$A$1
A10: Spalten | B10: 7 | C10: 7 | D10: 7 | K10: Zeile2 | L10: =VLOOKUP(G8,INDIRECT(L8):INDIRECT(L9),3,FALSE) ->  | M10: =VLOOKUP(G8,INDIRECT(M8):INDIRECT(M9),3,FALSE) ->  | N10: =VLOOKUP(G8,INDIRECT(N8):INDIRECT(N9),3,FALSE) ->  | P10: =IF($G$3="Erwachsene (ab 26 Jahre)",L10,IF($G$3="Junge Erwachsene (19-25 Jahre)",M10,N10)) ->  | S10: MatrixEnd | T10: =ADDRESS(C4,C5,1,1,"JungErw") -> JungErw!$TD$215
F12: 3. Anzahl Kinder (optional) | K12: MatrixStart1 | S12: FRA-300 | T12: FRA-500 | U12: FRA-1000 | V12: FRA-1500 | W12: FRA-2000 | X12: FRA-2500
F13: K1/K2/K3… | G13: 0 | K13: MatrixEnd1 | S13: =INDEX(INDIRECT(T9):INDIRECT(T10),M14,M31) ->  | T13: =INDEX(INDIRECT(T9):INDIRECT(T10),M14,M31+1) ->  | U13: =INDEX(INDIRECT(T9):INDIRECT(T10),M14,M31+2) ->  | V13: =INDEX(INDIRECT(T9):INDIRECT(T10),M14,M31+3) ->  | W13: =INDEX(INDIRECT(T9):INDIRECT(T10),M14,M31+4) ->  | X13: =INDEX(INDIRECT(T9):INDIRECT(T10),M14,M31+5) -> 
K14: Zeile1 | L14: =L10 ->  | M14: =M10 ->  | N14: =N10+G13 ->  | P14: =IF($G$3="Erwachsene (ab 26 Jahre)",L14,IF($G$3="Junge Erwachsene (19-25 Jahre)",M14,N14)) -> 
S15: Kinder
S16: MartixStart | T16: =ADDRESS(1,1,1,1,"Kind") -> Kind!$A$1
S17: MatrixEnd | T17: =ADDRESS(D4,D5,1,1,"Kind") -> Kind!$WL$311
F18: Auswahl gemäss Tabellenblatt "Optimale Franchise" | K18: Referenz in den Tabellenblättern (Erwachsene, JungErw oder Kind) | Q18: Spalte herausfiltern
S19: FRA-300 | T19: FRA-500 | U19: FRA-0 | V19: FRA-100 | W19: FRA-200 | X19: FRA-400 | Y19: FRA-600
A20: Region/PLZ (Tabellenblatt "Region") | L20: Erwachsene | M20: JungeErw | N20: Kinder | S20: =INDEX(INDIRECT($T$16):INDIRECT($T$17),N14,N31) ->  | T20: =INDEX(INDIRECT($T$16):INDIRECT($T$17),N14,N31+1) ->  | U20: =INDEX(INDIRECT($T$16):INDIRECT($T$17),N14,N31+2) ->  | V20: =INDEX(INDIRECT($T$16):INDIRECT($T$17),N14,N31+3) ->  | W20: =INDEX(INDIRECT($T$16):INDIRECT($T$17),N14,N31+4) ->  | X20: =INDEX(INDIRECT($T$16):INDIRECT($T$17),N14,N31+5) ->  | Y20: =INDEX(INDIRECT($T$16):INDIRECT($T$17),N14,N31+6) ->  | Z20: Achtung: Merkwürdige Reihenfolge der FR bei Kinder
B21: Erste | C21: Letzte | F21: 1. PLZ | G21: 8909 | K21: MatrixStart1 | L21: =ADDRESS(4,B10,1,1,"Erwachsene") -> Erwachsene!$G$4 | M21: =ADDRESS(4,C10,1,1,"JungErw") -> JungErw!$G$4 | N21: =ADDRESS(4,D10,1,1,"Kind") -> Kind!$G$4
A22: Zeile | B22: 8 | C22: =ROW(Region!A6164) -> 6164 | F22: 1.1 Kanton | G22: ZH | K22: MatrixEnd1 | L22: =ADDRESS(7,B5,1,1,"Erwachsene") -> Erwachsene!$TD$7 | M22: =ADDRESS(7,C5,1,1,"JungErw") -> JungErw!$TD$7 | N22: =ADDRESS(7,D5,1,1,"Kind") -> Kind!$WL$7
A23: Spalte | B23: 1 | C23: 9 | F23: 1.1.1 Gemeinde | G23: Zwillikon | K23: Spalte1 | L23: =HLOOKUP(G22,INDIRECT(L21):INDIRECT(L22),4,FALSE) -> 487 | M23: =HLOOKUP(G22,INDIRECT(M21):INDIRECT(M22),4,FALSE) -> 487 | N23: =HLOOKUP(G22,INDIRECT(N21):INDIRECT(N22),4,FALSE) -> 567 | P23: =IF($G$3="Erwachsene (ab 26 Jahre)",L23,IF($G$3="Junge Erwachsene (19-25 Jahre)",M23,N23)) -> 567 | T23: FR-1 | U23: FR-2 | V23: FR-3 | W23: FR-4 | X23: FR-5 | Y23: FR-6 | Z23: FR-7
S24: Monatl | T24: =IF($G$3="Erwachsene (ab 26 Jahre)",S6,IF($G$3="Junge Erwachsene (19-25 Jahre)",S13,IF($G$3="Kinder (0-18 Jahre)",U20,""))) ->  | U24: =IF($G$3="Erwachsene (ab 26 Jahre)",T6,IF($G$3="Junge Erwachsene (19-25 Jahre)",T13,IF($G$3="Kinder (0-18 Jahre)",V20,""))) ->  | V24: =IF($G$3="Erwachsene (ab 26 Jahre)",U6,IF($G$3="Junge Erwachsene (19-25 Jahre)",U13,IF($G$3="Kinder (0-18 Jahre)",W20,""))) ->  | W24: =IF($G$3="Erwachsene (ab 26 Jahre)",V6,IF($G$3="Junge Erwachsene (19-25 Jahre)",V13,IF($G$3="Kinder (0-18 Jahre)",S20,""))) ->  | X24: =IF($G$3="Erwachsene (ab 26 Jahre)",W6,IF($G$3="Junge Erwachsene (19-25 Jahre)",W13,IF($G$3="Kinder (0-18 Jahre)",X20,""))) ->  | Y24: =IF($G$3="Erwachsene (ab 26 Jahre)",X6,IF($G$3="Junge Erwachsene (19-25 Jahre)",X13,IF($G$3="Kinder (0-18 Jahre)",T20,""))) ->  | Z24: =IF($G$3="Erwachsene (ab 26 Jahre)",Y6,IF($G$3="Junge Erwachsene (19-25 Jahre)",Y13,IF($G$3="Kinder (0-18 Jahre)",Y20,""))) -> 
F25: 1.2 Prämienregion | G25: 3 | K25: MatrixStart2 | L25: =ADDRESS(5,L23,1,1,"Erwachsene") -> Erwachsene!$RS$5 | M25: =ADDRESS(5,M23,1,1,"JungErw") -> JungErw!$RS$5 | N25: =ADDRESS(5,N23,1,1,"Kind") -> Kind!$UU$5 | S25: Zur Berechnung der OptimalenFranchise müssen die höchsten Kosten herausgefiltert werden
G26: ="PR-REG CH"&G25 -> PR-REG CH3 | K26: MatrixEnd2 | L26: =L22 -> Erwachsene!$TD$7 | M26: =M22 -> JungErw!$TD$7 | N26: =N22 -> Kind!$WL$7 | S26: GesamtKosten | T26: =IF(T24>0,OptimaleFranchise!R16,999999) ->  | U26: =IF(U24>0,OptimaleFranchise!T16,99999) ->  | V26: =IF(V24>0,OptimaleFranchise!V16,99999) ->  | W26: =IF(W24>0,OptimaleFranchise!X16,99999) ->  | X26: =IF(X24>0,OptimaleFranchise!Z16,99999) ->  | Y26: =IF(Y24>0,OptimaleFranchise!AB16,99999) ->  | Z26: =IF(Z24>0,OptimaleFranchise!AD16,99999) -> 
K27: Spalte2 | L27: =HLOOKUP(G26,INDIRECT(L25):INDIRECT(L26),3,FALSE) -> 511 | M27: =HLOOKUP(G26,INDIRECT(M25):INDIRECT(M26),3,FALSE) -> 511 | N27: =HLOOKUP(G26,INDIRECT(N25):INDIRECT(N26),3,FALSE) -> 595 | P27: =IF($G$3="Erwachsene (ab 26 Jahre)",L27,IF($G$3="Junge Erwachsene (19-25 Jahre)",M27,N27)) -> 595 | S27: Franchise | T27: =OptimaleFranchise!R7 -> 0 | U27: =OptimaleFranchise!T7 -> 100 | V27: =OptimaleFranchise!V7 -> 200 | W27: =OptimaleFranchise!X7 -> 300 | X27: =OptimaleFranchise!Z7 -> 400 | Y27: =OptimaleFranchise!AB7 -> 500 | Z27: =OptimaleFranchise!AD7 -> 600
F29: 2. Unfall | G29: OHN-UNF | K29: MatrixStart3 | L29: =ADDRESS(6,L27,1,1,"Erwachsene") -> Erwachsene!$SQ$6 | M29: =ADDRESS(6,M27,1,1,"JungErw") -> JungErw!$SQ$6 | N29: =ADDRESS(6,N27,1,1,"Kind") -> Kind!$VW$6 | S29: Optimale Franchise | U29: =HLOOKUP(MIN(T26:Z26),T26:Z27,2,FALSE) -> 
K30: MatrixEnd3 | L30: =L26 -> Erwachsene!$TD$7 | M30: =M26 -> JungErw!$TD$7 | N30: =N26 -> Kind!$WL$7
K31: Spalte3 | L31: =HLOOKUP(G29,INDIRECT(L29):INDIRECT(L30),2,FALSE) -> 517 | M31: =HLOOKUP(G29,INDIRECT(M29):INDIRECT(M30),2,FALSE) -> 517 | N31: =HLOOKUP(G29,INDIRECT(N29):INDIRECT(N30),2,FALSE) -> 602 | P31: =IF($G$3="Erwachsene (ab 26 Jahre)",L31,IF($G$3="Junge Erwachsene (19-25 Jahre)",M31,N31)) -> 602 | T31: =IF(ISERROR(T24),1,0) -> 1 | U31: =IF(ISERROR(U24),1,0) -> 1 | V31: 1 | W31: 1 | X31: 1 | Y31: 1 | Z31: 1
T32: Falls diese Summe grösser als 0 ist, gibt es einen Fehler
T33: Summe | U33: =SUM(T31:Z31) -> 7
F34: Auswahl Krankheitskosten | H34: 1900 | T34: Falls keine Prämie in dem gewählten Ort angeobten wird, ist diese Summe 0
T35: Summe Prämien | U35: =IF(ISERROR(SUM(T24:Z24)),99999,SUM(T24:Z24)) -> 99999
H36: Erwachsene | I36: Kinder
F37: Maximaler Selbstbehalt | H37: 700 | I37: 350 | J37: <= Von Hand anpassen
F38: Formel: => | I38: =IF(G3="Kinder (0-18 Jahre)",I37,H37) -> 350

Sheet Erwachsene (hidden)
A1: Prämien Erwachsene 2020 | F1: 1 | G1: 2019-09-18
F2: 2
A3: Summe von Prämie | F3: 3 | G3: Kanton | H3: Region | I3: Unfalleinschluss | J3: Franchise
F4: 4 | G4: FR | AE4: SO | AQ4: AG | BC4: AI | BO4: AR | CA4: BE | DK4: BL | EI4: BS | EU4: GE | FG4: GL | FS4: GR | HC4: JU | HO4: LU | IY4: NE | JK4: NW | JW4: OW | KI4: SG | LS4: SH | MQ4: SZ | NC4: TG | NO4: TI | OM4: UR | OY4: VD | PW4: VS | QU4: ZE | RG4: ZG | RS4: ZH | TC4: ZR
F5: 5 | G5: PR-REG CH1 | S5: PR-REG CH2 | AE5: PR-REG CH0 | AQ5: PR-REG CH0 | BC5: PR-REG CH0 | BO5: PR-REG CH0 | CA5: PR-REG CH1 | CM5: PR-REG CH2 | CY5: PR-REG CH3 | DK5: PR-REG CH1 | DW5: PR-REG CH2 | EI5: PR-REG CH0 | EU5: PR-REG CH0 | FG5: PR-REG CH0 | FS5: PR-REG CH1 | GE5: PR-REG CH2 | GQ5: PR-REG CH3 | HC5: PR-REG CH0 | HO5: PR-REG CH1 | IA5: PR-REG CH2 | IM5: PR-REG CH3 | IY5: PR-REG CH0 | JK5: PR-REG CH0 | JW5: PR-REG CH0 | KI5: PR-REG CH1 | KU5: PR-REG CH2 | LG5: PR-REG CH3 | LS5: PR-REG CH1 | ME5: PR-REG CH2 | MQ5: PR-REG CH0 | NC5: PR-REG CH0 | NO5: PR-REG CH1 | OA5: PR-REG CH2 | OM5: PR-REG CH0 | OY5: PR-REG CH1 | PK5: PR-REG CH2 | PW5: PR-REG CH1 | QI5: PR-REG CH2 | QU5: PR-REG CH0 | RG5: PR-REG CH0 | RS5: PR-REG CH1 | SE5: PR-REG CH2 | SQ5: PR-REG CH3 | TC5: PR-REG CH0
F6: 6 | G6: MIT-UNF | M6: OHN-UNF | S6: MIT-UNF | Y6: OHN-UNF | AE6: MIT-UNF | AK6: OHN-UNF | AQ6: MIT-UNF | AW6: OHN-UNF | BC6: MIT-UNF | BI6: OHN-UNF | BO6: MIT-UNF | BU6: OHN-UNF | CA6: MIT-UNF | CG6: OHN-UNF | CM6: MIT-UNF | CS6: OHN-UNF | CY6: MIT-UNF | DE6: OHN-UNF | DK6: MIT-UNF | DQ6: OHN-UNF | DW6: MIT-UNF | EC6: OHN-UNF | EI6: MIT-UNF | EO6: OHN-UNF | EU6: MIT-UNF | FA6: OHN-UNF | FG6: MIT-UNF | FM6: OHN-UNF | FS6: MIT-UNF | FY6: OHN-UNF | GE6: MIT-UNF | GK6: OHN-UNF | GQ6: MIT-UNF | GW6: OHN-UNF | HC6: MIT-UNF | HI6: OHN-UNF | HO6: MIT-UNF | HU6: OHN-UNF | IA6: MIT-UNF | IG6: OHN-UNF | IM6: MIT-UNF | IS6: OHN-UNF | IY6: MIT-UNF | JE6: OHN-UNF | JK6: MIT-UNF | JQ6: OHN-UNF | JW6: MIT-UNF | KC6: OHN-UNF | KI6: MIT-UNF | KO6: OHN-UNF | KU6: MIT-UNF | LA6: OHN-UNF | LG6: MIT-UNF | LM6: OHN-UNF | LS6: MIT-UNF | LY6: OHN-UNF | ME6: MIT-UNF | MK6: OHN-UNF | MQ6: MIT-UNF | MW6: OHN-UNF | NC6: MIT-UNF | NI6: OHN-UNF | NO6: MIT-UNF | NU6: OHN-UNF | OA6: MIT-UNF | OG6: OHN-UNF | OM6: MIT-UNF | OS6: OHN-UNF | OY6: MIT-UNF | PE6: OHN-UNF | PK6: MIT-UNF | PQ6: OHN-UNF | PW6: MIT-UNF | QC6: OHN-UNF | QI6: MIT-UNF | QO6: OHN-UNF | QU6: MIT-UNF | RA6: OHN-UNF | RG6: MIT-UNF | RM6: OHN-UNF | RS6: MIT-UNF | RY6: OHN-UNF | SE6: MIT-UNF | SK6: OHN-UNF | SQ6: MIT-UNF | SW6: OHN-UNF | TC6: MIT-UNF | TD6: OHN-UNF
A7: 1 | B7: 2 | C7: 3 | D7: 4 | E7: 5 | G7: 7 | H7: 8 | I7: 9 | J7: 10 | K7: 11 | L7: 12 | M7: 13 | N7: 14 | O7: 15 | P7: 16 | Q7: 17 | R7: 18 | S7: 19 | T7: 20 | U7: 21 | V7: 22 | W7: 23 | X7: 24 | Y7: 25 | Z7: 26 | AA7: 27 | AB7: 28 | AC7: 29 | AD7: 30 | AE7: 31 | AF7: 32 | AG7: 33 | AH7: 34 | AI7: 35 | AJ7: 36 | AK7: 37 | AL7: 38 | AM7: 39 | AN7: 40 | AO7: 41 | AP7: 42 | AQ7: 43 | AR7: 44 | AS7: 45 | AT7: 46 | AU7: 47 | AV7: 48 | AW7: 49 | AX7: 50 | AY7: 51 | AZ7: 52 | BA7: 53 | BB7: 54 | BC7: 55 | BD7: 56 | BE7: 57 | BF7: 58 | BG7: 59 | BH7: 60 | BI7: 61 | BJ7: 62 | BK7: 63 | BL7: 64 | BM7: 65 | BN7: 66 | BO7: 67 | BP7: 68 | BQ7: 69 | BR7: 70 | BS7: 71 | BT7: 72 | BU7: 73 | BV7: 74 | BW7: 75 | BX7: 76 | BY7: 77 | BZ7: 78 | CA7: 79 | CB7: 80 | CC7: 81 | CD7: 82 | CE7: 83 | CF7: 84 | CG7: 85 | CH7: 86 | CI7: 87 | CJ7: 88 | CK7: 89 | CL7: 90 | CM7: 91 | CN7: 92 | CO7: 93 | CP7: 94 | CQ7: 95 | CR7: 96 | CS7: 97 | CT7: 98 | CU7: 99 | CV7: 100 | CW7: 101 | CX7: 102 | CY7: 103 | CZ7: 104 | DA7: 105 | DB7: 106 | DC7: 107 | DD7: 108 | DE7: 109 | DF7: 110 | DG7: 111 | DH7: 112 | DI7: 113 | DJ7: 114 | DK7: 115 | DL7: 116 | DM7: 117 | DN7: 118 | DO7: 119 | DP7: 120 | DQ7: 121 | DR7: 122 | DS7: 123 | DT7: 124 | DU7: 125 | DV7: 126 | DW7: 127 | DX7: 128 | DY7: 129 | DZ7: 130 | EA7: 131 | EB7: 132 | EC7: 133 | ED7: 134 | EE7: 135 | EF7: 136 | EG7: 137 | EH7: 138 | EI7: 139 | EJ7: 140 | EK7: 141 | EL7: 142 | EM7: 143 | EN7: 144 | EO7: 145 | EP7: 146 | EQ7: 147 | ER7: 148 | ES7: 149 | ET7: 150 | EU7: 151 | EV7: 152 | EW7: 153 | EX7: 154 | EY7: 155 | EZ7: 156 | FA7: 157 | FB7: 158 | FC7: 159 | FD7: 160 | FE7: 161 | FF7: 162 | FG7: 163 | FH7: 164 | FI7: 165 | FJ7: 166 | FK7: 167 | FL7: 168 | FM7: 169 | FN7: 170 | FO7: 171 | FP7: 172 | FQ7: 173 | FR7: 174 | FS7: 175 | FT7: 176 | FU7: 177 | FV7: 178 | FW7: 179 | FX7: 180 | FY7: 181 | FZ7: 182 | GA7: 183 | GB7: 184 | GC7: 185 | GD7: 186 | GE7: 187 | GF7: 188 | GG7: 189 | GH7: 190 | GI7: 191 | GJ7: 192 | GK7: 193 | GL7: 194 | GM7: 195 | GN7: 196 | GO7: 197 | GP7: 198 | GQ7: 199 | GR7: 200 | GS7: 201 | GT7: 202 | GU7: 203 | GV7: 204 | GW7: 205 | GX7: 206 | GY7: 207 | GZ7: 208 | HA7: 209 | HB7: 210 | HC7: 211 | HD7: 212 | HE7: 213 | HF7: 214 | HG7: 215 | HH7: 216 | HI7: 217 | HJ7: 218 | HK7: 219 | HL7: 220 | HM7: 221 | HN7: 222 | HO7: 223 | HP7: 224 | HQ7: 225 | HR7: 226 | HS7: 227 | HT7: 228 | HU7: 229 | HV7: 230 | HW7: 231 | HX7: 232 | HY7: 233 | HZ7: 234 | IA7: 235 | IB7: 236 | IC7: 237 | ID7: 238 | IE7: 239 | IF7: 240 | IG7: 241 | IH7: 242 | II7: 243 | IJ7: 244 | IK7: 245 | IL7: 246 | IM7: 247 | IN7: 248 | IO7: 249 | IP7: 250 | IQ7: 251 | IR7: 252 | IS7: 253 | IT7: 254 | IU7: 255 | IV7: 256 | IW7: 257 | IX7: 258 | IY7: 259 | IZ7: 260 | JA7: 261 | JB7: 262 | JC7: 263 | JD7: 264 | JE7: 265 | JF7: 266 | JG7: 267 | JH7: 268 | JI7: 269 | JJ7: 270 | JK7: 271 | JL7: 272 | JM7: 273 | JN7: 274 | JO7: 275 | JP7: 276 | JQ7: 277 | JR7: 278 | JS7: 279 | JT7: 280 | JU7: 281 | JV7: 282 | JW7: 283 | JX7: 284 | JY7: 285 | JZ7: 286 | KA7: 287 | KB7: 288 | KC7: 289 | KD7: 290 | KE7: 291 | KF7: 292 | KG7: 293 | KH7: 294 | KI7: 295 | KJ7: 296 | KK7: 297 | KL7: 298 | KM7: 299 | KN7: 300 | KO7: 301 | KP7: 302 | KQ7: 303 | KR7: 304 | KS7: 305 | KT7: 306 | KU7: 307 | KV7: 308 | KW7: 309 | KX7: 310 | KY7: 311 | KZ7: 312 | LA7: 313 | LB7: 314 | LC7: 315 | LD7: 316 | LE7: 317 | LF7: 318 | LG7: 319 | LH7: 320 | LI7: 321 | LJ7: 322 | LK7: 323 | LL7: 324 | LM7: 325 | LN7: 326 | LO7: 327 | LP7: 328 | LQ7: 329 | LR7: 330 | LS7: 331 | LT7: 332 | LU7: 333 | LV7: 334 | LW7: 335 | LX7: 336 | LY7: 337 | LZ7: 338 | MA7: 339 | MB7: 340 | MC7: 341 | MD7: 342 | ME7: 343 | MF7: 344 | MG7: 345 | MH7: 346 | MI7: 347 | MJ7: 348 | MK7: 349 | ML7: 350 | MM7: 351 | MN7: 352 | MO7: 353 | MP7: 354 | MQ7: 355 | MR7: 356 | MS7: 357 | MT7: 358 | MU7: 359 | MV7: 360 | MW7: 361 | MX7: 362 | MY7: 363 | MZ7: 364 | NA7: 365 | NB7: 366 | NC7: 367 | ND7: 368 | NE7: 369 | NF7: 370 | NG7: 371 | NH7: 372 | NI7: 373 | NJ7: 374 | NK7: 375 | NL7: 376 | NM7: 377 | NN7: 378 | NO7: 379 | NP7: 380 | NQ7: 381 | NR7: 382 | NS7: 383 | NT7: 384 | NU7: 385 | NV7: 386 | NW7: 387 | NX7: 388 | NY7: 389 | NZ7: 390 | OA7: 391 | OB7: 392 | OC7: 393 | OD7: 394 | OE7: 395 | OF7: 396 | OG7: 397 | OH7: 398 | OI7: 399 | OJ7: 400 | OK7: 401 | OL7: 402 | OM7: 403 | ON7: 404 | OO7: 405 | OP7: 406 | OQ7: 407 | OR7: 408 | OS7: 409 | OT7: 410 | OU7: 411 | OV7: 412 | OW7: 413 | OX7: 414 | OY7: 415 | OZ7: 416 | PA7: 417 | PB7: 418 | PC7: 419 | PD7: 420 | PE7: 421 | PF7: 422 | PG7: 423 | PH7: 424 | PI7: 425 | PJ7: 426 | PK7: 427 | PL7: 428 | PM7: 429 | PN7: 430 | PO7: 431 | PP7: 432 | PQ7: 433 | PR7: 434 | PS7: 435 | PT7: 436 | PU7: 437 | PV7: 438 | PW7: 439 | PX7: 440 | PY7: 441 | PZ7: 442 | QA7: 443 | QB7: 444 | QC7: 445 | QD7: 446 | QE7: 447 | QF7: 448 | QG7: 449 | QH7: 450 | QI7: 451 | QJ7: 452 | QK7: 453 | QL7: 454 | QM7: 455 | QN7: 456 | QO7: 457 | QP7: 458 | QQ7: 459 | QR7: 460 | QS7: 461 | QT7: 462 | QU7: 463 | QV7: 464 | QW7: 465 | QX7: 466 | QY7: 467 | QZ7: 468 | RA7: 469 | RB7: 470 | RC7: 471 | RD7: 472 | RE7: 473 | RF7: 474 | RG7: 475 | RH7: 476 | RI7: 477 | RJ7: 478 | RK7: 479 | RL7: 480 | RM7: 481 | RN7: 482 | RO7: 483 | RP7: 484 | RQ7: 485 | RR7: 486 | RS7: 487 | RT7: 488 | RU7: 489 | RV7: 490 | RW7: 491 | RX7: 492 | RY7: 493 | RZ7: 494 | SA7: 495 | SB7: 496 | SC7: 497 | SD7: 498 | SE7: 499 | SF7: 500 | SG7: 501 | SH7: 502 | SI7: 503 | SJ7: 504 | SK7: 505 | SL7: 506 | SM7: 507 | SN7: 508 | SO7: 509 | SP7: 510 | SQ7: 511 | SR7: 512 | SS7: 513 | ST7: 514 | SU7: 515 | SV7: 516 | SW7: 517 | SX7: 518 | SY7: 519 | SZ7: 520 | TA7: 521 | TB7: 522 | TC7: 523 | TD7: 524
A8: Versicherer | B8: VersName | C8: Tariftyp | D8: Tarifbezeichnung | E8: Altersuntergruppe | F8: 8 | G8: FRA-300 | H8: FRA-500 | I8: FRA-1000 | J8: FRA-1500 | K8: FRA-2000 | L8: FRA-2500 | M8: FRA-300 | N8: FRA-500 | O8: FRA-1000 | P8: FRA-1500 | Q8: FRA-2000 | R8: FRA-2500 | S8: FRA-300 | T8: FRA-500 | U8: FRA-1000 | V8: FRA-1500 | W8: FRA-2000 | X8: FRA-2500 | Y8: FRA-300 | Z8: FRA-500 | AA8: FRA-1000 | AB8: FRA-1500 | AC8: FRA-2000 | AD8: FRA-2500 | AE8: FRA-300 | AF8: FRA-500 | AG8: FRA-1000 | AH8: FRA-1500 | AI8: FRA-2000 | AJ8: FRA-2500 | AK8: FRA-300 | AL8: FRA-500 | AM8: FRA-1000 | AN8: FRA-1500 | AO8: FRA-2000 | AP8: FRA-2500 | AQ8: FRA-300 | AR8: FRA-500 | AS8: FRA-1000 | AT8: FRA-1500 | AU8: FRA-2000 | AV8: FRA-2500 | AW8: FRA-300 | AX8: FRA-500 | AY8: FRA-1000 | AZ8: FRA-1500 | BA8: FRA-2000 | BB8: FRA-2500 | BC8: FRA-300 | BD8: FRA-500 | BE8: FRA-1000 | BF8: FRA-1500 | BG8: FRA-2000 | BH8: FRA-2500 | BI8: FRA-300 | BJ8: FRA-500 | BK8: FRA-1000 | BL8: FRA-1500 | BM8: FRA-2000 | BN8: FRA-2500 | BO8: FRA-300 | BP8: FRA-500 | BQ8: FRA-1000 | BR8: FRA-1500 | BS8: FRA-2000 | BT8: FRA-2500 | BU8: FRA-300 | BV8: FRA-500 | BW8: FRA-1000 | BX8: FRA-1500 | BY8: FRA-2000 | BZ8: FRA-2500 | CA8: FRA-300 | CB8: FRA-500 | CC8: FRA-1000 | CD8: FRA-1500 | CE8: FRA-2000 | CF8: FRA-2500 | CG8: FRA-300 | CH8: FRA-500 | CI8: FRA-1000 | CJ8: FRA-1500 | CK8: FRA-2000 | CL8: FRA-2500 | CM8: FRA-300 | CN8: FRA-500 | CO8: FRA-1000 | CP8: FRA-1500 | CQ8: FRA-2000 | CR8: FRA-2500 | CS8: FRA-300 | CT8: FRA-500 | CU8: FRA-1000 | CV8: FRA-1500 | CW8: FRA-2000 | CX8: FRA-2500 | CY8: FRA-300 | CZ8: FRA-500 | DA8: FRA-1000 | DB8: FRA-1500 | DC8: FRA-2000 | DD8: FRA-2500 | DE8: FRA-300 | DF8: FRA-500 | DG8: FRA-1000 | DH8: FRA-1500 | DI8: FRA-2000 | DJ8: FRA-2500 | DK8: FRA-300 | DL8: FRA-500 | DM8: FRA-1000 | DN8: FRA-1500 | DO8: FRA-2000 | DP8: FRA-2500 | DQ8: FRA-300 | DR8: FRA-500 | DS8: FRA-1000 | DT8: FRA-1500 | DU8: FRA-2000 | DV8: FRA-2500 | DW8: FRA-300 | DX8: FRA-500 | DY8: FRA-1000 | DZ8: FRA-1500 | EA8: FRA-2000 | EB8: FRA-2500 | EC8: FRA-300 | ED8: FRA-500 | EE8: FRA-1000 | EF8: FRA-1500 | EG8: FRA-2000 | EH8: FRA-2500 | EI8: FRA-300 | EJ8: FRA-500 | EK8: FRA-1000 | EL8: FRA-1500 | EM8: FRA-2000 | EN8: FRA-2500 | EO8: FRA-300 | EP8: FRA-500 | EQ8: FRA-1000 | ER8: FRA-1500 | ES8: FRA-2000 | ET8: FRA-2500 | EU8: FRA-300 | EV8: FRA-500 | EW8: FRA-1000 | EX8: FRA-1500 | EY8: FRA-2000 | EZ8: FRA-2500 | FA8: FRA-300 | FB8: FRA-500 | FC8: FRA-1000 | FD8: FRA-1500 | FE8: FRA-2000 | FF8: FRA-2500 | FG8: FRA-300 | FH8: FRA-500 | FI8: FRA-1000 | FJ8: FRA-1500 | FK8: FRA-2000 | FL8: FRA-2500 | FM8: FRA-300 | FN8: FRA-500 | FO8: FRA-1000 | FP8: FRA-1500 | FQ8: FRA-2000 | FR8: FRA-2500 | FS8: FRA-300 | FT8: FRA-500 | FU8: FRA-1000 | FV8: FRA-1500 | FW8: FRA-2000 | FX8: FRA-2500 | FY8: FRA-300 | FZ8: FRA-500 | GA8: FRA-1000 | GB8: FRA-1500 | GC8: FRA-2000 | GD8: FRA-2500 | GE8: FRA-300 | GF8: FRA-500 | GG8: FRA-1000 | GH8: FRA-1500 | GI8: FRA-2000 | GJ8: FRA-2500 | GK8: FRA-300 | GL8: FRA-500 | GM8: FRA-1000 | GN8: FRA-1500 | GO8: FRA-2000 | GP8: FRA-2500 | GQ8: FRA-300 | GR8: FRA-500 | GS8: FRA-1000 | GT8: FRA-1500 | GU8: FRA-2000 | GV8: FRA-2500 | GW8: FRA-300 | GX8: FRA-500 | GY8: FRA-1000 | GZ8: FRA-1500 | HA8: FRA-2000 | HB8: FRA-2500 | HC8: FRA-300 | HD8: FRA-500 | HE8: FRA-1000 | HF8: FRA-1500 | HG8: FRA-2000 | HH8: FRA-2500 | HI8: FRA-300 | HJ8: FRA-500 | HK8: FRA-1000 | HL8: FRA-1500 | HM8: FRA-2000 | HN8: FRA-2500 | HO8: FRA-300 | HP8: FRA-500 | HQ8: FRA-1000 | HR8: FRA-1500 | HS8: FRA-2000 | HT8: FRA-2500 | HU8: FRA-300 | HV8: FRA-500 | HW8: FRA-1000 | HX8: FRA-1500 | HY8: FRA-2000 | HZ8: FRA-2500 | IA8: FRA-300 | IB8: FRA-500 | IC8: FRA-1000 | ID8: FRA-1500 | IE8: FRA-2000 | IF8: FRA-2500 | IG8: FRA-300 | IH8: FRA-500 | II8: FRA-1000 | IJ8: FRA-1500 | IK8: FRA-2000 | IL8: FRA-2500 | IM8: FRA-300 | IN8: FRA-500 | IO8: FRA-1000 | IP8: FRA-1500 | IQ8: FRA-2000 | IR8: FRA-2500 | IS8: FRA-300 | IT8: FRA-500 | IU8: FRA-1000 | IV8: FRA-1500 | IW8: FRA-2000 | IX8: FRA-2500 | IY8: FRA-300 | IZ8: FRA-500 | JA8: FRA-1000 | JB8: FRA-1500 | JC8: FRA-2000 | JD8: FRA-2500 | JE8: FRA-300 | JF8: FRA-500 | JG8: FRA-1000 | JH8: FRA-1500 | JI8: FRA-2000 | JJ8: FRA-2500 | JK8: FRA-300 | JL8: FRA-500 | JM8: FRA-1000 | JN8: FRA-1500 | JO8: FRA-2000 | JP8: FRA-2500 | JQ8: FRA-300 | JR8: FRA-500 | JS8: FRA-1000 | JT8: FRA-1500 | JU8: FRA-2000 | JV8: FRA-2500 | JW8: FRA-300 | JX8: FRA-500 | JY8: FRA-1000 | JZ8: FRA-1500 | KA8: FRA-2000 | KB8: FRA-2500 | KC8: FRA-300 | KD8: FRA-500 | KE8: FRA-1000 | KF8: FRA-1500 | KG8: FRA-2000 | KH8: FRA-2500 | KI8: FRA-300 | KJ8: FRA-500 | KK8: FRA-1000 | KL8: FRA-1500 | KM8: FRA-2000 | KN8: FRA-2500 | KO8: FRA-300 | KP8: FRA-500 | KQ8: FRA-1000 | KR8: FRA-1500 | KS8: FRA-2000 | KT8: FRA-2500 | KU8: FRA-300 | KV8: FRA-500 | KW8: FRA-1000 | KX8: FRA-1500 | KY8: FRA-2000 | KZ8: FRA-2500 | LA8: FRA-300 | LB8: FRA-500 | LC8: FRA-1000 | LD8: FRA-1500 | LE8: FRA-2000 | LF8: FRA-2500 | LG8: FRA-300 | LH8: FRA-500 | LI8: FRA-1000 | LJ8: FRA-1500 | LK8: FRA-2000 | LL8: FRA-2500 | LM8: FRA-300 | LN8: FRA-500 | LO8: FRA-1000 | LP8: FRA-1500 | LQ8: FRA-2000 | LR8: FRA-2500 | LS8: FRA-300 | LT8: FRA-500 | LU8: FRA-1000 | LV8: FRA-1500 | LW8: FRA-2000 | LX8: FRA-2500 | LY8: FRA-300 | LZ8: FRA-500 | MA8: FRA-1000 | MB8: FRA-1500 | MC8: FRA-2000 | MD8: FRA-2500 | ME8: FRA-300 | MF8: FRA-500 | MG8: FRA-1000 | MH8: FRA-1500 | MI8: FRA-2000 | MJ8: FRA-2500 | MK8: FRA-300 | ML8: FRA-500 | MM8: FRA-1000 | MN8: FRA-1500 | MO8: FRA-2000 | MP8: FRA-2500 | MQ8: FRA-300 | MR8: FRA-500 | MS8: FRA-1000 | MT8: FRA-1500 | MU8: FRA-2000 | MV8: FRA-2500 | MW8: FRA-300 | MX8: FRA-500 | MY8: FRA-1000 | MZ8: FRA-1500 | NA8: FRA-2000 | NB8: FRA-2500 | NC8: FRA-300 | ND8: FRA-500 | NE8: FRA-1000 | NF8: FRA-1500 | NG8: FRA-2000 | NH8: FRA-2500 | NI8: FRA-300 | NJ8: FRA-500 | NK8: FRA-1000 | NL8: FRA-1500 | NM8: FRA-2000 | NN8: FRA-2500 | NO8: FRA-300 | NP8: FRA-500 | NQ8: FRA-1000 | NR8: FRA-1500 | NS8: FRA-2000 | NT8: FRA-2500 | NU8: FRA-300 | NV8: FRA-500 | NW8: FRA-1000 | NX8: FRA-1500 | NY8: FRA-2000 | NZ8: FRA-2500 | OA8: FRA-300 | OB8: FRA-500 | OC8: FRA-1000 | OD8: FRA-1500 | OE8: FRA-2000 | OF8: FRA-2500 | OG8: FRA-300 | OH8: FRA-500 | OI8: FRA-1000 | OJ8: FRA-1500 | OK8: FRA-2000 | OL8: FRA-2500 | OM8: FRA-300 | ON8: FRA-500 | OO8: FRA-1000 | OP8: FRA-1500 | OQ8: FRA-2000 | OR8: FRA-2500 | OS8: FRA-300 | OT8: FRA-500 | OU8: FRA-1000 | OV8: FRA-1500 | OW8: FRA-2000 | OX8: FRA-2500 | OY8: FRA-300 | OZ8: FRA-500 | PA8: FRA-1000 | PB8: FRA-1500 | PC8: FRA-2000 | PD8: FRA-2500 | PE8: FRA-300 | PF8: FRA-500 | PG8: FRA-1000 | PH8: FRA-1500 | PI8: FRA-2000 | PJ8: FRA-2500 | PK8: FRA-300 | PL8: FRA-500 | PM8: FRA-1000 | PN8: FRA-1500 | PO8: FRA-2000 | PP8: FRA-2500 | PQ8: FRA-300 | PR8: FRA-500 | PS8: FRA-1000 | PT8: FRA-1500 | PU8: FRA-2000 | PV8: FRA-2500 | PW8: FRA-300 | PX8: FRA-500 | PY8: FRA-1000 | PZ8: FRA-1500 | QA8: FRA-2000 | QB8: FRA-2500 | QC8: FRA-300 | QD8: FRA-500 | QE8: FRA-1000 | QF8: FRA-1500 | QG8: FRA-2000 | QH8: FRA-2500 | QI8: FRA-300 | QJ8: FRA-500 | QK8: FRA-1000 | QL8: FRA-1500 | QM8: FRA-2000 | QN8: FRA-2500 | QO8: FRA-300 | QP8: FRA-500 | QQ8: FRA-1000 | QR8: FRA-1500 | QS8: FRA-2000 | QT8: FRA-2500 | QU8: FRA-300 | QV8: FRA-500 | QW8: FRA-1000 | QX8: FRA-1500 | QY8: FRA-2000 | QZ8: FRA-2500 | RA8: FRA-300 | RB8: FRA-500 | RC8: FRA-1000 | RD8: FRA-1500 | RE8: FRA-2000 | RF8: FRA-2500 | RG8: FRA-300 | RH8: FRA-500 | RI8: FRA-1000 | RJ8: FRA-1500 | RK8: FRA-2000 | RL8: FRA-2500 | RM8: FRA-300 | RN8: FRA-500 | RO8: FRA-1000 | RP8: FRA-1500 | RQ8: FRA-2000 | RR8: FRA-2500 | RS8: FRA-300 | RT8: FRA-500 | RU8: FRA-1000 | RV8: FRA-1500 | RW8: FRA-2000 | RX8: FRA-2500 | RY8: FRA-300 | RZ8: FRA-500 | SA8: FRA-1000 | SB8: FRA-1500 | SC8: FRA-2000 | SD8: FRA-2500 | SE8: FRA-300 | SF8: FRA-500 | SG8: FRA-1000 | SH8: FRA-1500 | SI8: FRA-2000 | SJ8: FRA-2500 | SK8: FRA-300 | SL8: FRA-500 | SM8: FRA-1000 | SN8: FRA-1500 | SO8: FRA-2000 | SP8: FRA-2500 | SQ8: FRA-300 | SR8: FRA-500 | SS8: FRA-1000 | ST8: FRA-1500 | SU8: FRA-2000 | SV8: FRA-2500 | SW8: FRA-300 | SX8: FRA-500 | SY8: FRA-1000 | SZ8: FRA-1500 | TA8: FRA-2000 | TB8: FRA-2500 | TC8: FRA-300 | TD8: FRA-300
A9: 8 | B9: CSS Kranken-Versicherung AG | C9: TAR-BASE | D9: Grundversicherung | F9: 9 | G9: 493 | H9: 481.4 | I9: 452.2 | J9: 423 | K9: 393.9 | L9: 364.7 | M9: 458.5 | N9: 447.7 | O9: 420.5 | P9: 393.4 | Q9: 366.3 | R9: 339.2 | S9: 439 | T9: 427.4 | U9: 398.2 | V9: 369 | W9: 339.9 | X9: 310.7 | Y9: 408.3 | Z9: 397.5 | AA9: 370.3 | AB9: 343.2 | AC9: 316.1 | AD9: 289 | AE9: 472 | AF9: 460.4 | AG9: 431.2 | AH9: 402 | AI9: 372.9 | AJ9: 343.7 | AK9: 439 | AL9: 428.2 | AM9: 401 | AN9: 373.9 | AO9: 346.8 | AP9: 319.6 | AQ9: 440 | AR9: 428.4 | AS9: 399.2 | AT9: 370 | AU9: 340.9 | AV9: 311.7 | AW9: 409.2 | AX9: 398.4 | AY9: 371.3 | AZ9: 344.1 | BA9: 317 | BB9: 289.9 | BC9: 397 | BD9: 385.4 | BE9: 356.2 | BF9: 327 | BG9: 297.9 | BH9: 268.7 | BI9: 369.2 | BJ9: 358.4 | BK9: 331.3 | BL9: 304.1 | BM9: 277 | BN9: 249.9 | BO9: 489 | BP9: 477.4 | BQ9: 448.2 | BR9: 419 | BS9: 389.9 | BT9: 360.7 | BU9: 454.8 | BV9: 444 | BW9: 416.8 | BX9: 389.7 | BY9: 362.6 | BZ9: 335.5 | CA9: 565 | CB9: 553.4 | CC9: 524.2 | CD9: 495 | CE9: 465.9 | CF9: 436.7 | CG9: 525.5 | CH9: 514.7 | CI9: 487.5 | CJ9: 460.4 | CK9: 433.3 | CL9: 406.1 | CM9: 520 | CN9: 508.4 | CO9: 479.2 | CP9: 450 | CQ9: 420.9 | CR9: 391.7 | CS9: 483.6 | CT9: 472.8 | CU9: 445.7 | CV9: 418.5 | CW9: 391.4 | CX9: 364.3 | CY9: 481 | CZ9: 469.4 | DA9: 440.2 | DB9: 411 | DC9: 381.9 | DD9: 352.7 | DE9: 447.3 | DF9: 436.5 | DG9: 409.4 | DH9: 382.2 | DI9: 355.2 | DJ9: 328 | DK9: 555 | DL9: 543.4 | DM9: 514.2 | DN9: 485 | DO9: 455.9 | DP9: 426.7 | DQ9: 516.2 | DR9: 505.4 | DS9: 478.2 | DT9: 451.1 | DU9: 424 | DV9: 396.8 | DW9: 506 | DX9: 494.4 | DY9: 465.2 | DZ9: 436 | EA9: 406.9 | EB9: 377.7 | EC9: 470.6 | ED9: 459.8 | EE9: 432.6 | EF9: 405.5 | EG9: 378.4 | EH9: 351.3 | EI9: 624 | EJ9: 612.4 | EK9: 583.2 | EL9: 554 | EM9: 524.9 | EN9: 495.7 | EO9: 580.3 | EP9: 569.5 | EQ9: 542.4 | ER9: 515.2 | ES9: 488.2 | ET9: 461 | EU9: 630 | EV9: 618.4 | EW9: 589.2 | EX9: 560 | EY9: 530.9 | EZ9: 501.7 | FA9: 585.9 | FB9: 575.1 | FC9: 548 | FD9: 520.8 | FE9: 493.7 | FF9: 466.6 | FG9: 465 | FH9: 453.4 | FI9: 424.2 | FJ9: 395 | FK9: 365.9 | FL9: 336.7 | FM9: 432.5 | FN9: 421.7 | FO9: 394.5 | FP9: 367.4 | FQ9: 340.3 | FR9: 313.1 | FS9: 480 | FT9: 468.4 | FU9: 439.2 | FV9: 410 | FW9: 380.9 | FX9: 351.7 | FY9: 446.4 | FZ9: 435.6 | GA9: 408.5 | GB9: 381.3 | GC9: 354.2 | GD9: 327.1 | GE9: 461 | GF9: 449.4 | GG9: 420.2 | GH9: 391 | GI9: 361.9 | GJ9: 332.7 | GK9: 428.7 | GL9: 417.9 | GM9: 390.8 | GN9: 363.6 | GO9: 336.6 | GP9: 309.4 | GQ9: 455 | GR9: 443.4 | GS9: 414.2 | GT9: 385 | GU9: 355.9 | GV9: 326.7 | GW9: 423.2 | GX9: 412.4 | GY9: 385.2 | GZ9: 358.1 | HA9: 331 | HB9: 303.8 | HC9: 565 | HD9: 553.4 | HE9: 524.2 | HF9: 495 | HG9: 465.9 | HH9: 436.7 | HI9: 525.5 | HJ9: 514.7 | HK9: 487.5 | HL9: 460.4 | HM9: 433.3 | HN9: 406.1 | HO9: 449 | HP9: 437.4 | HQ9: 408.2 | HR9: 379 | HS9: 349.9 | HT9: 320.7 | HU9: 417.6 | HV9: 406.8 | HW9: 379.6 | HX9: 352.5 | HY9: 325.4 | HZ9: 298.3 | IA9: 411 | IB9: 399.4 | IC9: 370.2 | ID9: 341 | IE9: 311.9 | IF9: 282.7 | IG9: 382.2 | IH9: 371.4 | II9: 344.3 | IJ9: 317.1 | IK9: 290.1 | IL9: 262.9 | IM9: 394 | IN9: 382.4 | IO9: 353.2 | IP9: 324 | IQ9: 294.9 | IR9: 265.7 | IS9: 366.4 | IT9: 355.6 | IU9: 328.5 | IV9: 301.3 | IW9: 274.3 | IX9: 247.1 | IY9: 585 | IZ9: 573.4 | JA9: 544.2 | JB9: 515 | JC9: 485.9 | JD9: 456.7 | JE9: 544.1 | JF9: 533.3 | JG9: 506.1 | JH9: 479 | JI9: 451.9 | JJ9: 424.7 | JK9: 402 | JL9: 390.4 | JM9: 361.2 | JN9: 332 | JO9: 302.9 | JP9: 273.7 | JQ9: 373.9 | JR9: 363.1 | JS9: 335.9 | JT9: 308.8 | JU9: 281.7 | JV9: 254.5 | JW9: 410 | JX9: 398.4 | JY9: 369.2 | JZ9: 340 | KA9: 310.9 | KB9: 281.7 | KC9: 381.3 | KD9: 370.5 | KE9: 343.4 | KF9: 316.2 | KG9: 289.1 | KH9: 262 | KI9: 492 | KJ9: 480.4 | KK9: 451.2 | KL9: 422 | KM9: 392.9 | KN9: 363.7 | KO9: 457.6 | KP9: 446.8 | KQ9: 419.6 | KR9: 392.5 | KS9: 365.4 | KT9: 338.2 | KU9: 435 | KV9: 423.4 | KW9: 394.2 | KX9: 365 | KY9: 335.9 | KZ9: 306.7 | LA9: 404.6 | LB9: 393.8 | LC9: 366.6 | LD9: 339.5 | LE9: 312.4 | LF9: 285.2 | LG9: 423 | LH9: 411.4 | LI9: 382.2 | LJ9: 353 | LK9: 323.9 | LL9: 294.7 | LM9: 393.4 | LN9: 382.6 | LO9: 355.4 | LP9: 328.3 | LQ9: 301.2 | LR9: 274.1 | LS9: 485 | LT9: 473.4 | LU9: 444.2 | LV9: 415 | LW9: 385.9 | LX9: 356.7 | LY9: 451.1 | LZ9: 440.3 | MA9: 413.1 | MB9: 386 | MC9: 358.9 | MD9: 331.7 | ME9: 485 | MF9: 473.4 | MG9: 444.2 | MH9: 415 | MI9: 385.9 | MJ9: 356.7 | MK9: 451.1 | ML9: 440.3 | MM9: 413.1 | MN9: 386 | MO9: 358.9 | MP9: 331.7 | MQ9: 400 | MR9: 388.4 | MS9: 359.2 | MT9: 330 | MU9: 300.9 | MV9: 271.7 | MW9: 372 | MX9: 361.2 | MY9: 334.1 | MZ9: 306.9 | NA9: 279.8 | NB9: 252.7 | NC9: 456 | ND9: 444.4 | NE9: 415.2 | NF9: 386 | NG9: 356.9 | NH9: 327.7 | NI9: 424.1 | NJ9: 413.3 | NK9: 386.1 | NL9: 359 | NM9: 331.9 | NN9: 304.8 | NO9: 585 | NP9: 573.4 | NQ9: 544.2 | NR9: 515 | NS9: 485.9 | NT9: 456.7 | NU9: 544.1 | NV9: 533.3 | NW9: 506.1 | NX9: 479 | NY9: 451.9 | NZ9: 424.7 | OA9: 521 | OB9: 509.4 | OC9: 480.2 | OD9: 451 | OE9: 421.9 | OF9: 392.7 | OG9: 484.5 | OH9: 473.7 | OI9: 446.6 | OJ9: 419.4 | OK9: 392.4 | OL9: 365.2 | OM9: 375 | ON9: 363.4 | OO9: 334.2 | OP9: 305 | OQ9: 275.9 | OR9: 246.7 | OS9: 348.8 | OT9: 338 | OU9: 310.8 | OV9: 283.7 | OW9: 256.6 | OX9: 229.4 | OY9: 585 | OZ9: 573.4 | PA9: 544.2 | PB9: 515 | PC9: 485.9 | PD9: 456.7 | PE9: 544.1 | PF9: 533.3 | PG9: 506.1 | PH9: 479 | PI9: 451.9 | PJ9: 424.7 | PK9: 537 | PL9: 525.4 | PM9: 496.2 | PN9: 467 | PO9: 437.9 | PP9: 408.7 | PQ9: 499.4 | PR9: 488.6 | PS9: 461.5 | PT9: 434.3 | PU9: 407.2 | PV9: 380.1 | PW9: 477 | PX9: 465.4 | PY9: 436.2 | PZ9: 407 | QA9: 377.9 | QB9: 348.7 | QC9: 443.6 | QD9: 432.8 | QE9: 405.7 | QF9: 378.5 | QG9: 351.4 | QH9: 324.3 | QI9: 431 | QJ9: 419.4 | QK9: 390.2 | QL9: 361 | QM9: 331.9 | QN9: 302.7 | QO9: 400.8 | QP9: 390 | QQ9: 362.9 | QR9: 335.7 | QS9: 308.7 | QT9: 281.5 | RG9: 386 | RH9: 374.4 | RI9: 345.2 | RJ9: 316 | RK9: 286.9 | RL9: 257.7 | RM9: 359 | RN9: 348.2 | RO9: 321 | RP9: 293.9 | RQ9: 266.8 | RR9: 239.7 | RS9: 578 | RT9: 566.4 | RU9: 537.2 | RV9: 508 | RW9: 478.9 | RX9: 449.7 | RY9: 537.5 | RZ9: 526.8 | SA9: 499.6 | SB9: 472.4 | SC9: 445.4 | SD9: 418.2 | SE9: 494 | SF9: 482.4 | SG9: 453.2 | SH9: 424 | SI9: 394.9 | SJ9: 365.7 | SK9: 459.4 | SL9: 448.6 | SM9: 421.5 | SN9: 394.3 | SO9: 367.3 | SP9: 340.1 | SQ9: 446 | SR9: 434.4 | SS9: 405.2 | ST9: 376 | SU9: 346.9 | SV9: 317.7 | SW9: 414.8 | SX9: 404 | SY9: 376.8 | SZ9: 349.7 | TA9: 322.6 | TB9: 295.5
C10: TAR-HAM | D10: Hausarztversicherung Profit | F10: 10 | G10: 443.7 | H10: 432.1 | I10: 402.9 | J10: 373.7 | K10: 344.6 | L10: 315.4 | M10: 412.6 | N10: 401.9 | O10: 374.7 | P10: 347.5 | Q10: 320.5 | R10: 293.3 | S10: 395.1 | T10: 383.5 | U10: 354.3 | V10: 325.1 | W10: 296 | X10: 266.8 | Y10: 367.4 | Z10: 356.7 | AA10: 329.5 | AB10: 302.3 | AC10: 275.3 | AD10: 248.1 | AE10: 424.8 | AF10: 413.2 | AG10: 384 | AH10: 354.8 | AI10: 325.7 | AJ10: 296.5 | AK10: 395.1 | AL10: 384.3 | AM10: 357.1 | AN10: 330 | AO10: 302.9 | AP10: 275.7 | AQ10: 396 | AR10: 384.4 | AS10: 355.2 | AT10: 326 | AU10: 296.9 | AV10: 267.7 | AW10: 368.3 | AX10: 357.5 | AY10: 330.3 | AZ10: 303.2 | BA10: 276.1 | BB10: 249 | BC10: 357.3 | BD10: 345.7 | BE10: 316.5 | BF10: 287.3 | BG10: 258.2 | BH10: 229 | BI10: 332.3 | BJ10: 321.5 | BK10: 294.3 | BL10: 267.2 | BM10: 240.1 | BN10: 213 | BO10: 440.1 | BP10: 428.5 | BQ10: 399.3 | BR10: 370.1 | BS10: 341 | BT10: 311.8 | BU10: 409.3 | BV10: 398.5 | BW10: 371.3 | BX10: 344.2 | BY10: 317.1 | BZ10: 290 | CA10: 508.5 | CB10: 496.9 | CC10: 467.7 | CD10: 438.5 | CE10: 409.4 | CF10: 380.2 | CG10: 472.9 | CH10: 462.1 | CI10: 435 | CJ10: 407.8 | CK10: 380.7 | CL10: 353.6 | CM10: 468 | CN10: 456.4 | CO10: 427.2 | CP10: 398 | CQ10: 368.9 | CR10: 339.7 | CS10: 435.2 | CT10: 424.5 | CU10: 397.3 | CV10: 370.1 | CW10: 343.1 | CX10: 315.9 | CY10: 432.9 | CZ10: 421.3 | DA10: 392.1 | DB10: 362.9 | DC10: 333.8 | DD10: 304.6 | DE10: 402.6 | DF10: 391.8 | DG10: 364.7 | DH10: 337.5 | DI10: 310.4 | DJ10: 283.3 | DK10: 499.5 | DL10: 487.9 | DM10: 458.7 | DN10: 429.5 | DO10: 400.4 | DP10: 371.2 | DQ10: 464.5 | DR10: 453.7 | DS10: 426.6 | DT10: 399.4 | DU10: 372.4 | DV10: 345.2 | DW10: 455.4 | DX10: 443.8 | DY10: 414.6 | DZ10: 385.4 | EA10: 356.3 | EB10: 327.1 | EC10: 423.5 | ED10: 412.7 | EE10: 385.6 | EF10: 358.4 | EG10: 331.4 | EH10: 304.2 | EI10: 561.6 | EJ10: 550 | EK10: 520.8 | EL10: 491.6 | EM10: 462.5 | EN10: 433.3 | EO10: 522.3 | EP10: 511.5 | EQ10: 484.3 | ER10: 457.2 | ES10: 430.1 | ET10: 403 | EU10: 567 | EV10: 555.4 | EW10: 526.2 | EX10: 497 | EY10: 467.9 | EZ10: 438.7 | FA10: 527.3 | FB10: 516.5 | FC10: 489.4 | FD10: 462.2 | FE10: 435.1 | FF10: 408 | FG10: 418.5 | FH10: 406.9 | FI10: 377.7 | FJ10: 348.5 | FK10: 319.4 | FL10: 290.2 | FM10: 389.2 | FN10: 378.4 | FO10: 351.3 | FP10: 324.1 | FQ10: 297 | FR10: 269.9 | FS10: 432 | FT10: 420.4 | FU10: 391.2 | FV10: 362 | FW10: 332.9 | FX10: 303.7 | FY10: 401.8 | FZ10: 391 | GA10: 363.8 | GB10: 336.7 | GC10: 309.6 | GD10: 282.4 | GE10: 414.9 | GF10: 403.3 | GG10: 374.1 | GH10: 344.9 | GI10: 315.8 | GJ10: 286.6 | GK10: 385.9 | GL10: 375.1 | GM10: 347.9 | GN10: 320.8 | GO10: 293.7 | GP10: 266.5 | GQ10: 409.5 | GR10: 397.9 | GS10: 368.7 | GT10: 339.5 | GU10: 310.4 | GV10: 281.2 | GW10: 380.8 | GX10: 370 | GY10: 342.9 | GZ10: 315.7 | HA10: 288.7 | HB10: 261.5 | HC10: 508.5 | HD10: 496.9 | HE10: 467.7 | HF10: 438.5 | HG10: 409.4 | HH10: 380.2 | HI10: 472.9 | HJ10: 462.1 | HK10: 435 | HL10: 407.8 | HM10: 380.7 | HN10: 353.6 | HO10: 404.1 | HP10: 392.5 | HQ10: 363.3 | HR10: 334.1 | HS10: 305 | HT10: 275.8 | HU10: 375.8 | HV10: 365 | HW10: 337.9 | HX10: 310.7 | HY10: 283.7 | HZ10: 256.5 | IA10: 369.9 | IB10: 358.3 | IC10: 329.1 | ID10: 299.9 | IE10: 270.8 | IF10: 241.6 | IG10: 344 | IH10: 333.2 | II10: 306.1 | IJ10: 278.9 | IK10: 251.8 | IL10: 224.7 | IM10: 354.6 | IN10: 343 | IO10: 313.8 | IP10: 284.6 | IQ10: 255.5 | IR10: 226.3 | IS10: 329.8 | IT10: 319 | IU10: 291.8 | IV10: 264.7 | IW10: 237.6 | IX10: 210.5 | IY10: 526.5 | IZ10: 514.9 | JA10: 485.7 | JB10: 456.5 | JC10: 427.4 | JD10: 398.2 | JE10: 489.6 | JF10: 478.9 | JG10: 451.7 | JH10: 424.5 | JI10: 397.5 | JJ10: 370.3 | JK10: 361.8 | JL10: 350.2 | JM10: 321 | JN10: 291.8 | JO10: 262.7 | JP10: 233.5 | JQ10: 336.5 | JR10: 325.7 | JS10: 298.5 | JT10: 271.4 | JU10: 244.3 | JV10: 217.2 | JW10: 369 | JX10: 357.4 | JY10: 328.2 | JZ10: 299 | KA10: 269.9 | KB10: 240.7 | KC10: 343.2 | KD10: 332.4 | KE10: 305.2 | KF10: 278.1 | KG10: 251 | KH10: 223.9 | KI10: 442.8 | KJ10: 431.2 | KK10: 402 | KL10: 372.8 | KM10: 343.7 | KN10: 314.5 | KO10: 411.8 | KP10: 401 | KQ10: 373.9 | KR10: 346.7 | KS10: 319.6 | KT10: 292.5 | KU10: 391.5 | KV10: 379.9 | KW10: 350.7 | KX10: 321.5 | KY10: 292.4 | KZ10: 263.2 | LA10: 364.1 | LB10: 353.3 | LC10: 326.2 | LD10: 299 | LE10: 271.9 | LF10: 244.8 | LG10: 380.7 | LH10: 369.1 | LI10: 339.9 | LJ10: 310.7 | LK10: 281.6 | LL10: 252.4 | LM10: 354.1 | LN10: 343.3 | LO10: 316.1 | LP10: 289 | LQ10: 261.9 | LR10: 234.7 | LS10: 436.5 | LT10: 424.9 | LU10: 395.7 | LV10: 366.5 | LW10: 337.4 | LX10: 308.2 | LY10: 405.9 | LZ10: 395.2 | MA10: 368 | MB10: 340.8 | MC10: 313.8 | MD10: 286.6 | ME10: 436.5 | MF10: 424.9 | MG10: 395.7 | MH10: 366.5 | MI10: 337.4 | MJ10: 308.2 | MK10: 405.9 | ML10: 395.2 | MM10: 368 | MN10: 340.8 | MO10: 313.8 | MP10: 286.6 | MQ10: 360 | MR10: 348.4 | MS10: 319.2 | MT10: 290 | MU10: 260.9 | MV10: 231.7 | MW10: 334.8 | MX10: 324 | MY10: 296.9 | MZ10: 269.7 | NA10: 242.6 | NB10: 215.5 | NC10: 410.4 | ND10: 398.8 | NE10: 369.6 | NF10: 340.4 | NG10: 311.3 | NH10: 282.1 | NI10: 381.7 | NJ10: 370.9 | NK10: 343.7 | NL10: 316.6 | NM10: 289.5 | NN10: 262.4 | NO10: 526.5 | NP10: 514.9 | NQ10: 485.7 | NR10: 456.5 | NS10: 427.4 | NT10: 398.2 | NU10: 489.6 | NV10: 478.9 | NW10: 451.7 | NX10: 424.5 | NY10: 397.5 | NZ10: 370.3 | OA10: 468.9 | OB10: 457.3 | OC10: 428.1 | OD10: 398.9 | OE10: 369.8 | OF10: 340.6 | OG10: 436.1 | OH10: 425.3 | OI10: 398.1 | OJ10: 371 | OK10: 343.9 | OL10: 316.8 | OM10: 337.5 | ON10: 325.9 | OO10: 296.7 | OP10: 267.5 | OQ10: 238.4 | OR10: 209.2 | OS10: 313.9 | OT10: 303.1 | OU10: 275.9 | OV10: 248.8 | OW10: 221.7 | OX10: 194.6 | OY10: 526.5 | OZ10: 514.9 | PA10: 485.7 | PB10: 456.5 | PC10: 427.4 | PD10: 398.2 | PE10: 489.6 | PF10: 478.9 | PG10: 451.7 | PH10: 424.5 | PI10: 397.5 | PJ10: 370.3 | PK10: 483.3 | PL10: 471.7 | PM10: 442.5 | PN10: 413.3 | PO10: 384.2 | PP10: 355 | PQ10: 449.5 | PR10: 438.7 | PS10: 411.5 | PT10: 384.4 | PU10: 357.3 | PV10: 330.2 | PW10: 429.3 | PX10: 417.7 | PY10: 388.5 | PZ10: 359.3 | QA10: 330.2 | QB10: 301 | QC10: 399.2 | QD10: 388.5 | QE10: 361.3 | QF10: 334.1 | QG10: 307.1 | QH10: 279.9 | QI10: 387.9 | QJ10: 376.3 | QK10: 347.1 | QL10: 317.9 | QM10: 288.8 | QN10: 259.6 | QO10: 360.7 | QP10: 350 | QQ10: 322.8 | QR10: 295.6 | QS10: 268.6 | QT10: 241.4 | RG10: 347.4 | RH10: 335.8 | RI10: 306.6 | RJ10: 277.4 | RK10: 248.3 | RL10: 219.1 | RM10: 323.1 | RN10: 312.3 | RO10: 285.1 | RP10: 258 | RQ10: 230.9 | RR10: 203.8 | RS10: 520.2 | RT10: 508.6 | RU10: 479.4 | RV10: 450.2 | RW10: 421.1 | RX10: 391.9 | RY10: 483.8 | RZ10: 473 | SA10: 445.8 | SB10: 418.7 | SC10: 391.6 | SD10: 364.5 | SE10: 444.6 | SF10: 433 | SG10: 403.8 | SH10: 374.6 | SI10: 345.5 | SJ10: 316.3 | SK10: 413.5 | SL10: 402.7 | SM10: 375.5 | SN10: 348.4 | SO10: 321.3 | SP10: 294.2 | SQ10: 401.4 | SR10: 389.8 | SS10: 360.6 | ST10: 331.4 | SU10: 302.3 | SV10: 273.1 | SW10: 373.3 | SX10: 362.5 | SY10: 335.4 | SZ10: 308.2 | TA10: 281.1 | TB10: 254
D11: Gesundheitspraxisversicherung T3 | F11: 11 | G11: 424 | H11: 412.4 | I11: 383.2 | J11: 354 | K11: 324.9 | L11: 295.7 | M11: 394.3 | N11: 383.5 | O11: 356.4 | P11: 329.2 | Q11: 302.1 | R11: 275 | S11: 377.5 | T11: 365.9 | U11: 336.7 | V11: 307.5 | W11: 278.4 | X11: 249.2 | Y11: 351.1 | Z11: 340.3 | AA11: 313.2 | AB11: 286 | AC11: 258.9 | AD11: 231.8 | AE11: 405.9 | AF11: 394.3 | AG11: 365.1 | AH11: 335.9 | AI11: 306.8 | AJ11: 277.6 | AK11: 377.5 | AL11: 366.7 | AM11: 339.6 | AN11: 312.4 | AO11: 285.3 | AP11: 258.2 | AQ11: 378.4 | AR11: 366.8 | AS11: 337.6 | AT11: 308.4 | AU11: 279.3 | AV11: 250.1 | AW11: 351.9 | AX11: 341.1 | AY11: 314 | AZ11: 286.8 | BA11: 259.7 | BB11: 232.6 | BO11: 420.5 | BP11: 408.9 | BQ11: 379.7 | BR11: 350.5 | BS11: 321.4 | BT11: 292.2 | BU11: 391.1 | BV11: 380.3 | BW11: 353.2 | BX11: 326 | BY11: 298.9 | BZ11: 271.8 | CA11: 485.9 | CB11: 474.3 | CC11: 445.1 | CD11: 415.9 | CE11: 386.8 | CF11: 357.6 | CG11: 451.9 | CH11: 441.1 | CI11: 413.9 | CJ11: 386.8 | CK11: 359.7 | CL11: 332.6 | CM11: 447.2 | CN11: 435.6 | CO11: 406.4 | CP11: 377.2 | CQ11: 348.1 | CR11: 318.9 | CS11: 415.9 | CT11: 405.1 | CU11: 378 | CV11: 350.8 | CW11: 323.7 | CX11: 296.6 | DK11: 477.3 | DL11: 465.7 | DM11: 436.5 | DN11: 407.3 | DO11: 378.2 | DP11: 349 | DQ11: 443.9 | DR11: 433.1 | DS11: 405.9 | DT11: 378.8 | DU11: 351.7 | DV11: 324.6 | DW11: 435.2 | DX11: 423.6 | DY11: 394.4 | DZ11: 365.2 | EA11: 336.1 | EB11: 306.9 | EC11: 404.7 | ED11: 393.9 | EE11: 366.8 | EF11: 339.6 | EG11: 312.5 | EH11: 285.4 | EI11: 536.6 | EJ11: 525 | EK11: 495.8 | EL11: 466.6 | EM11: 437.5 | EN11: 408.3 | EO11: 499.1 | EP11: 488.3 | EQ11: 461.1 | ER11: 434 | ES11: 406.9 | ET11: 379.8 | EU11: 541.8 | EV11: 530.2 | EW11: 501 | EX11: 471.8 | EY11: 442.7 | EZ11: 413.5 | FA11: 503.9 | FB11: 493.1 | FC11: 465.9 | FD11: 438.8 | FE11: 411.7 | FF11: 384.6 | FG11: 399.9 | FH11: 388.3 | FI11: 359.1 | FJ11: 329.9 | FK11: 300.8 | FL11: 271.6 | FM11: 371.9 | FN11: 361.1 | FO11: 334 | FP11: 306.8 | FQ11: 279.7 | FR11: 252.6 | HO11: 386.1 | HP11: 374.5 | HQ11: 345.3 | HR11: 316.1 | HS11: 287 | HT11: 257.8 | HU11: 359.1 | HV11: 348.3 | HW11: 321.2 | HX11: 294 | HY11: 266.9 | HZ11: 239.8 | IA11: 353.5 | IB11: 341.9 | IC11: 312.7 | ID11: 283.5 | IE11: 254.4 | IF11: 225.2 | IG11: 328.7 | IH11: 317.9 | II11: 290.8 | IJ11: 263.6 | IK11: 236.6 | IL11: 209.4 | IM11: 338.8 | IN11: 327.2 | IO11: 298 | IP11: 268.8 | IQ11: 239.7 | IR11: 211.8 | IS11: 315.1 | IT11: 304.3 | IU11: 277.2 | IV11: 250 | IW11: 223 | IX11: 197 | JK11: 345.7 | JL11: 334.1 | JM11: 304.9 | JN11: 275.7 | JO11: 246.6 | JP11: 217.4 | JQ11: 321.5 | JR11: 310.7 | JS11: 283.6 | JT11: 256.4 | JU11: 229.4 | JV11: 202.2 | KI11: 423.1 | KJ11: 411.5 | KK11: 382.3 | KL11: 353.1 | KM11: 324 | KN11: 294.8 | KO11: 393.5 | KP11: 382.7 | KQ11: 355.6 | KR11: 328.4 | KS11: 301.3 | KT11: 274.2 | KU11: 374.1 | KV11: 362.5 | KW11: 333.3 | KX11: 304.1 | KY11: 275 | KZ11: 245.8 | LA11: 347.9 | LB11: 337.1 | LC11: 310 | LD11: 282.8 | LE11: 255.8 | LF11: 228.6 | LG11: 363.8 | LH11: 352.2 | LI11: 323 | LJ11: 293.8 | LK11: 264.7 | LL11: 235.5 | LM11: 338.3 | LN11: 327.5 | LO11: 300.4 | LP11: 273.2 | LQ11: 246.2 | LR11: 219 | MQ11: 344 | MR11: 332.4 | MS11: 303.2 | MT11: 274 | MU11: 244.9 | MV11: 215.7 | MW11: 319.9 | MX11: 309.1 | MY11: 282 | MZ11: 254.8 | NA11: 227.8 | NB11: 200.6 | NC11: 392.2 | ND11: 380.6 | NE11: 351.4 | NF11: 322.2 | NG11: 293.1 | NH11: 263.9 | NI11: 364.7 | NJ11: 353.9 | NK11: 326.8 | NL11: 299.6 | NM11: 272.5 | NN11: 245.4 | NO11: 503.1 | NP11: 491.5 | NQ11: 462.3 | NR11: 433.1 | NS11: 404 | NT11: 374.8 | NU11: 467.9 | NV11: 457.1 | NW11: 429.9 | NX11: 402.8 | NY11: 375.7 | NZ11: 348.6 | OA11: 448.1 | OB11: 436.5 | OC11: 407.3 | OD11: 378.1 | OE11: 349 | OF11: 319.8 | OG11: 416.7 | OH11: 405.9 | OI11: 378.8 | OJ11: 351.6 | OK11: 324.5 | OL11: 297.4 | OM11: 322.5 | ON11: 310.9 | OO11: 281.7 | OP11: 252.5 | OQ11: 223.4 | OR11: 201.6 | OS11: 299.9 | OT11: 289.1 | OU11: 262 | OV11: 234.8 | OW11: 207.8 | OX11: 187.5 | OY11: 503.1 | OZ11: 491.5 | PA11: 462.3 | PB11: 433.1 | PC11: 404 | PD11: 374.8 | PE11: 467.9 | PF11: 457.1 | PG11: 429.9 | PH11: 402.8 | PI11: 375.7 | PJ11: 348.6 | PK11: 461.8 | PL11: 450.2 | PM11: 421 | PN11: 391.8 | PO11: 362.7 | PP11: 333.5 | PQ11: 429.5 | PR11: 418.7 | PS11: 391.5 | PT11: 364.4 | PU11: 337.3 | PV11: 310.2 | PW11: 410.2 | PX11: 398.6 | PY11: 369.4 | PZ11: 340.2 | QA11: 311.1 | QB11: 281.9 | QC11: 381.5 | QD11: 370.7 | QE11: 343.6 | QF11: 316.4 | QG11: 289.3 | QH11: 262.2 | RS11: 497.1 | RT11: 485.5 | RU11: 456.3 | RV11: 427.1 | RW11: 398 | RX11: 368.8 | RY11: 462.3 | RZ11: 451.5 | SA11: 424.3 | SB11: 397.2 | SC11: 370.1 | SD11: 343 | SE11: 424.8 | SF11: 413.2 | SG11: 384 | SH11: 354.8 | SI11: 325.7 | SJ11: 296.5 | SK11: 395.1 | SL11: 384.3 | SM11: 357.2 | SN11: 330 | SO11: 302.9 | SP11: 275.8 | SQ11: 383.6 | SR11: 372 | SS11: 342.8 | ST11: 313.6 | SU11: 284.5 | SV11: 255.3 | SW11: 356.7 | SX11: 345.9 | SY11: 318.8 | SZ11: 291.6 | TA11: 264.5 | TB11: 237.4
D12: Gesundheitspraxisversicherung T2 | F12: 12 | G12: 419.1 | H12: 407.5 | I12: 378.3 | J12: 349.1 | K12: 320 | L12: 290.8 | M12: 389.7 | N12: 378.9 | O12: 351.8 | P12: 324.6 | Q12: 297.6 | R12: 270.4 | S12: 373.2 | T12: 361.6 | U12: 332.4 | V12: 303.2 | W12: 274.1 | X12: 244.9 | Y12: 347 | Z12: 336.2 | AA12: 309.1 | AB12: 281.9 | AC12: 254.9 | AD12: 227.7 | AE12: 401.2 | AF12: 389.6 | AG12: 360.4 | AH12: 331.2 | AI12: 302.1 | AJ12: 272.9 | AK12: 373.1 | AL12: 362.3 | AM12: 335.2 | AN12: 308 | AO12: 281 | AP12: 253.8 | AQ12: 374 | AR12: 362.4 | AS12: 333.2 | AT12: 304 | AU12: 274.9 | AV12: 245.7 | AW12: 347.8 | AX12: 337 | AY12: 309.9 | AZ12: 282.7 | BA12: 255.7 | BB12: 228.5 | BC12: 337.5 | BD12: 325.9 | BE12: 296.7 | BF12: 267.5 | BG12: 238.4 | BH12: 213.4 | BI12: 313.8 | BJ12: 303 | BK12: 275.9 | BL12: 248.7 | BM12: 221.7 | BN12: 198.5 | BO12: 415.7 | BP12: 404.1 | BQ12: 374.9 | BR12: 345.7 | BS12: 316.6 | BT12: 287.4 | BU12: 386.6 | BV12: 375.8 | BW12: 348.6 | BX12: 321.5 | BY12: 294.4 | BZ12: 267.2 | CA12: 480.3 | CB12: 468.7 | CC12: 439.5 | CD12: 410.3 | CE12: 381.2 | CF12: 352 | CG12: 446.6 | CH12: 435.8 | CI12: 408.7 | CJ12: 381.5 | CK12: 354.5 | CL12: 327.3 | CM12: 442 | CN12: 430.4 | CO12: 401.2 | CP12: 372 | CQ12: 342.9 | CR12: 313.7 | CS12: 411.1 | CT12: 400.3 | CU12: 373.1 | CV12: 346 | CW12: 318.9 | CX12: 291.7 | CY12: 408.9 | CZ12: 397.3 | DA12: 368.1 | DB12: 338.9 | DC12: 309.8 | DD12: 280.6 | DE12: 380.2 | DF12: 369.4 | DG12: 342.3 | DH12: 315.1 | DI12: 288.1 | DJ12: 260.9 | DK12: 471.8 | DL12: 460.2 | DM12: 431 | DN12: 401.8 | DO12: 372.7 | DP12: 343.5 | DQ12: 438.7 | DR12: 427.9 | DS12: 400.8 | DT12: 373.6 | DU12: 346.6 | DV12: 319.4 | DW12: 430.1 | DX12: 418.5 | DY12: 389.3 | DZ12: 360.1 | EA12: 331 | EB12: 301.8 | EC12: 400 | ED12: 389.2 | EE12: 362 | EF12: 334.9 | EG12: 307.8 | EH12: 280.7 | EI12: 530.4 | EJ12: 518.8 | EK12: 489.6 | EL12: 460.4 | EM12: 431.3 | EN12: 402.1 | EO12: 493.3 | EP12: 482.5 | EQ12: 455.3 | ER12: 428.2 | ES12: 401.1 | ET12: 374 | HO12: 381.7 | HP12: 370.1 | HQ12: 340.9 | HR12: 311.7 | HS12: 282.6 | HT12: 253.4 | HU12: 354.9 | HV12: 344.1 | HW12: 317 | HX12: 289.8 | HY12: 262.8 | HZ12: 235.6 | IA12: 349.4 | IB12: 337.8 | IC12: 308.6 | ID12: 279.4 | IE12: 250.3 | IF12: 221.1 | IG12: 324.9 | IH12: 314.1 | II12: 287 | IJ12: 259.8 | IK12: 232.7 | IL12: 205.6 | IM12: 334.9 | IN12: 323.3 | IO12: 294.1 | IP12: 264.9 | IQ12: 235.8 | IR12: 211.8 | IS12: 311.5 | IT12: 300.7 | IU12: 273.5 | IV12: 246.4 | IW12: 219.3 | IX12: 197 | IY12: 497.3 | IZ12: 485.7 | JA12: 456.5 | JB12: 427.3 | JC12: 398.2 | JD12: 369 | JE12: 462.4 | JF12: 451.7 | JG12: 424.5 | JH12: 397.3 | JI12: 370.3 | JJ12: 343.1 | JK12: 341.7 | JL12: 330.1 | JM12: 300.9 | JN12: 271.7 | JO12: 242.6 | JP12: 216.1 | JQ12: 317.8 | JR12: 307 | JS12: 279.8 | JT12: 252.7 | JU12: 225.6 | JV12: 201 | JW12: 348.5 | JX12: 336.9 | JY12: 307.7 | JZ12: 278.5 | KA12: 249.4 | KB12: 220.4 | KC12: 324.1 | KD12: 313.3 | KE12: 286.2 | KF12: 259 | KG12: 231.9 | KH12: 205 | KI12: 418.2 | KJ12: 406.6 | KK12: 377.4 | KL12: 348.2 | KM12: 319.1 | KN12: 289.9 | KO12: 388.9 | KP12: 378.1 | KQ12: 351 | KR12: 323.8 | KS12: 296.8 | KT12: 269.6 | KU12: 369.8 | KV12: 358.2 | KW12: 329 | KX12: 299.8 | KY12: 270.7 | KZ12: 241.5 | LA12: 343.9 | LB12: 333.1 | LC12: 305.9 | LD12: 278.8 | LE12: 251.7 | LF12: 224.5 | LG12: 359.6 | LH12: 348 | LI12: 318.8 | LJ12: 289.6 | LK12: 260.5 | LL12: 231.3 | LM12: 334.4 | LN12: 323.6 | LO12: 296.4 | LP12: 269.3 | LQ12: 242.2 | LR12: 215.1 | LS12: 412.3 | LT12: 400.7 | LU12: 371.5 | LV12: 342.3 | LW12: 313.2 | LX12: 284 | LY12: 383.4 | LZ12: 372.6 | MA12: 345.4 | MB12: 318.3 | MC12: 291.2 | MD12: 264.1 | ME12: 412.3 | MF12: 400.7 | MG12: 371.5 | MH12: 342.3 | MI12: 313.2 | MJ12: 284 | MK12: 383.4 | ML12: 372.6 | MM12: 345.4 | MN12: 318.3 | MO12: 291.2 | MP12: 264.1 | MQ12: 340 | MR12: 328.4 | MS12: 299.2 | MT12: 270 | MU12: 240.9 | MV12: 215.1 | MW12: 316.2 | MX12: 305.4 | MY12: 278.3 | MZ12: 251.1 | NA12: 224 | NB12: 200 | NC12: 387.6 | ND12: 376 | NE12: 346.8 | NF12: 317.6 | NG12: 288.5 | NH12: 259.3 | NI12: 360.5 | NJ12: 349.7 | NK12: 322.5 | NL12: 295.4 | NM12: 268.3 | NN12: 241.1 | NO12: 497.3 | NP12: 485.7 | NQ12: 456.5 | NR12: 427.3 | NS12: 398.2 | NT12: 369 | NU12: 462.4 | NV12: 451.7 | NW12: 424.5 | NX12: 397.3 | NY12: 370.3 | NZ12: 343.1 | PK12: 456.5 | PL12: 444.9 | PM12: 415.7 | PN12: 386.5 | PO12: 357.4 | PP12: 328.2 | PQ12: 424.5 | PR12: 413.7 | PS12: 386.6 | PT12: 359.4 | PU12: 332.3 | PV12: 305.2 | RG12: 328.1 | RH12: 316.5 | RI12: 287.3 | RJ12: 258.1 | RK12: 229 | RL12: 207.5 | RM12: 305.1 | RN12: 294.3 | RO12: 267.2 | RP12: 240 | RQ12: 213 | RR12: 193 | RS12: 491.3 | RT12: 479.7 | RU12: 450.5 | RV12: 421.3 | RW12: 392.2 | RX12: 363 | RY12: 456.9 | RZ12: 446.1 | SA12: 419 | SB12: 391.8 | SC12: 364.7 | SD12: 337.6 | SE12: 419.9 | SF12: 408.3 | SG12: 379.1 | SH12: 349.9 | SI12: 320.8 | SJ12: 291.6 | SK12: 390.5 | SL12: 379.7 | SM12: 352.6 | SN12: 325.4 | SO12: 298.3 | SP12: 271.2 | SQ12: 379.1 | SR12: 367.5 | SS12: 338.3 | ST12: 309.1 | SU12: 280 | SV12: 250.8 | SW12: 352.6 | SX12: 341.8 | SY12: 314.6 | SZ12: 287.5 | TA12: 260.4 | TB12: 233.2
D13: Gesundheitspraxisversicherung T1 | F13: 13 | AQ13: 369.6 | AR13: 358 | AS13: 328.8 | AT13: 299.6 | AU13: 270.5 | AV13: 241.3 | AW13: 343.7 | AX13: 332.9 | AY13: 305.8 | AZ13: 278.6 | BA13: 251.6 | BB13: 224.4 | BC13: 333.5 | BD13: 321.9 | BE13: 292.7 | BF13: 263.5 | BG13: 234.4 | BH13: 213.4 | BI13: 310.1 | BJ13: 299.3 | BK13: 272.2 | BL13: 245 | BM13: 218 | BN13: 198.5 | BO13: 410.8 | BP13: 399.2 | BQ13: 370 | BR13: 340.8 | BS13: 311.7 | BT13: 282.5 | BU13: 382 | BV13: 371.2 | BW13: 344.1 | BX13: 316.9 | BY13: 289.8 | BZ13: 262.7 | EU13: 529.2 | EV13: 517.6 | EW13: 488.4 | EX13: 459.2 | EY13: 430.1 | EZ13: 400.9 | FA13: 492.2 | FB13: 481.4 | FC13: 454.2 | FD13: 427.1 | FE13: 400 | FF13: 372.8 | KI13: 413.3 | KJ13: 401.7 | KK13: 372.5 | KL13: 343.3 | KM13: 314.2 | KN13: 285 | KO13: 384.4 | KP13: 373.6 | KQ13: 346.4 | KR13: 319.3 | KS13: 292.2 | KT13: 265 | KU13: 365.4 | KV13: 353.8 | KW13: 324.6 | KX13: 295.4 | KY13: 266.3 | KZ13: 237.1 | LA13: 339.8 | LB13: 329 | LC13: 301.9 | LD13: 274.7 | LE13: 247.7 | LF13: 220.5 | LG13: 355.3 | LH13: 343.7 | LI13: 314.5 | LJ13: 285.3 | LK13: 256.2 | LL13: 227.4 | LM13: 330.4 | LN13: 319.7 | LO13: 292.5 | LP13: 265.3 | LQ13: 238.3 | LR13: 211.5 | ME13: 407.4 | MF13: 395.8 | MG13: 366.6 | MH13: 337.4 | MI13: 308.3 | MJ13: 279.1 | MK13: 378.9 | ML13: 368.1 | MM13: 340.9 | MN13: 313.8 | MO13: 286.7 | MP13: 259.6 | MQ13: 336 | MR13: 324.4 | MS13: 295.2 | MT13: 266 | MU13: 236.9 | MV13: 215.1 | MW13: 312.5 | MX13: 301.7 | MY13: 274.5 | MZ13: 247.4 | NA13: 220.3 | NB13: 200 | NC13: 383 | ND13: 371.4 | NE13: 342.2 | NF13: 313 | NG13: 283.9 | NH13: 254.7 | NI13: 356.2 | NJ13: 345.4 | NK13: 318.3 | NL13: 291.1 | NM13: 264.1 | NN13: 236.9 | OY13: 491.4 | OZ13: 479.8 | PA13: 450.6 | PB13: 421.4 | PC13: 392.3 | PD13: 363.1 | PE13: 457 | PF13: 446.2 | PG13: 419.1 | PH13: 391.9 | PI13: 364.8 | PJ13: 337.7 | PK13: 451.1 | PL13: 439.5 | PM13: 410.3 | PN13: 381.1 | PO13: 352 | PP13: 322.8 | PQ13: 419.5 | PR13: 408.7 | PS13: 381.6 | PT13: 354.4 | PU13: 327.3 | PV13: 300.2 | RG13: 324.2 | RH13: 312.6 | RI13: 283.4 | RJ13: 254.2 | RK13: 225.1 | RL13: 207.5 | RM13: 301.5 | RN13: 290.8 | RO13: 263.6 | RP13: 236.4 | RQ13: 209.4 | RR13: 193 | RS13: 485.5 | RT13: 473.9 | RU13: 444.7 | RV13: 415.5 | RW13: 386.4 | RX13: 357.2 | RY13: 451.5 | RZ13: 440.7 | SA13: 413.6 | SB13: 386.4 | SC13: 359.4 | SD13: 332.2 | SE13: 415 | SF13: 403.4 | SG13: 374.2 | SH13: 345 | SI13: 315.9 | SJ13: 286.7 | SK13: 385.9 | SL13: 375.1 | SM13: 348 | SN13: 320.8 | SO13: 293.7 | SP13: 266.6 | SQ13: 374.6 | SR13: 363 | SS13: 333.8 | ST13: 304.6 | SU13: 275.5 | SV13: 246.3 | SW13: 348.4 | SX13: 337.6 | SY13: 310.5 | SZ13: 283.3 | TA13: 256.3 | TB13: 229.1
D14: Multimed | F14: 14 | CA14: 480.3 | CB14: 468.7 | CC14: 439.5 | CD14: 410.3 | CE14: 381.2 | CF14: 352 | CG14: 446.6 | CH14: 435.8 | CI14: 408.7 | CJ14: 381.5 | CK14: 354.5 | CL14: 327.3 | CM14: 442 | CN14: 430.4 | CO14: 401.2 | CP14: 372 | CQ14: 342.9 | CR14: 313.7 | CS14: 411.1 | CT14: 400.3 | CU14: 373.1 | CV14: 346 | CW14: 318.9 | CX14: 291.7 | CY14: 408.9 | CZ14: 397.3 | DA14: 368.1 | DB14: 338.9 | DC14: 309.8 | DD14: 280.6 | DE14: 380.2 | DF14: 369.4 | DG14: 342.3 | DH14: 315.1 | DI14: 288.1 | DJ14: 260.9 | DK14: 471.8 | DL14: 460.2 | DM14: 431 | DN14: 401.8 | DO14: 372.7 | DP14: 343.5 | DQ14: 438.7 | DR14: 427.9 | DS14: 400.8 | DT14: 373.6 | DU14: 346.6 | DV14: 319.4 | DW14: 430.1 | DX14: 418.5 | DY14: 389.3 | DZ14: 360.1 | EA14: 331 | EB14: 301.8 | EC14: 400 | ED14: 389.2 | EE14: 362 | EF14: 334.9 | EG14: 307.8 | EH14: 280.7 | EI14: 530.4 | EJ14: 518.8 | EK14: 489.6 | EL14: 460.4 | EM14: 431.3 | EN14: 402.1 | EO14: 493.3 | EP14: 482.5 | EQ14: 455.3 | ER14: 428.2 | ES14: 401.1 | ET14: 374 | HO14: 381.7 | HP14: 370.1 | HQ14: 340.9 | HR14: 311.7 | HS14: 282.6 | HT14: 253.4 | HU14: 354.9 | HV14: 344.1 | HW14: 317 | HX14: 289.8 | HY14: 262.8 | HZ14: 235.6 | IA14: 349.4 | IB14: 337.8 | IC14: 308.6 | ID14: 279.4 | IE14: 250.3 | IF14: 221.1 | IG14: 324.9 | IH14: 314.1 | II14: 287 | IJ14: 259.8 | IK14: 232.7 | IL14: 205.6 | IM14: 334.9 | IN14: 323.3 | IO14: 294.1 | IP14: 264.9 | IQ14: 235.8 | IR14: 211.8 | IS14: 311.5 | IT14: 300.7 | IU14: 273.5 | IV14: 246.4 | IW14: 219.3 | IX14: 197
C15: TAR-DIV | D15: Callmed | F15: 15 | G15: 433.8 | H15: 422.2 | I15: 393 | J15: 363.8 | K15: 334.7 | L15: 305.5 | M15: 403.5 | N15: 392.7 | O15: 365.5 | P15: 338.4 | Q15: 311.3 | R15: 284.2 | S15: 386.3 | T15: 374.7 | U15: 345.5 | V15: 316.3 | W15: 287.2 | X15: 258 | Y15: 359.3 | Z15: 348.5 | AA15: 321.3 | AB15: 294.2 | AC15: 267.1 | AD15: 240 | AE15: 424.8 | AF15: 413.2 | AG15: 384 | AH15: 354.8 | AI15: 325.7 | AJ15: 296.5 | AK15: 395.1 | AL15: 384.3 | AM15: 357.1 | AN15: 330 | AO15: 302.9 | AP15: 275.7 | AQ15: 387.2 | AR15: 375.6 | AS15: 346.4 | AT15: 317.2 | AU15: 288.1 | AV15: 258.9 | AW15: 360.1 | AX15: 349.3 | AY15: 322.2 | AZ15: 295 | BA15: 267.9 | BB15: 240.8 | BC15: 357.3 | BD15: 345.7 | BE15: 316.5 | BF15: 287.3 | BG15: 258.2 | BH15: 229 | BI15: 332.3 | BJ15: 321.5 | BK15: 294.3 | BL15: 267.2 | BM15: 240.1 | BN15: 213 | BO15: 440.1 | BP15: 428.5 | BQ15: 399.3 | BR15: 370.1 | BS15: 341 | BT15: 311.8 | BU15: 409.3 | BV15: 398.5 | BW15: 371.3 | BX15: 344.2 | BY15: 317.1 | BZ15: 290 | CA15: 508.5 | CB15: 496.9 | CC15: 467.7 | CD15: 438.5 | CE15: 409.4 | CF15: 380.2 | CG15: 472.9 | CH15: 462.1 | CI15: 435 | CJ15: 407.8 | CK15: 380.7 | CL15: 353.6 | CM15: 468 | CN15: 456.4 | CO15: 427.2 | CP15: 398 | CQ15: 368.9 | CR15: 339.7 | CS15: 435.2 | CT15: 424.5 | CU15: 397.3 | CV15: 370.1 | CW15: 343.1 | CX15: 315.9 | CY15: 432.9 | CZ15: 421.3 | DA15: 392.1 | DB15: 362.9 | DC15: 333.8 | DD15: 304.6 | DE15: 402.6 | DF15: 391.8 | DG15: 364.7 | DH15: 337.5 | DI15: 310.4 | DJ15: 283.3 | DK15: 488.4 | DL15: 476.8 | DM15: 447.6 | DN15: 418.4 | DO15: 389.3 | DP15: 360.1 | DQ15: 454.2 | DR15: 443.4 | DS15: 416.3 | DT15: 389.1 | DU15: 362 | DV15: 334.9 | DW15: 445.3 | DX15: 433.7 | DY15: 404.5 | DZ15: 375.3 | EA15: 346.2 | EB15: 317 | EC15: 414.1 | ED15: 403.3 | EE15: 376.2 | EF15: 349 | EG15: 321.9 | EH15: 294.8 | EI15: 561.6 | EJ15: 550 | EK15: 520.8 | EL15: 491.6 | EM15: 462.5 | EN15: 433.3 | EO15: 522.3 | EP15: 511.5 | EQ15: 484.3 | ER15: 457.2 | ES15: 430.1 | ET15: 403 | EU15: 554.4 | EV15: 542.8 | EW15: 513.6 | EX15: 484.4 | EY15: 455.3 | EZ15: 426.1 | FA15: 515.6 | FB15: 504.8 | FC15: 477.6 | FD15: 450.5 | FE15: 423.4 | FF15: 396.3 | FG15: 418.5 | FH15: 406.9 | FI15: 377.7 | FJ15: 348.5 | FK15: 319.4 | FL15: 290.2 | FM15: 389.2 | FN15: 378.4 | FO15: 351.3 | FP15: 324.1 | FQ15: 297 | FR15: 269.9 | FS15: 432 | FT15: 420.4 | FU15: 391.2 | FV15: 362 | FW15: 332.9 | FX15: 303.7 | FY15: 401.8 | FZ15: 391 | GA15: 363.8 | GB15: 336.7 | GC15: 309.6 | GD15: 282.4 | GE15: 414.9 | GF15: 403.3 | GG15: 374.1 | GH15: 344.9 | GI15: 315.8 | GJ15: 286.6 | GK15: 385.9 | GL15: 375.1 | GM15: 347.9 | GN15: 320.8 | GO15: 293.7 | GP15: 266.5 | GQ15: 409.5 | GR15: 397.9 | GS15: 368.7 | GT15: 339.5 | GU15: 310.4 | GV15: 281.2 | GW15: 380.8 | GX15: 370 | GY15: 342.9 | GZ15: 315.7 | HA15: 288.7 | HB15: 261.5 | HC15: 508.5 | HD15: 496.9 | HE15: 467.7 | HF15: 438.5 | HG15: 409.4 | HH15: 380.2 | HI15: 472.9 | HJ15: 462.1 | HK15: 435 | HL15: 407.8 | HM15: 380.7 | HN15: 353.6 | HO15: 404.1 | HP15: 392.5 | HQ15: 363.3 | HR15: 334.1 | HS15: 305 | HT15: 275.8 | HU15: 375.8 | HV15: 365 | HW15: 337.9 | HX15: 310.7 | HY15: 283.7 | HZ15: 256.5 | IA15: 369.9 | IB15: 358.3 | IC15: 329.1 | ID15: 299.9 | IE15: 270.8 | IF15: 241.6 | IG15: 344 | IH15: 333.2 | II15: 306.1 | IJ15: 278.9 | IK15: 251.8 | IL15: 224.7 | IM15: 354.6 | IN15: 343 | IO15: 313.8 | IP15: 284.6 | IQ15: 255.5 | IR15: 226.3 | IS15: 329.8 | IT15: 319 | IU15: 291.8 | IV15: 264.7 | IW15: 237.6 | IX15: 210.5 | IY15: 526.5 | IZ15: 514.9 | JA15: 485.7 | JB15: 456.5 | JC15: 427.4 | JD15: 398.2 | JE15: 489.6 | JF15: 478.9 | JG15: 451.7 | JH15: 424.5 | JI15: 397.5 | JJ15: 370.3 | JK15: 353.8 | JL15: 342.2 | JM15: 313 | JN15: 283.8 | JO15: 254.7 | JP15: 225.5 | JQ15: 329 | JR15: 318.2 | JS15: 291.1 | JT15: 263.9 | JU15: 236.8 | JV15: 209.7 | JW15: 369 | JX15: 357.4 | JY15: 328.2 | JZ15: 299 | KA15: 269.9 | KB15: 240.7 | KC15: 343.2 | KD15: 332.4 | KE15: 305.2 | KF15: 278.1 | KG15: 251 | KH15: 223.9 | KI15: 442.8 | KJ15: 431.2 | KK15: 402 | KL15: 372.8 | KM15: 343.7 | KN15: 314.5 | KO15: 411.8 | KP15: 401 | KQ15: 373.9 | KR15: 346.7 | KS15: 319.6 | KT15: 292.5 | KU15: 391.5 | KV15: 379.9 | KW15: 350.7 | KX15: 321.5 | KY15: 292.4 | KZ15: 263.2 | LA15: 364.1 | LB15: 353.3 | LC15: 326.2 | LD15: 299 | LE15: 271.9 | LF15: 244.8 | LG15: 380.7 | LH15: 369.1 | LI15: 339.9 | LJ15: 310.7 | LK15: 281.6 | LL15: 252.4 | LM15: 354.1 | LN15: 343.3 | LO15: 316.1 | LP15: 289 | LQ15: 261.9 | LR15: 234.7 | LS15: 436.5 | LT15: 424.9 | LU15: 395.7 | LV15: 366.5 | LW15: 337.4 | LX15: 308.2 | LY15: 405.9 | LZ15: 395.2 | MA15: 368 | MB15: 340.8 | MC15: 313.8 | MD15: 286.6 | ME15: 436.5 | MF15: 424.9 | MG15: 395.7 | MH15: 366.5 | MI15: 337.4 | MJ15: 308.2 | MK15: 405.9 | ML15: 395.2 | MM15: 368 | MN15: 340.8 | MO15: 313.8 | MP15: 286.6 | MQ15: 352 | MR15: 340.4 | MS15: 311.2 | MT15: 282 | MU15: 252.9 | MV15: 223.7 | MW15: 327.4 | MX15: 316.6 | MY15: 289.4 | MZ15: 262.3 | NA15: 235.2 | NB15: 208 | NC15: 410.4 | ND15: 398.8 | NE15: 369.6 | NF15: 340.4 | NG15: 311.3 | NH15: 282.1 | NI15: 381.7 | NJ15: 370.9 | NK15: 343.7 | NL15: 316.6 | NM15: 289.5 | NN15: 262.4 | NO15: 526.5 | NP15: 514.9 | NQ15: 485.7 | NR15: 456.5 | NS15: 427.4 | NT15: 398.2 | NU15: 489.6 | NV15: 478.9 | NW15: 451.7 | NX15: 424.5 | NY15: 397.5 | NZ15: 370.3 | OA15: 468.9 | OB15: 457.3 | OC15: 428.1 | OD15: 398.9 | OE15: 369.8 | OF15: 340.6 | OG15: 436.1 | OH15: 425.3 | OI15: 398.1 | OJ15: 371 | OK15: 343.9 | OL15: 316.8 | OM15: 337.5 | ON15: 325.9 | OO15: 296.7 | OP15: 267.5 | OQ15: 238.4 | OR15: 209.2 | OS15: 313.9 | OT15: 303.1 | OU15: 275.9 | OV15: 248.8 | OW15: 221.7 | OX15: 194.6 | OY15: 526.5 | OZ15: 514.9 | PA15: 485.7 | PB15: 456.5 | PC15: 427.4 | PD15: 398.2 | PE15: 489.6 | PF15: 478.9 | PG15: 451.7 | PH15: 424.5 | PI15: 397.5 | PJ15: 370.3 | PK15: 483.3 | PL15: 471.7 | PM15: 442.5 | PN15: 413.3 | PO15: 384.2 | PP15: 355 | PQ15: 449.5 | PR15: 438.7 | PS15: 411.5 | PT15: 384.4 | PU15: 357.3 | PV15: 330.2 | PW15: 429.3 | PX15: 417.7 | PY15: 388.5 | PZ15: 359.3 | QA15: 330.2 | QB15: 301 | QC15: 399.2 | QD15: 388.5 | QE15: 361.3 | QF15: 334.1 | QG15: 307.1 | QH15: 279.9 | QI15: 387.9 | QJ15: 376.3 | QK15: 347.1 | QL15: 317.9 | QM15: 288.8 | QN15: 259.6 | QO15: 360.7 | QP15: 350 | QQ15: 322.8 | QR15: 295.6 | QS15: 268.6 | QT15: 241.4 | RG15: 339.7 | RH15: 328.1 | RI15: 298.9 | RJ15: 269.7 | RK15: 240.6 | RL15: 211.4 | RM15: 315.9 | RN15: 305.1 | RO15: 278 | RP15: 250.8 | RQ15: 223.7 | RR15: 196.6 | RS15: 520.2 | RT15: 508.6 | RU15: 479.4 | RV15: 450.2 | RW15: 421.1 | RX15: 391.9 | RY15: 483.8 | RZ15: 473 | SA15: 445.8 | SB15: 418.7 | SC15: 391.6 | SD15: 364.5 | SE15: 444.6 | SF15: 433 | SG15: 403.8 | SH15: 374.6 | SI15: 345.5 | SJ15: 316.3 | SK15: 413.5 | SL15: 402.7 | SM15: 375.5 | SN15: 348.4 | SO15: 321.3 | SP15: 294.2 | SQ15: 401.4 | SR15: 389.8 | SS15: 360.6 | ST15: 331.4 | SU15: 302.3 | SV15: 273.1 | SW15: 373.3 | SX15: 362.5 | SY15: 335.4 | SZ15: 308.2 | TA15: 281.1 | TB15: 254
A16: 32 | B16: AQUILANA Versicherungen | C16: TAR-BASE | D16: Grundversicherung | F16: 16 | G16: 468.8 | H16: 457.2 | I16: 428 | J16: 398.9 | K16: 369.7 | L16: 340.5 | M16: 440.7 | N16: 429.8 | O16: 402.4 | P16: 375 | Q16: 347.6 | R16: 320.1 | S16: 426.1 | T16: 414.5 | U16: 385.3 | V16: 356.2 | W16: 327 | X16: 297.8 | Y16: 400.6 | Z16: 389.7 | AA16: 362.2 | AB16: 334.9 | AC16: 307.4 | AD16: 280 | AE16: 491 | AF16: 479.4 | AG16: 450.2 | AH16: 421.1 | AI16: 391.9 | AJ16: 362.7 | AK16: 461.6 | AL16: 450.7 | AM16: 423.2 | AN16: 395.9 | AO16: 368.4 | AP16: 341 | AQ16: 422.9 | AR16: 411.3 | AS16: 382.1 | AT16: 353 | AU16: 323.8 | AV16: 294.6 | AW16: 397.6 | AX16: 386.7 | AY16: 359.2 | AZ16: 331.9 | BA16: 304.4 | BB16: 277 | BC16: 385.5 | BD16: 373.9 | BE16: 344.7 | BF16: 315.6 | BG16: 286.4 | BH16: 257.2 | BI16: 362.4 | BJ16: 351.5 | BK16: 324.1 | BL16: 296.7 | BM16: 269.3 | BN16: 241.8 | BO16: 413.1 | BP16: 401.5 | BQ16: 372.3 | BR16: 343.2 | BS16: 314 | BT16: 284.8 | BU16: 388.4 | BV16: 377.5 | BW16: 350 | BX16: 322.7 | BY16: 295.2 | BZ16: 267.8 | CA16: 541.7 | CB16: 530.1 | CC16: 500.9 | CD16: 471.8 | CE16: 442.6 | CF16: 413.4 | CG16: 509.2 | CH16: 498.3 | CI16: 470.9 | CJ16: 443.5 | CK16: 416.1 | CL16: 388.6 | CM16: 469.2 | CN16: 457.6 | CO16: 428.4 | CP16: 399.3 | CQ16: 370.1 | CR16: 340.9 | CS16: 441.1 | CT16: 430.2 | CU16: 402.7 | CV16: 375.4 | CW16: 347.9 | CX16: 320.5 | CY16: 430.2 | CZ16: 418.6 | DA16: 389.4 | DB16: 360.3 | DC16: 331.1 | DD16: 301.9 | DE16: 404.4 | DF16: 393.5 | DG16: 366.1 | DH16: 338.7 | DI16: 311.3 | DJ16: 283.8 | DK16: 556.3 | DL16: 544.7 | DM16: 515.5 | DN16: 486.4 | DO16: 457.2 | DP16: 428 | DQ16: 523 | DR16: 512.1 | DS16: 484.6 | DT16: 457.3 | DU16: 429.8 | DV16: 402.4 | DW16: 501.3 | DX16: 489.7 | DY16: 460.5 | DZ16: 431.4 | EA16: 402.2 | EB16: 373 | EC16: 471.3 | ED16: 460.4 | EE16: 432.9 | EF16: 405.6 | EG16: 378.1 | EH16: 350.7 | EI16: 641.7 | EJ16: 630.1 | EK16: 600.9 | EL16: 571.8 | EM16: 542.6 | EN16: 513.4 | EO16: 603.2 | EP16: 592.3 | EQ16: 564.9 | ER16: 537.5 | ES16: 510.1 | ET16: 482.6 | EU16: 634.7 | EV16: 623.1 | EW16: 593.9 | EX16: 564.8 | EY16: 535.6 | EZ16: 506.4 | FA16: 596.7 | FB16: 585.8 | FC16: 558.3 | FD16: 531 | FE16: 503.5 | FF16: 476.1 | FG16: 414.8 | FH16: 403.2 | FI16: 374 | FJ16: 344.9 | FK16: 315.7 | FL16: 286.5 | FM16: 390 | FN16: 379.1 | FO16: 351.6 | FP16: 324.3 | FQ16: 296.8 | FR16: 269.4 | FS16: 412.3 | FT16: 400.7 | FU16: 371.5 | FV16: 342.4 | FW16: 313.2 | FX16: 284 | FY16: 387.6 | FZ16: 376.7 | GA16: 349.3 | GB16: 321.9 | GC16: 294.5 | GD16: 267 | GE16: 382.4 | GF16: 370.8 | GG16: 341.6 | GH16: 312.5 | GI16: 283.3 | GJ16: 254.1 | GK16: 359.5 | GL16: 348.6 | GM16: 321.2 | GN16: 293.8 | GO16: 266.4 | GP16: 238.9 | GQ16: 378.5 | GR16: 366.9 | GS16: 337.7 | GT16: 308.6 | GU16: 279.4 | GV16: 250.2 | GW16: 355.8 | GX16: 344.9 | GY16: 317.5 | GZ16: 290.1 | HA16: 262.7 | HB16: 235.2 | HC16: 570.8 | HD16: 559.2 | HE16: 530 | HF16: 500.9 | HG16: 471.7 | HH16: 442.5 | HI16: 536.6 | HJ16: 525.7 | HK16: 498.2 | HL16: 470.9 | HM16: 443.4 | HN16: 416 | HO16: 458.3 | HP16: 446.7 | HQ16: 417.5 | HR16: 388.4 | HS16: 359.2 | HT16: 330 | HU16: 430.9 | HV16: 419.9 | HW16: 392.5 | HX16: 365.1 | HY16: 337.7 | HZ16: 310.2 | IA16: 428.5 | IB16: 416.9 | IC16: 387.7 | ID16: 358.6 | IE16: 329.4 | IF16: 300.2 | IG16: 402.8 | IH16: 391.9 | II16: 364.5 | IJ16: 337.1 | IK16: 309.7 | IL16: 282.2 | IM16: 412.8 | IN16: 401.2 | IO16: 372 | IP16: 342.9 | IQ16: 313.7 | IR16: 284.5 | IS16: 388.1 | IT16: 377.2 | IU16: 349.7 | IV16: 322.4 | IW16: 294.9 | IX16: 267.5 | IY16: 551.5 | IZ16: 539.9 | JA16: 510.7 | JB16: 481.6 | JC16: 452.4 | JD16: 423.2 | JE16: 518.5 | JF16: 507.6 | JG16: 480.1 | JH16: 452.8 | JI16: 425.3 | JJ16: 397.9 | JK16: 379 | JL16: 367.4 | JM16: 338.2 | JN16: 309.1 | JO16: 279.9 | JP16: 250.7 | JQ16: 356.3 | JR16: 345.4 | JS16: 318 | JT16: 290.6 | JU16: 263.2 | JV16: 235.7 | JW16: 380.6 | JX16: 369 | JY16: 339.8 | JZ16: 310.7 | KA16: 281.5 | KB16: 252.3 | KC16: 357.8 | KD16: 346.9 | KE16: 319.5 | KF16: 292.1 | KG16: 264.7 | KH16: 237.2 | KI16: 465.7 | KJ16: 454.1 | KK16: 424.9 | KL16: 396.2 | KM16: 366.6 | KN16: 337.4 | KO16: 437.8 | KP16: 426.9 | KQ16: 399.5 | KR16: 372.5 | KS16: 344.7 | KT16: 317.2 | KU16: 431.9 | KV16: 420.3 | KW16: 391.1 | KX16: 362.4 | KY16: 332.8 | KZ16: 303.6 | LA16: 406 | LB16: 395.1 | LC16: 367.7 | LD16: 340.7 | LE16: 312.9 | LF16: 285.4 | LG16: 423 | LH16: 411.4 | LI16: 382.2 | LJ16: 353.5 | LK16: 323.9 | LL16: 294.7 | LM16: 397.7 | LN16: 386.8 | LO16: 359.3 | LP16: 332.3 | LQ16: 304.5 | LR16: 277.1 | LS16: 458.9 | LT16: 447.3 | LU16: 418.1 | LV16: 389 | LW16: 359.8 | LX16: 330.6 | LY16: 431.4 | LZ16: 420.5 | MA16: 393.1 | MB16: 365.7 | MC16: 338.3 | MD16: 310.8 | ME16: 429 | MF16: 417.4 | MG16: 388.2 | MH16: 359.1 | MI16: 329.9 | MJ16: 300.7 | MK16: 403.3 | ML16: 392.4 | MM16: 365 | MN16: 337.6 | MO16: 310.2 | MP16: 282.7 | MQ16: 394.5 | MR16: 382.9 | MS16: 353.7 | MT16: 324.6 | MU16: 295.4 | MV16: 266.2 | MW16: 370.9 | MX16: 360 | MY16: 332.5 | MZ16: 305.2 | NA16: 277.7 | NB16: 250.3 | NC16: 460.4 | ND16: 448.8 | NE16: 419.6 | NF16: 390.9 | NG16: 361.3 | NH16: 332.1 | NI16: 432.8 | NJ16: 421.9 | NK16: 394.5 | NL16: 367.5 | NM16: 339.7 | NN16: 312.2 | NO16: 501.6 | NP16: 490 | NQ16: 460.8 | NR16: 431.7 | NS16: 402.5 | NT16: 373.3 | NU16: 471.6 | NV16: 460.6 | NW16: 433.2 | NX16: 405.8 | NY16: 378.4 | NZ16: 351 | OA16: 487 | OB16: 475.4 | OC16: 446.2 | OD16: 417.1 | OE16: 387.9 | OF16: 358.7 | OG16: 457.8 | OH16: 446.9 | OI16: 419.5 | OJ16: 392.1 | OK16: 364.7 | OL16: 337.2 | OM16: 392.9 | ON16: 381.3 | OO16: 352.1 | OP16: 323 | OQ16: 293.8 | OR16: 264.6 | OS16: 369.4 | OT16: 358.5 | OU16: 331 | OV16: 303.7 | OW16: 276.2 | OX16: 248.8 | OY16: 583.2 | OZ16: 571.6 | PA16: 542.4 | PB16: 513.3 | PC16: 484.1 | PD16: 454.9 | PE16: 548.3 | PF16: 537.4 | PG16: 509.9 | PH16: 482.6 | PI16: 455.1 | PJ16: 427.7 | PK16: 555.3 | PL16: 543.7 | PM16: 514.5 | PN16: 485.4 | PO16: 456.2 | PP16: 427 | PQ16: 522 | PR16: 511.1 | PS16: 483.7 | PT16: 456.3 | PU16: 428.9 | PV16: 401.4 | PW16: 455.7 | PX16: 444.1 | PY16: 414.9 | PZ16: 385.8 | QA16: 356.6 | QB16: 327.4 | QC16: 428.4 | QD16: 417.5 | QE16: 390.1 | QF16: 362.7 | QG16: 335.3 | QH16: 307.8 | QI16: 407.6 | QJ16: 396 | QK16: 366.8 | QL16: 337.7 | QM16: 308.5 | QN16: 279.3 | QO16: 383.2 | QP16: 372.3 | QQ16: 344.8 | QR16: 317.5 | QS16: 290 | QT16: 262.6 | RG16: 411 | RH16: 399.4 | RI16: 370.2 | RJ16: 341.1 | RK16: 311.9 | RL16: 282.7 | RM16: 386.4 | RN16: 375.5 | RO16: 348 | RP16: 320.7 | RQ16: 293.2 | RR16: 265.8 | RS16: 509.9 | RT16: 498.3 | RU16: 469.1 | RV16: 440.1 | RW16: 410.8 | RX16: 381.6 | RY16: 479.4 | RZ16: 468.5 | SA16: 441 | SB16: 413.7 | SC16: 386.2 | SD16: 358.8 | SE16: 447.7 | SF16: 436.1 | SG16: 406.9 | SH16: 377.8 | SI16: 348.6 | SJ16: 319.4 | SK16: 420.9 | SL16: 410 | SM16: 382.5 | SN16: 355.2 | SO16: 327.7 | SP16: 300.3 | SQ16: 413 | SR16: 401.4 | SS16: 372.2 | ST16: 343.1 | SU16: 313.9 | SV16: 284.7 | SW16: 388.3 | SX16: 377.4 | SY16: 349.9 | SZ16: 322.6 | TA16: 295.1 | TB16: 267.7
C17: TAR-HAM | D17: CASAMED | F17: 17 | G17: 431.3 | H17: 419.7 | I17: 390.5 | J17: 361.4 | K17: 332.2 | L17: 303 | M17: 405.5 | N17: 394.6 | O17: 367.1 | P17: 339.8 | Q17: 312.3 | R17: 284.9 | S17: 392.1 | T17: 380.5 | U17: 351.3 | V17: 322.2 | W17: 293 | X17: 263.8 | Y17: 368.6 | Z17: 357.7 | AA17: 330.3 | AB17: 302.9 | AC17: 275.5 | AD17: 248 | AE17: 446.9 | AF17: 435.3 | AG17: 406.1 | AH17: 377 | AI17: 347.8 | AJ17: 318.6 | AK17: 420.1 | AL17: 409.2 | AM17: 381.8 | AN17: 354.4 | AO17: 327 | AP17: 299.5 | AQ17: 376.4 | AR17: 364.8 | AS17: 335.6 | AT17: 306.5 | AU17: 277.3 | AV17: 248.1 | AW17: 353.9 | AX17: 343 | AY17: 315.5 | AZ17: 288.2 | BA17: 260.7 | BB17: 233.3 | BC17: 358.6 | BD17: 347 | BE17: 317.8 | BF17: 288.7 | BG17: 259.5 | BH17: 230.3 | BI17: 337.1 | BJ17: 326.2 | BK17: 298.8 | BL17: 271.4 | BM17: 244 | BN17: 216.5 | BO17: 384.2 | BP17: 372.6 | BQ17: 343.4 | BR17: 314.3 | BS17: 285.1 | BT17: 255.9 | BU17: 361.2 | BV17: 350.3 | BW17: 322.8 | BX17: 295.5 | BY17: 268 | BZ17: 240.6 | CA17: 487.6 | CB17: 476 | CC17: 446.8 | CD17: 417.7 | CE17: 388.5 | CF17: 359.3 | CG17: 458.4 | CH17: 447.5 | CI17: 420 | CJ17: 392.7 | CK17: 365.2 | CL17: 337.8 | CM17: 422.3 | CN17: 410.7 | CO17: 381.5 | CP17: 352.4 | CQ17: 323.2 | CR17: 294 | CS17: 397 | CT17: 386.1 | CU17: 358.7 | CV17: 331.3 | CW17: 303.9 | CX17: 276.4 | CY17: 387.2 | CZ17: 375.6 | DA17: 346.4 | DB17: 317.3 | DC17: 288.1 | DD17: 258.9 | DE17: 364 | DF17: 353.1 | DG17: 325.7 | DH17: 298.3 | DI17: 270.9 | DJ17: 243.4 | DK17: 511.8 | DL17: 500.2 | DM17: 471 | DN17: 441.9 | DO17: 412.7 | DP17: 383.5 | DQ17: 481.1 | DR17: 470.2 | DS17: 442.8 | DT17: 415.4 | DU17: 388 | DV17: 360.5 | DW17: 461.2 | DX17: 449.6 | DY17: 420.4 | DZ17: 391.3 | EA17: 362.1 | EB17: 332.9 | EC17: 433.6 | ED17: 422.7 | EE17: 395.2 | EF17: 367.9 | EG17: 340.4 | EH17: 313 | EI17: 590.4 | EJ17: 578.8 | EK17: 549.6 | EL17: 520.5 | EM17: 491.3 | EN17: 462.1 | EO17: 555 | EP17: 544.1 | EQ17: 516.7 | ER17: 489.3 | ES17: 461.9 | ET17: 434.4 | FG17: 385.8 | FH17: 374.2 | FI17: 345 | FJ17: 315.9 | FK17: 286.7 | FL17: 257.5 | FM17: 362.7 | FN17: 351.8 | FO17: 324.3 | FP17: 297 | FQ17: 269.5 | FR17: 242.1 | FS17: 371.1 | FT17: 359.5 | FU17: 330.3 | FV17: 301.2 | FW17: 272 | FX17: 242.8 | FY17: 348.9 | FZ17: 338 | GA17: 310.5 | GB17: 283.2 | GC17: 255.7 | GD17: 228.3 | GE17: 344.2 | GF17: 332.6 | GG17: 303.4 | GH17: 274.3 | GI17: 245.1 | GJ17: 215.9 | GK17: 323.6 | GL17: 312.7 | GM17: 285.2 | GN17: 257.9 | GO17: 230.4 | GP17: 203 | GQ17: 340.7 | GR17: 329.1 | GS17: 299.9 | GT17: 270.8 | GU17: 241.6 | GV17: 212.4 | GW17: 320.3 | GX17: 309.4 | GY17: 282 | GZ17: 254.6 | HA17: 227.2 | HB17: 199.7 | HO17: 417.1 | HP17: 405.5 | HQ17: 376.3 | HR17: 347.2 | HS17: 318 | HT17: 288.8 | HU17: 392.1 | HV17: 381.2 | HW17: 353.8 | HX17: 326.4 | HY17: 299 | HZ17: 271.5 | IA17: 390 | IB17: 378.4 | IC17: 349.2 | ID17: 320.1 | IE17: 290.9 | IF17: 261.7 | IG17: 366.6 | IH17: 355.7 | II17: 328.3 | IJ17: 300.9 | IK17: 273.5 | IL17: 246 | IM17: 375.7 | IN17: 364.1 | IO17: 334.9 | IP17: 305.8 | IQ17: 276.6 | IR17: 247.4 | IS17: 353.2 | IT17: 342.3 | IU17: 314.9 | IV17: 287.5 | IW17: 260.1 | IX17: 232.6 | JK17: 348.7 | JL17: 337.1 | JM17: 307.9 | JN17: 278.8 | JO17: 249.6 | JP17: 220.4 | JQ17: 327.8 | JR17: 316.9 | JS17: 289.5 | JT17: 262.1 | JU17: 234.7 | JV17: 207.2 | JW17: 354 | JX17: 342.4 | JY17: 313.2 | JZ17: 284.1 | KA17: 254.9 | KB17: 225.7 | KC17: 332.8 | KD17: 321.9 | KE17: 294.5 | KF17: 267.1 | KG17: 239.7 | KH17: 212.2 | KI17: 428.5 | KJ17: 416.9 | KK17: 387.7 | KL17: 359 | KM17: 329.4 | KN17: 300.2 | KO17: 402.8 | KP17: 391.9 | KQ17: 364.5 | KR17: 337.5 | KS17: 309.7 | KT17: 282.2 | KU17: 397.4 | KV17: 385.8 | KW17: 356.6 | KX17: 327.8 | KY17: 298.3 | KZ17: 269.1 | LA17: 373.6 | LB17: 362.7 | LC17: 335.3 | LD17: 308.2 | LE17: 280.5 | LF17: 253 | LG17: 389.2 | LH17: 377.6 | LI17: 348.4 | LJ17: 319.6 | LK17: 290.1 | LL17: 260.9 | LM17: 365.9 | LN17: 355 | LO17: 327.5 | LP17: 300.5 | LQ17: 272.7 | LR17: 245.3 | LS17: 426.8 | LT17: 415.2 | LU17: 386 | LV17: 356.9 | LW17: 327.7 | LX17: 298.5 | LY17: 401.2 | LZ17: 390.3 | MA17: 362.9 | MB17: 335.5 | MC17: 308.1 | MD17: 280.6 | ME17: 399 | MF17: 387.4 | MG17: 358.2 | MH17: 329.1 | MI17: 299.9 | MJ17: 270.7 | MK17: 375.1 | ML17: 364.2 | MM17: 336.8 | MN17: 309.4 | MO17: 282 | MP17: 254.5 | MQ17: 363 | MR17: 351.4 | MS17: 322.2 | MT17: 293.1 | MU17: 264 | MV17: 234.7 | MW17: 341.3 | MX17: 330.4 | MY17: 302.9 | MZ17: 275.6 | NA17: 248.2 | NB17: 220.7 | NC17: 414.4 | ND17: 402.8 | NE17: 373.6 | NF17: 344.9 | NG17: 315.3 | NH17: 286.1 | NI17: 389.6 | NJ17: 378.7 | NK17: 351.2 | NL17: 324.3 | NM17: 296.4 | NN17: 269 | OM17: 357.6 | ON17: 346 | OO17: 316.8 | OP17: 287.7 | OQ17: 258.5 | OR17: 229.3 | OS17: 336.2 | OT17: 325.3 | OU17: 297.8 | OV17: 270.5 | OW17: 243 | OX17: 215.6 | QI17: 379.1 | QJ17: 367.5 | QK17: 338.3 | QL17: 309.2 | QM17: 280 | QN17: 250.8 | QO17: 356.4 | QP17: 345.5 | QQ17: 318.1 | QR17: 290.7 | QS17: 263.2 | QT17: 235.8 | RG17: 378.2 | RH17: 366.6 | RI17: 337.4 | RJ17: 308.3 | RK17: 279.1 | RL17: 249.9 | RM17: 355.6 | RN17: 344.7 | RO17: 317.2 | RP17: 289.9 | RQ17: 262.4 | RR17: 235 | RS17: 459 | RT17: 447.4 | RU17: 418.2 | RV17: 389.1 | RW17: 359.9 | RX17: 330.7 | RY17: 431.5 | RZ17: 420.6 | SA17: 393.2 | SB17: 365.8 | SC17: 338.4 | SD17: 310.9 | SE17: 403 | SF17: 391.4 | SG17: 362.2 | SH17: 333.1 | SI17: 303.9 | SJ17: 274.7 | SK17: 378.9 | SL17: 368 | SM17: 340.5 | SN17: 313.2 | SO17: 285.7 | SP17: 258.3 | SQ17: 371.7 | SR17: 360.1 | SS17: 330.9 | ST17: 301.8 | SU17: 272.6 | SV17: 243.4 | SW17: 349.4 | SX17: 338.5 | SY17: 311.1 | SZ17: 283.7 | TA17: 256.3 | TB17: 228.8
A18: 57 | B18: Moove Sympany AG | C18: TAR-BASE | D18: Grundversicherung | F18: 18 | G18: 543 | H18: 531.4 | I18: 502.2 | J18: 473 | K18: 443.9 | L18: 414.7 | M18: 515.9 | N18: 504.8 | O18: 477.1 | P18: 449.4 | Q18: 421.7 | R18: 394 | S18: 477 | T18: 465.4 | U18: 436.2 | V18: 407 | W18: 377.9 | X18: 348.7 | Y18: 453.2 | Z18: 442.1 | AA18: 414.4 | AB18: 386.7 | AC18: 359 | AD18: 331.3 | AE18: 482 | AF18: 470.4 | AG18: 441.2 | AH18: 412 | AI18: 382.9 | AJ18: 353.7 | AK18: 457.9 | AL18: 446.9 | AM18: 419.2 | AN18: 391.4 | AO18: 363.7 | AP18: 336 | AQ18: 451 | AR18: 439.4 | AS18: 410.2 | AT18: 381 | AU18: 351.9 | AV18: 322.7 | AW18: 428.5 | AX18: 417.4 | AY18: 389.7 | AZ18: 362 | BA18: 334.3 | BB18: 306.6 | BC18: 417 | BD18: 405.4 | BE18: 376.2 | BF18: 347 | BG18: 317.9 | BH18: 288.7 | BI18: 396.2 | BJ18: 385.1 | BK18: 357.4 | BL18: 329.7 | BM18: 302 | BN18: 274.3 | BO18: 441 | BP18: 429.4 | BQ18: 400.2 | BR18: 371 | BS18: 341.9 | BT18: 312.7 | BU18: 419 | BV18: 407.9 | BW18: 380.2 | BX18: 352.5 | BY18: 324.8 | BZ18: 297.1 | CA18: 608 | CB18: 596.4 | CC18: 567.2 | CD18: 538 | CE18: 508.9 | CF18: 479.7 | CG18: 577.6 | CH18: 566.6 | CI18: 538.9 | CJ18: 511.1 | CK18: 483.4 | CL18: 455.7 | CM18: 567 | CN18: 555.4 | CO18: 526.2 | CP18: 497 | CQ18: 467.9 | CR18: 438.7 | CS18: 538.7 | CT18: 527.6 | CU18: 499.9 | CV18: 472.2 | CW18: 444.5 | CX18: 416.8 | CY18: 527 | CZ18: 515.4 | DA18: 486.2 | DB18: 457 | DC18: 427.9 | DD18: 398.7 | DE18: 500.7 | DF18: 489.6 | DG18: 461.9 | DH18: 434.2 | DI18: 406.5 | DJ18: 378.8 | DK18: 548 | DL18: 536.4 | DM18: 507.2 | DN18: 478 | DO18: 448.9 | DP18: 419.7 | DQ18: 520.6 | DR18: 509.6 | DS18: 481.9 | DT18: 454.1 | DU18: 426.4 | DV18: 398.7 | DW18: 512 | DX18: 500.4 | DY18: 471.2 | DZ18: 442 | EA18: 412.9 | EB18: 383.7 | EC18: 486.4 | ED18: 475.4 | EE18: 447.7 | EF18: 419.9 | EG18: 392.2 | EH18: 364.5 | EI18: 630 | EJ18: 618.4 | EK18: 589.2 | EL18: 560 | EM18: 530.9 | EN18: 501.7 | EO18: 598.5 | EP18: 587.5 | EQ18: 559.8 | ER18: 532 | ES18: 504.3 | ET18: 476.6 | EU18: 550 | EV18: 538.4 | EW18: 509.2 | EX18: 480 | EY18: 450.9 | EZ18: 421.7 | FA18: 522.5 | FB18: 511.5 | FC18: 483.8 | FD18: 456 | FE18: 428.3 | FF18: 400.6 | FG18: 449 | FH18: 437.4 | FI18: 408.2 | FJ18: 379 | FK18: 349.9 | FL18: 320.7 | FM18: 426.6 | FN18: 415.5 | FO18: 387.8 | FP18: 360.1 | FQ18: 332.4 | FR18: 304.7 | FS18: 513 | FT18: 501.4 | FU18: 472.2 | FV18: 443 | FW18: 413.9 | FX18: 384.7 | FY18: 487.4 | FZ18: 476.3 | GA18: 448.6 | GB18: 420.9 | GC18: 393.2 | GD18: 365.5 | GE18: 497 | GF18: 485.4 | GG18: 456.2 | GH18: 427 | GI18: 397.9 | GJ18: 368.7 | GK18: 472.2 | GL18: 461.1 | GM18: 433.4 | GN18: 405.7 | GO18: 378 | GP18: 350.3 | GQ18: 461 | GR18: 449.4 | GS18: 420.2 | GT18: 391 | GU18: 361.9 | GV18: 332.7 | GW18: 438 | GX18: 426.9 | GY18: 399.2 | GZ18: 371.5 | HA18: 343.8 | HB18: 316.1 | HC18: 553 | HD18: 541.4 | HE18: 512.2 | HF18: 483 | HG18: 453.9 | HH18: 424.7 | HI18: 525.4 | HJ18: 514.3 | HK18: 486.6 | HL18: 458.9 | HM18: 431.2 | HN18: 403.5 | HO18: 458 | HP18: 446.4 | HQ18: 417.2 | HR18: 388 | HS18: 358.9 | HT18: 329.7 | HU18: 435.1 | HV18: 424.1 | HW18: 396.4 | HX18: 368.6 | HY18: 340.9 | HZ18: 313.2 | IA18: 434 | IB18: 422.4 | IC18: 393.2 | ID18: 364 | IE18: 334.9 | IF18: 305.7 | IG18: 412.3 | IH18: 401.3 | II18: 373.6 | IJ18: 345.8 | IK18: 318.1 | IL18: 290.4 | IM18: 412 | IN18: 400.4 | IO18: 371.2 | IP18: 342 | IQ18: 312.9 | IR18: 283.7 | IS18: 391.4 | IT18: 380.4 | IU18: 352.7 | IV18: 324.9 | IW18: 297.2 | IX18: 269.5 | IY18: 583 | IZ18: 571.4 | JA18: 542.2 | JB18: 513 | JC18: 483.9 | JD18: 454.7 | JE18: 553.9 | JF18: 542.8 | JG18: 515.1 | JH18: 487.4 | JI18: 459.7 | JJ18: 432 | JK18: 398 | JL18: 386.4 | JM18: 357.2 | JN18: 328 | JO18: 298.9 | JP18: 269.7 | JQ18: 378.1 | JR18: 367.1 | JS18: 339.4 | JT18: 311.6 | JU18: 283.9 | JV18: 256.2 | JW18: 395 | JX18: 383.4 | JY18: 354.2 | JZ18: 325 | KA18: 295.9 | KB18: 266.7 | KC18: 375.3 | KD18: 364.2 | KE18: 336.5 | KF18: 308.8 | KG18: 281.1 | KH18: 253.4 | KI18: 471 | KJ18: 459.4 | KK18: 430.2 | KL18: 401 | KM18: 371.9 | KN18: 342.7 | KO18: 447.5 | KP18: 436.4 | KQ18: 408.7 | KR18: 381 | KS18: 353.3 | KT18: 325.6 | KU18: 469 | KV18: 457.4 | KW18: 428.2 | KX18: 399 | KY18: 369.9 | KZ18: 340.7 | LA18: 445.6 | LB18: 434.5 | LC18: 406.8 | LD18: 379.1 | LE18: 351.4 | LF18: 323.7 | LG18: 459 | LH18: 447.4 | LI18: 418.2 | LJ18: 389 | LK18: 359.9 | LL18: 330.7 | LM18: 436.1 | LN18: 425 | LO18: 397.3 | LP18: 369.6 | LQ18: 341.9 | LR18: 314.2 | LS18: 508 | LT18: 496.4 | LU18: 467.2 | LV18: 438 | LW18: 408.9 | LX18: 379.7 | LY18: 482.6 | LZ18: 471.6 | MA18: 443.9 | MB18: 416.1 | MC18: 388.4 | MD18: 360.7 | ME18: 466 | MF18: 454.4 | MG18: 425.2 | MH18: 396 | MI18: 366.9 | MJ18: 337.7 | MK18: 442.7 | ML18: 431.7 | MM18: 404 | MN18: 376.2 | MO18: 348.5 | MP18: 320.8 | MQ18: 450 | MR18: 438.4 | MS18: 409.2 | MT18: 380 | MU18: 350.9 | MV18: 321.7 | MW18: 427.5 | MX18: 416.5 | MY18: 388.8 | MZ18: 361 | NA18: 333.3 | NB18: 305.6 | NC18: 449 | ND18: 437.4 | NE18: 408.2 | NF18: 379 | NG18: 349.9 | NH18: 320.7 | NI18: 426.6 | NJ18: 415.5 | NK18: 387.8 | NL18: 360.1 | NM18: 332.4 | NN18: 304.7 | NO18: 537 | NP18: 525.4 | NQ18: 496.2 | NR18: 467 | NS18: 437.9 | NT18: 408.7 | NU18: 499.5 | NV18: 488.7 | NW18: 461.5 | NX18: 434.4 | NY18: 407.3 | NZ18: 380.1 | OA18: 496 | OB18: 484.4 | OC18: 455.2 | OD18: 426 | OE18: 396.9 | OF18: 367.7 | OG18: 461.3 | OH18: 450.5 | OI18: 423.4 | OJ18: 396.2 | OK18: 369.2 | OL18: 342 | OM18: 388 | ON18: 376.4 | OO18: 347.2 | OP18: 318 | OQ18: 288.9 | OR18: 259.7 | OS18: 368.6 | OT18: 357.6 | OU18: 329.9 | OV18: 302.1 | OW18: 274.4 | OX18: 246.7 | OY18: 650 | OZ18: 638.4 | PA18: 609.2 | PB18: 580 | PC18: 550.9 | PD18: 521.7 | PE18: 617.5 | PF18: 606.5 | PG18: 578.8 | PH18: 551 | PI18: 523.3 | PJ18: 495.6 | PK18: 619 | PL18: 607.4 | PM18: 578.2 | PN18: 549 | PO18: 519.9 | PP18: 490.7 | PQ18: 588.1 | PR18: 577 | PS18: 549.3 | PT18: 521.6 | PU18: 493.9 | PV18: 466.2 | PW18: 486 | PX18: 474.4 | PY18: 445.2 | PZ18: 416 | QA18: 386.9 | QB18: 357.7 | QC18: 452 | QD18: 441.2 | QE18: 414.1 | QF18: 386.9 | QG18: 359.9 | QH18: 332.7 | QI18: 441 | QJ18: 429.4 | QK18: 400.2 | QL18: 371 | QM18: 341.9 | QN18: 312.7 | QO18: 410.2 | QP18: 399.4 | QQ18: 372.2 | QR18: 345.1 | QS18: 318 | QT18: 290.9 | RG18: 402 | RH18: 390.4 | RI18: 361.2 | RJ18: 332 | RK18: 302.9 | RL18: 273.7 | RM18: 381.9 | RN18: 370.9 | RO18: 343.2 | RP18: 315.4 | RQ18: 287.7 | RR18: 260 | RS18: 533 | RT18: 521.4 | RU18: 492.2 | RV18: 463 | RW18: 433.9 | RX18: 404.7 | RY18: 506.4 | RZ18: 495.3 | SA18: 467.6 | SB18: 439.9 | SC18: 412.2 | SD18: 384.5 | SE18: 484 | SF18: 472.4 | SG18: 443.2 | SH18: 414 | SI18: 384.9 | SJ18: 355.7 | SK18: 459.8 | SL18: 448.8 | SM18: 421.1 | SN18: 393.3 | SO18: 365.6 | SP18: 337.9 | SQ18: 460 | SR18: 448.4 | SS18: 419.2 | ST18: 390 | SU18: 360.9 | SV18: 331.7 | SW18: 437 | SX18: 426 | SY18: 398.3 | SZ18: 370.5 | TA18: 342.8 | TB18: 315.1
C19: TAR-HAM | D19: callmed 24 | F19: 19 | G19: 477.9 | H19: 466.2 | I19: 437.1 | J19: 407.9 | K19: 378.7 | L19: 349.6 | M19: 454 | N19: 442.9 | O19: 415.2 | P19: 387.5 | Q19: 359.8 | R19: 332.1 | S19: 419.8 | T19: 408.1 | U19: 379 | V19: 349.8 | W19: 320.6 | X19: 291.5 | Y19: 398.8 | Z19: 387.7 | AA19: 360 | AB19: 332.3 | AC19: 304.6 | AD19: 276.9 | AE19: 424.2 | AF19: 412.5 | AG19: 383.4 | AH19: 354.2 | AI19: 325 | AJ19: 295.9 | AK19: 403 | AL19: 391.9 | AM19: 364.2 | AN19: 336.5 | AO19: 308.8 | AP19: 281.1 | AQ19: 387.9 | AR19: 376.2 | AS19: 347.1 | AT19: 317.9 | AU19: 288.7 | AV19: 259.6 | AW19: 368.5 | AX19: 357.4 | AY19: 329.7 | AZ19: 302 | BA19: 274.3 | BB19: 246.6 | BC19: 375.3 | BD19: 363.7 | BE19: 334.5 | BF19: 305.3 | BG19: 276.2 | BH19: 247 | BI19: 356.6 | BJ19: 345.5 | BK19: 317.8 | BL19: 290.1 | BM19: 262.4 | BN19: 234.7 | BO19: 396.9 | BP19: 385.3 | BQ19: 356.1 | BR19: 326.9 | BS19: 297.8 | BT19: 268.6 | BU19: 377.1 | BV19: 366 | BW19: 338.3 | BX19: 310.6 | BY19: 282.9 | BZ19: 255.2 | CA19: 535.1 | CB19: 523.4 | CC19: 494.3 | CD19: 465.1 | CE19: 435.9 | CF19: 406.8 | CG19: 508.3 | CH19: 497.3 | CI19: 469.5 | CJ19: 441.8 | CK19: 414.1 | CL19: 386.4 | CM19: 499 | CN19: 487.3 | CO19: 458.2 | CP19: 429 | CQ19: 399.8 | CR19: 370.7 | CS19: 474.1 | CT19: 463 | CU19: 435.3 | CV19: 407.6 | CW19: 379.9 | CX19: 352.1 | CY19: 463.8 | CZ19: 452.1 | DA19: 423 | DB19: 393.8 | DC19: 364.6 | DD19: 335.5 | DE19: 440.6 | DF19: 429.5 | DG19: 401.8 | DH19: 374.1 | DI19: 346.4 | DJ19: 318.7 | DK19: 476.8 | DL19: 465.1 | DM19: 436 | DN19: 406.8 | DO19: 377.6 | DP19: 348.5 | DQ19: 453 | DR19: 441.9 | DS19: 414.2 | DT19: 386.5 | DU19: 358.8 | DV19: 331.1 | DW19: 445.5 | DX19: 433.8 | DY19: 404.7 | DZ19: 375.5 | EA19: 346.3 | EB19: 317.2 | EC19: 423.2 | ED19: 412.1 | EE19: 384.4 | EF19: 356.7 | EG19: 329 | EH19: 301.3 | EI19: 541.8 | EJ19: 530.2 | EK19: 501 | EL19: 471.8 | EM19: 442.7 | EN19: 413.5 | EO19: 514.8 | EP19: 503.7 | EQ19: 476 | ER19: 448.3 | ES19: 420.6 | ET19: 392.8 | EU19: 484 | EV19: 472.4 | EW19: 443.2 | EX19: 414 | EY19: 384.9 | EZ19: 355.7 | FA19: 459.8 | FB19: 448.8 | FC19: 421.1 | FD19: 393.3 | FE19: 365.6 | FF19: 337.9 | FG19: 413.1 | FH19: 401.5 | FI19: 372.3 | FJ19: 343.1 | FK19: 314 | FL19: 284.8 | FM19: 392.5 | FN19: 381.4 | FO19: 353.7 | FP19: 326 | FQ19: 298.3 | FR19: 270.6 | FS19: 472 | FT19: 460.3 | FU19: 431.2 | FV19: 402 | FW19: 372.8 | FX19: 343.7 | FY19: 448.4 | FZ19: 437.3 | GA19: 409.6 | GB19: 381.9 | GC19: 354.2 | GD19: 326.5 | GE19: 457.3 | GF19: 445.6 | GG19: 416.5 | GH19: 387.3 | GI19: 358.1 | GJ19: 329 | GK19: 434.4 | GL19: 423.3 | GM19: 395.6 | GN19: 367.9 | GO19: 340.2 | GP19: 312.5 | GQ19: 424.2 | GR19: 412.5 | GS19: 383.3 | GT19: 354.2 | GU19: 325 | GV19: 295.8 | GW19: 403 | GX19: 391.9 | GY19: 364.2 | GZ19: 336.5 | HA19: 308.8 | HB19: 281 | HC19: 486.7 | HD19: 475 | HE19: 445.9 | HF19: 416.7 | HG19: 387.5 | HH19: 358.4 | HI19: 462.4 | HJ19: 451.3 | HK19: 423.6 | HL19: 395.9 | HM19: 368.1 | HN19: 340.4 | HO19: 398.5 | HP19: 386.8 | HQ19: 357.7 | HR19: 328.5 | HS19: 299.3 | HT19: 270.2 | HU19: 378.6 | HV19: 367.5 | HW19: 339.8 | HX19: 312.1 | HY19: 284.4 | HZ19: 256.7 | IA19: 377.6 | IB19: 366 | IC19: 336.8 | ID19: 307.6 | IE19: 278.5 | IF19: 249.3 | IG19: 358.8 | IH19: 347.7 | II19: 320 | IJ19: 292.3 | IK19: 264.5 | IL19: 236.8 | IM19: 358.5 | IN19: 346.8 | IO19: 317.7 | IP19: 288.5 | IQ19: 259.3 | IR19: 230.2 | IS19: 340.6 | IT19: 329.5 | IU19: 301.8 | IV19: 274.1 | IW19: 246.4 | IX19: 218.7 | IY19: 513.1 | IZ19: 501.4 | JA19: 472.3 | JB19: 443.1 | JC19: 413.9 | JD19: 384.8 | JE19: 487.4 | JF19: 476.4 | JG19: 448.6 | JH19: 420.9 | JI19: 393.2 | JJ19: 365.5 | JK19: 346.3 | JL19: 334.6 | JM19: 305.5 | JN19: 276.3 | JO19: 247.1 | JP19: 218 | JQ19: 329 | JR19: 317.9 | JS19: 290.2 | JT19: 262.5 | JU19: 234.8 | JV19: 207.1 | JW19: 347.6 | JX19: 336 | JY19: 306.8 | JZ19: 277.6 | KA19: 248.5 | KB19: 219.3 | KC19: 330.3 | KD19: 319.2 | KE19: 291.5 | KF19: 263.8 | KG19: 236.1 | KH19: 208.4 | KI19: 414.5 | KJ19: 402.9 | KK19: 373.7 | KL19: 344.5 | KM19: 315.4 | KN19: 286.2 | KO19: 393.8 | KP19: 382.7 | KQ19: 355 | KR19: 327.3 | KS19: 299.6 | KT19: 271.9 | KU19: 412.8 | KV19: 401.1 | KW19: 371.9 | KX19: 342.8 | KY19: 313.6 | KZ19: 284.4 | LA19: 392.1 | LB19: 381.1 | LC19: 353.3 | LD19: 325.6 | LE19: 297.9 | LF19: 270.2 | LG19: 404 | LH19: 392.3 | LI19: 363.1 | LJ19: 334 | LK19: 304.8 | LL19: 275.6 | LM19: 383.8 | LN19: 372.7 | LO19: 345 | LP19: 317.3 | LQ19: 289.6 | LR19: 261.9 | LS19: 467.4 | LT19: 455.7 | LU19: 426.6 | LV19: 397.4 | LW19: 368.2 | LX19: 339.1 | LY19: 444 | LZ19: 433 | MA19: 405.3 | MB19: 377.5 | MC19: 349.8 | MD19: 322.1 | ME19: 428.8 | MF19: 417.1 | MG19: 387.9 | MH19: 358.8 | MI19: 329.6 | MJ19: 300.4 | MK19: 407.3 | ML19: 396.3 | MM19: 368.5 | MN19: 340.8 | MO19: 313.1 | MP19: 285.4 | MQ19: 396 | MR19: 384.4 | MS19: 355.2 | MT19: 326 | MU19: 296.9 | MV19: 267.7 | MW19: 376.2 | MX19: 365.2 | MY19: 337.5 | MZ19: 309.7 | NA19: 282 | NB19: 254.3 | NC19: 413.1 | ND19: 401.5 | NE19: 372.3 | NF19: 343.1 | NG19: 314 | NH19: 284.8 | NI19: 392.5 | NJ19: 381.4 | NK19: 353.7 | NL19: 326 | NM19: 298.3 | NN19: 270.6 | NO19: 483.3 | NP19: 471.7 | NQ19: 442.5 | NR19: 413.3 | NS19: 384.2 | NT19: 355 | NU19: 449.5 | NV19: 438.7 | NW19: 411.6 | NX19: 384.4 | NY19: 357.4 | NZ19: 330.2 | OA19: 446.4 | OB19: 434.8 | OC19: 405.6 | OD19: 376.4 | OE19: 347.3 | OF19: 318.1 | OG19: 415.2 | OH19: 404.4 | OI19: 377.3 | OJ19: 350.1 | OK19: 323 | OL19: 295.9 | OM19: 337.6 | ON19: 325.9 | OO19: 296.8 | OP19: 267.6 | OQ19: 238.4 | OR19: 209.3 | OS19: 320.7 | OT19: 309.6 | OU19: 281.9 | OV19: 254.2 | OW19: 226.5 | OX19: 198.8 | OY19: 572 | OZ19: 560.4 | PA19: 531.2 | PB19: 502 | PC19: 472.9 | PD19: 443.7 | PE19: 543.4 | PF19: 532.4 | PG19: 504.7 | PH19: 476.9 | PI19: 449.2 | PJ19: 421.5 | PK19: 544.8 | PL19: 533.1 | PM19: 503.9 | PN19: 474.8 | PO19: 445.6 | PP19: 416.4 | PQ19: 517.5 | PR19: 506.5 | PS19: 478.7 | PT19: 451 | PU19: 423.3 | PV19: 395.6 | PW19: 437.4 | PX19: 425.8 | PY19: 396.6 | PZ19: 367.4 | QA19: 338.3 | QB19: 309.1 | QC19: 406.8 | QD19: 396 | QE19: 368.9 | QF19: 341.7 | QG19: 314.7 | QH19: 287.5 | QI19: 396.9 | QJ19: 385.3 | QK19: 356.1 | QL19: 326.9 | QM19: 297.8 | QN19: 268.6 | QO19: 369.2 | QP19: 358.4 | QQ19: 331.2 | QR19: 304.1 | QS19: 277 | QT19: 249.8 | RG19: 349.8 | RH19: 338.1 | RI19: 309 | RJ19: 279.8 | RK19: 250.6 | RL19: 221.5 | RM19: 332.3 | RN19: 321.2 | RO19: 293.5 | RP19: 265.8 | RQ19: 238.1 | RR19: 210.4 | RS19: 479.7 | RT19: 468.1 | RU19: 438.9 | RV19: 409.7 | RW19: 380.6 | RX19: 351.4 | RY19: 455.8 | RZ19: 444.7 | SA19: 417 | SB19: 389.3 | SC19: 361.6 | SD19: 333.8 | SE19: 435.6 | SF19: 424 | SG19: 394.8 | SH19: 365.6 | SI19: 336.5 | SJ19: 307.3 | SK19: 413.9 | SL19: 402.8 | SM19: 375.1 | SN19: 347.4 | SO19: 319.7 | SP19: 292 | SQ19: 414 | SR19: 402.4 | SS19: 373.2 | ST19: 344 | SU19: 314.9 | SV19: 285.7 | SW19: 393.3 | SX19: 382.3 | SY19: 354.6 | SZ19: 326.8 | TA19: 299.1 | TB19: 271.4
D20: casamed hausarzt | F20: 20 | G20: 488.7 | H20: 477.1 | I20: 447.9 | J20: 418.7 | K20: 389.6 | L20: 360.4 | M20: 464.3 | N20: 453.2 | O20: 425.5 | P20: 397.8 | Q20: 370.1 | R20: 342.4 | S20: 429.3 | T20: 417.7 | U20: 388.5 | V20: 359.3 | W20: 330.2 | X20: 301 | Y20: 407.9 | Z20: 396.8 | AA20: 369.1 | AB20: 341.4 | AC20: 313.7 | AD20: 286 | AE20: 438.7 | AF20: 427 | AG20: 397.8 | AH20: 368.7 | AI20: 339.5 | AJ20: 310.3 | AK20: 416.7 | AL20: 405.7 | AM20: 377.9 | AN20: 350.2 | AO20: 322.5 | AP20: 294.8 | AQ20: 405.9 | AR20: 394.3 | AS20: 365.1 | AT20: 335.9 | AU20: 306.8 | AV20: 277.6 | AW20: 385.7 | AX20: 374.6 | AY20: 346.9 | AZ20: 319.2 | BA20: 291.4 | BB20: 263.7 | BC20: 392 | BD20: 380.4 | BE20: 351.2 | BF20: 322 | BG20: 292.9 | BH20: 263.7 | BI20: 372.4 | BJ20: 361.3 | BK20: 333.6 | BL20: 305.9 | BM20: 278.2 | BN20: 250.5 | BO20: 396.9 | BP20: 385.3 | BQ20: 356.1 | BR20: 326.9 | BS20: 297.8 | BT20: 268.6 | BU20: 377.1 | BV20: 366 | BW20: 338.3 | BX20: 310.6 | BY20: 282.9 | BZ20: 255.2 | CA20: 547.2 | CB20: 535.6 | CC20: 506.4 | CD20: 477.2 | CE20: 448.1 | CF20: 418.9 | CG20: 519.9 | CH20: 508.8 | CI20: 481.1 | CJ20: 453.4 | CK20: 425.7 | CL20: 398 | CM20: 510.3 | CN20: 498.7 | CO20: 469.5 | CP20: 440.3 | CQ20: 411.2 | CR20: 382 | CS20: 484.8 | CT20: 473.8 | CU20: 446 | CV20: 418.3 | CW20: 390.6 | CX20: 362.9 | CY20: 474.3 | CZ20: 462.7 | DA20: 433.5 | DB20: 404.3 | DC20: 375.2 | DD20: 346 | DE20: 450.6 | DF20: 439.6 | DG20: 411.8 | DH20: 384.1 | DI20: 356.4 | DJ20: 328.7 | DK20: 493.2 | DL20: 481.6 | DM20: 452.4 | DN20: 423.2 | DO20: 394.1 | DP20: 364.9 | DQ20: 468.6 | DR20: 457.5 | DS20: 429.8 | DT20: 402.1 | DU20: 374.4 | DV20: 346.7 | DW20: 460.8 | DX20: 449.2 | DY20: 420 | DZ20: 390.8 | EA20: 361.7 | EB20: 332.5 | EC20: 437.8 | ED20: 426.7 | EE20: 399 | EF20: 371.3 | EG20: 343.6 | EH20: 315.9 | EI20: 567 | EJ20: 555.4 | EK20: 526.2 | EL20: 497 | EM20: 467.9 | EN20: 438.7 | EO20: 538.7 | EP20: 527.6 | EQ20: 499.9 | ER20: 472.2 | ES20: 444.5 | ET20: 416.8 | EU20: 495 | EV20: 483.4 | EW20: 454.2 | EX20: 425 | EY20: 395.9 | EZ20: 366.7 | FA20: 470.3 | FB20: 459.2 | FC20: 431.5 | FD20: 403.8 | FE20: 376.1 | FF20: 348.4 | FG20: 404.1 | FH20: 392.5 | FI20: 363.3 | FJ20: 334.1 | FK20: 305 | FL20: 275.8 | FM20: 383.9 | FN20: 372.9 | FO20: 345.2 | FP20: 317.4 | FQ20: 289.7 | FR20: 262 | FS20: 461.7 | FT20: 450.1 | FU20: 420.9 | FV20: 391.7 | FW20: 362.6 | FX20: 333.4 | FY20: 438.7 | FZ20: 427.6 | GA20: 399.9 | GB20: 372.2 | GC20: 344.5 | GD20: 316.7 | GE20: 447.3 | GF20: 435.7 | GG20: 406.5 | GH20: 377.3 | GI20: 348.2 | GJ20: 319 | GK20: 425 | GL20: 413.9 | GM20: 386.2 | GN20: 358.5 | GO20: 330.8 | GP20: 303.1 | GQ20: 414.9 | GR20: 403.3 | GS20: 374.1 | GT20: 344.9 | GU20: 315.8 | GV20: 286.6 | GW20: 394.2 | GX20: 383.1 | GY20: 355.4 | GZ20: 327.7 | HA20: 300 | HB20: 272.3 | HC20: 497.7 | HD20: 486.1 | HE20: 456.9 | HF20: 427.7 | HG20: 398.6 | HH20: 369.4 | HI20: 472.9 | HJ20: 461.8 | HK20: 434.1 | HL20: 406.4 | HM20: 378.7 | HN20: 350.9 | HO20: 412.2 | HP20: 400.6 | HQ20: 371.4 | HR20: 342.2 | HS20: 313.1 | HT20: 283.9 | HU20: 391.6 | HV20: 380.6 | HW20: 352.8 | HX20: 325.1 | HY20: 297.4 | HZ20: 269.7 | IA20: 390.6 | IB20: 379 | IC20: 349.8 | ID20: 320.6 | IE20: 291.5 | IF20: 262.3 | IG20: 371.1 | IH20: 360 | II20: 332.3 | IJ20: 304.6 | IK20: 276.9 | IL20: 249.2 | IM20: 370.8 | IN20: 359.2 | IO20: 330 | IP20: 300.8 | IQ20: 271.7 | IR20: 242.5 | IS20: 352.3 | IT20: 341.2 | IU20: 313.5 | IV20: 285.8 | IW20: 258.1 | IX20: 230.4 | IY20: 530.6 | IZ20: 518.9 | JA20: 489.7 | JB20: 460.6 | JC20: 431.4 | JD20: 402.2 | JE20: 504.1 | JF20: 493 | JG20: 465.3 | JH20: 437.6 | JI20: 409.8 | JJ20: 382.1 | JK20: 358.2 | JL20: 346.6 | JM20: 317.4 | JN20: 288.2 | JO20: 259.1 | JP20: 229.9 | JQ20: 340.3 | JR20: 329.3 | JS20: 301.5 | JT20: 273.8 | JU20: 246.1 | JV20: 218.4 | JW20: 355.5 | JX20: 343.9 | JY20: 314.7 | JZ20: 285.5 | KA20: 256.4 | KB20: 227.2 | KC20: 337.8 | KD20: 326.7 | KE20: 299 | KF20: 271.3 | KG20: 243.6 | KH20: 215.9 | KI20: 423.9 | KJ20: 412.3 | KK20: 383.1 | KL20: 353.9 | KM20: 324.8 | KN20: 295.6 | KO20: 402.8 | KP20: 391.7 | KQ20: 364 | KR20: 336.3 | KS20: 308.5 | KT20: 280.8 | KU20: 422.1 | KV20: 410.5 | KW20: 381.3 | KX20: 352.1 | KY20: 323 | KZ20: 293.8 | LA20: 401 | LB20: 390 | LC20: 362.3 | LD20: 334.5 | LE20: 306.8 | LF20: 279.1 | LG20: 413.1 | LH20: 401.5 | LI20: 372.3 | LJ20: 343.1 | LK20: 314 | LL20: 284.8 | LM20: 392.5 | LN20: 381.4 | LO20: 353.7 | LP20: 326 | LQ20: 298.3 | LR20: 270.6 | LS20: 457.2 | LT20: 445.6 | LU20: 416.4 | LV20: 387.2 | LW20: 358.1 | LX20: 328.9 | LY20: 434.4 | LZ20: 423.3 | MA20: 395.6 | MB20: 367.9 | MC20: 340.2 | MD20: 312.5 | ME20: 419.4 | MF20: 407.8 | MG20: 378.6 | MH20: 349.4 | MI20: 320.3 | MJ20: 291.1 | MK20: 398.5 | ML20: 387.4 | MM20: 359.7 | MN20: 332 | MO20: 304.3 | MP20: 276.6 | MQ20: 405 | MR20: 393.4 | MS20: 364.2 | MT20: 335 | MU20: 305.9 | MV20: 276.7 | MW20: 384.8 | MX20: 373.7 | MY20: 346 | MZ20: 318.3 | NA20: 290.6 | NB20: 262.9 | NC20: 413.1 | ND20: 401.5 | NE20: 372.3 | NF20: 343.1 | NG20: 314 | NH20: 284.8 | NI20: 392.5 | NJ20: 381.4 | NK20: 353.7 | NL20: 326 | NM20: 298.3 | NN20: 270.6 | NO20: 483.3 | NP20: 471.7 | NQ20: 442.5 | NR20: 413.3 | NS20: 384.2 | NT20: 355 | NU20: 449.5 | NV20: 438.7 | NW20: 411.6 | NX20: 384.4 | NY20: 357.4 | NZ20: 330.2 | OA20: 446.4 | OB20: 434.8 | OC20: 405.6 | OD20: 376.4 | OE20: 347.3 | OF20: 318.1 | OG20: 415.2 | OH20: 404.4 | OI20: 377.3 | OJ20: 350.1 | OK20: 323 | OL20: 295.9 | OM20: 349.2 | ON20: 337.6 | OO20: 308.4 | OP20: 279.2 | OQ20: 250.1 | OR20: 220.9 | OS20: 331.8 | OT20: 320.7 | OU20: 293 | OV20: 265.3 | OW20: 237.6 | OX20: 209.9 | OY20: 585 | OZ20: 573.4 | PA20: 544.2 | PB20: 515 | PC20: 485.9 | PD20: 456.7 | PE20: 555.8 | PF20: 544.7 | PG20: 517 | PH20: 489.3 | PI20: 461.6 | PJ20: 433.9 | PK20: 557.1 | PL20: 545.5 | PM20: 516.3 | PN20: 487.1 | PO20: 458 | PP20: 428.8 | PQ20: 529.3 | PR20: 518.2 | PS20: 490.5 | PT20: 462.8 | PU20: 435.1 | PV20: 407.4 | PW20: 437.4 | PX20: 425.8 | PY20: 396.6 | PZ20: 367.4 | QA20: 338.3 | QB20: 309.1 | QC20: 406.8 | QD20: 396 | QE20: 368.9 | QF20: 341.7 | QG20: 314.7 | QH20: 287.5 | QI20: 396.9 | QJ20: 385.3 | QK20: 356.1 | QL20: 326.9 | QM20: 297.8 | QN20: 268.6 | QO20: 369.2 | QP20: 358.4 | QQ20: 331.2 | QR20: 304.1 | QS20: 277 | QT20: 249.8 | RG20: 361.8 | RH20: 350.2 | RI20: 321 | RJ20: 291.8 | RK20: 262.7 | RL20: 233.5 | RM20: 343.8 | RN20: 332.7 | RO20: 305 | RP20: 277.3 | RQ20: 249.6 | RR20: 221.8 | RS20: 479.7 | RT20: 468.1 | RU20: 438.9 | RV20: 409.7 | RW20: 380.6 | RX20: 351.4 | RY20: 455.8 | RZ20: 444.7 | SA20: 417 | SB20: 389.3 | SC20: 361.6 | SD20: 333.8 | SE20: 435.6 | SF20: 424 | SG20: 394.8 | SH20: 365.6 | SI20: 336.5 | SJ20: 307.3 | SK20: 413.9 | SL20: 402.8 | SM20: 375.1 | SN20: 347.4 | SO20: 319.7 | SP20: 292 | SQ20: 414 | SR20: 402.4 | SS20: 373.2 | ST20: 344 | SU20: 314.9 | SV20: 285.7 | SW20: 393.3 | SX20: 382.3 | SY20: 354.6 | SZ20: 326.8 | TA20: 299.1 | TB20: 271.4
D21: casamed pharm | F21: 21 | G21: 483.3 | H21: 471.7 | I21: 442.5 | J21: 413.3 | K21: 384.2 | L21: 355 | M21: 459.2 | N21: 448.1 | O21: 420.4 | P21: 392.7 | Q21: 364.9 | R21: 337.2 | S21: 424.6 | T21: 412.9 | U21: 383.7 | V21: 354.6 | W21: 325.4 | X21: 296.2 | Y21: 403.4 | Z21: 392.3 | AA21: 364.6 | AB21: 336.9 | AC21: 309.1 | AD21: 281.4 | AE21: 409.7 | AF21: 398.1 | AG21: 368.9 | AH21: 339.7 | AI21: 310.6 | AJ21: 281.4 | AK21: 389.3 | AL21: 378.2 | AM21: 350.5 | AN21: 322.8 | AO21: 295.1 | AP21: 267.3 | AQ21: 392.4 | AR21: 380.8 | AS21: 351.6 | AT21: 322.4 | AU21: 293.3 | AV21: 264.1 | AW21: 372.8 | AX21: 361.7 | AY21: 334 | AZ21: 306.3 | BA21: 278.6 | BB21: 250.9 | BC21: 371.2 | BD21: 359.5 | BE21: 330.3 | BF21: 301.2 | BG21: 272 | BH21: 242.8 | BI21: 352.6 | BJ21: 341.5 | BK21: 313.8 | BL21: 286.1 | BM21: 258.4 | BN21: 230.7 | BO21: 392.5 | BP21: 380.9 | BQ21: 351.7 | BR21: 322.5 | BS21: 293.4 | BT21: 264.2 | BU21: 372.9 | BV21: 361.8 | BW21: 334.1 | BX21: 306.4 | BY21: 278.7 | BZ21: 251 | CA21: 541.2 | CB21: 529.5 | CC21: 500.3 | CD21: 471.2 | CE21: 442 | CF21: 412.8 | CG21: 514.1 | CH21: 503 | CI21: 475.3 | CJ21: 447.6 | CK21: 419.9 | CL21: 392.2 | CM21: 504.7 | CN21: 493 | CO21: 463.8 | CP21: 434.7 | CQ21: 405.5 | CR21: 376.3 | CS21: 479.4 | CT21: 468.4 | CU21: 440.7 | CV21: 412.9 | CW21: 385.2 | CX21: 357.5 | CY21: 469.1 | CZ21: 457.4 | DA21: 428.2 | DB21: 399.1 | DC21: 369.9 | DD21: 340.7 | DE21: 445.6 | DF21: 434.5 | DG21: 406.8 | DH21: 379.1 | DI21: 351.4 | DJ21: 323.7 | DK21: 482.3 | DL21: 470.6 | DM21: 441.5 | DN21: 412.3 | DO21: 383.1 | DP21: 354 | DQ21: 458.2 | DR21: 447.1 | DS21: 419.4 | DT21: 391.7 | DU21: 364 | DV21: 336.3 | DW21: 455.7 | DX21: 444.1 | DY21: 414.9 | DZ21: 385.7 | EA21: 356.6 | EB21: 327.4 | EC21: 432.9 | ED21: 421.9 | EE21: 394.2 | EF21: 366.4 | EG21: 338.7 | EH21: 311 | EI21: 560.7 | EJ21: 549.1 | EK21: 519.9 | EL21: 490.7 | EM21: 461.6 | EN21: 432.4 | EO21: 532.7 | EP21: 521.6 | EQ21: 493.9 | ER21: 466.2 | ES21: 438.5 | ET21: 410.8 | EU21: 489.5 | EV21: 477.9 | EW21: 448.7 | EX21: 419.5 | EY21: 390.4 | EZ21: 361.2 | FA21: 465.1 | FB21: 454 | FC21: 426.3 | FD21: 398.6 | FE21: 370.9 | FF21: 343.2 | FG21: 399.7 | FH21: 388 | FI21: 358.8 | FJ21: 329.7 | FK21: 300.5 | FL21: 271.3 | FM21: 379.7 | FN21: 368.6 | FO21: 340.9 | FP21: 313.2 | FQ21: 285.5 | FR21: 257.8 | FS21: 456.6 | FT21: 445 | FU21: 415.8 | FV21: 386.6 | FW21: 357.5 | FX21: 328.3 | FY21: 433.8 | FZ21: 422.7 | GA21: 395 | GB21: 367.3 | GC21: 339.6 | GD21: 311.9 | GE21: 442.4 | GF21: 430.7 | GG21: 401.5 | GH21: 372.4 | GI21: 343.2 | GJ21: 314 | GK21: 420.3 | GL21: 409.2 | GM21: 381.5 | GN21: 353.8 | GO21: 326.1 | GP21: 298.3 | GQ21: 410.3 | GR21: 398.7 | GS21: 369.5 | GT21: 340.3 | GU21: 311.2 | GV21: 282 | GW21: 389.8 | GX21: 378.7 | GY21: 351 | GZ21: 323.3 | HA21: 295.6 | HB21: 267.9 | HC21: 492.2 | HD21: 480.6 | HE21: 451.4 | HF21: 422.2 | HG21: 393.1 | HH21: 363.9 | HI21: 467.6 | HJ21: 456.5 | HK21: 428.8 | HL21: 401.1 | HM21: 373.4 | HN21: 345.7 | HO21: 407.7 | HP21: 396 | HQ21: 366.8 | HR21: 337.7 | HS21: 308.5 | HT21: 279.3 | HU21: 387.3 | HV21: 376.2 | HW21: 348.5 | HX21: 320.8 | HY21: 293.1 | HZ21: 265.4 | IA21: 386.3 | IB21: 374.6 | IC21: 345.5 | ID21: 316.3 | IE21: 287.1 | IF21: 258 | IG21: 367 | IH21: 355.9 | II21: 328.2 | IJ21: 300.5 | IK21: 272.8 | IL21: 245.1 | IM21: 366.7 | IN21: 355.1 | IO21: 325.9 | IP21: 296.7 | IQ21: 267.6 | IR21: 238.4 | IS21: 348.4 | IT21: 337.3 | IU21: 309.6 | IV21: 281.9 | IW21: 254.2 | IX21: 226.5 | IY21: 530.6 | IZ21: 518.9 | JA21: 489.7 | JB21: 460.6 | JC21: 431.4 | JD21: 402.2 | JE21: 504.1 | JF21: 493 | JG21: 465.3 | JH21: 437.6 | JI21: 409.8 | JJ21: 382.1 | JK21: 354.3 | JL21: 342.6 | JM21: 313.4 | JN21: 284.3 | JO21: 255.1 | JP21: 225.9 | JQ21: 336.6 | JR21: 325.5 | JS21: 297.8 | JT21: 270.1 | JU21: 242.4 | JV21: 214.6 | JW21: 351.6 | JX21: 339.9 | JY21: 310.8 | JZ21: 281.6 | KA21: 252.4 | KB21: 223.3 | KC21: 334 | KD21: 322.9 | KE21: 295.2 | KF21: 267.5 | KG21: 239.8 | KH21: 212.1 | KI21: 419.2 | KJ21: 407.6 | KK21: 378.4 | KL21: 349.2 | KM21: 320.1 | KN21: 290.9 | KO21: 398.3 | KP21: 387.2 | KQ21: 359.5 | KR21: 331.8 | KS21: 304.1 | KT21: 276.4 | KU21: 417.5 | KV21: 405.8 | KW21: 376.6 | KX21: 347.5 | KY21: 318.3 | KZ21: 289.1 | LA21: 396.6 | LB21: 385.5 | LC21: 357.8 | LD21: 330.1 | LE21: 302.4 | LF21: 274.7 | LG21: 408.6 | LH21: 396.9 | LI21: 367.7 | LJ21: 338.6 | LK21: 309.4 | LL21: 280.2 | LM21: 388.1 | LN21: 377.1 | LO21: 349.3 | LP21: 321.6 | LQ21: 293.9 | LR21: 266.2 | LS21: 452.2 | LT21: 440.5 | LU21: 411.3 | LV21: 382.2 | LW21: 353 | LX21: 323.8 | LY21: 429.6 | LZ21: 418.5 | MA21: 390.8 | MB21: 363.1 | MC21: 335.4 | MD21: 307.6 | ME21: 414.8 | MF21: 403.1 | MG21: 374 | MH21: 344.8 | MI21: 315.6 | MJ21: 286.5 | MK21: 394.1 | ML21: 383 | MM21: 355.3 | MN21: 327.6 | MO21: 299.8 | MP21: 272.1 | MQ21: 400.5 | MR21: 388.9 | MS21: 359.7 | MT21: 330.5 | MU21: 301.4 | MV21: 272.2 | MW21: 380.5 | MX21: 369.4 | MY21: 341.7 | MZ21: 314 | NA21: 286.3 | NB21: 258.6 | NC21: 399.7 | ND21: 388 | NE21: 358.8 | NF21: 329.7 | NG21: 300.5 | NH21: 271.3 | NI21: 379.7 | NJ21: 368.6 | NK21: 340.9 | NL21: 313.2 | NM21: 285.5 | NN21: 257.8 | NO21: 478 | NP21: 466.3 | NQ21: 437.1 | NR21: 408 | NS21: 378.8 | NT21: 349.6 | NU21: 444.6 | NV21: 433.7 | NW21: 406.6 | NX21: 379.5 | NY21: 352.3 | NZ21: 325.2 | OA21: 441.5 | OB21: 429.8 | OC21: 400.7 | OD21: 371.5 | OE21: 342.3 | OF21: 313.2 | OG21: 410.6 | OH21: 399.8 | OI21: 372.7 | OJ21: 345.5 | OK21: 318.4 | OL21: 291.3 | OM21: 345.4 | ON21: 333.7 | OO21: 304.5 | OP21: 275.4 | OQ21: 246.2 | OR21: 217 | OS21: 328.1 | OT21: 317 | OU21: 289.3 | OV21: 261.6 | OW21: 233.9 | OX21: 206.2 | OY21: 578.5 | OZ21: 566.9 | PA21: 537.7 | PB21: 508.5 | PC21: 479.4 | PD21: 450.2 | PE21: 549.6 | PF21: 538.5 | PG21: 510.8 | PH21: 483.1 | PI21: 455.4 | PJ21: 427.7 | PK21: 551 | PL21: 539.3 | PM21: 510.1 | PN21: 481 | PO21: 451.8 | PP21: 422.6 | PQ21: 523.4 | PR21: 512.3 | PS21: 484.6 | PT21: 456.9 | PU21: 429.2 | PV21: 401.5 | PW21: 432.6 | PX21: 420.9 | PY21: 391.8 | PZ21: 362.6 | QA21: 333.4 | QB21: 304.3 | QC21: 402.4 | QD21: 391.5 | QE21: 364.4 | QF21: 337.3 | QG21: 310.1 | QH21: 283 | QI21: 392.5 | QJ21: 380.9 | QK21: 351.7 | QL21: 322.5 | QM21: 293.4 | QN21: 264.2 | QO21: 365.1 | QP21: 354.3 | QQ21: 327.1 | QR21: 300 | QS21: 272.9 | QT21: 245.8 | RG21: 357.8 | RH21: 346.2 | RI21: 317 | RJ21: 287.8 | RK21: 258.7 | RL21: 229.5 | RM21: 339.9 | RN21: 328.9 | RO21: 301.1 | RP21: 273.4 | RQ21: 245.7 | RR21: 218 | RS21: 474.4 | RT21: 462.8 | RU21: 433.6 | RV21: 404.4 | RW21: 375.3 | RX21: 346.1 | RY21: 450.7 | RZ21: 439.6 | SA21: 411.9 | SB21: 384.2 | SC21: 356.5 | SD21: 328.8 | SE21: 430.8 | SF21: 419.1 | SG21: 390 | SH21: 360.8 | SI21: 331.6 | SJ21: 302.5 | SK21: 409.3 | SL21: 398.2 | SM21: 370.5 | SN21: 342.8 | SO21: 315.1 | SP21: 287.4 | SQ21: 409.4 | SR21: 397.8 | SS21: 368.6 | ST21: 339.4 | SU21: 310.3 | SV21: 281.1 | SW21: 389 | SX21: 377.9 | SY21: 350.2 | SZ21: 322.5 | TA21: 294.8 | TB21: 267.1
C22: TAR-HMO | D22: casamed hmo | F22: 22 | G22: 477.9 | H22: 466.2 | I22: 437.1 | J22: 407.9 | K22: 378.7 | L22: 349.6 | M22: 454 | N22: 442.9 | O22: 415.2 | P22: 387.5 | Q22: 359.8 | R22: 332.1 | S22: 419.8 | T22: 408.1 | U22: 379 | V22: 349.8 | W22: 320.6 | X22: 291.5 | Y22: 398.8 | Z22: 387.7 | AA22: 360 | AB22: 332.3 | AC22: 304.6 | AD22: 276.9 | AE22: 424.2 | AF22: 412.5 | AG22: 383.4 | AH22: 354.2 | AI22: 325 | AJ22: 295.9 | AK22: 403 | AL22: 391.9 | AM22: 364.2 | AN22: 336.5 | AO22: 308.8 | AP22: 281.1 | AQ22: 383.4 | AR22: 371.7 | AS22: 342.6 | AT22: 313.4 | AU22: 284.2 | AV22: 255.1 | AW22: 364.2 | AX22: 353.1 | AY22: 325.4 | AZ22: 297.7 | BA22: 270 | BB22: 242.3 | BC22: 367 | BD22: 355.3 | BE22: 326.2 | BF22: 297 | BG22: 267.8 | BH22: 238.7 | BI22: 348.7 | BJ22: 337.6 | BK22: 309.9 | BL22: 282.2 | BM22: 254.5 | BN22: 226.7 | BO22: 388.1 | BP22: 376.5 | BQ22: 347.3 | BR22: 318.1 | BS22: 289 | BT22: 259.8 | BU22: 368.7 | BV22: 357.6 | BW22: 329.9 | BX22: 302.2 | BY22: 274.5 | BZ22: 246.8 | CA22: 535.1 | CB22: 523.4 | CC22: 494.3 | CD22: 465.1 | CE22: 435.9 | CF22: 406.8 | CG22: 508.3 | CH22: 497.3 | CI22: 469.5 | CJ22: 441.8 | CK22: 414.1 | CL22: 386.4 | CM22: 499 | CN22: 487.3 | CO22: 458.2 | CP22: 429 | CQ22: 399.8 | CR22: 370.7 | CS22: 474.1 | CT22: 463 | CU22: 435.3 | CV22: 407.6 | CW22: 379.9 | CX22: 352.1 | CY22: 463.8 | CZ22: 452.1 | DA22: 423 | DB22: 393.8 | DC22: 364.6 | DD22: 335.5 | DE22: 440.6 | DF22: 429.5 | DG22: 401.8 | DH22: 374.1 | DI22: 346.4 | DJ22: 318.7 | DK22: 471.3 | DL22: 459.7 | DM22: 430.5 | DN22: 401.3 | DO22: 372.2 | DP22: 343 | DQ22: 447.8 | DR22: 436.7 | DS22: 409 | DT22: 381.3 | DU22: 353.6 | DV22: 325.8 | DW22: 440.4 | DX22: 428.7 | DY22: 399.5 | DZ22: 370.4 | EA22: 341.2 | EB22: 312 | EC22: 418.4 | ED22: 407.3 | EE22: 379.6 | EF22: 351.9 | EG22: 324.1 | EH22: 296.4 | EI22: 541.8 | EJ22: 530.2 | EK22: 501 | EL22: 471.8 | EM22: 442.7 | EN22: 413.5 | EO22: 514.8 | EP22: 503.7 | EQ22: 476 | ER22: 448.3 | ES22: 420.6 | ET22: 392.8 | FG22: 386.2 | FH22: 374.5 | FI22: 345.4 | FJ22: 316.2 | FK22: 287 | FL22: 257.9 | FM22: 366.9 | FN22: 355.8 | FO22: 328.1 | FP22: 300.4 | FQ22: 272.7 | FR22: 245 | HO22: 393.9 | HP22: 382.3 | HQ22: 353.1 | HR22: 323.9 | HS22: 294.8 | HT22: 265.6 | HU22: 374.2 | HV22: 363.2 | HW22: 335.4 | HX22: 307.7 | HY22: 280 | HZ22: 252.3 | IA22: 373.3 | IB22: 361.6 | IC22: 332.5 | ID22: 303.3 | IE22: 274.1 | IF22: 245 | IG22: 354.6 | IH22: 343.5 | II22: 315.8 | IJ22: 288.1 | IK22: 260.4 | IL22: 232.7 | IM22: 354.4 | IN22: 342.7 | IO22: 313.5 | IP22: 284.4 | IQ22: 255.2 | IR22: 226 | IS22: 336.7 | IT22: 325.6 | IU22: 297.9 | IV22: 270.2 | IW22: 242.4 | IX22: 214.7 | JK22: 350.3 | JL22: 338.6 | JM22: 309.5 | JN22: 280.3 | JO22: 251.1 | JP22: 222 | JQ22: 332.8 | JR22: 321.7 | JS22: 294 | JT22: 266.3 | JU22: 238.6 | JV22: 210.9 | JW22: 343.7 | JX22: 332 | JY22: 302.9 | JZ22: 273.7 | KA22: 244.5 | KB22: 215.4 | KC22: 326.5 | KD22: 315.4 | KE22: 287.7 | KF22: 260 | KG22: 232.3 | KH22: 204.6 | KI22: 414.5 | KJ22: 402.9 | KK22: 373.7 | KL22: 344.5 | KM22: 315.4 | KN22: 286.2 | KO22: 393.8 | KP22: 382.7 | KQ22: 355 | KR22: 327.3 | KS22: 299.6 | KT22: 271.9 | KU22: 412.8 | KV22: 401.1 | KW22: 371.9 | KX22: 342.8 | KY22: 313.6 | KZ22: 284.4 | LA22: 392.1 | LB22: 381.1 | LC22: 353.3 | LD22: 325.6 | LE22: 297.9 | LF22: 270.2 | LG22: 404 | LH22: 392.3 | LI22: 363.1 | LJ22: 334 | LK22: 304.8 | LL22: 275.6 | LM22: 383.8 | LN22: 372.7 | LO22: 345 | LP22: 317.3 | LQ22: 289.6 | LR22: 261.9 | LS22: 447.1 | LT22: 435.4 | LU22: 406.3 | LV22: 377.1 | LW22: 347.9 | LX22: 318.8 | LY22: 424.7 | LZ22: 413.7 | MA22: 385.9 | MB22: 358.2 | MC22: 330.5 | MD22: 302.8 | ME22: 410.1 | MF22: 398.5 | MG22: 369.3 | MH22: 340.1 | MI22: 311 | MJ22: 281.8 | MK22: 389.6 | ML22: 378.5 | MM22: 350.8 | MN22: 323.1 | MO22: 295.4 | MP22: 267.7 | MQ22: 396 | MR22: 384.4 | MS22: 355.2 | MT22: 326 | MU22: 296.9 | MV22: 267.7 | MW22: 376.2 | MX22: 365.2 | MY22: 337.5 | MZ22: 309.7 | NA22: 282 | NB22: 254.3 | NC22: 395.2 | ND22: 383.5 | NE22: 354.3 | NF22: 325.2 | NG22: 296 | NH22: 266.8 | NI22: 375.4 | NJ22: 364.3 | NK22: 336.6 | NL22: 308.9 | NM22: 281.2 | NN22: 253.5 | OM22: 333.7 | ON22: 322.1 | OO22: 292.9 | OP22: 263.7 | OQ22: 234.6 | OR22: 205.4 | OS22: 317 | OT22: 306 | OU22: 278.3 | OV22: 250.5 | OW22: 222.8 | OX22: 195.1 | RG22: 353.8 | RH22: 342.1 | RI22: 313 | RJ22: 283.8 | RK22: 254.6 | RL22: 225.5 | RM22: 336.1 | RN22: 325 | RO22: 297.3 | RP22: 269.6 | RQ22: 241.9 | RR22: 214.2 | RS22: 469.1 | RT22: 457.4 | RU22: 428.3 | RV22: 399.1 | RW22: 369.9 | RX22: 340.8 | RY22: 445.6 | RZ22: 434.6 | SA22: 406.8 | SB22: 379.1 | SC22: 351.4 | SD22: 323.7 | SE22: 426 | SF22: 414.3 | SG22: 385.1 | SH22: 356 | SI22: 326.8 | SJ22: 297.6 | SK22: 404.7 | SL22: 393.6 | SM22: 365.9 | SN22: 338.2 | SO22: 310.5 | SP22: 282.8 | SQ22: 404.8 | SR22: 393.2 | SS22: 364 | ST22: 334.8 | SU22: 305.7 | SV22: 276.5 | SW22: 384.6 | SX22: 373.5 | SY22: 345.8 | SZ22: 318.1 | TA22: 290.4 | TB22: 262.7
A23: 62 | B23: SUPRA-1846 SA | C23: TAR-BASE | D23: Grundversicherung | F23: 23 | G23: 509.5 | H23: 498 | I23: 469 | J23: 439.5 | K23: 410.5 | L23: 381.5 | M23: 473.9 | N23: 463.2 | O23: 436.2 | P23: 408.8 | Q23: 381.8 | R23: 354.8 | S23: 489.2 | T23: 477.7 | U23: 448.7 | V23: 419.2 | W23: 390.2 | X23: 361.2 | Y23: 455 | Z23: 444.3 | AA23: 417.3 | AB23: 389.9 | AC23: 362.9 | AD23: 336 | AE23: 570.4 | AF23: 558.9 | AG23: 529.9 | AH23: 500.4 | AI23: 471.4 | AJ23: 442.4 | AK23: 530.5 | AL23: 519.8 | AM23: 492.9 | AN23: 465.4 | AO23: 438.5 | AP23: 411.5 | AQ23: 503.7 | AR23: 492.2 | AS23: 463.2 | AT23: 433.7 | AU23: 404.7 | AV23: 375.7 | AW23: 468.5 | AX23: 457.8 | AY23: 430.8 | AZ23: 403.4 | BA23: 376.4 | BB23: 349.5 | BC23: 385 | BD23: 373.5 | BE23: 344.5 | BF23: 315 | BG23: 286 | BH23: 257 | BI23: 358.1 | BJ23: 347.4 | BK23: 320.4 | BL23: 293 | BM23: 266 | BN23: 239.1 | BO23: 443.1 | BP23: 431.6 | BQ23: 402.6 | BR23: 373.1 | BS23: 344.1 | BT23: 315.1 | BU23: 412.1 | BV23: 401.4 | BW23: 374.5 | BX23: 347 | BY23: 320.1 | BZ23: 293.1 | CA23: 548.3 | CB23: 536.8 | CC23: 507.8 | CD23: 478.3 | CE23: 449.3 | CF23: 420.3 | CG23: 510 | CH23: 499.3 | CI23: 472.3 | CJ23: 444.9 | CK23: 417.9 | CL23: 390.9 | CM23: 499 | CN23: 487.5 | CO23: 458.5 | CP23: 429 | CQ23: 400 | CR23: 371 | CS23: 464.1 | CT23: 453.4 | CU23: 426.5 | CV23: 399 | CW23: 372 | CX23: 345.1 | CY23: 482.6 | CZ23: 471.1 | DA23: 442.1 | DB23: 412.6 | DC23: 383.6 | DD23: 354.6 | DE23: 448.9 | DF23: 438.2 | DG23: 411.2 | DH23: 383.8 | DI23: 356.8 | DJ23: 329.8 | DK23: 536.5 | DL23: 525 | DM23: 496 | DN23: 466.5 | DO23: 437.5 | DP23: 408.5 | DQ23: 499 | DR23: 488.3 | DS23: 461.3 | DT23: 433.9 | DU23: 406.9 | DV23: 380 | DW23: 515.1 | DX23: 503.6 | DY23: 474.6 | DZ23: 445.1 | EA23: 416.1 | EB23: 387.1 | EC23: 479.1 | ED23: 468.4 | EE23: 441.4 | EF23: 414 | EG23: 387 | EH23: 360.1 | EI23: 652 | EJ23: 640.5 | EK23: 611.5 | EL23: 582 | EM23: 553 | EN23: 524 | EO23: 606.4 | EP23: 595.7 | EQ23: 568.7 | ER23: 541.3 | ES23: 514.3 | ET23: 487.4 | EU23: 619.1 | EV23: 607.6 | EW23: 578.6 | EX23: 549.1 | EY23: 520.1 | EZ23: 491.1 | FA23: 575.8 | FB23: 565.1 | FC23: 538.1 | FD23: 510.7 | FE23: 483.7 | FF23: 456.8 | FG23: 499.5 | FH23: 488 | FI23: 459 | FJ23: 429.5 | FK23: 400.5 | FL23: 371.5 | FM23: 464.6 | FN23: 453.9 | FO23: 426.9 | FP23: 399.5 | FQ23: 372.5 | FR23: 345.5 | FS23: 471.9 | FT23: 460.4 | FU23: 431.4 | FV23: 401.9 | FW23: 372.9 | FX23: 343.9 | FY23: 438.9 | FZ23: 428.2 | GA23: 401.3 | GB23: 373.8 | GC23: 346.8 | GD23: 319.9 | GE23: 462.5 | GF23: 451 | GG23: 422 | GH23: 392.5 | GI23: 363.5 | GJ23: 334.5 | GK23: 430.2 | GL23: 419.5 | GM23: 392.5 | GN23: 365.1 | GO23: 338.1 | GP23: 311.1 | GQ23: 453.1 | GR23: 441.6 | GS23: 412.6 | GT23: 383.1 | GU23: 354.1 | GV23: 325.1 | GW23: 421.4 | GX23: 410.7 | GY23: 383.8 | GZ23: 356.3 | HA23: 329.4 | HB23: 302.4 | HC23: 510.6 | HD23: 499.1 | HE23: 470.1 | HF23: 440.6 | HG23: 411.6 | HH23: 382.6 | HI23: 474.9 | HJ23: 464.2 | HK23: 437.2 | HL23: 409.8 | HM23: 382.8 | HN23: 355.9 | HO23: 456.8 | HP23: 445.3 | HQ23: 416.3 | HR23: 386.8 | HS23: 357.8 | HT23: 328.8 | HU23: 424.9 | HV23: 414.2 | HW23: 387.2 | HX23: 359.8 | HY23: 332.8 | HZ23: 305.8 | IA23: 437.3 | IB23: 425.8 | IC23: 396.8 | ID23: 367.3 | IE23: 338.3 | IF23: 309.3 | IG23: 406.7 | IH23: 396 | II23: 369.1 | IJ23: 341.6 | IK23: 314.7 | IL23: 287.7 | IM23: 427.5 | IN23: 416 | IO23: 387 | IP23: 357.5 | IQ23: 328.5 | IR23: 299.5 | IS23: 397.6 | IT23: 386.9 | IU23: 360 | IV23: 332.5 | IW23: 305.6 | IX23: 278.6 | IY23: 627.2 | IZ23: 615.7 | JA23: 586.7 | JB23: 557.2 | JC23: 528.2 | JD23: 499.2 | JE23: 583.3 | JF23: 572.7 | JG23: 545.7 | JH23: 518.2 | JI23: 491.3 | JJ23: 464.3 | JK23: 426.9 | JL23: 415.4 | JM23: 386.4 | JN23: 356.9 | JO23: 327.9 | JP23: 298.9 | JQ23: 397.1 | JR23: 386.4 | JS23: 359.4 | JT23: 332 | JU23: 305 | JV23: 278 | JW23: 406 | JX23: 394.5 | JY23: 365.5 | JZ23: 336 | KA23: 307 | KB23: 278 | KC23: 377.6 | KD23: 366.9 | KE23: 340 | KF23: 312.5 | KG23: 285.6 | KH23: 258.6 | KI23: 520.6 | KJ23: 509.1 | KK23: 480.1 | KL23: 450.6 | KM23: 421.6 | KN23: 392.6 | KO23: 484.2 | KP23: 473.5 | KQ23: 446.5 | KR23: 419.1 | KS23: 392.1 | KT23: 365.2 | KU23: 484.2 | KV23: 472.7 | KW23: 443.7 | KX23: 414.2 | KY23: 385.2 | KZ23: 356.2 | LA23: 450.4 | LB23: 439.7 | LC23: 412.7 | LD23: 385.3 | LE23: 358.3 | LF23: 331.3 | LG23: 468.6 | LH23: 457.1 | LI23: 428.1 | LJ23: 398.6 | LK23: 369.6 | LL23: 340.6 | LM23: 435.8 | LN23: 425.2 | LO23: 398.2 | LP23: 370.7 | LQ23: 343.8 | LR23: 316.8 | LS23: 533.6 | LT23: 522.1 | LU23: 493.1 | LV23: 463.6 | LW23: 434.6 | LX23: 405.6 | LY23: 496.3 | LZ23: 485.6 | MA23: 458.6 | MB23: 431.2 | MC23: 404.2 | MD23: 377.3 | ME23: 501.6 | MF23: 490.1 | MG23: 461.1 | MH23: 431.6 | MI23: 402.6 | MJ23: 373.6 | MK23: 466.5 | ML23: 455.8 | MM23: 428.9 | MN23: 401.4 | MO23: 374.5 | MP23: 347.5 | MQ23: 498.6 | MR23: 487.1 | MS23: 458.1 | MT23: 428.6 | MU23: 399.6 | MV23: 370.6 | MW23: 463.7 | MX23: 453.1 | MY23: 426.1 | MZ23: 398.6 | NA23: 371.7 | NB23: 344.7 | NC23: 536.3 | ND23: 524.8 | NE23: 495.8 | NF23: 466.3 | NG23: 437.3 | NH23: 408.3 | NI23: 498.8 | NJ23: 488.1 | NK23: 461.1 | NL23: 433.7 | NM23: 406.7 | NN23: 379.8 | NO23: 589.3 | NP23: 577.8 | NQ23: 548.8 | NR23: 519.3 | NS23: 490.3 | NT23: 461.3 | NU23: 548.1 | NV23: 537.4 | NW23: 510.4 | NX23: 483 | NY23: 456 | NZ23: 429.1 | OA23: 577.6 | OB23: 566.1 | OC23: 537.1 | OD23: 507.6 | OE23: 478.6 | OF23: 449.6 | OG23: 537.2 | OH23: 526.5 | OI23: 499.6 | OJ23: 472.1 | OK23: 445.1 | OL23: 418.2 | OM23: 443 | ON23: 431.5 | OO23: 402.5 | OP23: 373 | OQ23: 344 | OR23: 315 | OS23: 412 | OT23: 401.3 | OU23: 374.4 | OV23: 346.9 | OW23: 320 | OX23: 293 | OY23: 574.3 | OZ23: 562.8 | PA23: 533.8 | PB23: 504.3 | PC23: 475.3 | PD23: 446.3 | PE23: 534.1 | PF23: 523.5 | PG23: 496.5 | PH23: 469 | PI23: 442.1 | PJ23: 415.1 | PK23: 534.1 | PL23: 522.6 | PM23: 493.6 | PN23: 464.1 | PO23: 435.1 | PP23: 406.1 | PQ23: 496.8 | PR23: 486.1 | PS23: 459.1 | PT23: 431.7 | PU23: 404.7 | PV23: 377.7 | PW23: 514.7 | PX23: 503.2 | PY23: 474.2 | PZ23: 444.7 | QA23: 415.7 | QB23: 386.7 | QC23: 478.7 | QD23: 468 | QE23: 441.1 | QF23: 413.6 | QG23: 386.7 | QH23: 359.7 | QI23: 514.7 | QJ23: 503.2 | QK23: 474.2 | QL23: 444.7 | QM23: 415.7 | QN23: 386.7 | QO23: 478.7 | QP23: 468 | QQ23: 441.1 | QR23: 413.6 | QS23: 386.7 | QT23: 359.7 | RG23: 492.5 | RH23: 481 | RI23: 452 | RJ23: 422.5 | RK23: 393.5 | RL23: 364.5 | RM23: 458.1 | RN23: 447.4 | RO23: 420.4 | RP23: 393 | RQ23: 366 | RR23: 339 | RS23: 606.8 | RT23: 595.3 | RU23: 566.3 | RV23: 536.8 | RW23: 507.8 | RX23: 478.8 | RY23: 564.4 | RZ23: 553.7 | SA23: 526.7 | SB23: 499.3 | SC23: 472.3 | SD23: 445.3 | SE23: 594.7 | SF23: 583.2 | SG23: 554.2 | SH23: 524.7 | SI23: 495.7 | SJ23: 466.7 | SK23: 553.1 | SL23: 542.4 | SM23: 515.5 | SN23: 488 | SO23: 461.1 | SP23: 434.1 | SQ23: 585.6 | SR23: 574.1 | SS23: 545.1 | ST23: 515.6 | SU23: 486.6 | SV23: 457.6 | SW23: 544.7 | SX23: 534 | SY23: 507 | SZ23: 479.6 | TA23: 452.6 | TB23: 425.6
C24: TAR-HAM | D24: Hausarzt Modell | F24: 24 | BO24: 398.8 | BP24: 387.3 | BQ24: 358.3 | BR24: 328.8 | BS24: 299.8 | BT24: 270.8 | BU24: 370.9 | BV24: 360.2 | BW24: 333.3 | BX24: 305.8 | BY24: 278.9 | BZ24: 251.9 | CA24: 466.1 | CB24: 454.6 | CC24: 425.6 | CD24: 396.1 | CE24: 367.1 | CF24: 338.1 | CG24: 433.5 | CH24: 422.8 | CI24: 395.9 | CJ24: 368.4 | CK24: 341.5 | CL24: 314.5 | CM24: 424.2 | CN24: 412.7 | CO24: 383.7 | CP24: 354.2 | CQ24: 325.2 | CR24: 296.2 | CS24: 394.6 | CT24: 383.9 | CU24: 356.9 | CV24: 329.5 | CW24: 302.5 | CX24: 275.5 | CY24: 410.2 | CZ24: 398.7 | DA24: 369.7 | DB24: 340.2 | DC24: 311.2 | DD24: 282.2 | DE24: 381.5 | DF24: 370.8 | DG24: 343.9 | DH24: 316.4 | DI24: 289.5 | DJ24: 262.5 | DK24: 456.1 | DL24: 444.6 | DM24: 415.6 | DN24: 386.1 | DO24: 357.1 | DP24: 328.1 | DQ24: 424.2 | DR24: 413.5 | DS24: 386.6 | DT24: 359.1 | DU24: 332.2 | DV24: 305.2 | DW24: 437.8 | DX24: 426.3 | DY24: 397.3 | DZ24: 367.8 | EA24: 338.8 | EB24: 309.8 | EC24: 407.2 | ED24: 396.5 | EE24: 369.5 | EF24: 342.1 | EG24: 315.1 | EH24: 288.2 | EI24: 554.2 | EJ24: 542.7 | EK24: 513.7 | EL24: 484.2 | EM24: 455.2 | EN24: 426.2 | EO24: 515.5 | EP24: 504.8 | EQ24: 477.8 | ER24: 450.4 | ES24: 423.4 | ET24: 396.4 | EU24: 520.1 | EV24: 508.6 | EW24: 479.6 | EX24: 450.1 | EY24: 421.1 | EZ24: 392.1 | FA24: 483.7 | FB24: 473 | FC24: 446.1 | FD24: 418.6 | FE24: 391.7 | FF24: 364.7 | FS24: 401.2 | FT24: 389.7 | FU24: 360.7 | FV24: 331.2 | FW24: 302.2 | FX24: 273.2 | FY24: 373.2 | FZ24: 362.5 | GA24: 335.5 | GB24: 308.1 | GC24: 281.1 | GD24: 254.1 | GE24: 393.1 | GF24: 381.6 | GG24: 352.6 | GH24: 323.1 | GI24: 294.1 | GJ24: 265.1 | GK24: 365.6 | GL24: 354.9 | GM24: 328 | GN24: 300.5 | GO24: 273.6 | GP24: 246.6 | GQ24: 385.1 | GR24: 373.6 | GS24: 344.6 | GT24: 315.1 | GU24: 286.1 | GV24: 257.1 | GW24: 358.2 | GX24: 347.5 | GY24: 320.5 | GZ24: 293.1 | HA24: 266.1 | HB24: 239.2 | HC24: 459.6 | HD24: 448.1 | HE24: 419.1 | HF24: 389.6 | HG24: 360.6 | HH24: 331.6 | HI24: 427.5 | HJ24: 416.8 | HK24: 389.8 | HL24: 362.4 | HM24: 335.4 | HN24: 308.4 | HO24: 388.3 | HP24: 376.8 | HQ24: 347.8 | HR24: 318.3 | HS24: 289.3 | HT24: 260.3 | HU24: 361.2 | HV24: 350.5 | HW24: 323.5 | HX24: 296.1 | HY24: 269.1 | HZ24: 242.1 | IA24: 371.7 | IB24: 360.2 | IC24: 331.2 | ID24: 301.7 | IE24: 272.7 | IF24: 243.7 | IG24: 345.7 | IH24: 335 | II24: 308.1 | IJ24: 280.6 | IK24: 253.7 | IL24: 226.7 | IM24: 363.4 | IN24: 351.9 | IO24: 322.9 | IP24: 293.4 | IQ24: 264.4 | IR24: 235.4 | IS24: 338 | IT24: 327.3 | IU24: 300.3 | IV24: 272.9 | IW24: 245.9 | IX24: 219 | IY24: 564.5 | IZ24: 553 | JA24: 524 | JB24: 494.5 | JC24: 465.5 | JD24: 436.5 | JE24: 525 | JF24: 514.3 | JG24: 487.4 | JH24: 459.9 | JI24: 433 | JJ24: 406 | NO24: 530.4 | NP24: 518.9 | NQ24: 489.9 | NR24: 460.4 | NS24: 431.4 | NT24: 402.4 | NU24: 493.3 | NV24: 482.6 | NW24: 455.7 | NX24: 428.2 | NY24: 401.3 | NZ24: 374.3 | OA24: 519.8 | OB24: 508.3 | OC24: 479.3 | OD24: 449.8 | OE24: 420.8 | OF24: 391.8 | OG24: 483.5 | OH24: 472.8 | OI24: 445.8 | OJ24: 418.4 | OK24: 391.4 | OL24: 364.4 | OY24: 482.5 | OZ24: 471 | PA24: 442 | PB24: 412.5 | PC24: 383.5 | PD24: 354.5 | PE24: 448.8 | PF24: 438.1 | PG24: 411.1 | PH24: 383.7 | PI24: 356.7 | PJ24: 329.7 | PK24: 448.7 | PL24: 437.2 | PM24: 408.2 | PN24: 378.7 | PO24: 349.7 | PP24: 320.7 | PQ24: 417.3 | PR24: 406.6 | PS24: 379.7 | PT24: 352.2 | PU24: 325.3 | PV24: 298.3
D25: PrimaPharma | F25: 25 | G25: 448.4 | H25: 436.9 | I25: 407.9 | J25: 378.4 | K25: 349.4 | L25: 320.4 | M25: 417.1 | N25: 406.4 | O25: 379.4 | P25: 352 | Q25: 325 | R25: 298 | S25: 430.5 | T25: 419 | U25: 390 | V25: 360.5 | W25: 331.5 | X25: 302.5 | Y25: 400.4 | Z25: 389.7 | AA25: 362.7 | AB25: 335.3 | AC25: 308.3 | AD25: 281.4 | AE25: 502 | AF25: 490.5 | AG25: 461.5 | AH25: 432 | AI25: 403 | AJ25: 374 | AK25: 466.9 | AL25: 456.2 | AM25: 429.2 | AN25: 401.8 | AO25: 374.8 | AP25: 347.9 | AQ25: 443.3 | AR25: 431.8 | AS25: 402.8 | AT25: 373.3 | AU25: 344.3 | AV25: 315.3 | AW25: 412.3 | AX25: 401.6 | AY25: 374.7 | AZ25: 347.2 | BA25: 320.2 | BB25: 293.3 | BC25: 338.8 | BD25: 327.3 | BE25: 298.3 | BF25: 268.8 | BG25: 239.8 | BH25: 210.8 | BI25: 315.1 | BJ25: 304.4 | BK25: 277.5 | BL25: 250 | BM25: 223.1 | BN25: 196.1 | BO25: 390 | BP25: 378.5 | BQ25: 349.5 | BR25: 320 | BS25: 291 | BT25: 262 | BU25: 362.7 | BV25: 352.1 | BW25: 325.1 | BX25: 297.6 | BY25: 270.7 | BZ25: 243.7 | CA25: 482.6 | CB25: 471.1 | CC25: 442.1 | CD25: 412.6 | CE25: 383.6 | CF25: 354.6 | CG25: 448.9 | CH25: 438.2 | CI25: 411.2 | CJ25: 383.8 | CK25: 356.8 | CL25: 329.8 | CM25: 439.1 | CN25: 427.6 | CO25: 398.6 | CP25: 369.1 | CQ25: 340.1 | CR25: 311.1 | CS25: 408.4 | CT25: 397.7 | CU25: 370.7 | CV25: 343.3 | CW25: 316.3 | CX25: 289.4 | CY25: 424.7 | CZ25: 413.2 | DA25: 384.2 | DB25: 354.7 | DC25: 325.7 | DD25: 296.7 | DE25: 395 | DF25: 384.3 | DG25: 357.4 | DH25: 329.9 | DI25: 303 | DJ25: 276 | DK25: 472.2 | DL25: 460.7 | DM25: 431.7 | DN25: 402.2 | DO25: 373.2 | DP25: 344.2 | DQ25: 439.2 | DR25: 428.5 | DS25: 401.5 | DT25: 374.1 | DU25: 347.1 | DV25: 320.2 | DW25: 453.3 | DX25: 441.8 | DY25: 412.8 | DZ25: 383.3 | EA25: 354.3 | EB25: 325.3 | EC25: 421.6 | ED25: 410.9 | EE25: 384 | EF25: 356.5 | EG25: 329.5 | EH25: 302.6 | EI25: 573.8 | EJ25: 562.3 | EK25: 533.3 | EL25: 503.8 | EM25: 474.8 | EN25: 445.8 | EO25: 533.7 | EP25: 523 | EQ25: 496 | ER25: 468.6 | ES25: 441.6 | ET25: 414.6 | EU25: 544.9 | EV25: 533.4 | EW25: 504.4 | EX25: 474.9 | EY25: 445.9 | EZ25: 416.9 | FA25: 506.8 | FB25: 496.1 | FC25: 469.1 | FD25: 441.7 | FE25: 414.7 | FF25: 387.8 | FG25: 439.6 | FH25: 428.1 | FI25: 399.1 | FJ25: 369.6 | FK25: 340.6 | FL25: 311.6 | FM25: 408.9 | FN25: 398.2 | FO25: 371.2 | FP25: 343.8 | FQ25: 316.8 | FR25: 289.8 | FS25: 415.3 | FT25: 403.8 | FU25: 374.8 | FV25: 345.3 | FW25: 316.3 | FX25: 287.3 | FY25: 386.3 | FZ25: 375.6 | GA25: 348.6 | GB25: 321.2 | GC25: 294.2 | GD25: 267.2 | GE25: 407 | GF25: 395.5 | GG25: 366.5 | GH25: 337 | GI25: 308 | GJ25: 279 | GK25: 378.6 | GL25: 367.9 | GM25: 340.9 | GN25: 313.5 | GO25: 286.5 | GP25: 259.5 | GQ25: 398.7 | GR25: 387.2 | GS25: 358.2 | GT25: 328.7 | GU25: 299.7 | GV25: 270.7 | GW25: 370.8 | GX25: 360.1 | GY25: 333.2 | GZ25: 305.7 | HA25: 278.8 | HB25: 251.8 | HC25: 449.4 | HD25: 437.9 | HE25: 408.9 | HF25: 379.4 | HG25: 350.4 | HH25: 321.4 | HI25: 418 | HJ25: 407.3 | HK25: 380.3 | HL25: 352.9 | HM25: 325.9 | HN25: 299 | HO25: 402 | HP25: 390.5 | HQ25: 361.5 | HR25: 332 | HS25: 303 | HT25: 274 | HU25: 373.9 | HV25: 363.2 | HW25: 336.2 | HX25: 308.8 | HY25: 281.8 | HZ25: 254.9 | IA25: 384.9 | IB25: 373.4 | IC25: 344.4 | ID25: 314.9 | IE25: 285.9 | IF25: 256.9 | IG25: 358 | IH25: 347.3 | II25: 320.3 | IJ25: 292.9 | IK25: 265.9 | IL25: 239 | IM25: 376.2 | IN25: 364.7 | IO25: 335.7 | IP25: 306.2 | IQ25: 277.2 | IR25: 248.2 | IS25: 349.9 | IT25: 339.2 | IU25: 312.3 | IV25: 284.8 | IW25: 257.8 | IX25: 230.9 | IY25: 552 | IZ25: 540.5 | JA25: 511.5 | JB25: 482 | JC25: 453 | JD25: 424 | JE25: 513.4 | JF25: 502.7 | JG25: 475.7 | JH25: 448.3 | JI25: 421.3 | JJ25: 394.4 | JK25: 375.7 | JL25: 364.2 | JM25: 335.2 | JN25: 305.7 | JO25: 276.7 | JP25: 247.7 | JQ25: 349.5 | JR25: 338.8 | JS25: 311.8 | JT25: 284.4 | JU25: 257.4 | JV25: 230.4 | JW25: 357.3 | JX25: 345.8 | JY25: 316.8 | JZ25: 287.3 | KA25: 258.3 | KB25: 229.3 | KC25: 332.3 | KD25: 321.6 | KE25: 294.7 | KF25: 267.2 | KG25: 240.3 | KH25: 213.3 | KI25: 458.2 | KJ25: 446.7 | KK25: 417.7 | KL25: 388.2 | KM25: 359.2 | KN25: 330.2 | KO25: 426.2 | KP25: 415.5 | KQ25: 388.5 | KR25: 361.1 | KS25: 334.1 | KT25: 307.1 | KU25: 426.1 | KV25: 414.6 | KW25: 385.6 | KX25: 356.1 | KY25: 327.1 | KZ25: 298.1 | LA25: 396.3 | LB25: 385.6 | LC25: 358.7 | LD25: 331.2 | LE25: 304.3 | LF25: 277.3 | LG25: 412.4 | LH25: 400.9 | LI25: 371.9 | LJ25: 342.4 | LK25: 313.4 | LL25: 284.4 | LM25: 383.6 | LN25: 372.9 | LO25: 345.9 | LP25: 318.5 | LQ25: 291.5 | LR25: 264.5 | LS25: 469.6 | LT25: 458.1 | LU25: 429.1 | LV25: 399.6 | LW25: 370.6 | LX25: 341.6 | LY25: 436.8 | LZ25: 426.1 | MA25: 399.1 | MB25: 371.7 | MC25: 344.7 | MD25: 317.7 | ME25: 441.4 | MF25: 429.9 | MG25: 400.9 | MH25: 371.4 | MI25: 342.4 | MJ25: 313.4 | MK25: 410.6 | ML25: 399.9 | MM25: 372.9 | MN25: 345.5 | MO25: 318.5 | MP25: 291.5 | MQ25: 438.8 | MR25: 427.3 | MS25: 398.3 | MT25: 368.8 | MU25: 339.8 | MV25: 310.8 | MW25: 408.1 | MX25: 397.4 | MY25: 370.5 | MZ25: 343 | NA25: 316.1 | NB25: 289.1 | NC25: 472 | ND25: 460.5 | NE25: 431.5 | NF25: 402 | NG25: 373 | NH25: 344 | NI25: 439 | NJ25: 428.3 | NK25: 401.3 | NL25: 373.9 | NM25: 346.9 | NN25: 320 | NO25: 518.6 | NP25: 507.1 | NQ25: 478.1 | NR25: 448.6 | NS25: 419.6 | NT25: 390.6 | NU25: 482.3 | NV25: 471.7 | NW25: 444.7 | NX25: 417.2 | NY25: 390.3 | NZ25: 363.3 | OA25: 508.3 | OB25: 496.8 | OC25: 467.8 | OD25: 438.3 | OE25: 409.3 | OF25: 380.3 | OG25: 472.8 | OH25: 462.1 | OI25: 435.1 | OJ25: 407.7 | OK25: 380.7 | OL25: 353.7 | OM25: 389.9 | ON25: 378.4 | OO25: 349.4 | OP25: 319.9 | OQ25: 290.9 | OR25: 261.9 | OS25: 362.7 | OT25: 352 | OU25: 325 | OV25: 297.6 | OW25: 270.6 | OX25: 243.6 | OY25: 505.4 | OZ25: 493.9 | PA25: 464.9 | PB25: 435.4 | PC25: 406.4 | PD25: 377.4 | PE25: 470.1 | PF25: 459.4 | PG25: 432.4 | PH25: 405 | PI25: 378 | PJ25: 351 | PK25: 470.1 | PL25: 458.6 | PM25: 429.6 | PN25: 400.1 | PO25: 371.1 | PP25: 342.1 | PQ25: 437.2 | PR25: 426.5 | PS25: 399.6 | PT25: 372.1 | PU25: 345.2 | PV25: 318.2 | PW25: 453 | PX25: 441.5 | PY25: 412.5 | PZ25: 383 | QA25: 354 | QB25: 325 | QC25: 421.3 | QD25: 410.6 | QE25: 383.7 | QF25: 356.2 | QG25: 329.3 | QH25: 302.3 | QI25: 453 | QJ25: 441.5 | QK25: 412.5 | QL25: 383 | QM25: 354 | QN25: 325 | QO25: 421.3 | QP25: 410.6 | QQ25: 383.7 | QR25: 356.2 | QS25: 329.3 | QT25: 302.3 | RG25: 433.4 | RH25: 421.9 | RI25: 392.9 | RJ25: 363.4 | RK25: 334.4 | RL25: 305.4 | RM25: 403.1 | RN25: 392.4 | RO25: 365.4 | RP25: 338 | RQ25: 311 | RR25: 284.1 | RS25: 534 | RT25: 522.5 | RU25: 493.5 | RV25: 464 | RW25: 435 | RX25: 406 | RY25: 496.7 | RZ25: 486 | SA25: 459 | SB25: 431.6 | SC25: 404.6 | SD25: 377.6 | SE25: 523.4 | SF25: 511.9 | SG25: 482.9 | SH25: 453.4 | SI25: 424.4 | SJ25: 395.4 | SK25: 486.8 | SL25: 476.1 | SM25: 449.1 | SN25: 421.7 | SO25: 394.7 | SP25: 367.8 | SQ25: 515.3 | SR25: 503.8 | SS25: 474.8 | ST25: 445.3 | SU25: 416.3 | SV25: 387.3 | SW25: 479.3 | SX25: 468.6 | SY25: 441.6 | SZ25: 414.2 | TA25: 387.2 | TB25: 360.2
A26: 134 | B26: Einsiedler Krankenkasse | C26: TAR-BASE | D26: Grundversicherung | F26: 26 | FG26: 439 | FH26: 427.4 | FI26: 398.2 | FJ26: 369 | FK26: 339.9 | FL26: 310.7 | FM26: 412.5 | FN26: 401.6 | FO26: 374.2 | FP26: 346.8 | FQ26: 319.4 | FR26: 292.1 | HO26: 479 | HP26: 467.4 | HQ26: 438.2 | HR26: 409 | HS26: 379.9 | HT26: 350.7 | HU26: 450.1 | HV26: 439.2 | HW26: 411.8 | HX26: 384.4 | HY26: 357 | HZ26: 329.6 | IA26: 443 | IB26: 431.4 | IC26: 402.2 | ID26: 373 | IE26: 343.9 | IF26: 314.7 | IG26: 416.3 | IH26: 405.4 | II26: 378 | IJ26: 350.6 | IK26: 323.2 | IL26: 295.8 | IM26: 443 | IN26: 431.4 | IO26: 402.2 | IP26: 373 | IQ26: 343.9 | IR26: 314.7 | IS26: 416.3 | IT26: 405.4 | IU26: 378 | IV26: 350.6 | IW26: 323.2 | IX26: 295.8 | JK26: 410 | JL26: 398.4 | JM26: 369.2 | JN26: 340 | JO26: 310.9 | JP26: 281.7 | JQ26: 385.3 | JR26: 374.4 | JS26: 347 | JT26: 319.6 | JU26: 292.2 | JV26: 264.7 | JW26: 417 | JX26: 405.4 | JY26: 376.2 | JZ26: 347 | KA26: 317.9 | KB26: 288.7 | KC26: 391.9 | KD26: 380.9 | KE26: 353.6 | KF26: 326.2 | KG26: 298.8 | KH26: 271.4 | KI26: 477 | KJ26: 465.4 | KK26: 436.2 | KL26: 407 | KM26: 377.9 | KN26: 348.7 | KO26: 448.2 | KP26: 437.3 | KQ26: 409.9 | KR26: 382.5 | KS26: 355.1 | KT26: 327.7 | KU26: 439 | KV26: 427.4 | KW26: 398.2 | KX26: 369 | KY26: 339.9 | KZ26: 310.7 | LA26: 412.6 | LB26: 401.6 | LC26: 374.2 | LD26: 346.8 | LE26: 319.4 | LF26: 292.1 | LG26: 420 | LH26: 408.4 | LI26: 379.2 | LJ26: 350 | LK26: 320.9 | LL26: 291.7 | LM26: 394.7 | LN26: 383.8 | LO26: 356.4 | LP26: 329 | LQ26: 301.6 | LR26: 274.2 | MQ26: 367 | MR26: 355.4 | MS26: 326.2 | MT26: 297 | MU26: 267.9 | MV26: 238.7 | MW26: 345 | MX26: 334 | MY26: 306.6 | MZ26: 279.2 | NA26: 251.8 | NB26: 224.4 | OM26: 420 | ON26: 408.4 | OO26: 379.2 | OP26: 350 | OQ26: 320.9 | OR26: 291.7 | OS26: 394.7 | OT26: 383.8 | OU26: 356.4 | OV26: 329 | OW26: 301.6 | OX26: 274.2 | RG26: 441 | RH26: 429.4 | RI26: 400.2 | RJ26: 371 | RK26: 341.9 | RL26: 312.7 | RM26: 414.4 | RN26: 403.5 | RO26: 376.1 | RP26: 348.7 | RQ26: 321.3 | RR26: 293.9 | RS26: 590 | RT26: 578.4 | RU26: 549.2 | RV26: 520 | RW26: 490.9 | RX26: 461.7 | RY26: 554.4 | RZ26: 543.5 | SA26: 516.1 | SB26: 488.7 | SC26: 461.3 | SD26: 433.8 | SE26: 518 | SF26: 506.4 | SG26: 477.2 | SH26: 448 | SI26: 418.9 | SJ26: 389.7 | SK26: 486.7 | SL26: 475.8 | SM26: 448.4 | SN26: 421 | SO26: 393.6 | SP26: 366.2 | SQ26: 482 | SR26: 470.4 | SS26: 441.2 | ST26: 412 | SU26: 382.9 | SV26: 353.7 | SW26: 452.9 | SX26: 442 | SY26: 414.6 | SZ26: 387.2 | TA26: 359.8 | TB26: 332.4
A27: 182 | B27: PROVITA Gesundheitsversicherung AG | C27: TAR-BASE | D27: Grundversicherung | F27: 27 | G27: 595.9 | H27: 584.3 | I27: 555.1 | J27: 525.9 | K27: 496.8 | L27: 467.6 | M27: 554.2 | N27: 543.4 | O27: 516.3 | P27: 489.1 | Q27: 462.1 | R27: 434.9 | S27: 535.9 | T27: 524.3 | U27: 495.1 | V27: 465.9 | W27: 436.8 | X27: 407.6 | Y27: 498.4 | Z27: 487.6 | AA27: 460.5 | AB27: 433.3 | AC27: 406.3 | AD27: 379.1 | AE27: 524.9 | AF27: 513.3 | AG27: 484.1 | AH27: 454.9 | AI27: 425.8 | AJ27: 396.6 | AK27: 488.2 | AL27: 477.4 | AM27: 450.3 | AN27: 423.1 | AO27: 396 | AP27: 368.9 | AQ27: 466.9 | AR27: 455.3 | AS27: 426.1 | AT27: 396.9 | AU27: 367.8 | AV27: 338.6 | AW27: 434.3 | AX27: 423.5 | AY27: 396.3 | AZ27: 369.2 | BA27: 342.1 | BB27: 314.9 | BC27: 444.9 | BD27: 433.3 | BE27: 404.1 | BF27: 374.9 | BG27: 345.8 | BH27: 316.6 | BI27: 413.8 | BJ27: 403 | BK27: 375.9 | BL27: 348.7 | BM27: 321.6 | BN27: 294.5 | BO27: 436.5 | BP27: 424.9 | BQ27: 395.7 | BR27: 366.5 | BS27: 337.4 | BT27: 308.2 | BU27: 406 | BV27: 395.2 | BW27: 368.1 | BX27: 340.9 | BY27: 313.8 | BZ27: 286.7 | CA27: 587.9 | CB27: 576.3 | CC27: 547.1 | CD27: 517.9 | CE27: 488.8 | CF27: 459.6 | CG27: 546.8 | CH27: 536 | CI27: 508.9 | CJ27: 481.7 | CK27: 454.6 | CL27: 427.5 | CM27: 510.9 | CN27: 499.3 | CO27: 470.1 | CP27: 440.9 | CQ27: 411.8 | CR27: 382.6 | CS27: 475.2 | CT27: 464.4 | CU27: 437.2 | CV27: 410.1 | CW27: 383 | CX27: 355.9 | CY27: 476.9 | CZ27: 465.3 | DA27: 436.1 | DB27: 406.9 | DC27: 377.8 | DD27: 348.6 | DE27: 443.6 | DF27: 432.8 | DG27: 405.6 | DH27: 378.5 | DI27: 351.4 | DJ27: 324.2 | DK27: 629.9 | DL27: 618.3 | DM27: 589.1 | DN27: 559.9 | DO27: 530.8 | DP27: 501.6 | DQ27: 585.9 | DR27: 575.1 | DS27: 547.9 | DT27: 520.8 | DU27: 493.7 | DV27: 466.5 | DW27: 580.9 | DX27: 569.3 | DY27: 540.1 | DZ27: 510.9 | EA27: 481.8 | EB27: 452.6 | EC27: 540.3 | ED27: 529.5 | EE27: 502.3 | EF27: 475.2 | EG27: 448.1 | EH27: 421 | EI27: 755.9 | EJ27: 744.3 | EK27: 715.1 | EL27: 685.9 | EM27: 656.8 | EN27: 627.6 | EO27: 703 | EP27: 692.2 | EQ27: 665.1 | ER27: 637.9 | ES27: 610.9 | ET27: 583.7 | EU27: 625.9 | EV27: 614.3 | EW27: 585.1 | EX27: 555.9 | EY27: 526.8 | EZ27: 497.6 | FA27: 582.1 | FB27: 571.3 | FC27: 544.2 | FD27: 517 | FE27: 490 | FF27: 462.8 | FG27: 405.9 | FH27: 394.3 | FI27: 365.1 | FJ27: 335.9 | FK27: 306.8 | FL27: 277.6 | FM27: 377.5 | FN27: 366.7 | FO27: 339.6 | FP27: 312.4 | FQ27: 285.4 | FR27: 258.2 | FS27: 479.9 | FT27: 468.3 | FU27: 439.1 | FV27: 409.9 | FW27: 380.8 | FX27: 351.6 | FY27: 446.4 | FZ27: 435.6 | GA27: 408.4 | GB27: 381.3 | GC27: 354.2 | GD27: 327 | GE27: 437.9 | GF27: 426.3 | GG27: 397.1 | GH27: 367.9 | GI27: 338.8 | GJ27: 309.6 | GK27: 407.3 | GL27: 396.5 | GM27: 369.4 | GN27: 342.2 | GO27: 315.1 | GP27: 288 | GQ27: 417.9 | GR27: 406.3 | GS27: 377.1 | GT27: 347.9 | GU27: 318.8 | GV27: 289.6 | GW27: 388.7 | GX27: 377.9 | GY27: 350.8 | GZ27: 323.6 | HA27: 296.5 | HB27: 269.4 | HC27: 528.9 | HD27: 517.3 | HE27: 488.1 | HF27: 458.9 | HG27: 429.8 | HH27: 400.6 | HI27: 491.9 | HJ27: 481.1 | HK27: 454 | HL27: 426.8 | HM27: 399.8 | HN27: 372.6 | HO27: 466.9 | HP27: 455.3 | HQ27: 426.1 | HR27: 396.9 | HS27: 367.8 | HT27: 338.6 | HU27: 434.3 | HV27: 423.5 | HW27: 396.3 | HX27: 369.2 | HY27: 342.1 | HZ27: 314.9 | IA27: 439.9 | IB27: 428.3 | IC27: 399.1 | ID27: 369.9 | IE27: 340.8 | IF27: 311.6 | IG27: 409.2 | IH27: 398.4 | II27: 371.2 | IJ27: 344.1 | IK27: 317 | IL27: 289.8 | IM27: 424.9 | IN27: 413.3 | IO27: 384.1 | IP27: 354.9 | IQ27: 325.8 | IR27: 296.6 | IS27: 395.2 | IT27: 384.4 | IU27: 357.3 | IV27: 330.1 | IW27: 303 | IX27: 275.9 | IY27: 703.9 | IZ27: 692.3 | JA27: 663.1 | JB27: 633.9 | JC27: 604.8 | JD27: 575.6 | JE27: 654.7 | JF27: 643.9 | JG27: 616.7 | JH27: 589.6 | JI27: 562.5 | JJ27: 535.4 | JK27: 445.9 | JL27: 434.3 | JM27: 405.1 | JN27: 375.9 | JO27: 346.8 | JP27: 317.6 | JQ27: 414.7 | JR27: 403.9 | JS27: 376.8 | JT27: 349.6 | JU27: 322.6 | JV27: 295.4 | JW27: 453.9 | JX27: 442.3 | JY27: 413.1 | JZ27: 383.9 | KA27: 354.8 | KB27: 325.6 | KC27: 422.2 | KD27: 411.4 | KE27: 384.2 | KF27: 357.1 | KG27: 330 | KH27: 302.9 | KI27: 482.9 | KJ27: 471.3 | KK27: 442.1 | KL27: 412.9 | KM27: 383.8 | KN27: 354.6 | KO27: 449.1 | KP27: 438.4 | KQ27: 411.2 | KR27: 384 | KS27: 357 | KT27: 329.8 | KU27: 435.5 | KV27: 423.9 | KW27: 394.7 | KX27: 365.5 | KY27: 336.4 | KZ27: 307.2 | LA27: 405.1 | LB27: 394.3 | LC27: 367.1 | LD27: 340 | LE27: 312.9 | LF27: 285.7 | LG27: 421.9 | LH27: 410.3 | LI27: 381.1 | LJ27: 351.9 | LK27: 322.8 | LL27: 293.6 | LM27: 392.4 | LN27: 381.6 | LO27: 354.5 | LP27: 327.3 | LQ27: 300.3 | LR27: 273.1 | LS27: 505.9 | LT27: 494.3 | LU27: 465.1 | LV27: 435.9 | LW27: 406.8 | LX27: 377.6 | LY27: 470.5 | LZ27: 459.7 | MA27: 432.6 | MB27: 405.4 | MC27: 378.4 | MD27: 351.2 | ME27: 471.5 | MF27: 459.9 | MG27: 430.7 | MH27: 401.5 | MI27: 372.4 | MJ27: 343.2 | MK27: 438.5 | ML27: 427.8 | MM27: 400.6 | MN27: 373.4 | MO27: 346.4 | MP27: 319.2 | MQ27: 449.9 | MR27: 438.3 | MS27: 409.1 | MT27: 379.9 | MU27: 350.8 | MV27: 321.6 | MW27: 418.5 | MX27: 407.7 | MY27: 380.5 | MZ27: 353.4 | NA27: 326.3 | NB27: 299.1 | NC27: 457.9 | ND27: 446.3 | NE27: 417.1 | NF27: 387.9 | NG27: 358.8 | NH27: 329.6 | NI27: 425.9 | NJ27: 415.1 | NK27: 388 | NL27: 360.8 | NM27: 333.7 | NN27: 306.6 | NO27: 540.9 | NP27: 529.3 | NQ27: 500.1 | NR27: 470.9 | NS27: 441.8 | NT27: 412.6 | NU27: 503.1 | NV27: 492.3 | NW27: 465.1 | NX27: 438 | NY27: 410.9 | NZ27: 383.8 | OA27: 520.9 | OB27: 509.3 | OC27: 480.1 | OD27: 450.9 | OE27: 421.8 | OF27: 392.6 | OG27: 484.5 | OH27: 473.7 | OI27: 446.5 | OJ27: 419.4 | OK27: 392.3 | OL27: 365.2 | OM27: 466.9 | ON27: 455.3 | OO27: 426.1 | OP27: 396.9 | OQ27: 367.8 | OR27: 338.6 | OS27: 434.3 | OT27: 423.5 | OU27: 396.3 | OV27: 369.2 | OW27: 342.1 | OX27: 314.9 | OY27: 569.9 | OZ27: 558.3 | PA27: 529.1 | PB27: 499.9 | PC27: 470.8 | PD27: 441.6 | PE27: 530.1 | PF27: 519.3 | PG27: 492.1 | PH27: 465 | PI27: 437.9 | PJ27: 410.7 | PK27: 543.9 | PL27: 532.3 | PM27: 503.1 | PN27: 473.9 | PO27: 444.8 | PP27: 415.6 | PQ27: 505.9 | PR27: 495.1 | PS27: 467.9 | PT27: 440.8 | PU27: 413.7 | PV27: 386.6 | PW27: 462.9 | PX27: 451.3 | PY27: 422.1 | PZ27: 392.9 | QA27: 363.8 | QB27: 334.6 | QC27: 430.5 | QD27: 419.8 | QE27: 392.6 | QF27: 365.4 | QG27: 338.4 | QH27: 311.2 | QI27: 424.9 | QJ27: 413.3 | QK27: 384.1 | QL27: 354.9 | QM27: 325.8 | QN27: 296.6 | QO27: 395.2 | QP27: 384.4 | QQ27: 357.3 | QR27: 330.1 | QS27: 303 | QT27: 275.9 | RG27: 428.9 | RH27: 417.3 | RI27: 388.1 | RJ27: 358.9 | RK27: 329.8 | RL27: 300.6 | RM27: 398.9 | RN27: 388.1 | RO27: 361 | RP27: 333.8 | RQ27: 306.8 | RR27: 279.6 | RS27: 541.9 | RT27: 530.3 | RU27: 501.1 | RV27: 471.9 | RW27: 442.8 | RX27: 413.6 | RY27: 504 | RZ27: 493.2 | SA27: 466.1 | SB27: 438.9 | SC27: 411.9 | SD27: 384.7 | SE27: 467.5 | SF27: 455.9 | SG27: 426.7 | SH27: 397.5 | SI27: 368.4 | SJ27: 339.2 | SK27: 434.8 | SL27: 424 | SM27: 396.9 | SN27: 369.7 | SO27: 342.7 | SP27: 315.5 | SQ27: 432.9 | SR27: 421.3 | SS27: 392.1 | ST27: 362.9 | SU27: 333.8 | SV27: 304.6 | SW27: 402.6 | SX27: 391.9 | SY27: 364.7 | SZ27: 337.5 | TA27: 310.5 | TB27: 283.3
C28: TAR-HAM | D28: MEDICASA Netz PROVITA | F28: 28 | AE28: 456.7 | AF28: 445.1 | AG28: 418.5 | AH28: 390.6 | AI28: 364.2 | AJ28: 336.3 | AK28: 424.8 | AL28: 414 | AM28: 389.3 | AN28: 363.3 | AO28: 338.8 | AP28: 312.8 | AQ28: 410.9 | AR28: 399.3 | AS28: 372.5 | AT28: 344.4 | AU28: 317.7 | AV28: 289.6 | AW28: 382.2 | AX28: 371.4 | AY28: 346.5 | AZ28: 320.3 | BA28: 295.5 | BB28: 269.4 | BC28: 382.7 | BD28: 371.1 | BE28: 344.1 | BF28: 316 | BG28: 289.1 | BH28: 261 | BI28: 356 | BJ28: 345.2 | BK28: 320.1 | BL28: 293.9 | BM28: 268.9 | BN28: 242.8 | BO28: 375.4 | BP28: 363.8 | BQ28: 336.8 | BR28: 308.7 | BS28: 281.8 | BT28: 253.7 | BU28: 349.2 | BV28: 338.4 | BW28: 313.3 | BX28: 287.1 | BY28: 262.1 | BZ28: 236 | CA28: 511.5 | CB28: 499.9 | CC28: 473.7 | CD28: 445.9 | CE28: 419.8 | CF28: 392 | CG28: 475.7 | CH28: 465 | CI28: 440.6 | CJ28: 414.7 | CK28: 390.5 | CL28: 364.6 | CM28: 444.5 | CN28: 432.9 | CO28: 406.3 | CP28: 378.4 | CQ28: 351.8 | CR28: 323.9 | CS28: 413.4 | CT28: 402.6 | CU28: 377.9 | CV28: 352 | CW28: 327.2 | CX28: 301.3 | CY28: 415 | CZ28: 403.4 | DA28: 376.5 | DB28: 348.5 | DC28: 321.8 | DD28: 293.8 | DE28: 386 | DF28: 375.2 | DG28: 350.2 | DH28: 324.2 | DI28: 299.3 | DJ28: 273.3 | DK28: 548.1 | DL28: 536.5 | DM28: 510.4 | DN28: 482.8 | DO28: 456.8 | DP28: 429.2 | DQ28: 509.8 | DR28: 499 | DS28: 474.7 | DT28: 449.1 | DU28: 424.9 | DV28: 399.2 | DW28: 505.4 | DX28: 493.8 | DY28: 467.5 | DZ28: 439.8 | EA28: 413.6 | EB28: 385.8 | EC28: 470.1 | ED28: 459.3 | EE28: 434.8 | EF28: 409.1 | EG28: 384.7 | EH28: 358.8 | EI28: 657.7 | EJ28: 646.1 | EK28: 620.7 | EL28: 593.4 | EM28: 568 | EN28: 540.7 | EO28: 611.7 | EP28: 600.9 | EQ28: 577.3 | ER28: 551.9 | ES28: 528.3 | ET28: 502.9 | FG28: 353.2 | FH28: 341.6 | FI28: 314.4 | FJ28: 286.2 | FK28: 259.2 | FL28: 231 | FM28: 328.5 | FN28: 317.7 | FO28: 292.4 | FP28: 266.2 | FQ28: 241.1 | FR28: 214.9 | FS28: 417.6 | FT28: 406 | FU28: 379.2 | FV28: 351.2 | FW28: 324.5 | FX28: 296.5 | FY28: 388.4 | FZ28: 377.6 | GA28: 352.7 | GB28: 326.7 | GC28: 301.8 | GD28: 275.8 | GE28: 381 | GF28: 369.4 | GG28: 342.4 | GH28: 314.3 | GI28: 287.4 | GJ28: 259.3 | GK28: 354.4 | GL28: 343.6 | GM28: 318.5 | GN28: 292.3 | GO28: 267.3 | GP28: 241.2 | GQ28: 363.6 | GR28: 352 | GS28: 324.9 | GT28: 296.8 | GU28: 269.7 | GV28: 241.6 | GW28: 338.2 | GX28: 327.4 | GY28: 302.2 | GZ28: 276.1 | HA28: 250.9 | HB28: 224.7 | HC28: 460.2 | HD28: 448.6 | HE28: 422 | HF28: 394.2 | HG28: 367.7 | HH28: 339.8 | HI28: 428 | HJ28: 417.2 | HK28: 392.5 | HL28: 366.7 | HM28: 342 | HN28: 316.1 | HO28: 401.6 | HP28: 390 | HQ28: 363.1 | HR28: 335.1 | HS28: 308.3 | HT28: 280.3 | HU28: 373.5 | HV28: 362.7 | HW28: 337.7 | HX28: 311.7 | HY28: 286.8 | HZ28: 260.7 | IA28: 378.4 | IB28: 366.8 | IC28: 339.8 | ID28: 311.7 | IE28: 284.8 | IF28: 256.7 | IG28: 352 | IH28: 341.2 | II28: 316.1 | IJ28: 289.9 | IK28: 264.9 | IL28: 238.8 | IM28: 365.5 | IN28: 353.9 | IO28: 326.8 | IP28: 298.7 | IQ28: 271.7 | IR28: 243.5 | IS28: 340 | IT28: 329.2 | IU28: 304 | IV28: 277.8 | IW28: 252.7 | IX28: 226.5 | JK28: 388 | JL28: 376.4 | JM28: 349.4 | JN28: 321.3 | JO28: 294.5 | JP28: 266.4 | JQ28: 360.9 | JR28: 350.1 | JS28: 325 | JT28: 298.9 | JU28: 273.9 | JV28: 247.8 | JW28: 394.9 | JX28: 383.3 | JY28: 356.4 | JZ28: 328.3 | KA28: 301.5 | KB28: 273.5 | KC28: 367.3 | KD28: 356.5 | KE28: 331.5 | KF28: 305.4 | KG28: 280.4 | KH28: 254.4 | KI28: 420.2 | KJ28: 408.6 | KK28: 381.8 | KL28: 353.8 | KM28: 327.1 | KN28: 299.1 | KO28: 390.8 | KP28: 380 | KQ28: 355.1 | KR28: 329.1 | KS28: 304.3 | KT28: 278.2 | KU28: 378.9 | KV28: 367.3 | KW28: 340.3 | KX28: 312.2 | KY28: 285.3 | KZ28: 257.2 | LA28: 352.4 | LB28: 341.6 | LC28: 316.5 | LD28: 290.4 | LE28: 265.4 | LF28: 239.2 | LG28: 367.1 | LH28: 355.5 | LI28: 328.4 | LJ28: 300.3 | LK28: 273.3 | LL28: 245.1 | LM28: 341.5 | LN28: 330.7 | LO28: 305.5 | LP28: 279.3 | LQ28: 254.2 | LR28: 228 | LS28: 440.2 | LT28: 428.6 | LU28: 401.9 | LV28: 374 | LW28: 347.4 | LX28: 319.5 | LY28: 409.4 | LZ28: 398.6 | MA28: 373.8 | MB28: 347.9 | MC28: 323.1 | MD28: 297.2 | ME28: 410.3 | MF28: 398.7 | MG28: 371.8 | MH28: 343.8 | MI28: 317 | MJ28: 289 | MK28: 381.6 | ML28: 370.8 | MM28: 345.8 | MN28: 319.8 | MO28: 294.9 | MP28: 268.8 | MQ28: 391.5 | MR28: 379.9 | MS28: 352.9 | MT28: 324.8 | MU28: 298 | MV28: 269.9 | MW28: 364.1 | MX28: 353.4 | MY28: 328.2 | MZ28: 302.1 | NA28: 277.2 | NB28: 251.1 | NC28: 398.4 | ND28: 386.8 | NE28: 359.9 | NF28: 331.9 | NG28: 305 | NH28: 277 | NI28: 370.6 | NJ28: 359.8 | NK28: 334.8 | NL28: 308.7 | NM28: 283.7 | NN28: 257.7 | OM28: 410.9 | ON28: 399.3 | OO28: 372.5 | OP28: 344.4 | OQ28: 317.7 | OR28: 289.6 | OS28: 382.2 | OT28: 371.4 | OU28: 346.5 | OV28: 320.3 | OW28: 295.5 | OX28: 269.4 | RG28: 381.8 | RH28: 370.2 | RI28: 343.1 | RJ28: 315 | RK28: 288 | RL28: 259.9 | RM28: 355.1 | RN28: 344.3 | RO28: 319.1 | RP28: 293 | RQ28: 267.9 | RR28: 241.8 | RS28: 471.5 | RT28: 459.9 | RU28: 433.4 | RV28: 405.6 | RW28: 379.2 | RX28: 351.3 | RY28: 438.5 | RZ28: 427.8 | SA28: 403.1 | SB28: 377.3 | SC28: 352.7 | SD28: 326.8 | SE28: 406.8 | SF28: 395.2 | SG28: 368.3 | SH28: 340.3 | SI28: 313.5 | SJ28: 285.5 | SK28: 378.4 | SL28: 367.6 | SM28: 342.6 | SN28: 316.5 | SO28: 291.6 | SP28: 265.6 | SQ28: 376.7 | SR28: 365.1 | SS28: 338 | ST28: 309.9 | SU28: 283 | SV28: 254.9 | SW28: 350.4 | SX28: 339.6 | SY28: 314.4 | SZ28: 288.3 | TA28: 263.2 | TB28: 237.1
D29: MEDICASA PROVITA | F29: 29 | G29: 536.4 | H29: 524.8 | I29: 498.5 | J29: 470.8 | K29: 444.7 | L29: 417 | M29: 498.9 | N29: 488.1 | O29: 463.7 | P29: 437.9 | Q29: 413.6 | R29: 387.9 | S29: 482.4 | T29: 470.8 | U29: 444.2 | V29: 416.4 | W29: 390 | X29: 362.1 | Y29: 448.7 | Z29: 437.9 | AA29: 413.2 | AB29: 387.3 | AC29: 362.7 | AD29: 336.8 | AE29: 472.5 | AF29: 460.9 | AG29: 434.3 | AH29: 406.4 | AI29: 379.9 | AJ29: 352 | AK29: 439.5 | AL29: 428.7 | AM29: 403.9 | AN29: 378 | AO29: 353.4 | AP29: 327.4 | AQ29: 420.3 | AR29: 408.7 | AS29: 381.8 | AT29: 353.8 | AU29: 327 | AV29: 299 | AW29: 390.9 | AX29: 380.1 | AY29: 355.1 | AZ29: 329.1 | BA29: 304.2 | BB29: 278.1 | BC29: 400.5 | BD29: 388.9 | BE29: 361.9 | BF29: 333.8 | BG29: 306.9 | BH29: 278.8 | BI29: 372.5 | BJ29: 361.7 | BK29: 336.6 | BL29: 310.5 | BM29: 285.5 | BN29: 259.3 | BO29: 392.9 | BP29: 381.3 | BQ29: 354.3 | BR29: 326.2 | BS29: 299.3 | BT29: 271.1 | BU29: 365.4 | BV29: 354.7 | BW29: 329.5 | BX29: 303.4 | BY29: 278.4 | BZ29: 252.2 | CA29: 517.4 | CB29: 505.8 | CC29: 479.5 | CD29: 451.8 | CE29: 425.7 | CF29: 397.9 | CG29: 481.2 | CH29: 470.4 | CI29: 446 | CJ29: 420.2 | CK29: 396 | CL29: 370.1 | CM29: 454.8 | CN29: 443.2 | CO29: 416.5 | CP29: 388.6 | CQ29: 362 | CR29: 334.1 | CS29: 423 | CT29: 412.2 | CU29: 387.4 | CV29: 361.4 | CW29: 336.7 | CX29: 310.8 | CY29: 434 | CZ29: 422.4 | DA29: 395.6 | DB29: 367.6 | DC29: 340.9 | DD29: 312.9 | DE29: 403.7 | DF29: 392.9 | DG29: 368 | DH29: 341.9 | DI29: 317.1 | DJ29: 291 | DK29: 560.7 | DL29: 549.1 | DM29: 523 | DN29: 495.4 | DO29: 469.4 | DP29: 441.8 | DQ29: 521.5 | DR29: 510.7 | DS29: 486.4 | DT29: 460.8 | DU29: 436.6 | DV29: 410.9 | DW29: 517.1 | DX29: 505.5 | DY29: 479.2 | DZ29: 451.4 | EA29: 425.2 | EB29: 397.5 | EC29: 481 | ED29: 470.2 | EE29: 445.7 | EF29: 419.9 | EG29: 395.5 | EH29: 369.7 | EI29: 657.7 | EJ29: 646.1 | EK29: 620.7 | EL29: 593.4 | EM29: 568 | EN29: 540.7 | EO29: 611.7 | EP29: 600.9 | EQ29: 577.3 | ER29: 551.9 | ES29: 528.3 | ET29: 502.9 | FG29: 367.4 | FH29: 355.8 | FI29: 328.6 | FJ29: 300.4 | FK29: 273.4 | FL29: 245.2 | FM29: 341.7 | FN29: 330.9 | FO29: 305.6 | FP29: 279.4 | FQ29: 254.3 | FR29: 228.1 | FS29: 429.6 | FT29: 418 | FU29: 391.2 | FV29: 363.2 | FW29: 336.5 | FX29: 308.5 | FY29: 399.6 | FZ29: 388.8 | GA29: 363.9 | GB29: 337.8 | GC29: 313 | GD29: 287 | GE29: 396.3 | GF29: 384.7 | GG29: 357.7 | GH29: 329.6 | GI29: 302.7 | GJ29: 274.6 | GK29: 368.6 | GL29: 357.8 | GM29: 332.7 | GN29: 306.6 | GO29: 281.6 | GP29: 255.4 | GQ29: 386.6 | GR29: 375 | GS29: 347.9 | GT29: 319.7 | GU29: 292.7 | GV29: 264.6 | GW29: 359.6 | GX29: 348.8 | GY29: 323.6 | GZ29: 297.4 | HA29: 272.3 | HB29: 246.1 | HO29: 420.3 | HP29: 408.7 | HQ29: 381.8 | HR29: 353.8 | HS29: 327 | HT29: 299 | HU29: 390.9 | HV29: 380.1 | HW29: 355.1 | HX29: 329.1 | HY29: 304.2 | HZ29: 278.1 | IA29: 396 | IB29: 384.4 | IC29: 357.4 | ID29: 329.3 | IE29: 302.4 | IF29: 274.3 | IG29: 368.3 | IH29: 357.5 | II29: 332.4 | IJ29: 306.3 | IK29: 281.3 | IL29: 255.1 | IM29: 382.5 | IN29: 370.9 | IO29: 343.8 | IP29: 315.6 | IQ29: 288.7 | IR29: 260.5 | IS29: 355.8 | IT29: 345 | IU29: 319.8 | IV29: 293.6 | IW29: 268.5 | IX29: 242.3 | JK29: 388 | JL29: 376.4 | JM29: 349.4 | JN29: 321.3 | JO29: 294.5 | JP29: 266.4 | JQ29: 360.9 | JR29: 350.1 | JS29: 325 | JT29: 298.9 | JU29: 273.9 | JV29: 247.8 | JW29: 399.5 | JX29: 387.9 | JY29: 361 | JZ29: 332.9 | KA29: 306.1 | KB29: 278 | KC29: 371.6 | KD29: 360.8 | KE29: 335.8 | KF29: 309.6 | KG29: 284.7 | KH29: 258.6 | KI29: 439.5 | KJ29: 427.9 | KK29: 401.1 | KL29: 373.1 | KM29: 346.4 | KN29: 318.4 | KO29: 408.8 | KP29: 398 | KQ29: 373.1 | KR29: 347 | KS29: 322.2 | KT29: 296.2 | KU29: 396.4 | KV29: 384.8 | KW29: 357.7 | KX29: 329.6 | KY29: 302.7 | KZ29: 274.6 | LA29: 368.7 | LB29: 357.9 | LC29: 332.7 | LD29: 306.6 | LE29: 281.6 | LF29: 255.4 | LG29: 384 | LH29: 372.4 | LI29: 345.3 | LJ29: 317.1 | LK29: 290.2 | LL29: 262 | LM29: 357.2 | LN29: 346.4 | LO29: 321.2 | LP29: 295 | LQ29: 269.9 | LR29: 243.7 | LS29: 455.4 | LT29: 443.8 | LU29: 417.1 | LV29: 389.2 | LW29: 362.6 | LX29: 334.6 | LY29: 423.6 | LZ29: 412.8 | MA29: 388 | MB29: 362 | MC29: 337.3 | MD29: 311.2 | ME29: 424.4 | MF29: 412.8 | MG29: 386 | MH29: 357.9 | MI29: 331.2 | MJ29: 303.2 | MK29: 394.7 | ML29: 384 | MM29: 359 | MN29: 332.9 | MO29: 308.1 | MP29: 282 | MQ29: 405 | MR29: 393.4 | MS29: 366.4 | MT29: 338.3 | MU29: 311.5 | MV29: 283.4 | MW29: 376.7 | MX29: 365.9 | MY29: 340.8 | MZ29: 314.7 | NA29: 289.7 | NB29: 263.6 | NC29: 421.3 | ND29: 409.7 | NE29: 382.8 | NF29: 354.8 | NG29: 327.9 | NH29: 299.9 | NI29: 391.9 | NJ29: 381.1 | NK29: 356.1 | NL29: 330 | NM29: 305 | NN29: 279 | OM29: 420.3 | ON29: 408.7 | OO29: 381.8 | OP29: 353.8 | OQ29: 327 | OR29: 299 | OS29: 390.9 | OT29: 380.1 | OU29: 355.1 | OV29: 329.1 | OW29: 304.2 | OX29: 278.1 | RG29: 386.1 | RH29: 374.5 | RI29: 347.4 | RJ29: 319.3 | RK29: 292.3 | RL29: 264.2 | RM29: 359.1 | RN29: 348.3 | RO29: 323.1 | RP29: 297 | RQ29: 271.9 | RR29: 245.8 | RS29: 493.2 | RT29: 481.6 | RU29: 455.1 | RV29: 427.2 | RW29: 400.9 | RX29: 373 | RY29: 458.7 | RZ29: 447.9 | SA29: 423.3 | SB29: 397.3 | SC29: 372.9 | SD29: 346.9 | SE29: 425.5 | SF29: 413.9 | SG29: 387 | SH29: 359 | SI29: 332.2 | SJ29: 304.2 | SK29: 395.8 | SL29: 385 | SM29: 360 | SN29: 333.9 | SO29: 309 | SP29: 283 | SQ29: 394 | SR29: 382.4 | SS29: 355.4 | ST29: 327.2 | SU29: 300.3 | SV29: 272.2 | SW29: 366.5 | SX29: 355.7 | SY29: 330.6 | SZ29: 304.3 | TA29: 279.3 | TB29: 253.2
D30: MEDPHARM PROVITA | F30: 30 | G30: 506.6 | H30: 495 | I30: 468.7 | J30: 441 | K30: 414.9 | L30: 387.2 | M30: 471.2 | N30: 460.4 | O30: 435.9 | P30: 410.2 | Q30: 385.9 | R30: 360.1 | S30: 455.6 | T30: 444 | U30: 417.4 | V30: 389.6 | W30: 363.2 | X30: 335.3 | Y30: 423.8 | Z30: 413 | AA30: 388.2 | AB30: 362.4 | AC30: 337.8 | AD30: 311.9 | AE30: 441 | AF30: 429.4 | AG30: 402.8 | AH30: 374.9 | AI30: 348.4 | AJ30: 320.5 | AK30: 410.2 | AL30: 399.4 | AM30: 374.7 | AN30: 348.7 | AO30: 324.1 | AP30: 298.1 | AQ30: 387.6 | AR30: 376 | AS30: 349.1 | AT30: 321.1 | AU30: 294.3 | AV30: 266.3 | AW30: 360.5 | AX30: 349.7 | AY30: 324.7 | AZ30: 298.7 | BA30: 273.7 | BB30: 247.7 | BC30: 364.9 | BD30: 353.3 | BE30: 326.3 | BF30: 298.2 | BG30: 271.3 | BH30: 243.2 | BI30: 339.4 | BJ30: 328.6 | BK30: 303.5 | BL30: 277.4 | BM30: 252.4 | BN30: 226.2 | BO30: 358 | BP30: 346.4 | BQ30: 319.4 | BR30: 291.3 | BS30: 264.3 | BT30: 236.2 | BU30: 333 | BV30: 322.2 | BW30: 297.1 | BX30: 271 | BY30: 245.8 | BZ30: 219.7 | CA30: 493.9 | CB30: 482.3 | CC30: 456 | CD30: 428.3 | CE30: 402.1 | CF30: 374.4 | CG30: 459.4 | CH30: 448.6 | CI30: 424.1 | CJ30: 398.4 | CK30: 374 | CL30: 348.2 | CM30: 429.2 | CN30: 417.6 | CO30: 391 | CP30: 363 | CQ30: 336.5 | CR30: 308.6 | CS30: 399.2 | CT30: 388.4 | CU30: 363.7 | CV30: 337.6 | CW30: 313 | CX30: 287 | CY30: 400.6 | CZ30: 389 | DA30: 362.2 | DB30: 334.2 | DC30: 307.5 | DD30: 279.5 | DE30: 372.6 | DF30: 361.8 | DG30: 336.9 | DH30: 310.9 | DI30: 286 | DJ30: 260 | DK30: 522.9 | DL30: 511.3 | DM30: 485.2 | DN30: 457.6 | DO30: 431.6 | DP30: 404 | DQ30: 486.3 | DR30: 475.6 | DS30: 451.3 | DT30: 425.6 | DU30: 401.4 | DV30: 375.8 | DW30: 482.2 | DX30: 470.6 | DY30: 444.3 | DZ30: 416.6 | EA30: 390.4 | EB30: 362.6 | EC30: 448.5 | ED30: 437.7 | EE30: 413.2 | EF30: 387.5 | EG30: 363.1 | EH30: 337.3 | EI30: 619.9 | EJ30: 608.3 | EK30: 582.9 | EL30: 555.6 | EM30: 530.2 | EN30: 502.9 | EO30: 576.6 | EP30: 565.8 | EQ30: 542.1 | ER30: 516.8 | ES30: 493.1 | ET30: 467.7 | EU30: 525.8 | EV30: 514.2 | EW30: 488.1 | EX30: 460.5 | EY30: 434.5 | EZ30: 406.9 | FA30: 489 | FB30: 478.3 | FC30: 454 | FD30: 428.3 | FE30: 404.1 | FF30: 378.5 | FG30: 332.9 | FH30: 321.3 | FI30: 294.1 | FJ30: 265.9 | FK30: 238.9 | FL30: 218.2 | FM30: 309.6 | FN30: 298.9 | FO30: 273.6 | FP30: 247.3 | FQ30: 222.2 | FR30: 203 | FS30: 393.6 | FT30: 382 | FU30: 355.2 | FV30: 327.2 | FW30: 300.5 | FX30: 272.5 | FY30: 366.1 | FZ30: 355.3 | GA30: 330.4 | GB30: 304.3 | GC30: 279.5 | GD30: 253.5 | GE30: 359.1 | GF30: 347.5 | GG30: 320.5 | GH30: 292.4 | GI30: 265.5 | GJ30: 237.4 | GK30: 334 | GL30: 323.2 | GM30: 298.1 | GN30: 272 | GO30: 247 | GP30: 220.8 | GQ30: 342.7 | GR30: 331.1 | GS30: 304 | GT30: 275.9 | GU30: 248.9 | GV30: 224.7 | GW30: 318.8 | GX30: 308 | GY30: 282.8 | GZ30: 256.6 | HA30: 231.5 | HB30: 209 | HC30: 433.7 | HD30: 422.1 | HE30: 395.6 | HF30: 367.7 | HG30: 341.3 | HH30: 313.4 | HI30: 403.4 | HJ30: 392.6 | HK30: 368 | HL30: 342 | HM30: 317.5 | HN30: 291.5 | HO30: 382.9 | HP30: 371.3 | HQ30: 344.4 | HR30: 316.4 | HS30: 289.6 | HT30: 261.6 | HU30: 356.1 | HV30: 345.4 | HW30: 320.3 | HX30: 294.3 | HY30: 269.4 | HZ30: 243.3 | IA30: 360.8 | IB30: 349.2 | IC30: 322.2 | ID30: 294.1 | IE30: 267.2 | IF30: 239.1 | IG30: 335.6 | IH30: 324.8 | II30: 299.7 | IJ30: 273.6 | IK30: 248.5 | IL30: 222.4 | IM30: 348.5 | IN30: 336.9 | IO30: 309.8 | IP30: 281.7 | IQ30: 254.7 | IR30: 228.4 | IS30: 324.2 | IT30: 313.4 | IU30: 288.2 | IV30: 262 | IW30: 236.9 | IX30: 212.5 | IY30: 584.3 | IZ30: 572.7 | JA30: 547 | JB30: 519.6 | JC30: 494 | JD30: 466.5 | JE30: 543.4 | JF30: 532.7 | JG30: 508.8 | JH30: 483.3 | JI30: 459.5 | JJ30: 433.9 | JK30: 374.6 | JL30: 363 | JM30: 336 | JN30: 308 | JO30: 281.1 | JP30: 253 | JQ30: 348.4 | JR30: 337.6 | JS30: 312.5 | JT30: 286.5 | JU30: 261.5 | JV30: 235.3 | JW30: 381.3 | JX30: 369.7 | JY30: 342.8 | JZ30: 314.7 | KA30: 287.9 | KB30: 259.8 | KC30: 354.7 | KD30: 343.9 | KE30: 318.9 | KF30: 292.7 | KG30: 267.8 | KH30: 241.7 | KI30: 400.9 | KJ30: 389.3 | KK30: 362.5 | KL30: 334.5 | KM30: 307.8 | KN30: 279.8 | KO30: 372.9 | KP30: 362.1 | KQ30: 337.2 | KR30: 311.1 | KS30: 286.3 | KT30: 260.3 | KU30: 361.5 | KV30: 349.9 | KW30: 322.9 | KX30: 294.8 | KY30: 267.9 | KZ30: 239.7 | LA30: 336.2 | LB30: 325.5 | LC30: 300.3 | LD30: 274.2 | LE30: 249.2 | LF30: 223 | LG30: 350.2 | LH30: 338.6 | LI30: 311.5 | LJ30: 283.4 | LK30: 256.4 | LL30: 228.3 | LM30: 325.7 | LN30: 314.9 | LO30: 289.7 | LP30: 263.6 | LQ30: 238.5 | LR30: 212.4 | LS30: 435.1 | LT30: 423.5 | LU30: 396.9 | LV30: 368.9 | LW30: 342.3 | LX30: 314.4 | LY30: 404.7 | LZ30: 393.9 | MA30: 369.2 | MB30: 343.1 | MC30: 318.4 | MD30: 292.4 | ME30: 405.5 | MF30: 393.9 | MG30: 367.1 | MH30: 339.1 | MI30: 312.3 | MJ30: 284.3 | MK30: 377.2 | ML30: 366.4 | MM30: 341.5 | MN30: 315.4 | MO30: 290.5 | MP30: 264.4 | MQ30: 364.5 | MR30: 352.9 | MS30: 325.9 | MT30: 297.8 | MU30: 271 | MV30: 242.9 | MW30: 339 | MX30: 328.2 | MY30: 303.1 | MZ30: 277 | NA30: 252.1 | NB30: 225.9 | NC30: 384.7 | ND30: 373.1 | NE30: 346.2 | NF30: 318.1 | NG30: 291.3 | NH30: 263.3 | NI30: 357.8 | NJ30: 347 | NK30: 322 | NL30: 295.9 | NM30: 271 | NN30: 244.9 | NO30: 454.4 | NP30: 442.8 | NQ30: 416.3 | NR30: 388.5 | NS30: 362.1 | NT30: 334.2 | NU30: 422.6 | NV30: 411.9 | NW30: 387.2 | NX30: 361.4 | NY30: 336.8 | NZ30: 310.9 | OA30: 437.6 | OB30: 426 | OC30: 399.4 | OD30: 371.5 | OE30: 345 | OF30: 317.1 | OG30: 407 | OH30: 396.2 | OI30: 371.5 | OJ30: 345.5 | OK30: 320.9 | OL30: 295 | OM30: 387.6 | ON30: 376 | OO30: 349.1 | OP30: 321.1 | OQ30: 294.3 | OR30: 266.3 | OS30: 360.5 | OT30: 349.7 | OU30: 324.7 | OV30: 298.7 | OW30: 273.7 | OX30: 247.7 | OY30: 478.8 | OZ30: 467.2 | PA30: 440.8 | PB30: 413 | PC30: 386.8 | PD30: 359 | PE30: 445.3 | PF30: 434.5 | PG30: 410 | PH30: 384.1 | PI30: 359.8 | PJ30: 333.9 | PK30: 456.9 | PL30: 445.3 | PM30: 418.8 | PN30: 391 | PO30: 364.6 | PP30: 336.8 | PQ30: 425 | PR30: 414.2 | PS30: 389.5 | PT30: 363.7 | PU30: 339.1 | PV30: 313.3 | PW30: 379.6 | PX30: 368 | PY30: 341.1 | PZ30: 313.1 | QA30: 286.3 | QB30: 258.3 | QC30: 353.1 | QD30: 342.3 | QE30: 317.3 | QF30: 291.2 | QG30: 266.3 | QH30: 240.3 | QI30: 348.5 | QJ30: 336.9 | QK30: 309.8 | QL30: 281.7 | QM30: 254.7 | QN30: 228.4 | QO30: 324.2 | QP30: 313.4 | QQ30: 288.2 | QR30: 262 | QS30: 236.9 | QT30: 212.5 | RG30: 364.6 | RH30: 353 | RI30: 326 | RJ30: 297.8 | RK30: 270.9 | RL30: 242.7 | RM30: 339.1 | RN30: 328.3 | RO30: 303.2 | RP30: 277 | RQ30: 252 | RR30: 225.8 | RS30: 449.8 | RT30: 438.2 | RU30: 411.7 | RV30: 383.9 | RW30: 357.5 | RX30: 329.7 | RY30: 418.4 | RZ30: 407.6 | SA30: 382.9 | SB30: 357.1 | SC30: 332.5 | SD30: 306.7 | SE30: 388.1 | SF30: 376.5 | SG30: 349.6 | SH30: 321.6 | SI30: 294.8 | SJ30: 266.8 | SK30: 361 | SL30: 350.2 | SM30: 325.2 | SN30: 299.1 | SO30: 274.2 | SP30: 248.2 | SQ30: 359.4 | SR30: 347.8 | SS30: 320.7 | ST30: 292.6 | SU30: 265.7 | SV30: 237.6 | SW30: 334.3 | SX30: 323.5 | SY30: 298.3 | SZ30: 272.2 | TA30: 247.2 | TB30: 221
C31: TAR-HMO | D31: HMO PROVITA | F31: 31 | AE31: 435.7 | AF31: 424.1 | AG31: 397.5 | AH31: 369.7 | AI31: 343.2 | AJ31: 323.2 | AK31: 405.3 | AL31: 394.5 | AM31: 369.7 | AN31: 343.9 | AO31: 319.2 | AP31: 300.6 | AQ31: 382.9 | AR31: 371.3 | AS31: 344.4 | AT31: 316.4 | AU31: 289.6 | AV31: 268.6 | AW31: 356.1 | AX31: 345.4 | AY31: 320.3 | AZ31: 294.3 | BA31: 269.4 | BB31: 249.8 | BO31: 366.7 | BP31: 355.1 | BQ31: 328.1 | BR31: 300 | BS31: 273.1 | BT31: 251.5 | BU31: 341.1 | BV31: 330.3 | BW31: 305.2 | BX31: 279 | BY31: 254 | BZ31: 233.9 | CA31: 493.9 | CB31: 482.3 | CC31: 456 | CD31: 428.3 | CE31: 402.1 | CF31: 383.2 | CG31: 459.4 | CH31: 448.6 | CI31: 424.1 | CJ31: 398.4 | CK31: 374 | CL31: 356.4 | CM31: 429.2 | CN31: 417.6 | CO31: 391 | CP31: 363 | CQ31: 336.5 | CR31: 316.2 | CS31: 399.2 | CT31: 388.4 | CU31: 363.7 | CV31: 337.6 | CW31: 313 | CX31: 294.1 | CY31: 405.4 | CZ31: 393.8 | DA31: 367 | DB31: 339 | DC31: 312.3 | DD31: 291.4 | DE31: 377.1 | DF31: 366.3 | DG31: 341.4 | DH31: 315.3 | DI31: 290.5 | DJ31: 271.1 | EI31: 619.9 | EJ31: 608.3 | EK31: 582.9 | EL31: 555.6 | EM31: 530.2 | EN31: 514.3 | EO31: 576.6 | EP31: 565.8 | EQ31: 542.1 | ER31: 516.8 | ES31: 493.1 | ET31: 478.3 | HO31: 396.9 | HP31: 385.3 | HQ31: 358.4 | HR31: 330.4 | HS31: 303.7 | HT31: 282.6 | HU31: 369.2 | HV31: 358.4 | HW31: 333.4 | HX31: 307.3 | HY31: 282.5 | HZ31: 262.9 | IA31: 374 | IB31: 362.4 | IC31: 335.4 | ID31: 307.3 | IE31: 280.4 | IF31: 258.9 | IG31: 347.9 | IH31: 337.1 | II31: 312 | IJ31: 285.8 | IK31: 260.8 | IL31: 240.8 | IM31: 361.2 | IN31: 349.6 | IO31: 322.5 | IP31: 294.4 | IQ31: 267.4 | IR31: 245.7 | IS31: 336 | IT31: 325.2 | IU31: 300 | IV31: 273.8 | IW31: 248.7 | IX31: 228.6 | KI31: 405.7 | KJ31: 394.1 | KK31: 367.3 | KL31: 339.3 | KM31: 312.6 | KN31: 291.9 | KO31: 377.4 | KP31: 366.6 | KQ31: 341.6 | KR31: 315.6 | KS31: 290.8 | KT31: 271.5 | KU31: 365.9 | KV31: 354.3 | KW31: 327.2 | KX31: 299.1 | KY31: 272.2 | KZ31: 250.6 | LA31: 340.3 | LB31: 329.5 | LC31: 304.3 | LD31: 278.2 | LE31: 253.2 | LF31: 233.1 | LG31: 358.7 | LH31: 347.1 | LI31: 320 | LJ31: 291.8 | LK31: 264.8 | LL31: 243 | LM31: 333.6 | LN31: 322.9 | LO31: 297.6 | LP31: 271.4 | LQ31: 246.3 | LR31: 226 | MQ31: 400.5 | MR31: 388.9 | MS31: 361.9 | MT31: 333.8 | MU31: 307 | MV31: 285.7 | MW31: 372.5 | MX31: 361.7 | MY31: 336.6 | MZ31: 310.5 | NA31: 285.6 | NB31: 265.8 | NC31: 375.5 | ND31: 363.9 | NE31: 337 | NF31: 309 | NG31: 282.2 | NH31: 261 | NI31: 349.3 | NJ31: 338.5 | NK31: 313.5 | NL31: 287.4 | NM31: 262.5 | NN31: 242.8 | NO31: 465.2 | NP31: 453.6 | NQ31: 427.1 | NR31: 399.3 | NS31: 372.9 | NT31: 353.2 | NU31: 432.7 | NV31: 421.9 | NW31: 397.3 | NX31: 371.4 | NY31: 346.8 | NZ31: 328.5 | OA31: 453.2 | OB31: 441.6 | OC31: 415 | OD31: 387.1 | OE31: 360.6 | OF31: 340.6 | OG31: 421.5 | OH31: 410.7 | OI31: 386 | OJ31: 360.1 | OK31: 335.4 | OL31: 316.8 | OM31: 387.6 | ON31: 376 | OO31: 349.1 | OP31: 321.1 | OQ31: 294.3 | OR31: 273.3 | OS31: 360.5 | OT31: 349.7 | OU31: 324.7 | OV31: 298.7 | OW31: 273.7 | OX31: 254.2 | RS31: 460.7 | RT31: 449.1 | RU31: 422.6 | RV31: 394.7 | RW31: 368.3 | RX31: 348.6 | RY31: 428.5 | RZ31: 417.7 | SA31: 393.1 | SB31: 367.1 | SC31: 342.6 | SD31: 324.2 | SE31: 397.4 | SF31: 385.8 | SG31: 359 | SH31: 330.9 | SI31: 304.2 | SJ31: 283.1 | SK31: 369.6 | SL31: 358.8 | SM31: 333.9 | SN31: 307.8 | SO31: 283 | SP31: 263.3 | SQ31: 368 | SR31: 356.4 | SS31: 329.4 | ST31: 301.3 | SU31: 274.3 | SV31: 252.7 | SW31: 342.3 | SX31: 331.5 | SY31: 306.4 | SZ31: 280.3 | TA31: 255.1 | TB31: 235.1
A32: 194 | B32: Sumiswalder Krankenkasse | C32: TAR-BASE | D32: Grundversicherung | F32: 32 | G32: 514 | H32: 502.7 | I32: 473.4 | J32: 444.1 | K32: 415.3 | L32: 386 | M32: 483.2 | N32: 472.5 | O32: 445 | P32: 417.5 | Q32: 390.4 | R32: 362.8 | S32: 456 | T32: 444.6 | U32: 415.4 | V32: 386.2 | W32: 357 | X32: 327.9 | Y32: 428.6 | Z32: 417.9 | AA32: 390.5 | AB32: 363 | AC32: 335.6 | AD32: 308.2 | AE32: 501 | AF32: 489.5 | AG32: 460.4 | AH32: 431.4 | AI32: 402.3 | AJ32: 372.7 | AK32: 470.9 | AL32: 460.1 | AM32: 432.8 | AN32: 405.5 | AO32: 378.2 | AP32: 350.3 | AQ32: 461 | AR32: 449.9 | AS32: 421.8 | AT32: 393.2 | AU32: 365.1 | AV32: 336.5 | AW32: 433.3 | AX32: 422.9 | AY32: 396.5 | AZ32: 369.6 | BA32: 343.2 | BB32: 316.3 | BC32: 408 | BD32: 396.6 | BE32: 367.2 | BF32: 338.2 | BG32: 309.3 | BH32: 279.9 | BI32: 383.5 | BJ32: 372.8 | BK32: 345.2 | BL32: 317.9 | BM32: 290.7 | BN32: 263.1 | BO32: 434 | BP32: 422.7 | BQ32: 393.2 | BR32: 364.1 | BS32: 335 | BT32: 306 | BU32: 408 | BV32: 397.3 | BW32: 369.6 | BX32: 342.3 | BY32: 314.9 | BZ32: 287.6 | CA32: 554 | CB32: 542.9 | CC32: 514.1 | CD32: 485.3 | CE32: 456.5 | CF32: 428.2 | CG32: 520.8 | CH32: 510.3 | CI32: 483.3 | CJ32: 456.2 | CK32: 429.1 | CL32: 402.5 | CM32: 487 | CN32: 475.8 | CO32: 447.1 | CP32: 418.8 | CQ32: 390.1 | CR32: 361.4 | CS32: 457.8 | CT32: 447.3 | CU32: 420.3 | CV32: 393.7 | CW32: 366.7 | CX32: 339.7 | CY32: 449 | CZ32: 437.8 | DA32: 409.5 | DB32: 380.8 | DC32: 352 | DD32: 323.7 | DE32: 422.1 | DF32: 411.5 | DG32: 384.9 | DH32: 358 | DI32: 330.9 | DJ32: 304.3 | DK32: 544 | DL32: 532.6 | DM32: 503.2 | DN32: 474.4 | DO32: 445 | DP32: 416.2 | DQ32: 511.4 | DR32: 500.6 | DS32: 473 | DT32: 445.9 | DU32: 418.3 | DV32: 391.2 | DW32: 514 | DX32: 502.7 | DY32: 473.4 | DZ32: 444.1 | EA32: 415.3 | EB32: 386 | EC32: 483.2 | ED32: 472.5 | EE32: 445 | EF32: 417.5 | EG32: 390.4 | EH32: 362.8 | EI32: 674 | EJ32: 662.5 | EK32: 633.6 | EL32: 604.6 | EM32: 574.9 | EN32: 545.9 | EO32: 633.6 | EP32: 622.8 | EQ32: 595.6 | ER32: 568.3 | ES32: 540.4 | ET32: 513.1 | FG32: 439 | FH32: 427.6 | FI32: 398.6 | FJ32: 369.2 | FK32: 340.2 | FL32: 310.8 | FM32: 412.7 | FN32: 401.9 | FO32: 374.7 | FP32: 347 | FQ32: 319.8 | FR32: 292.2 | FS32: 443 | FT32: 431.5 | FU32: 402.2 | FV32: 373.4 | FW32: 344.2 | FX32: 315 | FY32: 416.4 | FZ32: 405.6 | GA32: 378.1 | GB32: 351 | GC32: 323.5 | GD32: 296.1 | GE32: 414 | GF32: 402.4 | GG32: 373.4 | GH32: 344 | GI32: 315.1 | GJ32: 286.1 | GK32: 389.2 | GL32: 378.3 | GM32: 351 | GN32: 323.4 | GO32: 296.2 | GP32: 268.9 | GQ32: 392 | GR32: 380.6 | GS32: 351.2 | GT32: 322.2 | GU32: 293.2 | GV32: 263.8 | GW32: 368.5 | GX32: 357.8 | GY32: 330.1 | GZ32: 302.9 | HA32: 275.6 | HB32: 248 | HO32: 449 | HP32: 437.8 | HQ32: 408.6 | HR32: 379.4 | HS32: 350.2 | HT32: 321 | HU32: 422.1 | HV32: 411.5 | HW32: 384.1 | HX32: 356.6 | HY32: 329.2 | HZ32: 301.7 | IA32: 410 | IB32: 398.5 | IC32: 369.4 | ID32: 340.3 | IE32: 311.2 | IF32: 282.1 | IG32: 385.4 | IH32: 374.6 | II32: 347.2 | IJ32: 319.9 | IK32: 292.5 | IL32: 265.2 | IM32: 398 | IN32: 386.5 | IO32: 357.4 | IP32: 328.4 | IQ32: 298.9 | IR32: 269.8 | IS32: 374.1 | IT32: 363.3 | IU32: 336 | IV32: 308.7 | IW32: 281 | IX32: 253.6 | JK32: 389 | JL32: 377.7 | JM32: 348.5 | JN32: 319.4 | JO32: 290.2 | JP32: 261 | JQ32: 365.7 | JR32: 355 | JS32: 327.6 | JT32: 300.2 | JU32: 272.8 | JV32: 245.3 | JW32: 409 | JX32: 397.5 | JY32: 368.5 | JZ32: 339.1 | KA32: 310 | KB32: 281 | KC32: 384.5 | KD32: 373.7 | KE32: 346.4 | KF32: 318.8 | KG32: 291.4 | KH32: 264.1 | KI32: 479 | KJ32: 467.5 | KK32: 438.3 | KL32: 409.1 | KM32: 380.3 | KN32: 351.1 | KO32: 450.3 | KP32: 439.5 | KQ32: 412 | KR32: 384.6 | KS32: 357.5 | KT32: 330 | KU32: 442 | KV32: 430.5 | KW32: 401.3 | KX32: 372.2 | KY32: 343 | KZ32: 313.8 | LA32: 415.5 | LB32: 404.7 | LC32: 377.2 | LD32: 349.9 | LE32: 322.4 | LF32: 295 | LG32: 421 | LH32: 409.6 | LI32: 380.6 | LJ32: 351.1 | LK32: 322.1 | LL32: 293 | LM32: 395.7 | LN32: 385 | LO32: 357.8 | LP32: 330 | LQ32: 302.8 | LR32: 275.4 | LS32: 482 | LT32: 470.4 | LU32: 441.5 | LV32: 412.1 | LW32: 383.2 | LX32: 353.8 | LY32: 453.1 | LZ32: 442.2 | MA32: 415 | MB32: 387.4 | MC32: 360.2 | MD32: 332.6 | ME32: 444 | MF32: 432.5 | MG32: 403.6 | MH32: 374.3 | MI32: 345 | MJ32: 316.1 | MK32: 417.4 | ML32: 406.6 | MM32: 379.4 | MN32: 351.8 | MO32: 324.3 | MP32: 297.1 | MQ32: 425 | MR32: 413.5 | MS32: 384.2 | MT32: 355.3 | MU32: 326 | MV32: 297.1 | MW32: 399.5 | MX32: 388.7 | MY32: 361.1 | MZ32: 334 | NA32: 306.4 | NB32: 279.3 | NC32: 467 | ND32: 455.8 | NE32: 426.4 | NF32: 397.4 | NG32: 368 | NH32: 339 | NI32: 439 | NJ32: 428.5 | NK32: 400.8 | NL32: 373.6 | NM32: 345.9 | NN32: 318.7 | OM32: 402 | ON32: 390.5 | OO32: 361.4 | OP32: 332.1 | OQ32: 303.1 | OR32: 273.8 | OS32: 377.9 | OT32: 367.1 | OU32: 339.7 | OV32: 312.2 | OW32: 284.9 | OX32: 257.4 | PW32: 461 | PX32: 449.5 | PY32: 420.4 | PZ32: 391.4 | QA32: 361.9 | QB32: 332.8 | QC32: 433.3 | QD32: 422.5 | QE32: 395.2 | QF32: 367.9 | QG32: 340.2 | QH32: 312.8 | QI32: 401 | QJ32: 389.4 | QK32: 360.5 | QL32: 331.2 | QM32: 302 | QN32: 273.1 | QO32: 376.9 | QP32: 366 | QQ32: 338.9 | QR32: 311.3 | QS32: 283.9 | QT32: 256.7 | RG32: 402 | RH32: 390.5 | RI32: 361.4 | RJ32: 332.1 | RK32: 303.1 | RL32: 273.8 | RM32: 377.9 | RN32: 367.1 | RO32: 339.7 | RP32: 312.2 | RQ32: 284.9 | RR32: 257.4 | RS32: 551 | RT32: 540 | RU32: 510.8 | RV32: 482.1 | RW32: 452.9 | RX32: 424.3 | RY32: 517.9 | RZ32: 507.6 | SA32: 480.2 | SB32: 453.2 | SC32: 425.7 | SD32: 398.8 | SE32: 497 | SF32: 485.6 | SG32: 456.7 | SH32: 428.4 | SI32: 399.6 | SJ32: 370.8 | SK32: 467.2 | SL32: 456.5 | SM32: 429.3 | SN32: 402.7 | SO32: 375.6 | SP32: 348.6 | SQ32: 447 | SR32: 435.8 | SS32: 407.2 | ST32: 378.6 | SU32: 350 | SV32: 321.4 | SW32: 420.2 | SX32: 409.7 | SY32: 382.8 | SZ32: 355.9 | TA32: 329 | TB32: 302.1
C33: TAR-HAM | D33: Hausarzt | F33: 33 | G33: 462.6 | H33: 452.4 | I33: 426.1 | J33: 399.7 | K33: 373.8 | L33: 347.4 | M33: 434.8 | N33: 425.3 | O33: 400.5 | P33: 375.7 | Q33: 351.4 | R33: 326.6 | S33: 410.4 | T33: 400.1 | U33: 373.9 | V33: 347.6 | W33: 321.3 | X33: 295.1 | Y33: 385.8 | Z33: 376.1 | AA33: 351.5 | AB33: 326.7 | AC33: 302 | AD33: 277.4 | AE33: 450.9 | AF33: 440.5 | AG33: 414.4 | AH33: 388.2 | AI33: 362.1 | AJ33: 335.5 | AK33: 423.8 | AL33: 414.1 | AM33: 389.5 | AN33: 364.9 | AO33: 340.4 | AP33: 315.4 | AQ33: 414.9 | AR33: 404.9 | AS33: 379.6 | AT33: 353.9 | AU33: 328.6 | AV33: 302.9 | AW33: 390 | AX33: 380.6 | AY33: 356.8 | AZ33: 332.7 | BA33: 308.9 | BB33: 284.7 | BC33: 367.2 | BD33: 356.9 | BE33: 330.5 | BF33: 304.4 | BG33: 278.3 | BH33: 251.9 | BI33: 345.2 | BJ33: 335.5 | BK33: 310.7 | BL33: 286.1 | BM33: 261.6 | BN33: 236.8 | BO33: 390.6 | BP33: 380.4 | BQ33: 353.9 | BR33: 327.7 | BS33: 301.5 | BT33: 275.4 | BU33: 367.2 | BV33: 357.6 | BW33: 332.7 | BX33: 308 | BY33: 283.4 | BZ33: 258.9 | CA33: 498.6 | CB33: 488.6 | CC33: 462.7 | CD33: 436.8 | CE33: 410.8 | CF33: 385.4 | CG33: 468.7 | CH33: 459.3 | CI33: 434.9 | CJ33: 410.6 | CK33: 386.2 | CL33: 362.3 | CM33: 438.3 | CN33: 428.2 | CO33: 402.4 | CP33: 376.9 | CQ33: 351.1 | CR33: 325.2 | CS33: 412 | CT33: 402.5 | CU33: 378.3 | CV33: 354.3 | CW33: 330 | CX33: 305.7 | CY33: 404.1 | CZ33: 394 | DA33: 368.5 | DB33: 342.7 | DC33: 316.8 | DD33: 291.4 | DE33: 379.9 | DF33: 370.4 | DG33: 346.4 | DH33: 322.1 | DI33: 297.8 | DJ33: 273.9 | DK33: 489.6 | DL33: 479.3 | DM33: 452.9 | DN33: 426.9 | DO33: 400.5 | DP33: 374.5 | DQ33: 460.2 | DR33: 450.5 | DS33: 425.7 | DT33: 401.3 | DU33: 376.5 | DV33: 352 | DW33: 462.6 | DX33: 452.4 | DY33: 426.1 | DZ33: 399.7 | EA33: 373.8 | EB33: 347.4 | EC33: 434.8 | ED33: 425.3 | EE33: 400.5 | EF33: 375.7 | EG33: 351.4 | EH33: 326.6 | EI33: 606.6 | EJ33: 596.3 | EK33: 570.2 | EL33: 544.1 | EM33: 517.4 | EN33: 491.3 | EO33: 570.2 | EP33: 560.5 | EQ33: 536 | ER33: 511.5 | ES33: 486.4 | ET33: 461.8 | FG33: 395.1 | FH33: 384.8 | FI33: 358.8 | FJ33: 332.3 | FK33: 306.2 | FL33: 279.7 | FM33: 371.4 | FN33: 361.7 | FO33: 337.3 | FP33: 312.4 | FQ33: 287.8 | FR33: 262.9 | FS33: 398.7 | FT33: 388.3 | FU33: 362 | FV33: 336.1 | FW33: 309.8 | FX33: 283.5 | FY33: 374.8 | FZ33: 365 | GA33: 340.3 | GB33: 315.9 | GC33: 291.2 | GD33: 266.5 | GE33: 372.6 | GF33: 362.2 | GG33: 336.1 | GH33: 309.6 | GI33: 283.5 | GJ33: 257.5 | GK33: 350.2 | GL33: 340.5 | GM33: 315.9 | GN33: 291 | GO33: 266.5 | GP33: 242.1 | GQ33: 352.8 | GR33: 342.6 | GS33: 316.1 | GT33: 290 | GU33: 263.9 | GV33: 237.4 | GW33: 331.6 | GX33: 322 | GY33: 297.1 | GZ33: 272.6 | HA33: 248.1 | HB33: 223.2 | HO33: 404.1 | HP33: 394 | HQ33: 367.7 | HR33: 341.5 | HS33: 315.2 | HT33: 288.9 | HU33: 379.9 | HV33: 370.4 | HW33: 345.6 | HX33: 321 | HY33: 296.3 | HZ33: 271.6 | IA33: 369 | IB33: 358.7 | IC33: 332.5 | ID33: 306.3 | IE33: 280.1 | IF33: 253.9 | IG33: 346.9 | IH33: 337.2 | II33: 312.6 | IJ33: 287.9 | IK33: 263.3 | IL33: 238.7 | IM33: 358.2 | IN33: 347.8 | IO33: 321.7 | IP33: 295.5 | IQ33: 269 | IR33: 242.9 | IS33: 336.7 | IT33: 326.9 | IU33: 302.4 | IV33: 277.8 | IW33: 252.9 | IX33: 228.3 | JK33: 350.1 | JL33: 339.9 | JM33: 313.7 | JN33: 287.4 | JO33: 261.2 | JP33: 234.9 | JQ33: 329.1 | JR33: 319.5 | JS33: 294.9 | JT33: 270.2 | JU33: 245.5 | JV33: 220.8 | JW33: 368.1 | JX33: 357.8 | JY33: 331.7 | JZ33: 305.2 | KA33: 279 | KB33: 252.9 | KC33: 346 | KD33: 336.3 | KE33: 311.8 | KF33: 286.9 | KG33: 262.3 | KH33: 237.7 | KI33: 431.1 | KJ33: 420.8 | KK33: 394.5 | KL33: 368.2 | KM33: 342.3 | KN33: 316 | KO33: 405.2 | KP33: 395.6 | KQ33: 370.8 | KR33: 346.1 | KS33: 321.8 | KT33: 297 | KU33: 397.8 | KV33: 387.5 | KW33: 361.2 | KX33: 334.9 | KY33: 308.7 | KZ33: 282.4 | LA33: 373.9 | LB33: 364.3 | LC33: 339.5 | LD33: 314.8 | LE33: 290.2 | LF33: 265.5 | LG33: 378.9 | LH33: 368.7 | LI33: 342.5 | LJ33: 316 | LK33: 289.9 | LL33: 263.7 | LM33: 356.2 | LN33: 346.6 | LO33: 322 | LP33: 297 | LQ33: 272.5 | LR33: 247.9 | LS33: 433.8 | LT33: 423.4 | LU33: 397.4 | LV33: 370.9 | LW33: 344.9 | LX33: 318.4 | LY33: 407.8 | LZ33: 398 | MA33: 373.6 | MB33: 348.6 | MC33: 324.2 | MD33: 299.3 | ME33: 399.6 | MF33: 389.2 | MG33: 363.2 | MH33: 336.9 | MI33: 310.5 | MJ33: 284.5 | MK33: 375.6 | ML33: 365.8 | MM33: 341.4 | MN33: 316.7 | MO33: 291.9 | MP33: 267.4 | MQ33: 382.5 | MR33: 372.2 | MS33: 345.8 | MT33: 319.8 | MU33: 293.4 | MV33: 267.4 | MW33: 359.6 | MX33: 349.9 | MY33: 325.1 | MZ33: 300.6 | NA33: 275.8 | NB33: 251.4 | NC33: 420.3 | ND33: 410.2 | NE33: 383.7 | NF33: 357.7 | NG33: 331.2 | NH33: 305.1 | NI33: 395.1 | NJ33: 385.6 | NK33: 360.7 | NL33: 336.2 | NM33: 311.3 | NN33: 286.8 | OM33: 361.8 | ON33: 351.5 | OO33: 325.3 | OP33: 298.8 | OQ33: 272.8 | OR33: 246.4 | OS33: 340.1 | OT33: 330.5 | OU33: 305.8 | OV33: 280.9 | OW33: 256.4 | OX33: 231.6 | PW33: 414.9 | PX33: 404.5 | PY33: 378.4 | PZ33: 352.3 | QA33: 325.7 | QB33: 299.6 | QC33: 390 | QD33: 380.2 | QE33: 355.7 | QF33: 331.2 | QG33: 306.2 | QH33: 281.6 | QI33: 360.9 | QJ33: 350.4 | QK33: 324.4 | QL33: 298.1 | QM33: 271.8 | QN33: 245.8 | QO33: 339.2 | QP33: 329.4 | QQ33: 304.9 | QR33: 280.2 | QS33: 255.5 | QT33: 231.1 | RG33: 361.8 | RH33: 351.5 | RI33: 325.3 | RJ33: 298.8 | RK33: 272.8 | RL33: 246.4 | RM33: 340.1 | RN33: 330.5 | RO33: 305.8 | RP33: 280.9 | RQ33: 256.4 | RR33: 231.6 | RS33: 495.9 | RT33: 486 | RU33: 459.7 | RV33: 433.9 | RW33: 407.6 | RX33: 381.8 | RY33: 466.1 | RZ33: 456.8 | SA33: 432.1 | SB33: 407.9 | SC33: 383.1 | SD33: 358.9 | SE33: 447.3 | SF33: 437 | SG33: 411.1 | SH33: 385.6 | SI33: 359.6 | SJ33: 333.7 | SK33: 420.5 | SL33: 410.8 | SM33: 386.4 | SN33: 362.5 | SO33: 338 | SP33: 313.7 | SQ33: 402.3 | SR33: 392.2 | SS33: 366.5 | ST33: 340.7 | SU33: 315 | SV33: 289.3 | SW33: 378.2 | SX33: 368.7 | SY33: 344.5 | SZ33: 320.3 | TA33: 296.1 | TB33: 271.9
C34: TAR-DIV | D34: Telmed | F34: 34 | G34: 462.6 | H34: 452.4 | I34: 426.1 | J34: 399.7 | K34: 373.8 | L34: 347.4 | M34: 434.8 | N34: 425.3 | O34: 400.5 | P34: 375.7 | Q34: 351.4 | R34: 326.6 | S34: 410.4 | T34: 400.1 | U34: 373.9 | V34: 347.6 | W34: 321.3 | X34: 295.1 | Y34: 385.8 | Z34: 376.1 | AA34: 351.5 | AB34: 326.7 | AC34: 302 | AD34: 277.4 | AE34: 450.9 | AF34: 440.5 | AG34: 414.4 | AH34: 388.2 | AI34: 362.1 | AJ34: 335.5 | AK34: 423.8 | AL34: 414.1 | AM34: 389.5 | AN34: 364.9 | AO34: 340.4 | AP34: 315.4 | AQ34: 414.9 | AR34: 404.9 | AS34: 379.6 | AT34: 353.9 | AU34: 328.6 | AV34: 302.9 | AW34: 390 | AX34: 380.6 | AY34: 356.8 | AZ34: 332.7 | BA34: 308.9 | BB34: 284.7 | BC34: 367.2 | BD34: 356.9 | BE34: 330.5 | BF34: 304.4 | BG34: 278.3 | BH34: 251.9 | BI34: 345.2 | BJ34: 335.5 | BK34: 310.7 | BL34: 286.1 | BM34: 261.6 | BN34: 236.8 | BO34: 390.6 | BP34: 380.4 | BQ34: 353.9 | BR34: 327.7 | BS34: 301.5 | BT34: 275.4 | BU34: 367.2 | BV34: 357.6 | BW34: 332.7 | BX34: 308 | BY34: 283.4 | BZ34: 258.9 | CA34: 498.6 | CB34: 488.6 | CC34: 462.7 | CD34: 436.8 | CE34: 410.8 | CF34: 385.4 | CG34: 468.7 | CH34: 459.3 | CI34: 434.9 | CJ34: 410.6 | CK34: 386.2 | CL34: 362.3 | CM34: 438.3 | CN34: 428.2 | CO34: 402.4 | CP34: 376.9 | CQ34: 351.1 | CR34: 325.2 | CS34: 412 | CT34: 402.5 | CU34: 378.3 | CV34: 354.3 | CW34: 330 | CX34: 305.7 | CY34: 404.1 | CZ34: 394 | DA34: 368.5 | DB34: 342.7 | DC34: 316.8 | DD34: 291.4 | DE34: 379.9 | DF34: 370.4 | DG34: 346.4 | DH34: 322.1 | DI34: 297.8 | DJ34: 273.9 | DK34: 489.6 | DL34: 479.3 | DM34: 452.9 | DN34: 426.9 | DO34: 400.5 | DP34: 374.5 | DQ34: 460.2 | DR34: 450.5 | DS34: 425.7 | DT34: 401.3 | DU34: 376.5 | DV34: 352 | DW34: 462.6 | DX34: 452.4 | DY34: 426.1 | DZ34: 399.7 | EA34: 373.8 | EB34: 347.4 | EC34: 434.8 | ED34: 425.3 | EE34: 400.5 | EF34: 375.7 | EG34: 351.4 | EH34: 326.6 | EI34: 606.6 | EJ34: 596.3 | EK34: 570.2 | EL34: 544.1 | EM34: 517.4 | EN34: 491.3 | EO34: 570.2 | EP34: 560.5 | EQ34: 536 | ER34: 511.5 | ES34: 486.4 | ET34: 461.8 | FG34: 395.1 | FH34: 384.8 | FI34: 358.8 | FJ34: 332.3 | FK34: 306.2 | FL34: 279.7 | FM34: 371.4 | FN34: 361.7 | FO34: 337.3 | FP34: 312.4 | FQ34: 287.8 | FR34: 262.9 | FS34: 398.7 | FT34: 388.3 | FU34: 362 | FV34: 336.1 | FW34: 309.8 | FX34: 283.5 | FY34: 374.8 | FZ34: 365 | GA34: 340.3 | GB34: 315.9 | GC34: 291.2 | GD34: 266.5 | GE34: 372.6 | GF34: 362.2 | GG34: 336.1 | GH34: 309.6 | GI34: 283.5 | GJ34: 257.5 | GK34: 350.2 | GL34: 340.5 | GM34: 315.9 | GN34: 291 | GO34: 266.5 | GP34: 242.1 | GQ34: 352.8 | GR34: 342.6 | GS34: 316.1 | GT34: 290 | GU34: 263.9 | GV34: 237.4 | GW34: 331.6 | GX34: 322 | GY34: 297.1 | GZ34: 272.6 | HA34: 248.1 | HB34: 223.2 | HO34: 404.1 | HP34: 394 | HQ34: 367.7 | HR34: 341.5 | HS34: 315.2 | HT34: 288.9 | HU34: 379.9 | HV34: 370.4 | HW34: 345.6 | HX34: 321 | HY34: 296.3 | HZ34: 271.6 | IA34: 369 | IB34: 358.7 | IC34: 332.5 | ID34: 306.3 | IE34: 280.1 | IF34: 253.9 | IG34: 346.9 | IH34: 337.2 | II34: 312.6 | IJ34: 287.9 | IK34: 263.3 | IL34: 238.7 | IM34: 358.2 | IN34: 347.8 | IO34: 321.7 | IP34: 295.5 | IQ34: 269 | IR34: 242.9 | IS34: 336.7 | IT34: 326.9 | IU34: 302.4 | IV34: 277.8 | IW34: 252.9 | IX34: 228.3 | JK34: 350.1 | JL34: 339.9 | JM34: 313.7 | JN34: 287.4 | JO34: 261.2 | JP34: 234.9 | JQ34: 329.1 | JR34: 319.5 | JS34: 294.9 | JT34: 270.2 | JU34: 245.5 | JV34: 220.8 | JW34: 368.1 | JX34: 357.8 | JY34: 331.7 | JZ34: 305.2 | KA34: 279 | KB34: 252.9 | KC34: 346 | KD34: 336.3 | KE34: 311.8 | KF34: 286.9 | KG34: 262.3 | KH34: 237.7 | KI34: 431.1 | KJ34: 420.8 | KK34: 394.5 | KL34: 368.2 | KM34: 342.3 | KN34: 316 | KO34: 405.2 | KP34: 395.6 | KQ34: 370.8 | KR34: 346.1 | KS34: 321.8 | KT34: 297 | KU34: 397.8 | KV34: 387.5 | KW34: 361.2 | KX34: 334.9 | KY34: 308.7 | KZ34: 282.4 | LA34: 373.9 | LB34: 364.3 | LC34: 339.5 | LD34: 314.8 | LE34: 290.2 | LF34: 265.5 | LG34: 378.9 | LH34: 368.7 | LI34: 342.5 | LJ34: 316 | LK34: 289.9 | LL34: 263.7 | LM34: 356.2 | LN34: 346.6 | LO34: 322 | LP34: 297 | LQ34: 272.5 | LR34: 247.9 | LS34: 433.8 | LT34: 423.4 | LU34: 397.4 | LV34: 370.9 | LW34: 344.9 | LX34: 318.4 | LY34: 407.8 | LZ34: 398 | MA34: 373.6 | MB34: 348.6 | MC34: 324.2 | MD34: 299.3 | ME34: 399.6 | MF34: 389.2 | MG34: 363.2 | MH34: 336.9 | MI34: 310.5 | MJ34: 284.5 | MK34: 375.6 | ML34: 365.8 | MM34: 341.4 | MN34: 316.7 | MO34: 291.9 | MP34: 267.4 | MQ34: 382.5 | MR34: 372.2 | MS34: 345.8 | MT34: 319.8 | MU34: 293.4 | MV34: 267.4 | MW34: 359.6 | MX34: 349.9 | MY34: 325.1 | MZ34: 300.6 | NA34: 275.8 | NB34: 251.4 | NC34: 420.3 | ND34: 410.2 | NE34: 383.7 | NF34: 357.7 | NG34: 331.2 | NH34: 305.1 | NI34: 395.1 | NJ34: 385.6 | NK34: 360.7 | NL34: 336.2 | NM34: 311.3 | NN34: 286.8 | OM34: 361.8 | ON34: 351.5 | OO34: 325.3 | OP34: 298.8 | OQ34: 272.8 | OR34: 246.4 | OS34: 340.1 | OT34: 330.5 | OU34: 305.8 | OV34: 280.9 | OW34: 256.4 | OX34: 231.6 | PW34: 414.9 | PX34: 404.5 | PY34: 378.4 | PZ34: 352.3 | QA34: 325.7 | QB34: 299.6 | QC34: 390 | QD34: 380.2 | QE34: 355.7 | QF34: 331.2 | QG34: 306.2 | QH34: 281.6 | QI34: 360.9 | QJ34: 350.4 | QK34: 324.4 | QL34: 298.1 | QM34: 271.8 | QN34: 245.8 | QO34: 339.2 | QP34: 329.4 | QQ34: 304.9 | QR34: 280.2 | QS34: 255.5 | QT34: 231.1 | RG34: 361.8 | RH34: 351.5 | RI34: 325.3 | RJ34: 298.8 | RK34: 272.8 | RL34: 246.4 | RM34: 340.1 | RN34: 330.5 | RO34: 305.8 | RP34: 280.9 | RQ34: 256.4 | RR34: 231.6 | RS34: 495.9 | RT34: 486 | RU34: 459.7 | RV34: 433.9 | RW34: 407.6 | RX34: 381.8 | RY34: 466.1 | RZ34: 456.8 | SA34: 432.1 | SB34: 407.9 | SC34: 383.1 | SD34: 358.9 | SE34: 447.3 | SF34: 437 | SG34: 411.1 | SH34: 385.6 | SI34: 359.6 | SJ34: 333.7 | SK34: 420.5 | SL34: 410.8 | SM34: 386.4 | SN34: 362.5 | SO34: 338 | SP34: 313.7 | SQ34: 402.3 | SR34: 392.2 | SS34: 366.5 | ST34: 340.7 | SU34: 315 | SV34: 289.3 | SW34: 378.2 | SX34: 368.7 | SY34: 344.5 | SZ34: 320.3 | TA34: 296.1 | TB34: 271.9
A35: 246 | B35: Krankenkasse Steffisburg | C35: TAR-BASE | D35: Grundversicherung | F35: 35 | AE35: 480.2 | AF35: 475.2 | AG35: 439.4 | AH35: 410.2 | AI35: 381.1 | AJ35: 351.9 | AK35: 449 | AL35: 444.3 | AM35: 410.8 | AN35: 383.5 | AO35: 356.3 | AP35: 329 | AQ35: 451.3 | AR35: 441.3 | AS35: 410.5 | AT35: 381.3 | AU35: 352.2 | AV35: 323 | AW35: 422 | AX35: 412.6 | AY35: 383.8 | AZ35: 356.5 | BA35: 329.3 | BB35: 302 | CA35: 538.4 | CB35: 528.4 | CC35: 497.6 | CD35: 468.4 | CE35: 439.3 | CF35: 410.1 | CG35: 503.4 | CH35: 494.1 | CI35: 465.3 | CJ35: 438 | CK35: 410.7 | CL35: 383.4 | CM35: 478.1 | CN35: 468.1 | CO35: 437.3 | CP35: 408.1 | CQ35: 379 | CR35: 349.8 | CS35: 447 | CT35: 437.7 | CU35: 408.9 | CV35: 381.6 | CW35: 354.4 | CX35: 327.1 | CY35: 449.5 | CZ35: 439.5 | DA35: 408.7 | DB35: 379.5 | DC35: 350.4 | DD35: 321.2 | DE35: 420.3 | DF35: 410.9 | DG35: 382.1 | DH35: 354.8 | DI35: 327.6 | DJ35: 300.3 | JK35: 382.2 | JL35: 372.2 | JM35: 341.4 | JN35: 312.2 | JO35: 283.1 | JP35: 253.9 | JQ35: 357.4 | JR35: 348 | JS35: 319.2 | JT35: 291.9 | JU35: 264.7 | JV35: 237.4 | JW35: 381 | JX35: 371 | JY35: 340.2 | JZ35: 311 | KA35: 281.9 | KB35: 252.7 | KC35: 356.2 | KD35: 346.9 | KE35: 318.1 | KF35: 290.8 | KG35: 263.6 | KH35: 236.3 | RS35: 503.7 | RT35: 493.7 | RU35: 462.9 | RV35: 433.7 | RW35: 404.6 | RX35: 375.4 | RY35: 471 | RZ35: 461.6 | SA35: 432.8 | SB35: 405.5 | SC35: 378.3 | SD35: 351 | SE35: 458.4 | SF35: 448.4 | SG35: 417.6 | SH35: 388.4 | SI35: 359.3 | SJ35: 330.1 | SK35: 428.6 | SL35: 419.3 | SM35: 390.5 | SN35: 363.2 | SO35: 335.9 | SP35: 308.6 | SQ35: 449.3 | SR35: 439.3 | SS35: 408.5 | ST35: 379.3 | SU35: 350.2 | SV35: 321 | SW35: 420.1 | SX35: 410.7 | SY35: 381.9 | SZ35: 354.6 | TA35: 327.4 | TB35: 300.1
C36: TAR-HAM | D36: beodocs | F36: 36 | CY36: 394.5 | CZ36: 384.5 | DA36: 353.7 | DB36: 324.5 | DC36: 295.4 | DD36: 266.2 | DE36: 368.9 | DF36: 359.5 | DG36: 330.7 | DH36: 303.4 | DI36: 276.2 | DJ36: 248.9
D37: Casa | F37: 37 | AE37: 430.2 | AF37: 425.2 | AG37: 389.4 | AH37: 360.2 | AI37: 331.1 | AJ37: 301.9 | AK37: 402.2 | AL37: 397.6 | AM37: 364.1 | AN37: 336.8 | AO37: 309.6 | AP37: 282.3 | AQ37: 392.3 | AR37: 382.3 | AS37: 351.5 | AT37: 322.3 | AU37: 293.2 | AV37: 264 | AW37: 366.8 | AX37: 357.5 | AY37: 328.7 | AZ37: 301.4 | BA37: 274.1 | BB37: 246.8 | CA37: 466.4 | CB37: 456.4 | CC37: 425.6 | CD37: 396.4 | CE37: 367.3 | CF37: 338.1 | CG37: 436.1 | CH37: 426.7 | CI37: 397.9 | CJ37: 370.6 | CK37: 343.4 | CL37: 316.1 | CM37: 453.1 | CN37: 443.1 | CO37: 412.3 | CP37: 383.1 | CQ37: 354 | CR37: 324.8 | CS37: 423.6 | CT37: 414.3 | CU37: 385.5 | CV37: 358.2 | CW37: 331 | CX37: 303.7 | CY37: 414.5 | CZ37: 404.5 | DA37: 373.7 | DB37: 344.5 | DC37: 315.4 | DD37: 286.2 | DE37: 387.6 | DF37: 378.2 | DG37: 349.4 | DH37: 322.1 | DI37: 294.9 | DJ37: 267.6 | JK37: 340.2 | JL37: 330.2 | JM37: 299.4 | JN37: 270.2 | JO37: 241.1 | JP37: 211.9 | JQ37: 318.1 | JR37: 308.7 | JS37: 279.9 | JT37: 252.6 | JU37: 225.4 | JV37: 198.1 | JW37: 342 | JX37: 332 | JY37: 301.2 | JZ37: 272 | KA37: 242.9 | KB37: 213.7 | KC37: 319.8 | KD37: 310.4 | KE37: 281.6 | KF37: 254.3 | KG37: 227.1 | KH37: 199.8 | RS37: 453.7 | RT37: 443.7 | RU37: 412.9 | RV37: 383.7 | RW37: 354.6 | RX37: 325.4 | RY37: 424.2 | RZ37: 414.9 | SA37: 386.1 | SB37: 358.8 | SC37: 331.6 | SD37: 304.2 | SE37: 413.4 | SF37: 403.4 | SG37: 372.6 | SH37: 343.4 | SI37: 314.3 | SJ37: 285.1 | SK37: 386.5 | SL37: 377.2 | SM37: 348.4 | SN37: 321.1 | SO37: 293.9 | SP37: 266.6 | SQ37: 404.3 | SR37: 394.3 | SS37: 363.5 | ST37: 334.3 | SU37: 305.2 | SV37: 276 | SW37: 378 | SX37: 368.7 | SY37: 339.9 | SZ37: 312.6 | TA37: 285.4 | TB37: 258.1
D38: igomed | F38: 38 | CM38: 423.1 | CN38: 413.1 | CO38: 382.3 | CP38: 353.1 | CQ38: 324 | CR38: 294.8 | CS38: 395.6 | CT38: 386.2 | CU38: 357.5 | CV38: 330.1 | CW38: 302.9 | CX38: 275.6 | CY38: 394.5 | CZ38: 384.5 | DA38: 353.7 | DB38: 324.5 | DC38: 295.4 | DD38: 266.2 | DE38: 368.9 | DF38: 359.5 | DG38: 330.7 | DH38: 303.4 | DI38: 276.2 | DJ38: 248.9
D39: Regiomed | F39: 39 | CM39: 416.1 | CN39: 406.1 | CO39: 375.3 | CP39: 346.1 | CQ39: 317 | CR39: 287.8 | CS39: 389.1 | CT39: 379.7 | CU39: 350.9 | CV39: 323.6 | CW39: 296.4 | CX39: 269.1
C40: TAR-DIV | D40: Sanmed24 | F40: 40 | AE40: 415.2 | AF40: 410.2 | AG40: 374.4 | AH40: 345.2 | AI40: 316.1 | AJ40: 286.9 | AK40: 388.2 | AL40: 383.5 | AM40: 350.1 | AN40: 322.8 | AO40: 295.6 | AP40: 268.3 | AQ40: 402.3 | AR40: 392.3 | AS40: 361.5 | AT40: 332.3 | AU40: 303.2 | AV40: 274 | AW40: 376.2 | AX40: 366.8 | AY40: 338 | AZ40: 310.7 | BA40: 283.5 | BB40: 256.2 | CA40: 477.4 | CB40: 467.4 | CC40: 436.6 | CD40: 407.4 | CE40: 378.3 | CF40: 349.1 | CG40: 446.4 | CH40: 437 | CI40: 408.2 | CJ40: 380.9 | CK40: 353.7 | CL40: 326.4 | CM40: 433.1 | CN40: 423.1 | CO40: 392.3 | CP40: 363.1 | CQ40: 334 | CR40: 304.8 | CS40: 404.9 | CT40: 395.6 | CU40: 366.8 | CV40: 339.5 | CW40: 312.3 | CX40: 285 | CY40: 400.5 | CZ40: 390.5 | DA40: 359.7 | DB40: 330.5 | DC40: 301.4 | DD40: 272.2 | DE40: 374.5 | DF40: 365.1 | DG40: 336.3 | DH40: 309 | DI40: 281.8 | DJ40: 254.5 | JK40: 337.2 | JL40: 327.2 | JM40: 296.4 | JN40: 267.2 | JO40: 238.1 | JP40: 208.9 | JQ40: 315.3 | JR40: 305.9 | JS40: 277.1 | JT40: 249.8 | JU40: 222.6 | JV40: 195.3 | JW40: 350 | JX40: 340 | JY40: 309.2 | JZ40: 280 | KA40: 250.9 | KB40: 221.7 | KC40: 327.3 | KD40: 317.9 | KE40: 289.1 | KF40: 261.8 | KG40: 234.6 | KH40: 207.3 | RS40: 443.7 | RT40: 433.7 | RU40: 402.9 | RV40: 373.7 | RW40: 344.6 | RX40: 315.4 | RY40: 414.9 | RZ40: 405.5 | SA40: 376.7 | SB40: 349.4 | SC40: 322.2 | SD40: 294.9 | SE40: 403.4 | SF40: 393.4 | SG40: 362.6 | SH40: 333.4 | SI40: 304.3 | SJ40: 275.1 | SK40: 377.2 | SL40: 367.8 | SM40: 339 | SN40: 311.7 | SO40: 284.5 | SP40: 257.2 | SQ40: 394.3 | SR40: 384.3 | SS40: 353.5 | ST40: 324.3 | SU40: 295.2 | SV40: 266 | SW40: 368.7 | SX40: 359.3 | SY40: 330.5 | SZ40: 303.2 | TA40: 276 | TB40: 248.7
A41: 290 | B41: CONCORDIA Schweiz. Kranken- und Unfallversicherung AG | C41: TAR-BASE | D41: Grundversicherung | F41: 41 | G41: 464.5 | H41: 454.2 | I41: 428.4 | J41: 402.5 | K41: 376.7 | L41: 350.9 | M41: 440.9 | N41: 431.1 | O41: 406.6 | P41: 382 | Q41: 357.5 | R41: 333.1 | S41: 429.7 | T41: 419.4 | U41: 393.6 | V41: 367.7 | W41: 341.9 | X41: 316.1 | Y41: 407.8 | Z41: 398.1 | AA41: 373.6 | AB41: 349 | AC41: 324.5 | AD41: 300 | AE41: 475.1 | AF41: 464.8 | AG41: 439 | AH41: 413.1 | AI41: 387.3 | AJ41: 361.5 | AK41: 450.9 | AL41: 441.1 | AM41: 416.7 | AN41: 392.1 | AO41: 367.6 | AP41: 343.1 | AQ41: 436.8 | AR41: 426.5 | AS41: 400.7 | AT41: 374.8 | AU41: 349 | AV41: 323.2 | AW41: 414.6 | AX41: 404.8 | AY41: 380.3 | AZ41: 355.7 | BA41: 331.3 | BB41: 306.8 | BC41: 335.4 | BD41: 325.1 | BE41: 299.3 | BF41: 273.4 | BG41: 247.6 | BH41: 221.8 | BI41: 318.3 | BJ41: 308.6 | BK41: 284.1 | BL41: 259.5 | BM41: 235 | BN41: 210.5 | BO41: 399.2 | BP41: 388.9 | BQ41: 363.1 | BR41: 337.2 | BS41: 311.4 | BT41: 285.6 | BU41: 378.9 | BV41: 369.1 | BW41: 344.6 | BX41: 320.1 | BY41: 295.6 | BZ41: 271.1 | CA41: 549.7 | CB41: 539.4 | CC41: 513.6 | CD41: 487.7 | CE41: 461.9 | CF41: 436.1 | CG41: 521.7 | CH41: 511.9 | CI41: 487.5 | CJ41: 462.9 | CK41: 438.4 | CL41: 413.9 | CM41: 484.5 | CN41: 474.2 | CO41: 448.4 | CP41: 422.5 | CQ41: 396.7 | CR41: 370.9 | CS41: 459.8 | CT41: 450.1 | CU41: 425.6 | CV41: 401 | CW41: 376.5 | CX41: 352 | CY41: 453.4 | CZ41: 443.1 | DA41: 417.3 | DB41: 391.4 | DC41: 365.6 | DD41: 339.8 | DE41: 430.3 | DF41: 420.6 | DG41: 396.1 | DH41: 371.5 | DI41: 347 | DJ41: 322.5 | DK41: 531.4 | DL41: 521.1 | DM41: 495.3 | DN41: 469.4 | DO41: 443.6 | DP41: 417.8 | DQ41: 504.3 | DR41: 494.6 | DS41: 470.1 | DT41: 445.5 | DU41: 421 | DV41: 396.5 | DW41: 494.7 | DX41: 484.4 | DY41: 458.6 | DZ41: 432.7 | EA41: 406.9 | EB41: 381.1 | EC41: 469.5 | ED41: 459.7 | EE41: 435.3 | EF41: 410.7 | EG41: 386.2 | EH41: 361.7 | EI41: 593.6 | EJ41: 583.3 | EK41: 557.5 | EL41: 531.6 | EM41: 505.8 | EN41: 480 | EO41: 563.4 | EP41: 553.6 | EQ41: 529.1 | ER41: 504.5 | ES41: 480.1 | ET41: 455.6 | EU41: 586.7 | EV41: 576.4 | EW41: 550.6 | EX41: 524.7 | EY41: 498.9 | EZ41: 473.1 | FA41: 556.8 | FB41: 547.1 | FC41: 522.6 | FD41: 498 | FE41: 473.5 | FF41: 449 | FG41: 416.2 | FH41: 405.9 | FI41: 380.1 | FJ41: 354.2 | FK41: 328.4 | FL41: 302.6 | FM41: 395 | FN41: 385.2 | FO41: 360.8 | FP41: 336.2 | FQ41: 311.7 | FR41: 287.2 | FS41: 414.4 | FT41: 404.1 | FU41: 378.3 | FV41: 352.4 | FW41: 326.6 | FX41: 300.8 | FY41: 393.3 | FZ41: 383.5 | GA41: 359.1 | GB41: 334.5 | GC41: 310 | GD41: 285.5 | GE41: 401.4 | GF41: 391.1 | GG41: 365.3 | GH41: 339.4 | GI41: 313.6 | GJ41: 287.8 | GK41: 381 | GL41: 371.2 | GM41: 346.7 | GN41: 322.1 | GO41: 297.7 | GP41: 273.2 | GQ41: 380.1 | GR41: 369.8 | GS41: 344 | GT41: 318.1 | GU41: 292.3 | GV41: 266.5 | GW41: 360.8 | GX41: 351 | GY41: 326.5 | GZ41: 301.9 | HA41: 277.4 | HB41: 253 | HC41: 519.8 | HD41: 509.5 | HE41: 483.7 | HF41: 457.8 | HG41: 432 | HH41: 406.2 | HI41: 493.3 | HJ41: 483.6 | HK41: 459.1 | HL41: 434.5 | HM41: 410 | HN41: 385.5 | HO41: 437.3 | HP41: 427 | HQ41: 401.2 | HR41: 375.3 | HS41: 349.5 | HT41: 323.7 | HU41: 415 | HV41: 405.3 | HW41: 380.8 | HX41: 356.2 | HY41: 331.7 | HZ41: 307.2 | IA41: 411 | IB41: 400.7 | IC41: 374.9 | ID41: 349 | IE41: 323.2 | IF41: 297.4 | IG41: 390.1 | IH41: 380.3 | II41: 355.8 | IJ41: 331.3 | IK41: 306.8 | IL41: 282.3 | IM41: 396 | IN41: 385.7 | IO41: 359.9 | IP41: 334 | IQ41: 308.2 | IR41: 282.4 | IS41: 375.9 | IT41: 366.1 | IU41: 341.6 | IV41: 317 | IW41: 292.5 | IX41: 268 | IY41: 544 | IZ41: 533.7 | JA41: 507.9 | JB41: 482 | JC41: 456.2 | JD41: 430.4 | JE41: 516.3 | JF41: 506.5 | JG41: 482 | JH41: 457.5 | JI41: 433 | JJ41: 408.5 | JK41: 366.2 | JL41: 355.9 | JM41: 330.1 | JN41: 304.2 | JO41: 278.4 | JP41: 252.6 | JQ41: 347.6 | JR41: 337.8 | JS41: 313.3 | JT41: 288.7 | JU41: 264.3 | JV41: 239.8 | JW41: 381 | JX41: 370.7 | JY41: 344.9 | JZ41: 319 | KA41: 293.2 | KB41: 267.4 | KC41: 361.6 | KD41: 351.8 | KE41: 327.4 | KF41: 302.8 | KG41: 278.3 | KH41: 253.8 | KI41: 450.4 | KJ41: 440.1 | KK41: 414.3 | KL41: 388.4 | KM41: 362.6 | KN41: 336.8 | KO41: 427.5 | KP41: 417.7 | KQ41: 393.2 | KR41: 368.6 | KS41: 344.2 | KT41: 319.7 | KU41: 422 | KV41: 411.7 | KW41: 385.9 | KX41: 360 | KY41: 334.2 | KZ41: 308.4 | LA41: 400.5 | LB41: 390.8 | LC41: 366.3 | LD41: 341.7 | LE41: 317.2 | LF41: 292.7 | LG41: 408.2 | LH41: 397.9 | LI41: 372.1 | LJ41: 346.2 | LK41: 320.4 | LL41: 294.6 | LM41: 387.4 | LN41: 377.7 | LO41: 353.2 | LP41: 328.6 | LQ41: 304.1 | LR41: 279.6 | LS41: 455.8 | LT41: 445.5 | LU41: 419.7 | LV41: 393.8 | LW41: 368 | LX41: 342.2 | LY41: 432.6 | LZ41: 422.8 | MA41: 398.3 | MB41: 373.8 | MC41: 349.3 | MD41: 324.8 | ME41: 424.1 | MF41: 413.8 | MG41: 388 | MH41: 362.1 | MI41: 336.3 | MJ41: 310.5 | MK41: 402.5 | ML41: 392.7 | MM41: 368.3 | MN41: 343.7 | MO41: 319.2 | MP41: 294.7 | MQ41: 389.1 | MR41: 378.8 | MS41: 353 | MT41: 327.1 | MU41: 301.3 | MV41: 275.5 | MW41: 369.3 | MX41: 359.5 | MY41: 335 | MZ41: 310.5 | NA41: 286 | NB41: 261.5 | NC41: 424.2 | ND41: 413.9 | NE41: 388.1 | NF41: 362.2 | NG41: 336.4 | NH41: 310.6 | NI41: 402.6 | NJ41: 392.8 | NK41: 368.4 | NL41: 343.8 | NM41: 319.3 | NN41: 294.8 | NO41: 522.2 | NP41: 511.9 | NQ41: 486.1 | NR41: 460.2 | NS41: 434.4 | NT41: 408.6 | NU41: 495.6 | NV41: 485.8 | NW41: 461.4 | NX41: 436.8 | NY41: 412.3 | NZ41: 387.8 | OA41: 486.7 | OB41: 476.4 | OC41: 450.6 | OD41: 424.7 | OE41: 398.9 | OF41: 373.1 | OG41: 461.9 | OH41: 452.2 | OI41: 427.7 | OJ41: 403.1 | OK41: 378.6 | OL41: 354.1 | OM41: 381.4 | ON41: 371.1 | OO41: 345.3 | OP41: 319.4 | OQ41: 293.6 | OR41: 267.8 | OS41: 362 | OT41: 352.2 | OU41: 327.7 | OV41: 303.2 | OW41: 278.7 | OX41: 254.2 | OY41: 545.7 | OZ41: 535.4 | PA41: 509.6 | PB41: 483.7 | PC41: 457.9 | PD41: 432.1 | PE41: 517.9 | PF41: 508.1 | PG41: 483.7 | PH41: 459.1 | PI41: 434.6 | PJ41: 410.1 | PK41: 518.1 | PL41: 507.8 | PM41: 482 | PN41: 456.1 | PO41: 430.3 | PP41: 404.5 | PQ41: 491.7 | PR41: 482 | PS41: 457.5 | PT41: 432.9 | PU41: 408.4 | PV41: 383.9 | PW41: 448.1 | PX41: 437.8 | PY41: 412 | PZ41: 386.1 | QA41: 360.3 | QB41: 334.5 | QC41: 425.3 | QD41: 415.5 | QE41: 391 | QF41: 366.5 | QG41: 342 | QH41: 317.5 | QI41: 411.5 | QJ41: 401.2 | QK41: 375.4 | QL41: 349.5 | QM41: 323.7 | QN41: 297.9 | QO41: 390.6 | QP41: 380.8 | QQ41: 356.3 | QR41: 331.7 | QS41: 307.2 | QT41: 282.8 | RG41: 378 | RH41: 367.7 | RI41: 341.9 | RJ41: 316 | RK41: 290.2 | RL41: 264.4 | RM41: 358.8 | RN41: 349 | RO41: 324.5 | RP41: 299.9 | RQ41: 275.4 | RR41: 251 | RS41: 527.3 | RT41: 517 | RU41: 491.2 | RV41: 465.3 | RW41: 439.5 | RX41: 413.7 | RY41: 500.5 | RZ41: 490.7 | SA41: 466.2 | SB41: 441.6 | SC41: 417.1 | SD41: 392.7 | SE41: 459.5 | SF41: 449.2 | SG41: 423.4 | SH41: 397.5 | SI41: 371.7 | SJ41: 345.9 | SK41: 436.1 | SL41: 426.3 | SM41: 401.9 | SN41: 377.3 | SO41: 352.8 | SP41: 328.3 | SQ41: 430.5 | SR41: 420.2 | SS41: 394.4 | ST41: 368.5 | SU41: 342.7 | SV41: 316.9 | SW41: 408.6 | SX41: 398.8 | SY41: 374.3 | SZ41: 349.8 | TA41: 325.3 | TB41: 300.8
C42: TAR-HAM | D42: MyDoc | F42: 42 | G42: 415.8 | H42: 405.5 | I42: 379.7 | J42: 353.8 | K42: 328 | L42: 302.2 | M42: 394.6 | N42: 384.9 | O42: 360.4 | P42: 335.8 | Q42: 311.3 | R42: 286.8 | S42: 384.6 | T42: 374.3 | U42: 348.5 | V42: 322.6 | W42: 296.8 | X42: 271 | Y42: 365 | Z42: 355.3 | AA42: 330.8 | AB42: 306.2 | AC42: 281.7 | AD42: 257.2 | AE42: 422.9 | AF42: 412.6 | AG42: 386.8 | AH42: 360.9 | AI42: 335.1 | AJ42: 309.3 | AK42: 401.4 | AL42: 391.6 | AM42: 367.1 | AN42: 342.5 | AO42: 318.1 | AP42: 293.6 | AQ42: 388.8 | AR42: 378.5 | AS42: 352.7 | AT42: 326.8 | AU42: 301 | AV42: 275.2 | AW42: 369 | AX42: 359.2 | AY42: 334.8 | AZ42: 310.2 | BA42: 285.7 | BB42: 261.2 | BC42: 296.9 | BD42: 286.6 | BE42: 260.8 | BF42: 234.9 | BG42: 209.1 | BH42: 183.3 | BI42: 281.8 | BJ42: 272 | BK42: 247.5 | BL42: 223 | BM42: 198.5 | BN42: 174 | BO42: 365.3 | BP42: 355 | BQ42: 329.2 | BR42: 303.3 | BS42: 277.5 | BT42: 251.7 | BU42: 346.7 | BV42: 336.9 | BW42: 312.5 | BX42: 287.9 | BY42: 263.4 | BZ42: 238.9 | CA42: 494.8 | CB42: 484.5 | CC42: 458.7 | CD42: 432.8 | CE42: 407 | CF42: 381.2 | CG42: 469.6 | CH42: 459.8 | CI42: 435.4 | CJ42: 410.8 | CK42: 386.3 | CL42: 361.8 | CM42: 436.1 | CN42: 425.8 | CO42: 400 | CP42: 374.1 | CQ42: 348.3 | CR42: 322.5 | CS42: 413.9 | CT42: 404.1 | CU42: 379.6 | CV42: 355.1 | CW42: 330.6 | CX42: 306.1 | CY42: 408.1 | CZ42: 397.8 | DA42: 372 | DB42: 346.1 | DC42: 320.3 | DD42: 294.5 | DE42: 387.3 | DF42: 377.6 | DG42: 353.1 | DH42: 328.5 | DI42: 304 | DJ42: 279.5 | DK42: 470.3 | DL42: 460 | DM42: 434.2 | DN42: 408.3 | DO42: 382.5 | DP42: 356.7 | DQ42: 446.4 | DR42: 436.6 | DS42: 412.1 | DT42: 387.5 | DU42: 363 | DV42: 338.6 | DW42: 437.9 | DX42: 427.6 | DY42: 401.8 | DZ42: 375.9 | EA42: 350.1 | EB42: 324.3 | EC42: 415.6 | ED42: 405.8 | EE42: 381.4 | EF42: 356.8 | EG42: 332.3 | EH42: 307.8 | EI42: 525.4 | EJ42: 515.1 | EK42: 489.3 | EL42: 463.4 | EM42: 437.6 | EN42: 411.8 | EO42: 498.7 | EP42: 488.9 | EQ42: 464.4 | ER42: 439.8 | ES42: 415.3 | ET42: 390.8 | EU42: 536.9 | EV42: 526.6 | EW42: 500.8 | EX42: 474.9 | EY42: 449.1 | EZ42: 423.3 | FA42: 509.6 | FB42: 499.8 | FC42: 475.3 | FD42: 450.7 | FE42: 426.2 | FF42: 401.8 | FG42: 372.5 | FH42: 362.2 | FI42: 336.4 | FJ42: 310.5 | FK42: 284.7 | FL42: 258.9 | FM42: 353.6 | FN42: 343.8 | FO42: 319.3 | FP42: 294.7 | FQ42: 270.2 | FR42: 245.7 | FS42: 368.9 | FT42: 358.6 | FU42: 332.8 | FV42: 306.9 | FW42: 281.1 | FX42: 255.3 | FY42: 350.1 | FZ42: 340.4 | GA42: 315.9 | GB42: 291.3 | GC42: 266.8 | GD42: 242.3 | GE42: 357.3 | GF42: 347 | GG42: 321.2 | GH42: 295.3 | GI42: 269.5 | GJ42: 243.7 | GK42: 339.1 | GL42: 329.4 | GM42: 304.9 | GN42: 280.3 | GO42: 255.8 | GP42: 231.3 | GQ42: 338.3 | GR42: 328 | GS42: 302.2 | GT42: 276.3 | GU42: 250.5 | GV42: 224.7 | GW42: 321.1 | GX42: 311.3 | GY42: 286.8 | GZ42: 262.3 | HA42: 237.8 | HB42: 213.3 | HC42: 467.9 | HD42: 457.6 | HE42: 431.8 | HF42: 405.9 | HG42: 380.1 | HH42: 354.3 | HI42: 444.1 | HJ42: 434.3 | HK42: 409.8 | HL42: 385.2 | HM42: 360.8 | HN42: 336.3 | HO42: 398 | HP42: 387.7 | HQ42: 361.9 | HR42: 336 | HS42: 310.2 | HT42: 284.4 | HU42: 377.8 | HV42: 368 | HW42: 343.5 | HX42: 318.9 | HY42: 294.4 | HZ42: 269.9 | IA42: 374.1 | IB42: 363.8 | IC42: 338 | ID42: 312.1 | IE42: 286.3 | IF42: 260.5 | IG42: 355.1 | IH42: 345.3 | II42: 320.8 | IJ42: 296.2 | IK42: 271.7 | IL42: 247.3 | IM42: 360.4 | IN42: 350.1 | IO42: 324.3 | IP42: 298.4 | IQ42: 272.6 | IR42: 246.8 | IS42: 342.1 | IT42: 332.3 | IU42: 307.8 | IV42: 283.2 | IW42: 258.7 | IX42: 234.3 | IY42: 489.6 | IZ42: 479.3 | JA42: 453.5 | JB42: 427.6 | JC42: 401.8 | JD42: 376 | JE42: 464.7 | JF42: 454.9 | JG42: 430.4 | JH42: 405.8 | JI42: 381.4 | JJ42: 356.9 | JK42: 333.3 | JL42: 323 | JM42: 297.2 | JN42: 271.3 | JO42: 245.5 | JP42: 219.7 | JQ42: 316.4 | JR42: 306.6 | JS42: 282.1 | JT42: 257.5 | JU42: 233 | JV42: 208.5 | JW42: 344.9 | JX42: 334.6 | JY42: 308.8 | JZ42: 282.9 | KA42: 257.1 | KB42: 231.3 | KC42: 327.4 | KD42: 317.6 | KE42: 293.1 | KF42: 268.5 | KG42: 244 | KH42: 219.6 | KI42: 403.2 | KJ42: 392.9 | KK42: 367.1 | KL42: 341.2 | KM42: 315.4 | KN42: 289.6 | KO42: 382.7 | KP42: 372.9 | KQ42: 348.4 | KR42: 323.8 | KS42: 299.4 | KT42: 274.9 | KU42: 377.7 | KV42: 367.4 | KW42: 341.6 | KX42: 315.7 | KY42: 289.9 | KZ42: 264.1 | LA42: 358.5 | LB42: 348.7 | LC42: 324.2 | LD42: 299.6 | LE42: 275.2 | LF42: 250.7 | LG42: 365.4 | LH42: 355.1 | LI42: 329.3 | LJ42: 303.4 | LK42: 277.6 | LL42: 251.8 | LM42: 346.8 | LN42: 337 | LO42: 312.6 | LP42: 288 | LQ42: 263.5 | LR42: 239 | LS42: 412.5 | LT42: 402.2 | LU42: 376.4 | LV42: 350.5 | LW42: 324.7 | LX42: 298.9 | LY42: 391.5 | LZ42: 381.7 | MA42: 357.3 | MB42: 332.7 | MC42: 308.2 | MD42: 283.7 | ME42: 383.9 | MF42: 373.6 | MG42: 347.8 | MH42: 321.9 | MI42: 296.1 | MJ42: 270.3 | MK42: 364.4 | ML42: 354.6 | MM42: 330.1 | MN42: 305.5 | MO42: 281 | MP42: 256.6 | MQ42: 354.1 | MR42: 343.8 | MS42: 318 | MT42: 292.1 | MU42: 266.3 | MV42: 240.5 | MW42: 336.1 | MX42: 326.3 | MY42: 301.8 | MZ42: 277.3 | NA42: 252.8 | NB42: 228.3 | NC42: 381.8 | ND42: 371.5 | NE42: 345.7 | NF42: 319.8 | NG42: 294 | NH42: 268.2 | NI42: 362.4 | NJ42: 352.6 | NK42: 328.1 | NL42: 303.5 | NM42: 279.1 | NN42: 254.6 | NO42: 467.4 | NP42: 457.1 | NQ42: 431.3 | NR42: 405.4 | NS42: 379.6 | NT42: 353.8 | NU42: 443.6 | NV42: 433.8 | NW42: 409.4 | NX42: 384.8 | NY42: 360.3 | NZ42: 335.8 | OA42: 435.6 | OB42: 425.3 | OC42: 399.5 | OD42: 373.6 | OE42: 347.8 | OF42: 322 | OG42: 413.4 | OH42: 403.7 | OI42: 379.2 | OJ42: 354.6 | OK42: 330.1 | OL42: 305.6 | OM42: 341.4 | ON42: 331.1 | OO42: 305.3 | OP42: 279.4 | OQ42: 253.6 | OR42: 227.8 | OS42: 324 | OT42: 314.3 | OU42: 289.8 | OV42: 265.2 | OW42: 240.7 | OX42: 216.2 | OY42: 491.2 | OZ42: 480.9 | PA42: 455.1 | PB42: 429.2 | PC42: 403.4 | PD42: 377.6 | PE42: 466.2 | PF42: 456.4 | PG42: 431.9 | PH42: 407.4 | PI42: 382.9 | PJ42: 358.4 | PK42: 466.3 | PL42: 456 | PM42: 430.2 | PN42: 404.3 | PO42: 378.5 | PP42: 352.7 | PQ42: 442.6 | PR42: 432.8 | PS42: 408.3 | PT42: 383.7 | PU42: 359.2 | PV42: 334.8 | PW42: 401.1 | PX42: 390.8 | PY42: 365 | PZ42: 339.1 | QA42: 313.3 | QB42: 287.5 | QC42: 380.7 | QD42: 370.9 | QE42: 346.4 | QF42: 321.9 | QG42: 297.4 | QH42: 272.9 | QI42: 368.3 | QJ42: 358 | QK42: 332.2 | QL42: 306.3 | QM42: 280.5 | QN42: 254.7 | QO42: 349.6 | QP42: 339.8 | QQ42: 315.3 | QR42: 290.7 | QS42: 266.2 | QT42: 241.8 | RG42: 344 | RH42: 333.7 | RI42: 307.9 | RJ42: 282 | RK42: 256.2 | RL42: 230.4 | RM42: 326.5 | RN42: 316.7 | RO42: 292.2 | RP42: 267.7 | RQ42: 243.2 | RR42: 218.7 | RS42: 469.3 | RT42: 459 | RU42: 433.2 | RV42: 407.3 | RW42: 381.5 | RX42: 355.7 | RY42: 445.4 | RZ42: 435.6 | SA42: 411.2 | SB42: 386.6 | SC42: 362.1 | SD42: 337.6 | SE42: 409 | SF42: 398.7 | SG42: 372.9 | SH42: 347 | SI42: 321.2 | SJ42: 295.4 | SK42: 388.2 | SL42: 378.4 | SM42: 353.9 | SN42: 329.4 | SO42: 304.9 | SP42: 280.4 | SQ42: 383.2 | SR42: 372.9 | SS42: 347.1 | ST42: 321.2 | SU42: 295.4 | SV42: 269.6 | SW42: 363.7 | SX42: 353.9 | SY42: 329.4 | SZ42: 304.9 | TA42: 280.4 | TB42: 255.9
C43: TAR-HMO | D43: HMO | F43: 43 | G43: 413.5 | H43: 403.2 | I43: 377.4 | J43: 351.5 | K43: 325.7 | L43: 299.9 | M43: 392.5 | N43: 382.7 | O43: 358.2 | P43: 333.6 | Q43: 309.1 | R43: 284.7 | S43: 382.5 | T43: 372.2 | U43: 346.4 | V43: 320.5 | W43: 294.7 | X43: 268.9 | Y43: 363 | Z43: 353.3 | AA43: 328.8 | AB43: 304.2 | AC43: 279.7 | AD43: 255.2 | AE43: 406.3 | AF43: 396 | AG43: 370.2 | AH43: 344.3 | AI43: 318.5 | AJ43: 292.7 | AK43: 385.6 | AL43: 375.9 | AM43: 351.4 | AN43: 326.8 | AO43: 302.3 | AP43: 277.8 | AQ43: 373.5 | AR43: 363.2 | AS43: 337.4 | AT43: 311.5 | AU43: 285.7 | AV43: 259.9 | AW43: 354.5 | AX43: 344.7 | AY43: 320.2 | AZ43: 295.7 | BA43: 271.2 | BB43: 246.7 | BC43: 293.5 | BD43: 283.2 | BE43: 257.4 | BF43: 231.5 | BG43: 205.7 | BH43: 179.9 | BI43: 278.6 | BJ43: 268.8 | BK43: 244.3 | BL43: 219.7 | BM43: 195.3 | BN43: 170.8 | BO43: 359.3 | BP43: 349 | BQ43: 323.2 | BR43: 297.3 | BS43: 271.5 | BT43: 245.7 | BU43: 341 | BV43: 331.3 | BW43: 306.8 | BX43: 282.2 | BY43: 257.7 | BZ43: 233.2 | CA43: 461.8 | CB43: 451.5 | CC43: 425.7 | CD43: 399.8 | CE43: 374 | CF43: 348.2 | CG43: 438.3 | CH43: 428.5 | CI43: 404 | CJ43: 379.5 | CK43: 355 | CL43: 330.5 | CM43: 407 | CN43: 396.7 | CO43: 370.9 | CP43: 345 | CQ43: 319.2 | CR43: 293.4 | CS43: 386.3 | CT43: 376.5 | CU43: 352 | CV43: 327.5 | CW43: 303 | CX43: 278.5 | CY43: 380.9 | CZ43: 370.6 | DA43: 344.8 | DB43: 318.9 | DC43: 293.1 | DD43: 267.3 | DE43: 361.5 | DF43: 351.7 | DG43: 327.3 | DH43: 302.7 | DI43: 278.2 | DJ43: 253.7 | DK43: 465 | DL43: 454.7 | DM43: 428.9 | DN43: 403 | DO43: 377.2 | DP43: 351.4 | DQ43: 441.3 | DR43: 431.6 | DS43: 407.1 | DT43: 382.5 | DU43: 358 | DV43: 333.5 | DW43: 432.9 | DX43: 422.6 | DY43: 396.8 | DZ43: 370.9 | EA43: 345.1 | EB43: 319.3 | EC43: 410.9 | ED43: 401.1 | EE43: 376.6 | EF43: 352 | EG43: 327.5 | EH43: 303.1 | EI43: 504.6 | EJ43: 494.3 | EK43: 468.5 | EL43: 442.6 | EM43: 416.8 | EN43: 391 | EO43: 478.9 | EP43: 469.1 | EQ43: 444.7 | ER43: 420.1 | ES43: 395.6 | ET43: 371.1 | EU43: 513.4 | EV43: 503.1 | EW43: 477.3 | EX43: 451.4 | EY43: 425.6 | EZ43: 399.8 | FA43: 487.3 | FB43: 477.5 | FC43: 453 | FD43: 428.4 | FE43: 403.9 | FF43: 379.5 | FG43: 362.1 | FH43: 351.8 | FI43: 326 | FJ43: 300.1 | FK43: 274.3 | FL43: 248.5 | FM43: 343.7 | FN43: 333.9 | FO43: 309.4 | FP43: 284.8 | FQ43: 260.4 | FR43: 235.9 | FS43: 356.4 | FT43: 346.1 | FU43: 320.3 | FV43: 294.4 | FW43: 268.6 | FX43: 242.8 | FY43: 338.3 | FZ43: 328.5 | GA43: 304 | GB43: 279.4 | GC43: 255 | GD43: 230.5 | GE43: 345.3 | GF43: 335 | GG43: 309.2 | GH43: 283.3 | GI43: 257.5 | GJ43: 231.7 | GK43: 327.7 | GL43: 318 | GM43: 293.5 | GN43: 268.9 | GO43: 244.4 | GP43: 219.9 | GQ43: 326.9 | GR43: 316.6 | GS43: 290.8 | GT43: 264.9 | GU43: 239.1 | GV43: 213.3 | GW43: 310.3 | GX43: 300.5 | GY43: 276 | GZ43: 251.4 | HA43: 227 | HB43: 202.5 | HC43: 462.7 | HD43: 452.4 | HE43: 426.6 | HF43: 400.7 | HG43: 374.9 | HH43: 349.1 | HI43: 439.2 | HJ43: 429.4 | HK43: 404.9 | HL43: 380.3 | HM43: 355.8 | HN43: 331.3 | HO43: 378.3 | HP43: 368 | HQ43: 342.2 | HR43: 316.3 | HS43: 290.5 | HT43: 264.7 | HU43: 359.1 | HV43: 349.3 | HW43: 324.8 | HX43: 300.2 | HY43: 275.7 | HZ43: 251.3 | IA43: 355.6 | IB43: 345.3 | IC43: 319.5 | ID43: 293.6 | IE43: 267.8 | IF43: 242 | IG43: 337.5 | IH43: 327.7 | II43: 303.3 | IJ43: 278.7 | IK43: 254.2 | IL43: 229.7 | IM43: 342.6 | IN43: 332.3 | IO43: 306.5 | IP43: 280.6 | IQ43: 254.8 | IR43: 229 | IS43: 325.2 | IT43: 315.4 | IU43: 290.9 | IV43: 266.3 | IW43: 241.9 | IX43: 217.4 | IY43: 484.2 | IZ43: 473.9 | JA43: 448.1 | JB43: 422.2 | JC43: 396.4 | JD43: 370.6 | JE43: 459.6 | JF43: 449.8 | JG43: 425.3 | JH43: 400.7 | JI43: 376.2 | JJ43: 351.7 | JK43: 324.1 | JL43: 313.8 | JM43: 288 | JN43: 262.1 | JO43: 236.3 | JP43: 210.5 | JQ43: 307.6 | JR43: 297.8 | JS43: 273.4 | JT43: 248.8 | JU43: 224.3 | JV43: 199.8 | JW43: 335.3 | JX43: 325 | JY43: 299.2 | JZ43: 273.3 | KA43: 247.5 | KB43: 221.7 | KC43: 318.2 | KD43: 308.5 | KE43: 284 | KF43: 259.4 | KG43: 234.9 | KH43: 210.4 | KI43: 382.9 | KJ43: 372.6 | KK43: 346.8 | KL43: 320.9 | KM43: 295.1 | KN43: 269.3 | KO43: 363.4 | KP43: 353.6 | KQ43: 329.2 | KR43: 304.6 | KS43: 280.1 | KT43: 255.6 | KU43: 358.7 | KV43: 348.4 | KW43: 322.6 | KX43: 296.7 | KY43: 270.9 | KZ43: 245.1 | LA43: 340.5 | LB43: 330.7 | LC43: 306.2 | LD43: 281.6 | LE43: 257.1 | LF43: 232.6 | LG43: 347 | LH43: 336.7 | LI43: 310.9 | LJ43: 285 | LK43: 259.2 | LL43: 233.4 | LM43: 329.4 | LN43: 319.6 | LO43: 295.1 | LP43: 270.5 | LQ43: 246 | LR43: 221.5 | LS43: 403.4 | LT43: 393.1 | LU43: 367.3 | LV43: 341.4 | LW43: 315.6 | LX43: 289.8 | LY43: 382.9 | LZ43: 373.1 | MA43: 348.6 | MB43: 324 | MC43: 299.6 | MD43: 275.1 | ME43: 375.4 | MF43: 365.1 | MG43: 339.3 | MH43: 313.4 | MI43: 287.6 | MJ43: 261.8 | MK43: 356.3 | ML43: 346.5 | MM43: 322 | MN43: 297.5 | MO43: 273 | MP43: 248.5 | MQ43: 336.6 | MR43: 326.3 | MS43: 300.5 | MT43: 274.6 | MU43: 248.8 | MV43: 223 | MW43: 319.5 | MX43: 309.7 | MY43: 285.2 | MZ43: 260.6 | NA43: 236.2 | NB43: 211.7 | NC43: 360.6 | ND43: 350.3 | NE43: 324.5 | NF43: 298.6 | NG43: 272.8 | NH43: 247 | NI43: 342.3 | NJ43: 332.5 | NK43: 308 | NL43: 283.4 | NM43: 258.9 | NN43: 234.5 | NO43: 441.3 | NP43: 431 | NQ43: 405.2 | NR43: 379.3 | NS43: 353.5 | NT43: 327.7 | NU43: 418.8 | NV43: 409.1 | NW43: 384.6 | NX43: 360 | NY43: 335.5 | NZ43: 311 | OA43: 411.3 | OB43: 401 | OC43: 375.2 | OD43: 349.3 | OE43: 323.5 | OF43: 297.7 | OG43: 390.4 | OH43: 380.6 | OI43: 356.1 | OJ43: 331.5 | OK43: 307.1 | OL43: 282.6 | OM43: 328.1 | ON43: 317.8 | OO43: 292 | OP43: 266.1 | OQ43: 240.3 | OR43: 214.5 | OS43: 311.4 | OT43: 301.6 | OU43: 277.2 | OV43: 252.6 | OW43: 228.1 | OX43: 203.6 | OY43: 480.3 | OZ43: 470 | PA43: 444.2 | PB43: 418.3 | PC43: 392.5 | PD43: 366.7 | PE43: 455.9 | PF43: 446.1 | PG43: 421.6 | PH43: 397 | PI43: 372.5 | PJ43: 348 | PK43: 456 | PL43: 445.7 | PM43: 419.9 | PN43: 394 | PO43: 368.2 | PP43: 342.4 | PQ43: 432.8 | PR43: 423 | PS43: 398.5 | PT43: 374 | PU43: 349.5 | PV43: 325 | PW43: 396.6 | PX43: 386.3 | PY43: 360.5 | PZ43: 334.6 | QA43: 308.8 | QB43: 283 | QC43: 376.4 | QD43: 366.6 | QE43: 342.2 | QF43: 317.6 | QG43: 293.1 | QH43: 268.6 | QI43: 364.2 | QJ43: 353.9 | QK43: 328.1 | QL43: 302.2 | QM43: 276.4 | QN43: 250.6 | QO43: 345.7 | QP43: 335.9 | QQ43: 311.4 | QR43: 286.8 | QS43: 262.4 | QT43: 237.9 | RG43: 325.1 | RH43: 314.8 | RI43: 289 | RJ43: 263.1 | RK43: 237.3 | RL43: 211.5 | RM43: 308.6 | RN43: 298.8 | RO43: 274.3 | RP43: 249.7 | RQ43: 225.2 | RR43: 200.8 | RS43: 448.3 | RT43: 438 | RU43: 412.2 | RV43: 386.3 | RW43: 360.5 | RX43: 334.7 | RY43: 425.5 | RZ43: 415.7 | SA43: 391.2 | SB43: 366.6 | SC43: 342.2 | SD43: 317.7 | SE43: 390.6 | SF43: 380.3 | SG43: 354.5 | SH43: 328.6 | SI43: 302.8 | SJ43: 277 | SK43: 370.7 | SL43: 361 | SM43: 336.5 | SN43: 311.9 | SO43: 287.4 | SP43: 262.9 | SQ43: 366 | SR43: 355.7 | SS43: 329.9 | ST43: 304 | SU43: 278.2 | SV43: 252.4 | SW43: 347.4 | SX43: 337.6 | SY43: 313.1 | SZ43: 288.5 | TA43: 264.1 | TB43: 239.6
A44: 312 | B44: Atupri Gesundheitsversicherung | C44: TAR-BASE | D44: Grundversicherung | F44: 44 | G44: 481.3 | H44: 469.7 | I44: 440.5 | J44: 411.3 | K44: 382.2 | L44: 353 | M44: 457.3 | N44: 446.3 | O44: 418.5 | P44: 390.8 | Q44: 363.1 | R44: 335.4 | S44: 418.3 | T44: 406.7 | U44: 377.5 | V44: 348.3 | W44: 319.2 | X44: 290 | Y44: 397.4 | Z44: 386.4 | AA44: 358.7 | AB44: 330.9 | AC44: 303.3 | AD44: 275.5 | AE44: 452.3 | AF44: 440.7 | AG44: 411.5 | AH44: 382.3 | AI44: 353.2 | AJ44: 324 | AK44: 429.7 | AL44: 418.7 | AM44: 391 | AN44: 363.2 | AO44: 335.6 | AP44: 307.8 | AQ44: 422 | AR44: 410.4 | AS44: 381.2 | AT44: 352 | AU44: 322.9 | AV44: 293.7 | AW44: 400.9 | AX44: 389.9 | AY44: 362.2 | AZ44: 334.4 | BA44: 306.8 | BB44: 279.1 | BC44: 357 | BD44: 345.4 | BE44: 316.2 | BF44: 287 | BG44: 258 | BH44: 228.7 | BI44: 339.2 | BJ44: 328.2 | BK44: 300.4 | BL44: 272.7 | BM44: 245.1 | BN44: 217.3 | BO44: 447.6 | BP44: 436 | BQ44: 406.8 | BR44: 377.6 | BS44: 348.5 | BT44: 319.3 | BU44: 425.3 | BV44: 414.2 | BW44: 386.5 | BX44: 358.8 | BY44: 331.1 | BZ44: 303.4 | CA44: 531.6 | CB44: 520 | CC44: 490.8 | CD44: 461.6 | CE44: 432.5 | CF44: 403.3 | CG44: 505.1 | CH44: 494 | CI44: 466.3 | CJ44: 438.6 | CK44: 410.9 | CL44: 383.2 | CM44: 473.6 | CN44: 462 | CO44: 432.8 | CP44: 403.6 | CQ44: 374.5 | CR44: 345.3 | CS44: 450 | CT44: 438.9 | CU44: 411.2 | CV44: 383.5 | CW44: 355.8 | CX44: 328.1 | CY44: 435.6 | CZ44: 424 | DA44: 394.8 | DB44: 365.6 | DC44: 336.5 | DD44: 307.3 | DE44: 413.9 | DF44: 402.8 | DG44: 375.1 | DH44: 347.4 | DI44: 319.7 | DJ44: 292 | DK44: 500 | DL44: 488.4 | DM44: 459.2 | DN44: 430 | DO44: 400.9 | DP44: 371.7 | DQ44: 475 | DR44: 464 | DS44: 436.3 | DT44: 408.5 | DU44: 380.9 | DV44: 353.2 | DW44: 485 | DX44: 473.4 | DY44: 444.2 | DZ44: 415 | EA44: 386 | EB44: 356.7 | EC44: 460.8 | ED44: 449.8 | EE44: 422 | EF44: 394.3 | EG44: 366.7 | EH44: 338.9 | EI44: 593.7 | EJ44: 582.1 | EK44: 552.9 | EL44: 523.7 | EM44: 494.6 | EN44: 465.4 | EO44: 564.1 | EP44: 553 | EQ44: 525.3 | ER44: 497.6 | ES44: 469.9 | ET44: 442.2 | EU44: 614.5 | EV44: 602.9 | EW44: 573.7 | EX44: 544.5 | EY44: 515.4 | EZ44: 486.2 | FA44: 583.8 | FB44: 572.8 | FC44: 545.1 | FD44: 517.3 | FE44: 489.7 | FF44: 461.9 | FG44: 406.1 | FH44: 394.5 | FI44: 365.3 | FJ44: 336.1 | FK44: 307 | FL44: 277.8 | FM44: 385.8 | FN44: 374.8 | FO44: 347.1 | FP44: 319.3 | FQ44: 291.7 | FR44: 264 | FS44: 410 | FT44: 398.4 | FU44: 369.2 | FV44: 340 | FW44: 310.9 | FX44: 281.7 | FY44: 389.5 | FZ44: 378.5 | GA44: 350.8 | GB44: 323 | GC44: 295.4 | GD44: 267.7 | GE44: 395 | GF44: 383.4 | GG44: 354.2 | GH44: 325 | GI44: 296 | GJ44: 266.7 | GK44: 375.3 | GL44: 364.3 | GM44: 336.5 | GN44: 308.8 | GO44: 281.2 | GP44: 253.4 | GQ44: 386 | GR44: 374.4 | GS44: 345.2 | GT44: 316 | GU44: 286.9 | GV44: 257.7 | GW44: 366.7 | GX44: 355.7 | GY44: 328 | GZ44: 300.2 | HA44: 272.6 | HB44: 244.9 | HC44: 515.8 | HD44: 504.2 | HE44: 475 | HF44: 445.8 | HG44: 416.7 | HH44: 387.5 | HI44: 490.1 | HJ44: 479 | HK44: 451.3 | HL44: 423.6 | HM44: 395.9 | HN44: 368.2 | HO44: 430 | HP44: 418.4 | HQ44: 389.2 | HR44: 360 | HS44: 330.9 | HT44: 301.7 | HU44: 408.5 | HV44: 397.5 | HW44: 369.8 | HX44: 342 | HY44: 314.4 | HZ44: 286.7 | IA44: 393 | IB44: 381.4 | IC44: 352.2 | ID44: 323 | IE44: 294 | IF44: 264.7 | IG44: 373.4 | IH44: 362.4 | II44: 334.6 | IJ44: 306.9 | IK44: 279.3 | IL44: 251.5 | IM44: 369 | IN44: 357.4 | IO44: 328.2 | IP44: 299 | IQ44: 270 | IR44: 240.7 | IS44: 350.6 | IT44: 339.6 | IU44: 311.8 | IV44: 284.1 | IW44: 256.5 | IX44: 228.7 | IY44: 591.7 | IZ44: 580.1 | JA44: 550.9 | JB44: 521.7 | JC44: 492.6 | JD44: 463.4 | JE44: 562.2 | JF44: 551.1 | JG44: 523.4 | JH44: 495.7 | JI44: 468 | JJ44: 440.3 | JK44: 395.2 | JL44: 383.6 | JM44: 354.4 | JN44: 325.2 | JO44: 296.1 | JP44: 266.9 | JQ44: 375.5 | JR44: 364.5 | JS44: 336.7 | JT44: 309 | JU44: 281.3 | JV44: 253.6 | JW44: 372 | JX44: 360.4 | JY44: 331.2 | JZ44: 302 | KA44: 272.9 | KB44: 243.7 | KC44: 353.4 | KD44: 342.4 | KE44: 314.7 | KF44: 286.9 | KG44: 259.3 | KH44: 231.6 | KI44: 421.3 | KJ44: 409.7 | KK44: 380.5 | KL44: 351.3 | KM44: 322.2 | KN44: 293 | KO44: 400.3 | KP44: 389.3 | KQ44: 361.5 | KR44: 333.8 | KS44: 306.1 | KT44: 278.4 | KU44: 408.3 | KV44: 396.7 | KW44: 367.5 | KX44: 338.3 | KY44: 309.2 | KZ44: 280 | LA44: 387.9 | LB44: 376.9 | LC44: 349.2 | LD44: 321.4 | LE44: 293.8 | LF44: 266 | LG44: 383.3 | LH44: 371.7 | LI44: 342.5 | LJ44: 313.3 | LK44: 284.2 | LL44: 255 | LM44: 364.2 | LN44: 353.2 | LO44: 325.4 | LP44: 297.7 | LQ44: 270 | LR44: 242.3 | LS44: 492.3 | LT44: 480.7 | LU44: 451.5 | LV44: 422.3 | LW44: 393.2 | LX44: 364 | LY44: 467.7 | LZ44: 456.7 | MA44: 429 | MB44: 401.2 | MC44: 373.6 | MD44: 345.8 | ME44: 472.3 | MF44: 460.7 | MG44: 431.5 | MH44: 402.3 | MI44: 373.2 | MJ44: 344 | MK44: 448.7 | ML44: 437.7 | MM44: 410 | MN44: 382.2 | MO44: 354.6 | MP44: 326.8 | MQ44: 396.7 | MR44: 385.1 | MS44: 356 | MT44: 326.7 | MU44: 297.6 | MV44: 268.4 | MW44: 376.9 | MX44: 365.9 | MY44: 338.2 | MZ44: 310.4 | NA44: 282.8 | NB44: 255 | NC44: 408.1 | ND44: 396.5 | NE44: 367.3 | NF44: 338.1 | NG44: 309 | NH44: 279.8 | NI44: 387.7 | NJ44: 376.7 | NK44: 349 | NL44: 321.2 | NM44: 293.6 | NN44: 265.9 | NO44: 506 | NP44: 494.4 | NQ44: 465.2 | NR44: 436 | NS44: 406.9 | NT44: 377.7 | NU44: 480.7 | NV44: 469.7 | NW44: 442 | NX44: 414.2 | NY44: 386.6 | NZ44: 358.9 | OA44: 483 | OB44: 471.4 | OC44: 442.2 | OD44: 413 | OE44: 384 | OF44: 354.7 | OG44: 458.9 | OH44: 447.9 | OI44: 420.1 | OJ44: 392.4 | OK44: 364.8 | OL44: 337 | OM44: 377.5 | ON44: 366 | OO44: 336.7 | OP44: 307.5 | OQ44: 278.4 | OR44: 249.2 | OS44: 358.7 | OT44: 347.7 | OU44: 319.9 | OV44: 292.2 | OW44: 264.5 | OX44: 236.8 | OY44: 530.2 | OZ44: 518.6 | PA44: 489.4 | PB44: 460.2 | PC44: 431.1 | PD44: 402 | PE44: 503.7 | PF44: 492.7 | PG44: 465 | PH44: 437.2 | PI44: 409.6 | PJ44: 381.9 | PK44: 500.2 | PL44: 488.6 | PM44: 459.4 | PN44: 430.2 | PO44: 401.1 | PP44: 372 | PQ44: 475.2 | PR44: 464.2 | PS44: 436.5 | PT44: 408.7 | PU44: 381.1 | PV44: 353.4 | PW44: 421.2 | PX44: 409.6 | PY44: 380.4 | PZ44: 351.2 | QA44: 322.1 | QB44: 292.9 | QC44: 400.2 | QD44: 389.2 | QE44: 361.4 | QF44: 333.7 | QG44: 306 | QH44: 278.3 | QI44: 390.2 | QJ44: 378.6 | QK44: 349.4 | QL44: 320.2 | QM44: 291.1 | QN44: 262 | QO44: 370.7 | QP44: 359.7 | QQ44: 332 | QR44: 304.2 | QS44: 276.6 | QT44: 248.9 | RG44: 399.2 | RH44: 387.6 | RI44: 358.4 | RJ44: 329.2 | RK44: 300.1 | RL44: 270.9 | RM44: 379.3 | RN44: 368.3 | RO44: 340.5 | RP44: 312.8 | RQ44: 285.1 | RR44: 257.4 | RS44: 521.8 | RT44: 510.2 | RU44: 481 | RV44: 451.8 | RW44: 422.7 | RX44: 393.5 | RY44: 495.8 | RZ44: 484.7 | SA44: 457 | SB44: 429.3 | SC44: 401.6 | SD44: 373.9 | SE44: 461.8 | SF44: 450.2 | SG44: 421 | SH44: 391.8 | SI44: 362.7 | SJ44: 333.5 | SK44: 438.8 | SL44: 427.7 | SM44: 400 | SN44: 372.3 | SO44: 344.6 | SP44: 316.9 | SQ44: 420.8 | SR44: 409.2 | SS44: 380 | ST44: 350.8 | SU44: 321.7 | SV44: 292.5 | SW44: 399.8 | SX44: 388.8 | SY44: 361 | SZ44: 333.3 | TA44: 305.7 | TB44: 277.9
C45: TAR-HAM | D45: CareMed | F45: 45 | AE45: 407.1 | AF45: 395.5 | AG45: 366.3 | AH45: 337.1 | AI45: 308 | AJ45: 278.8 | AK45: 386.8 | AL45: 375.8 | AM45: 348 | AN45: 320.3 | AO45: 292.6 | AP45: 264.9 | AQ45: 379.8 | AR45: 368.2 | AS45: 339 | AT45: 309.8 | AU45: 280.7 | AV45: 251.5 | AW45: 360.9 | AX45: 349.8 | AY45: 322.1 | AZ45: 294.4 | BA45: 266.7 | BB45: 239 | BC45: 321.3 | BD45: 309.7 | BE45: 280.5 | BF45: 251.3 | BG45: 222.2 | BH45: 193 | BI45: 305.3 | BJ45: 294.3 | BK45: 266.5 | BL45: 238.8 | BM45: 211.1 | BN45: 183.4 | BO45: 402.9 | BP45: 391.3 | BQ45: 362.1 | BR45: 332.9 | BS45: 303.8 | BT45: 274.6 | BU45: 382.8 | BV45: 371.8 | BW45: 344 | BX45: 316.3 | BY45: 288.7 | BZ45: 260.9 | CA45: 478.5 | CB45: 466.9 | CC45: 437.7 | CD45: 408.5 | CE45: 379.4 | CF45: 350.2 | CG45: 454.6 | CH45: 443.6 | CI45: 415.9 | CJ45: 388.1 | CK45: 360.5 | CL45: 332.7 | CM45: 426.3 | CN45: 414.7 | CO45: 385.5 | CP45: 356.3 | CQ45: 327.2 | CR45: 298 | CS45: 405 | CT45: 394 | CU45: 366.3 | CV45: 338.5 | CW45: 310.9 | CX45: 283.1 | CY45: 392.1 | CZ45: 380.5 | DA45: 351.3 | DB45: 322.1 | DC45: 293 | DD45: 263.8 | DE45: 372.5 | DF45: 361.5 | DG45: 333.8 | DH45: 306 | DI45: 278.4 | DJ45: 250.7 | DK45: 450 | DL45: 438.4 | DM45: 409.2 | DN45: 380 | DO45: 350.9 | DP45: 321.7 | DQ45: 427.5 | DR45: 416.5 | DS45: 388.8 | DT45: 361 | DU45: 333.4 | DV45: 305.7 | DW45: 436.5 | DX45: 424.9 | DY45: 395.7 | DZ45: 366.5 | EA45: 337.4 | EB45: 308.2 | EC45: 414.7 | ED45: 403.7 | EE45: 376 | EF45: 348.2 | EG45: 320.6 | EH45: 292.8 | EI45: 534.4 | EJ45: 522.8 | EK45: 493.6 | EL45: 464.4 | EM45: 435.3 | EN45: 406.1 | EO45: 507.7 | EP45: 496.7 | EQ45: 469 | ER45: 441.2 | ES45: 413.6 | ET45: 385.8 | FS45: 369 | FT45: 357.4 | FU45: 328.2 | FV45: 299 | FW45: 270 | FX45: 240.7 | FY45: 350.6 | FZ45: 339.6 | GA45: 311.8 | GB45: 284.1 | GC45: 256.5 | GD45: 228.7 | GE45: 355.5 | GF45: 344 | GG45: 314.7 | GH45: 285.5 | GI45: 256.4 | GJ45: 227.2 | GK45: 337.8 | GL45: 326.8 | GM45: 299 | GN45: 271.3 | GO45: 243.6 | GP45: 215.9 | GQ45: 347.4 | GR45: 335.8 | GS45: 306.6 | GT45: 277.4 | GU45: 248.3 | GV45: 219.1 | GW45: 330.1 | GX45: 319.1 | GY45: 291.3 | GZ45: 263.6 | HA45: 235.9 | HB45: 208.2 | HO45: 387 | HP45: 375.4 | HQ45: 346.2 | HR45: 317 | HS45: 288 | HT45: 258.7 | HU45: 367.7 | HV45: 356.7 | HW45: 328.9 | HX45: 301.2 | HY45: 273.6 | HZ45: 245.8 | IA45: 353.7 | IB45: 342.1 | IC45: 312.9 | ID45: 283.7 | IE45: 254.6 | IF45: 225.4 | IG45: 336.1 | IH45: 325 | II45: 297.3 | IJ45: 269.6 | IK45: 241.9 | IL45: 214.2 | IM45: 332.1 | IN45: 320.5 | IO45: 291.3 | IP45: 262.1 | IQ45: 233 | IR45: 203.8 | IS45: 315.5 | IT45: 304.5 | IU45: 276.8 | IV45: 249 | IW45: 221.4 | IX45: 193.7 | JK45: 355.7 | JL45: 344.1 | JM45: 314.9 | JN45: 285.7 | JO45: 256.6 | JP45: 227.4 | JQ45: 338 | JR45: 326.9 | JS45: 299.2 | JT45: 271.5 | JU45: 243.8 | JV45: 216.1 | KI45: 376.7 | KJ45: 365.1 | KK45: 336 | KL45: 306.7 | KM45: 277.6 | KN45: 248.4 | KO45: 357.9 | KP45: 346.9 | KQ45: 319.2 | KR45: 291.4 | KS45: 263.8 | KT45: 236 | KU45: 366.5 | KV45: 354.9 | KW45: 325.7 | KX45: 296.5 | KY45: 267.4 | KZ45: 238.2 | LA45: 348.2 | LB45: 337.2 | LC45: 309.5 | LD45: 281.7 | LE45: 254.1 | LF45: 226.3 | LG45: 343.1 | LH45: 331.5 | LI45: 302.3 | LJ45: 273.1 | LK45: 244 | LL45: 214.8 | LM45: 326 | LN45: 315 | LO45: 287.2 | LP45: 259.5 | LQ45: 231.8 | LR45: 204.1 | LS45: 443.1 | LT45: 431.5 | LU45: 402.3 | LV45: 373.1 | LW45: 344 | LX45: 314.8 | LY45: 421 | LZ45: 410 | MA45: 382.2 | MB45: 354.5 | MC45: 326.8 | MD45: 299.1 | ME45: 425.1 | MF45: 413.5 | MG45: 384.3 | MH45: 355.1 | MI45: 326 | MJ45: 296.8 | MK45: 403.9 | ML45: 392.9 | MM45: 365.1 | MN45: 337.4 | MO45: 309.7 | MP45: 282 | MQ45: 357.1 | MR45: 345.5 | MS45: 316.3 | MT45: 287.1 | MU45: 258 | MV45: 228.8 | MW45: 339.3 | MX45: 328.3 | MY45: 300.5 | MZ45: 272.8 | NA45: 245.1 | NB45: 217.4 | NC45: 367.3 | ND45: 355.7 | NE45: 326.5 | NF45: 297.3 | NG45: 268.2 | NH45: 239 | NI45: 349 | NJ45: 338 | NK45: 310.2 | NL45: 282.5 | NM45: 254.8 | NN45: 227.1 | NO45: 455.4 | NP45: 443.8 | NQ45: 414.6 | NR45: 385.4 | NS45: 356.3 | NT45: 327.1 | NU45: 432.7 | NV45: 421.7 | NW45: 393.9 | NX45: 366.2 | NY45: 338.5 | NZ45: 310.8 | OA45: 434.7 | OB45: 423.1 | OC45: 394 | OD45: 364.7 | OE45: 335.6 | OF45: 306.4 | OG45: 413 | OH45: 402 | OI45: 374.3 | OJ45: 346.5 | OK45: 318.9 | OL45: 291.1 | PW45: 379.1 | PX45: 367.5 | PY45: 338.3 | PZ45: 309.1 | QA45: 280 | QB45: 250.8 | QC45: 360.2 | QD45: 349.2 | QE45: 321.4 | QF45: 293.7 | QG45: 266 | QH45: 238.3 | QI45: 351.2 | QJ45: 339.6 | QK45: 310.4 | QL45: 281.2 | QM45: 252.1 | QN45: 222.9 | QO45: 333.7 | QP45: 322.7 | QQ45: 294.9 | QR45: 267.2 | QS45: 239.5 | QT45: 211.8 | RG45: 359.3 | RH45: 347.7 | RI45: 318.5 | RJ45: 289.3 | RK45: 260.2 | RL45: 231 | RM45: 341.4 | RN45: 330.4 | RO45: 302.6 | RP45: 274.9 | RQ45: 247.2 | RR45: 219.5 | RS45: 469.7 | RT45: 458.1 | RU45: 428.9 | RV45: 399.7 | RW45: 370.6 | RX45: 341.4 | RY45: 446.3 | RZ45: 435.2 | SA45: 407.5 | SB45: 379.8 | SC45: 352.1 | SD45: 324.4 | SE45: 415.7 | SF45: 404.1 | SG45: 374.9 | SH45: 345.7 | SI45: 316.6 | SJ45: 287.4 | SK45: 395 | SL45: 383.9 | SM45: 356.2 | SN45: 328.5 | SO45: 300.8 | SP45: 273.1 | SQ45: 378.8 | SR45: 367.2 | SS45: 338 | ST45: 308.8 | SU45: 279.7 | SV45: 250.5 | SW45: 359.9 | SX45: 348.9 | SY45: 321.1 | SZ45: 293.4 | TA45: 265.8 | TB45: 238
C46: TAR-DIV | D46: FlexCare | F46: 46 | AE46: 380 | AF46: 368.4 | AG46: 339.2 | AH46: 310 | AI46: 280.9 | AJ46: 251.7 | AK46: 361 | AL46: 350 | AM46: 322.3 | AN46: 294.5 | AO46: 266.9 | AP46: 239.2 | CA46: 446.6 | CB46: 435 | CC46: 405.8 | CD46: 376.6 | CE46: 347.5 | CF46: 318.3 | CG46: 424.3 | CH46: 413.3 | CI46: 385.6 | CJ46: 357.8 | CK46: 330.2 | CL46: 302.4 | DK46: 425 | DL46: 413.4 | DM46: 384.2 | DN46: 355 | DO46: 326 | DP46: 296.7 | DQ46: 403.8 | DR46: 392.8 | DS46: 365 | DT46: 337.3 | DU46: 309.7 | DV46: 281.9 | HO46: 361.2 | HP46: 349.6 | HQ46: 320.4 | HR46: 291.2 | HS46: 262.1 | HT46: 232.9 | HU46: 343.2 | HV46: 332.2 | HW46: 304.4 | HX46: 276.7 | HY46: 249 | HZ46: 221.3 | KI46: 353.9 | KJ46: 342.3 | KK46: 313.1 | KL46: 284 | KM46: 254.8 | KN46: 225.6 | KO46: 336.3 | KP46: 325.2 | KQ46: 297.5 | KR46: 269.8 | KS46: 242.1 | KT46: 214.4 | RG46: 335.4 | RH46: 323.8 | RI46: 294.6 | RJ46: 265.4 | RK46: 236.3 | RL46: 210.1 | RM46: 318.7 | RN46: 307.7 | RO46: 279.9 | RP46: 252.2 | RQ46: 224.5 | RR46: 199.6 | RS46: 438.4 | RT46: 426.8 | RU46: 397.6 | RV46: 368.4 | RW46: 339.3 | RX46: 310.1 | RY46: 416.5 | RZ46: 405.5 | SA46: 377.8 | SB46: 350 | SC46: 322.4 | SD46: 294.6
D47: TelFirst | F47: 47 | G47: 433.2 | H47: 421.6 | I47: 392.4 | J47: 363.2 | K47: 334.1 | L47: 304.9 | M47: 411.6 | N47: 400.6 | O47: 372.8 | P47: 345.1 | Q47: 317.4 | R47: 289.7 | S47: 376.5 | T47: 364.9 | U47: 335.7 | V47: 306.5 | W47: 277.4 | X47: 248.2 | Y47: 357.7 | Z47: 346.7 | AA47: 319 | AB47: 291.2 | AC47: 263.6 | AD47: 235.8 | AE47: 407.1 | AF47: 395.5 | AG47: 366.3 | AH47: 337.1 | AI47: 308 | AJ47: 278.8 | AK47: 386.8 | AL47: 375.8 | AM47: 348 | AN47: 320.3 | AO47: 292.6 | AP47: 264.9 | AQ47: 379.8 | AR47: 368.2 | AS47: 339 | AT47: 309.8 | AU47: 280.7 | AV47: 251.5 | AW47: 360.9 | AX47: 349.8 | AY47: 322.1 | AZ47: 294.4 | BA47: 266.7 | BB47: 239 | BC47: 321.3 | BD47: 309.7 | BE47: 280.5 | BF47: 251.3 | BG47: 222.2 | BH47: 193 | BI47: 305.3 | BJ47: 294.3 | BK47: 266.5 | BL47: 238.8 | BM47: 211.1 | BN47: 183.4 | BO47: 402.9 | BP47: 391.3 | BQ47: 362.1 | BR47: 332.9 | BS47: 303.8 | BT47: 274.6 | BU47: 382.8 | BV47: 371.8 | BW47: 344 | BX47: 316.3 | BY47: 288.7 | BZ47: 260.9 | CA47: 478.5 | CB47: 466.9 | CC47: 437.7 | CD47: 408.5 | CE47: 379.4 | CF47: 350.2 | CG47: 454.6 | CH47: 443.6 | CI47: 415.9 | CJ47: 388.1 | CK47: 360.5 | CL47: 332.7 | CM47: 426.3 | CN47: 414.7 | CO47: 385.5 | CP47: 356.3 | CQ47: 327.2 | CR47: 298 | CS47: 405 | CT47: 394 | CU47: 366.3 | CV47: 338.5 | CW47: 310.9 | CX47: 283.1 | CY47: 392.1 | CZ47: 380.5 | DA47: 351.3 | DB47: 322.1 | DC47: 293 | DD47: 263.8 | DE47: 372.5 | DF47: 361.5 | DG47: 333.8 | DH47: 306 | DI47: 278.4 | DJ47: 250.7 | DK47: 450 | DL47: 438.4 | DM47: 409.2 | DN47: 380 | DO47: 350.9 | DP47: 321.7 | DQ47: 427.5 | DR47: 416.5 | DS47: 388.8 | DT47: 361 | DU47: 333.4 | DV47: 305.7 | DW47: 436.5 | DX47: 424.9 | DY47: 395.7 | DZ47: 366.5 | EA47: 337.4 | EB47: 308.2 | EC47: 414.7 | ED47: 403.7 | EE47: 376 | EF47: 348.2 | EG47: 320.6 | EH47: 292.8 | EI47: 534.4 | EJ47: 522.8 | EK47: 493.6 | EL47: 464.4 | EM47: 435.3 | EN47: 406.1 | EO47: 507.7 | EP47: 496.7 | EQ47: 469 | ER47: 441.2 | ES47: 413.6 | ET47: 385.8 | EU47: 553.1 | EV47: 541.5 | EW47: 512.3 | EX47: 483.1 | EY47: 454 | EZ47: 424.8 | FA47: 525.5 | FB47: 514.5 | FC47: 486.7 | FD47: 459 | FE47: 431.3 | FF47: 403.6 | FG47: 365.5 | FH47: 354 | FI47: 324.7 | FJ47: 295.5 | FK47: 266.4 | FL47: 237.2 | FM47: 347.3 | FN47: 336.3 | FO47: 308.5 | FP47: 280.8 | FQ47: 253.1 | FR47: 225.4 | FS47: 369 | FT47: 357.4 | FU47: 328.2 | FV47: 299 | FW47: 270 | FX47: 240.7 | FY47: 350.6 | FZ47: 339.6 | GA47: 311.8 | GB47: 284.1 | GC47: 256.5 | GD47: 228.7 | GE47: 355.5 | GF47: 344 | GG47: 314.7 | GH47: 285.5 | GI47: 256.4 | GJ47: 227.2 | GK47: 337.8 | GL47: 326.8 | GM47: 299 | GN47: 271.3 | GO47: 243.6 | GP47: 215.9 | GQ47: 347.4 | GR47: 335.8 | GS47: 306.6 | GT47: 277.4 | GU47: 248.3 | GV47: 219.1 | GW47: 330.1 | GX47: 319.1 | GY47: 291.3 | GZ47: 263.6 | HA47: 235.9 | HB47: 208.2 | HC47: 464.3 | HD47: 452.7 | HE47: 423.5 | HF47: 394.3 | HG47: 365.2 | HH47: 336 | HI47: 441.1 | HJ47: 430.1 | HK47: 402.4 | HL47: 374.6 | HM47: 347 | HN47: 319.2 | HO47: 387 | HP47: 375.4 | HQ47: 346.2 | HR47: 317 | HS47: 288 | HT47: 258.7 | HU47: 367.7 | HV47: 356.7 | HW47: 328.9 | HX47: 301.2 | HY47: 273.6 | HZ47: 245.8 | IA47: 353.7 | IB47: 342.1 | IC47: 312.9 | ID47: 283.7 | IE47: 254.6 | IF47: 225.4 | IG47: 336.1 | IH47: 325 | II47: 297.3 | IJ47: 269.6 | IK47: 241.9 | IL47: 214.2 | IM47: 332.1 | IN47: 320.5 | IO47: 291.3 | IP47: 262.1 | IQ47: 233 | IR47: 203.8 | IS47: 315.5 | IT47: 304.5 | IU47: 276.8 | IV47: 249 | IW47: 221.4 | IX47: 193.7 | IY47: 532.6 | IZ47: 521 | JA47: 491.8 | JB47: 462.6 | JC47: 433.5 | JD47: 404.3 | JE47: 506 | JF47: 495 | JG47: 467.3 | JH47: 439.5 | JI47: 411.9 | JJ47: 384.1 | JK47: 355.7 | JL47: 344.1 | JM47: 314.9 | JN47: 285.7 | JO47: 256.6 | JP47: 227.4 | JQ47: 338 | JR47: 326.9 | JS47: 299.2 | JT47: 271.5 | JU47: 243.8 | JV47: 216.1 | JW47: 334.8 | JX47: 323.2 | JY47: 294 | JZ47: 264.8 | KA47: 235.7 | KB47: 206.5 | KC47: 318.1 | KD47: 307.1 | KE47: 279.3 | KF47: 251.6 | KG47: 224 | KH47: 196.2 | KI47: 379.2 | KJ47: 367.6 | KK47: 338.4 | KL47: 309.2 | KM47: 280.1 | KN47: 250.9 | KO47: 360.3 | KP47: 349.3 | KQ47: 321.5 | KR47: 293.8 | KS47: 266.1 | KT47: 238.4 | KU47: 367.5 | KV47: 356 | KW47: 326.7 | KX47: 297.5 | KY47: 268.4 | KZ47: 239.2 | LA47: 349.2 | LB47: 338.2 | LC47: 310.4 | LD47: 282.7 | LE47: 255 | LF47: 227.3 | LG47: 345 | LH47: 333.4 | LI47: 304.2 | LJ47: 275 | LK47: 246 | LL47: 216.7 | LM47: 327.8 | LN47: 316.8 | LO47: 289 | LP47: 261.3 | LQ47: 233.7 | LR47: 205.9 | LS47: 443.1 | LT47: 431.5 | LU47: 402.3 | LV47: 373.1 | LW47: 344 | LX47: 314.8 | LY47: 421 | LZ47: 410 | MA47: 382.2 | MB47: 354.5 | MC47: 326.8 | MD47: 299.1 | ME47: 425.1 | MF47: 413.5 | MG47: 384.3 | MH47: 355.1 | MI47: 326 | MJ47: 296.8 | MK47: 403.9 | ML47: 392.9 | MM47: 365.1 | MN47: 337.4 | MO47: 309.7 | MP47: 282 | MQ47: 357.1 | MR47: 345.5 | MS47: 316.3 | MT47: 287.1 | MU47: 258 | MV47: 228.8 | MW47: 339.3 | MX47: 328.3 | MY47: 300.5 | MZ47: 272.8 | NA47: 245.1 | NB47: 217.4 | NC47: 367.3 | ND47: 355.7 | NE47: 326.5 | NF47: 297.3 | NG47: 268.2 | NH47: 239 | NI47: 349 | NJ47: 338 | NK47: 310.2 | NL47: 282.5 | NM47: 254.8 | NN47: 227.1 | NO47: 455.4 | NP47: 443.8 | NQ47: 414.6 | NR47: 385.4 | NS47: 356.3 | NT47: 327.1 | NU47: 432.7 | NV47: 421.7 | NW47: 393.9 | NX47: 366.2 | NY47: 338.5 | NZ47: 310.8 | OA47: 434.7 | OB47: 423.1 | OC47: 394 | OD47: 364.7 | OE47: 335.6 | OF47: 306.4 | OG47: 413 | OH47: 402 | OI47: 374.3 | OJ47: 346.5 | OK47: 318.9 | OL47: 291.1 | OM47: 339.8 | ON47: 328.2 | OO47: 299 | OP47: 269.8 | OQ47: 240.7 | OR47: 211.5 | OS47: 322.9 | OT47: 311.8 | OU47: 284.1 | OV47: 256.4 | OW47: 228.7 | OX47: 201 | OY47: 477.2 | OZ47: 465.6 | PA47: 436.4 | PB47: 407.2 | PC47: 378.1 | PD47: 348.9 | PE47: 453.4 | PF47: 442.4 | PG47: 414.6 | PH47: 386.9 | PI47: 359.2 | PJ47: 331.5 | PK47: 450.2 | PL47: 438.6 | PM47: 409.4 | PN47: 380.2 | PO47: 351.1 | PP47: 322 | PQ47: 427.7 | PR47: 416.7 | PS47: 389 | PT47: 361.2 | PU47: 333.6 | PV47: 305.9 | PW47: 358.1 | PX47: 346.5 | PY47: 317.3 | PZ47: 288.1 | QA47: 259 | QB47: 229.8 | QC47: 340.2 | QD47: 329.2 | QE47: 301.5 | QF47: 273.7 | QG47: 246.1 | QH47: 218.4 | QI47: 331.7 | QJ47: 320.1 | QK47: 290.9 | QL47: 261.7 | QM47: 232.6 | QN47: 205.3 | QO47: 315.2 | QP47: 304.1 | QQ47: 276.4 | QR47: 248.7 | QS47: 221 | QT47: 195.1 | RG47: 359.3 | RH47: 347.7 | RI47: 318.5 | RJ47: 289.3 | RK47: 260.2 | RL47: 231 | RM47: 341.4 | RN47: 330.4 | RO47: 302.6 | RP47: 274.9 | RQ47: 247.2 | RR47: 219.5 | RS47: 469.7 | RT47: 458.1 | RU47: 428.9 | RV47: 399.7 | RW47: 370.6 | RX47: 341.4 | RY47: 446.3 | RZ47: 435.2 | SA47: 407.5 | SB47: 379.8 | SC47: 352.1 | SD47: 324.4 | SE47: 415.7 | SF47: 404.1 | SG47: 374.9 | SH47: 345.7 | SI47: 316.6 | SJ47: 287.4 | SK47: 395 | SL47: 383.9 | SM47: 356.2 | SN47: 328.5 | SO47: 300.8 | SP47: 273.1 | SQ47: 378.8 | SR47: 367.2 | SS47: 338 | ST47: 308.8 | SU47: 279.7 | SV47: 250.5 | SW47: 359.9 | SX47: 348.9 | SY47: 321.1 | SZ47: 293.4 | TA47: 265.8 | TB47: 238
C48: TAR-HMO | D48: HMO | F48: 48 | AE48: 384.5 | AF48: 372.9 | AG48: 343.7 | AH48: 314.5 | AI48: 285.4 | AJ48: 256.2 | AK48: 365.3 | AL48: 354.3 | AM48: 326.6 | AN48: 298.8 | AO48: 271.2 | AP48: 243.4 | AQ48: 360.9 | AR48: 349.3 | AS48: 320.1 | AT48: 290.9 | AU48: 261.8 | AV48: 232.6 | AW48: 342.9 | AX48: 331.9 | AY48: 304.1 | AZ48: 276.4 | BA48: 248.8 | BB48: 221 | BC48: 314.2 | BD48: 302.6 | BE48: 273.4 | BF48: 244.2 | BG48: 215.1 | BH48: 187.8 | BI48: 298.5 | BJ48: 287.5 | BK48: 259.8 | BL48: 232 | BM48: 204.4 | BN48: 178.5 | BO48: 385 | BP48: 373.4 | BQ48: 344.2 | BR48: 315 | BS48: 286 | BT48: 256.7 | BU48: 365.8 | BV48: 354.8 | BW48: 327 | BX48: 299.3 | BY48: 271.7 | BZ48: 243.9 | CA48: 467.9 | CB48: 456.3 | CC48: 427.1 | CD48: 398 | CE48: 368.8 | CF48: 339.6 | CG48: 444.6 | CH48: 433.5 | CI48: 405.8 | CJ48: 378.1 | CK48: 350.4 | CL48: 322.7 | CM48: 409.7 | CN48: 398.1 | CO48: 368.9 | CP48: 339.7 | CQ48: 310.6 | CR48: 281.4 | CS48: 389.3 | CT48: 378.2 | CU48: 350.5 | CV48: 322.8 | CW48: 295.1 | CX48: 267.4 | CY48: 379 | CZ48: 367.4 | DA48: 338.2 | DB48: 309 | DC48: 280 | DD48: 250.7 | DE48: 360.1 | DF48: 349.1 | DG48: 321.3 | DH48: 293.6 | DI48: 266 | DJ48: 238.2 | DK48: 440 | DL48: 428.4 | DM48: 399.2 | DN48: 370 | DO48: 340.9 | DP48: 311.7 | DQ48: 418 | DR48: 407 | DS48: 379.3 | DT48: 351.5 | DU48: 323.9 | DV48: 296.2 | DW48: 407.4 | DX48: 395.8 | DY48: 366.6 | DZ48: 337.4 | EA48: 308.3 | EB48: 279.1 | EC48: 387.1 | ED48: 376.1 | EE48: 348.3 | EF48: 320.6 | EG48: 292.9 | EH48: 265.2 | EI48: 492.8 | EJ48: 481.2 | EK48: 452 | EL48: 422.8 | EM48: 393.7 | EN48: 364.5 | EO48: 468.2 | EP48: 457.2 | EQ48: 429.4 | ER48: 401.7 | ES48: 374.1 | ET48: 346.3 | EU48: 528.5 | EV48: 516.9 | EW48: 487.7 | EX48: 458.5 | EY48: 429.4 | EZ48: 400.2 | FA48: 502.1 | FB48: 491.1 | FC48: 463.4 | FD48: 435.6 | FE48: 408 | FF48: 380.2 | HO48: 378.4 | HP48: 366.8 | HQ48: 337.6 | HR48: 308.4 | HS48: 279.3 | HT48: 250.1 | HU48: 359.5 | HV48: 348.5 | HW48: 320.8 | HX48: 293 | HY48: 265.4 | HZ48: 237.6 | IA48: 345.9 | IB48: 334.3 | IC48: 305.1 | ID48: 276 | IE48: 246.8 | IF48: 217.6 | IG48: 328.7 | IH48: 317.6 | II48: 289.9 | IJ48: 262.2 | IK48: 234.5 | IL48: 206.8 | IM48: 324.8 | IN48: 313.2 | IO48: 284 | IP48: 254.8 | IQ48: 225.7 | IR48: 196.5 | IS48: 308.6 | IT48: 297.6 | IU48: 269.8 | IV48: 242.1 | IW48: 214.5 | IX48: 186.7 | JK48: 336 | JL48: 324.4 | JM48: 295.2 | JN48: 266 | JO48: 236.9 | JP48: 208 | JQ48: 319.2 | JR48: 308.2 | JS48: 280.5 | JT48: 252.7 | JU48: 225.1 | JV48: 197.6 | JW48: 320 | JX48: 308.4 | JY48: 279.2 | JZ48: 250 | KA48: 220.9 | KB48: 195.7 | KC48: 304 | KD48: 293 | KE48: 265.3 | KF48: 237.5 | KG48: 209.9 | KH48: 186 | KI48: 366.6 | KJ48: 355 | KK48: 325.8 | KL48: 296.6 | KM48: 267.5 | KN48: 238.3 | KO48: 348.3 | KP48: 337.3 | KQ48: 309.6 | KR48: 281.8 | KS48: 254.2 | KT48: 226.4 | KU48: 355.3 | KV48: 343.7 | KW48: 314.5 | KX48: 285.3 | KY48: 256.2 | KZ48: 227 | LA48: 337.6 | LB48: 326.6 | LC48: 298.8 | LD48: 271.1 | LE48: 243.4 | LF48: 215.7 | LG48: 333.5 | LH48: 322 | LI48: 292.7 | LJ48: 263.5 | LK48: 234.4 | LL48: 205.2 | LM48: 316.9 | LN48: 305.9 | LO48: 278.1 | LP48: 250.4 | LQ48: 222.7 | LR48: 195 | MQ48: 337.2 | MR48: 325.6 | MS48: 296.4 | MT48: 267.2 | MU48: 238.1 | MV48: 208.9 | MW48: 320.4 | MX48: 309.4 | MY48: 281.6 | MZ48: 253.9 | NA48: 226.2 | NB48: 198.5 | NC48: 351 | ND48: 339.4 | NE48: 310.2 | NF48: 281 | NG48: 252 | NH48: 222.7 | NI48: 333.5 | NJ48: 322.5 | NK48: 294.7 | NL48: 267 | NM48: 239.4 | NN48: 211.6 | NO48: 430.1 | NP48: 418.5 | NQ48: 389.3 | NR48: 360.1 | NS48: 331 | NT48: 301.8 | NU48: 408.6 | NV48: 397.6 | NW48: 369.9 | NX48: 342.1 | NY48: 314.5 | NZ48: 286.8 | OM48: 313.4 | ON48: 301.8 | OO48: 272.6 | OP48: 243.4 | OQ48: 214.3 | OR48: 198.7 | OS48: 297.8 | OT48: 286.8 | OU48: 259 | OV48: 231.3 | OW48: 203.6 | OX48: 188.8 | OY48: 471.9 | OZ48: 460.3 | PA48: 431.1 | PB48: 402 | PC48: 372.8 | PD48: 343.6 | PE48: 448.4 | PF48: 437.3 | PG48: 409.6 | PH48: 381.9 | PI48: 354.2 | PJ48: 326.5 | PK48: 445.2 | PL48: 433.6 | PM48: 404.4 | PN48: 375.2 | PO48: 346.1 | PP48: 316.9 | PQ48: 423 | PR48: 412 | PS48: 384.2 | PT48: 356.5 | PU48: 328.8 | PV48: 301.1 | RG48: 339.4 | RH48: 327.8 | RI48: 298.6 | RJ48: 269.4 | RK48: 240.3 | RL48: 211.1 | RM48: 322.5 | RN48: 311.5 | RO48: 283.7 | RP48: 256 | RQ48: 228.3 | RR48: 200.6 | RS48: 459.2 | RT48: 447.6 | RU48: 418.4 | RV48: 389.2 | RW48: 360.1 | RX48: 330.9 | RY48: 436.3 | RZ48: 425.3 | SA48: 397.5 | SB48: 369.8 | SC48: 342.1 | SD48: 314.4 | SE48: 401.8 | SF48: 390.2 | SG48: 361 | SH48: 331.8 | SI48: 302.7 | SJ48: 273.5 | SK48: 381.8 | SL48: 370.7 | SM48: 343 | SN48: 315.3 | SO48: 287.6 | SP48: 259.9 | SQ48: 368.2 | SR48: 356.6 | SS48: 327.4 | ST48: 298.2 | SU48: 269.1 | SV48: 240 | SW48: 349.8 | SX48: 338.8 | SY48: 311.1 | SZ48: 283.3 | TA48: 255.7 | TB48: 228
A49: 343 | B49: Avenir Assurance Maladie SA | C49: TAR-BASE | D49: Grundversicherung | F49: 49 | G49: 511 | H49: 499.5 | I49: 470.5 | J49: 441 | K49: 412 | L49: 383 | M49: 475.3 | N49: 464.6 | O49: 437.6 | P49: 410.2 | Q49: 383.2 | R49: 356.2 | S49: 485.5 | T49: 474 | U49: 445 | V49: 415.5 | W49: 386.5 | X49: 357.5 | Y49: 451.6 | Z49: 440.9 | AA49: 413.9 | AB49: 386.5 | AC49: 359.5 | AD49: 332.5 | AE49: 499.9 | AF49: 488.4 | AG49: 459.4 | AH49: 429.9 | AI49: 400.9 | AJ49: 371.9 | AK49: 465 | AL49: 454.3 | AM49: 427.3 | AN49: 399.9 | AO49: 372.9 | AP49: 345.9 | AQ49: 441.3 | AR49: 429.8 | AS49: 400.8 | AT49: 371.3 | AU49: 342.3 | AV49: 313.3 | AW49: 410.5 | AX49: 399.8 | AY49: 372.8 | AZ49: 345.4 | BA49: 318.4 | BB49: 291.4 | BC49: 440.4 | BD49: 428.9 | BE49: 399.9 | BF49: 370.4 | BG49: 341.4 | BH49: 312.4 | BI49: 409.6 | BJ49: 398.9 | BK49: 372 | BL49: 344.5 | BM49: 317.6 | BN49: 290.6 | BO49: 436.3 | BP49: 424.8 | BQ49: 395.8 | BR49: 366.3 | BS49: 337.3 | BT49: 308.3 | BU49: 405.8 | BV49: 395.1 | BW49: 368.1 | BX49: 340.7 | BY49: 313.7 | BZ49: 286.8 | CA49: 548.8 | CB49: 537.3 | CC49: 508.3 | CD49: 478.8 | CE49: 449.8 | CF49: 420.8 | CG49: 510.4 | CH49: 499.7 | CI49: 472.8 | CJ49: 445.3 | CK49: 418.4 | CL49: 391.4 | CM49: 488.5 | CN49: 477 | CO49: 448 | CP49: 418.5 | CQ49: 389.5 | CR49: 360.5 | CS49: 454.4 | CT49: 443.7 | CU49: 416.7 | CV49: 389.3 | CW49: 362.3 | CX49: 335.3 | CY49: 450.1 | CZ49: 438.6 | DA49: 409.6 | DB49: 380.1 | DC49: 351.1 | DD49: 322.1 | DE49: 418.6 | DF49: 407.9 | DG49: 381 | DH49: 353.5 | DI49: 326.6 | DJ49: 299.6 | DK49: 532.9 | DL49: 521.4 | DM49: 492.4 | DN49: 462.9 | DO49: 433.9 | DP49: 404.9 | DQ49: 495.6 | DR49: 485 | DS49: 458 | DT49: 430.5 | DU49: 403.6 | DV49: 376.6 | DW49: 495.6 | DX49: 484.1 | DY49: 455.1 | DZ49: 425.6 | EA49: 396.6 | EB49: 367.6 | EC49: 461 | ED49: 450.3 | EE49: 423.3 | EF49: 395.9 | EG49: 368.9 | EH49: 341.9 | EI49: 586.6 | EJ49: 575.1 | EK49: 546.1 | EL49: 516.6 | EM49: 487.6 | EN49: 458.6 | EO49: 545.6 | EP49: 534.9 | EQ49: 507.9 | ER49: 480.5 | ES49: 453.5 | ET49: 426.5 | EU49: 671.4 | EV49: 659.9 | EW49: 630.9 | EX49: 601.4 | EY49: 572.4 | EZ49: 543.4 | FA49: 624.5 | FB49: 613.8 | FC49: 586.8 | FD49: 559.4 | FE49: 532.4 | FF49: 505.4 | FG49: 429.5 | FH49: 418 | FI49: 389 | FJ49: 359.5 | FK49: 330.5 | FL49: 301.5 | FM49: 399.5 | FN49: 388.8 | FO49: 361.8 | FP49: 334.4 | FQ49: 307.4 | FR49: 280.4 | FS49: 453.4 | FT49: 441.9 | FU49: 412.9 | FV49: 383.4 | FW49: 354.4 | FX49: 325.4 | FY49: 421.7 | FZ49: 411 | GA49: 384 | GB49: 356.6 | GC49: 329.6 | GD49: 302.7 | GE49: 453.4 | GF49: 441.9 | GG49: 412.9 | GH49: 383.4 | GI49: 354.4 | GJ49: 325.4 | GK49: 421.7 | GL49: 411 | GM49: 384 | GN49: 356.6 | GO49: 329.6 | GP49: 302.7 | GQ49: 435.3 | GR49: 423.8 | GS49: 394.8 | GT49: 365.3 | GU49: 336.3 | GV49: 307.3 | GW49: 404.9 | GX49: 394.2 | GY49: 367.2 | GZ49: 339.8 | HA49: 312.8 | HB49: 285.8 | HC49: 613.8 | HD49: 602.3 | HE49: 573.3 | HF49: 543.8 | HG49: 514.8 | HH49: 485.8 | HI49: 570.9 | HJ49: 560.2 | HK49: 533.2 | HL49: 505.8 | HM49: 478.8 | HN49: 451.8 | HO49: 435.3 | HP49: 423.8 | HQ49: 394.8 | HR49: 365.3 | HS49: 336.3 | HT49: 307.3 | HU49: 404.9 | HV49: 394.2 | HW49: 367.2 | HX49: 339.8 | HY49: 312.8 | HZ49: 285.8 | IA49: 413.6 | IB49: 402.1 | IC49: 373.1 | ID49: 343.6 | IE49: 314.6 | IF49: 285.6 | IG49: 384.7 | IH49: 374 | II49: 347 | IJ49: 319.6 | IK49: 292.6 | IL49: 265.7 | IM49: 404.9 | IN49: 393.4 | IO49: 364.4 | IP49: 334.9 | IQ49: 305.9 | IR49: 276.9 | IS49: 376.6 | IT49: 365.9 | IU49: 338.9 | IV49: 311.5 | IW49: 284.5 | IX49: 257.6 | IY49: 625.8 | IZ49: 614.3 | JA49: 585.3 | JB49: 555.8 | JC49: 526.8 | JD49: 497.8 | JE49: 582 | JF49: 571.3 | JG49: 544.4 | JH49: 516.9 | JI49: 490 | JJ49: 463 | JK49: 416.5 | JL49: 405 | JM49: 376 | JN49: 346.5 | JO49: 317.5 | JP49: 288.5 | JQ49: 387.4 | JR49: 376.7 | JS49: 349.7 | JT49: 322.3 | JU49: 295.3 | JV49: 268.4 | JW49: 430.4 | JX49: 418.9 | JY49: 389.9 | JZ49: 360.4 | KA49: 331.4 | KB49: 302.4 | KC49: 400.3 | KD49: 389.6 | KE49: 362.7 | KF49: 335.2 | KG49: 308.3 | KH49: 281.3 | KI49: 445.3 | KJ49: 433.8 | KK49: 404.8 | KL49: 375.3 | KM49: 346.3 | KN49: 317.3 | KO49: 414.2 | KP49: 403.5 | KQ49: 376.5 | KR49: 349.1 | KS49: 322.1 | KT49: 295.1 | KU49: 427.5 | KV49: 416 | KW49: 387 | KX49: 357.5 | KY49: 328.5 | KZ49: 299.5 | LA49: 397.6 | LB49: 386.9 | LC49: 360 | LD49: 332.5 | LE49: 305.6 | LF49: 278.6 | LG49: 414.2 | LH49: 402.7 | LI49: 373.7 | LJ49: 344.2 | LK49: 315.2 | LL49: 286.2 | LM49: 385.3 | LN49: 374.6 | LO49: 347.6 | LP49: 320.2 | LQ49: 293.2 | LR49: 266.2 | LS49: 540 | LT49: 528.5 | LU49: 499.5 | LV49: 470 | LW49: 441 | LX49: 412 | LY49: 502.2 | LZ49: 491.6 | MA49: 464.6 | MB49: 437.1 | MC49: 410.2 | MD49: 383.2 | ME49: 518.4 | MF49: 506.9 | MG49: 477.9 | MH49: 448.4 | MI49: 419.4 | MJ49: 390.4 | MK49: 482.2 | ML49: 471.5 | MM49: 444.5 | MN49: 417.1 | MO49: 390.1 | MP49: 363.1 | MQ49: 470.1 | MR49: 458.6 | MS49: 429.6 | MT49: 400.1 | MU49: 371.1 | MV49: 342.1 | MW49: 437.2 | MX49: 426.5 | MY49: 399.6 | MZ49: 372.1 | NA49: 345.2 | NB49: 318.2 | NC49: 437.3 | ND49: 425.8 | NE49: 396.8 | NF49: 367.3 | NG49: 338.3 | NH49: 309.3 | NI49: 406.7 | NJ49: 396 | NK49: 369.1 | NL49: 341.6 | NM49: 314.7 | NN49: 287.7 | NO49: 556.9 | NP49: 545.4 | NQ49: 516.4 | NR49: 486.9 | NS49: 457.9 | NT49: 428.9 | NU49: 518 | NV49: 507.3 | NW49: 480.3 | NX49: 452.9 | NY49: 425.9 | NZ49: 398.9 | OA49: 523.5 | OB49: 512 | OC49: 483 | OD49: 453.5 | OE49: 424.5 | OF49: 395.5 | OG49: 486.9 | OH49: 476.2 | OI49: 449.2 | OJ49: 421.8 | OK49: 394.8 | OL49: 367.9 | OM49: 381.5 | ON49: 370 | OO49: 341 | OP49: 311.5 | OQ49: 282.5 | OR49: 253.5 | OS49: 354.8 | OT49: 344.1 | OU49: 317.2 | OV49: 289.7 | OW49: 262.8 | OX49: 235.8 | OY49: 564.7 | OZ49: 553.2 | PA49: 524.2 | PB49: 494.7 | PC49: 465.7 | PD49: 436.7 | PE49: 525.2 | PF49: 514.5 | PG49: 487.6 | PH49: 460.1 | PI49: 433.2 | PJ49: 406.2 | PK49: 513.9 | PL49: 502.4 | PM49: 473.4 | PN49: 443.9 | PO49: 414.9 | PP49: 385.9 | PQ49: 478 | PR49: 467.3 | PS49: 440.3 | PT49: 412.9 | PU49: 385.9 | PV49: 358.9 | PW49: 471.2 | PX49: 459.7 | PY49: 430.7 | PZ49: 401.2 | QA49: 372.2 | QB49: 343.2 | QC49: 438.3 | QD49: 427.6 | QE49: 400.6 | QF49: 373.2 | QG49: 346.2 | QH49: 319.2 | QI49: 461.8 | QJ49: 450.3 | QK49: 421.3 | QL49: 391.8 | QM49: 362.8 | QN49: 333.8 | QO49: 429.5 | QP49: 418.8 | QQ49: 391.9 | QR49: 364.4 | QS49: 337.5 | QT49: 310.5 | RG49: 397.5 | RH49: 386 | RI49: 357 | RJ49: 327.5 | RK49: 298.5 | RL49: 269.5 | RM49: 369.7 | RN49: 359 | RO49: 332.1 | RP49: 304.6 | RQ49: 277.7 | RR49: 250.7 | RS49: 493 | RT49: 481.5 | RU49: 452.5 | RV49: 423 | RW49: 394 | RX49: 365 | RY49: 458.5 | RZ49: 447.8 | SA49: 420.9 | SB49: 393.4 | SC49: 366.5 | SD49: 339.5 | SE49: 468.4 | SF49: 456.9 | SG49: 427.9 | SH49: 398.4 | SI49: 369.4 | SJ49: 340.4 | SK49: 435.7 | SL49: 425 | SM49: 398 | SN49: 370.6 | SO49: 343.6 | SP49: 316.6 | SQ49: 468.4 | SR49: 456.9 | SS49: 427.9 | ST49: 398.4 | SU49: 369.4 | SV49: 340.4 | SW49: 435.7 | SX49: 425 | SY49: 398 | SZ49: 370.6 | TA49: 343.6 | TB49: 316.6
C50: TAR-HAM | D50: PrimaCare | F50: 50 | G50: 459.9 | H50: 448.4 | I50: 419.4 | J50: 389.9 | K50: 360.9 | L50: 331.9 | M50: 427.8 | N50: 417.1 | O50: 390.1 | P50: 362.7 | Q50: 335.7 | R50: 308.7 | S50: 437 | T50: 425.5 | U50: 396.5 | V50: 367 | W50: 338 | X50: 309 | Y50: 406.5 | Z50: 395.8 | AA50: 368.8 | AB50: 341.4 | AC50: 314.4 | AD50: 287.4 | AE50: 450 | AF50: 438.5 | AG50: 409.5 | AH50: 380 | AI50: 351 | AJ50: 322 | AK50: 418.5 | AL50: 407.9 | AM50: 380.9 | AN50: 353.4 | AO50: 326.5 | AP50: 299.5 | AQ50: 401.6 | AR50: 390.1 | AS50: 361.1 | AT50: 331.6 | AU50: 302.6 | AV50: 273.6 | AW50: 373.5 | AX50: 362.8 | AY50: 335.9 | AZ50: 308.4 | BA50: 281.5 | BB50: 254.5 | BC50: 400.8 | BD50: 389.3 | BE50: 360.3 | BF50: 330.8 | BG50: 301.8 | BH50: 272.8 | BI50: 372.8 | BJ50: 362.1 | BK50: 335.1 | BL50: 307.7 | BM50: 280.7 | BN50: 253.8 | BO50: 392.7 | BP50: 381.2 | BQ50: 352.2 | BR50: 322.7 | BS50: 293.7 | BT50: 264.7 | BU50: 365.3 | BV50: 354.6 | BW50: 327.6 | BX50: 300.2 | BY50: 273.2 | BZ50: 246.2 | CA50: 494 | CB50: 482.5 | CC50: 453.5 | CD50: 424 | CE50: 395 | CF50: 366 | CG50: 459.5 | CH50: 448.8 | CI50: 421.8 | CJ50: 394.4 | CK50: 367.4 | CL50: 340.4 | CM50: 439.6 | CN50: 428.1 | CO50: 399.1 | CP50: 369.6 | CQ50: 340.6 | CR50: 311.6 | CS50: 408.9 | CT50: 398.2 | CU50: 371.2 | CV50: 343.8 | CW50: 316.8 | CX50: 289.8 | CY50: 405.1 | CZ50: 393.6 | DA50: 364.6 | DB50: 335.1 | DC50: 306.1 | DD50: 277.1 | DE50: 376.8 | DF50: 366.1 | DG50: 339.1 | DH50: 311.7 | DI50: 284.7 | DJ50: 257.8 | DK50: 479.7 | DL50: 468.2 | DM50: 439.2 | DN50: 409.7 | DO50: 380.7 | DP50: 351.7 | DQ50: 446.2 | DR50: 435.5 | DS50: 408.5 | DT50: 381.1 | DU50: 354.1 | DV50: 327.1 | DW50: 446.1 | DX50: 434.6 | DY50: 405.6 | DZ50: 376.1 | EA50: 347.1 | EB50: 318.1 | EC50: 414.9 | ED50: 404.2 | EE50: 377.3 | EF50: 349.8 | EG50: 322.9 | EH50: 295.9 | EI50: 528 | EJ50: 516.5 | EK50: 487.5 | EL50: 458 | EM50: 429 | EN50: 400 | EO50: 491.1 | EP50: 480.4 | EQ50: 453.4 | ER50: 426 | ES50: 399 | ET50: 372 | EU50: 590.9 | EV50: 579.4 | EW50: 550.4 | EX50: 520.9 | EY50: 491.9 | EZ50: 462.9 | FA50: 549.6 | FB50: 538.9 | FC50: 511.9 | FD50: 484.5 | FE50: 457.5 | FF50: 430.5 | FG50: 390.9 | FH50: 379.4 | FI50: 350.4 | FJ50: 320.9 | FK50: 291.9 | FL50: 262.9 | FM50: 363.6 | FN50: 352.9 | FO50: 325.9 | FP50: 298.5 | FQ50: 271.5 | FR50: 244.5 | FS50: 412.6 | FT50: 401.1 | FU50: 372.1 | FV50: 342.6 | FW50: 313.6 | FX50: 284.6 | FY50: 383.8 | FZ50: 373.1 | GA50: 346.1 | GB50: 318.7 | GC50: 291.7 | GD50: 264.7 | GE50: 412.6 | GF50: 401.1 | GG50: 372.1 | GH50: 342.6 | GI50: 313.6 | GJ50: 284.6 | GK50: 383.8 | GL50: 373.1 | GM50: 346.1 | GN50: 318.7 | GO50: 291.7 | GP50: 264.7 | GQ50: 396.1 | GR50: 384.6 | GS50: 355.6 | GT50: 326.1 | GU50: 297.1 | GV50: 268.1 | GW50: 368.4 | GX50: 357.7 | GY50: 330.8 | GZ50: 303.3 | HA50: 276.4 | HB50: 249.4 | HC50: 552.5 | HD50: 541 | HE50: 512 | HF50: 482.5 | HG50: 453.5 | HH50: 424.5 | HI50: 513.9 | HJ50: 503.2 | HK50: 476.2 | HL50: 448.8 | HM50: 421.8 | HN50: 394.8 | HO50: 396.2 | HP50: 384.7 | HQ50: 355.7 | HR50: 326.2 | HS50: 297.2 | HT50: 268.2 | HU50: 368.5 | HV50: 357.8 | HW50: 330.9 | HX50: 303.4 | HY50: 276.4 | HZ50: 249.5 | IA50: 376.4 | IB50: 364.9 | IC50: 335.9 | ID50: 306.4 | IE50: 277.4 | IF50: 248.4 | IG50: 350.1 | IH50: 339.4 | II50: 312.4 | IJ50: 285 | IK50: 258 | IL50: 231.1 | IM50: 368.4 | IN50: 356.9 | IO50: 327.9 | IP50: 298.4 | IQ50: 269.4 | IR50: 240.4 | IS50: 342.7 | IT50: 332 | IU50: 305 | IV50: 277.6 | IW50: 250.6 | IX50: 223.6 | IY50: 563.3 | IZ50: 551.8 | JA50: 522.8 | JB50: 493.3 | JC50: 464.3 | JD50: 435.3 | JE50: 523.9 | JF50: 513.2 | JG50: 486.3 | JH50: 458.8 | JI50: 431.8 | JJ50: 404.9 | JK50: 379.1 | JL50: 367.6 | JM50: 338.6 | JN50: 309.1 | JO50: 280.1 | JP50: 251.1 | JQ50: 352.6 | JR50: 341.9 | JS50: 314.9 | JT50: 287.5 | JU50: 260.5 | JV50: 233.6 | JW50: 387.4 | JX50: 375.9 | JY50: 346.9 | JZ50: 317.4 | KA50: 288.4 | KB50: 259.4 | KC50: 360.3 | KD50: 349.6 | KE50: 322.7 | KF50: 295.2 | KG50: 268.3 | KH50: 241.3 | KI50: 405.3 | KJ50: 393.8 | KK50: 364.8 | KL50: 335.3 | KM50: 306.3 | KN50: 277.3 | KO50: 377 | KP50: 366.3 | KQ50: 339.3 | KR50: 311.9 | KS50: 284.9 | KT50: 257.9 | KU50: 389.1 | KV50: 377.6 | KW50: 348.6 | KX50: 319.1 | KY50: 290.1 | KZ50: 261.1 | LA50: 361.9 | LB50: 351.2 | LC50: 324.2 | LD50: 296.8 | LE50: 269.8 | LF50: 242.9 | LG50: 376.9 | LH50: 365.4 | LI50: 336.4 | LJ50: 306.9 | LK50: 277.9 | LL50: 248.9 | LM50: 350.6 | LN50: 339.9 | LO50: 312.9 | LP50: 285.5 | LQ50: 258.5 | LR50: 231.5 | LS50: 491.4 | LT50: 479.9 | LU50: 450.9 | LV50: 421.4 | LW50: 392.4 | LX50: 363.4 | LY50: 457.1 | LZ50: 446.4 | MA50: 419.4 | MB50: 392 | MC50: 365 | MD50: 338 | ME50: 471.8 | MF50: 460.3 | MG50: 431.3 | MH50: 401.8 | MI50: 372.8 | MJ50: 343.8 | MK50: 438.8 | ML50: 428.1 | MM50: 401.2 | MN50: 373.7 | MO50: 346.8 | MP50: 319.8 | MQ50: 423.1 | MR50: 411.6 | MS50: 382.6 | MT50: 353.1 | MU50: 324.1 | MV50: 295.1 | MW50: 393.5 | MX50: 382.8 | MY50: 355.9 | MZ50: 328.4 | NA50: 301.5 | NB50: 274.5 | NC50: 398 | ND50: 386.5 | NE50: 357.5 | NF50: 328 | NG50: 299 | NH50: 270 | NI50: 370.2 | NJ50: 359.5 | NK50: 332.5 | NL50: 305.1 | NM50: 278.1 | NN50: 251.1 | NO50: 501.3 | NP50: 489.8 | NQ50: 460.8 | NR50: 431.3 | NS50: 402.3 | NT50: 373.3 | NU50: 466.3 | NV50: 455.6 | NW50: 428.6 | NX50: 401.2 | NY50: 374.2 | NZ50: 347.2 | OA50: 471.2 | OB50: 459.7 | OC50: 430.7 | OD50: 401.2 | OE50: 372.2 | OF50: 343.2 | OG50: 438.3 | OH50: 427.6 | OI50: 400.6 | OJ50: 373.2 | OK50: 346.2 | OL50: 319.2 | OM50: 347.2 | ON50: 335.7 | OO50: 306.7 | OP50: 277.2 | OQ50: 248.2 | OR50: 219.2 | OS50: 322.9 | OT50: 312.3 | OU50: 285.3 | OV50: 257.8 | OW50: 230.9 | OX50: 203.9 | OY50: 502.6 | OZ50: 491.1 | PA50: 462.1 | PB50: 432.6 | PC50: 403.6 | PD50: 374.6 | PE50: 467.5 | PF50: 456.8 | PG50: 429.8 | PH50: 402.4 | PI50: 375.4 | PJ50: 348.4 | PK50: 457.4 | PL50: 445.9 | PM50: 416.9 | PN50: 387.4 | PO50: 358.4 | PP50: 329.4 | PQ50: 425.4 | PR50: 414.7 | PS50: 387.8 | PT50: 360.3 | PU50: 333.4 | PV50: 306.4 | PW50: 424.1 | PX50: 412.6 | PY50: 383.6 | PZ50: 354.1 | QA50: 325.1 | QB50: 296.1 | QC50: 394.5 | QD50: 383.8 | QE50: 356.8 | QF50: 329.4 | QG50: 302.4 | QH50: 275.4 | QI50: 415.6 | QJ50: 404.1 | QK50: 375.1 | QL50: 345.6 | QM50: 316.6 | QN50: 287.6 | QO50: 386.6 | QP50: 375.9 | QQ50: 348.9 | QR50: 321.5 | QS50: 294.5 | QT50: 267.5 | RG50: 361.8 | RH50: 350.3 | RI50: 321.3 | RJ50: 291.8 | RK50: 262.8 | RL50: 233.8 | RM50: 336.5 | RN50: 325.8 | RO50: 298.9 | RP50: 271.4 | RQ50: 244.5 | RR50: 217.5 | RS50: 438.8 | RT50: 427.3 | RU50: 398.3 | RV50: 368.8 | RW50: 339.8 | RX50: 310.8 | RY50: 408.1 | RZ50: 397.4 | SA50: 370.5 | SB50: 343 | SC50: 316.1 | SD50: 289.1 | SE50: 416.9 | SF50: 405.4 | SG50: 376.4 | SH50: 346.9 | SI50: 317.9 | SJ50: 288.9 | SK50: 387.8 | SL50: 377.1 | SM50: 350.1 | SN50: 322.7 | SO50: 295.7 | SP50: 268.7 | SQ50: 416.9 | SR50: 405.4 | SS50: 376.4 | ST50: 346.9 | SU50: 317.9 | SV50: 288.9 | SW50: 387.8 | SX50: 377.1 | SY50: 350.1 | SZ50: 322.7 | TA50: 295.7 | TB50: 268.7
D51: Réseau de Soins | F51: 51 | G51: 414 | H51: 402.5 | I51: 373.5 | J51: 344 | K51: 315 | L51: 286 | M51: 385.1 | N51: 374.4 | O51: 347.4 | P51: 320 | Q51: 293 | R51: 266 | S51: 393.3 | T51: 381.8 | U51: 352.8 | V51: 323.3 | W51: 294.3 | X51: 265.3 | Y51: 365.8 | Z51: 355.1 | AA51: 328.2 | AB51: 300.7 | AC51: 273.7 | AD51: 246.8 | EU51: 517 | EV51: 505.5 | EW51: 476.5 | EX51: 447 | EY51: 418 | EZ51: 389 | FA51: 480.9 | FB51: 470.2 | FC51: 443.2 | FD51: 415.8 | FE51: 388.8 | FF51: 361.8 | OY51: 497 | OZ51: 485.5 | PA51: 456.5 | PB51: 427 | PC51: 398 | PD51: 369 | PE51: 462.3 | PF51: 451.6 | PG51: 424.6 | PH51: 397.2 | PI51: 370.2 | PJ51: 343.2 | PK51: 452.3 | PL51: 440.8 | PM51: 411.8 | PN51: 382.3 | PO51: 353.3 | PP51: 324.3 | PQ51: 420.7 | PR51: 410 | PS51: 383 | PT51: 355.6 | PU51: 328.6 | PV51: 301.6
D52: PrimaPharma | F52: 52 | G52: 445.6 | H52: 434.1 | I52: 405.1 | J52: 375.6 | K52: 346.6 | L52: 317.6 | M52: 414.5 | N52: 403.8 | O52: 376.8 | P52: 349.4 | Q52: 322.4 | R52: 295.4 | S52: 423.4 | T52: 411.9 | U52: 382.9 | V52: 353.4 | W52: 324.4 | X52: 295.4 | Y52: 393.8 | Z52: 383.1 | AA52: 356.1 | AB52: 328.7 | AC52: 301.7 | AD52: 274.8 | AE52: 436 | AF52: 424.5 | AG52: 395.5 | AH52: 366 | AI52: 337 | AJ52: 308 | AK52: 405.5 | AL52: 394.8 | AM52: 367.9 | AN52: 340.4 | AO52: 313.5 | AP52: 286.5 | AQ52: 384.9 | AR52: 373.4 | AS52: 344.4 | AT52: 314.9 | AU52: 285.9 | AV52: 256.9 | AW52: 358 | AX52: 347.3 | AY52: 320.3 | AZ52: 292.9 | BA52: 265.9 | BB52: 239 | BC52: 384.1 | BD52: 372.6 | BE52: 343.6 | BF52: 314.1 | BG52: 285.1 | BH52: 256.1 | BI52: 357.3 | BJ52: 346.6 | BK52: 319.6 | BL52: 292.2 | BM52: 265.2 | BN52: 238.2 | BO52: 380.5 | BP52: 369 | BQ52: 340 | BR52: 310.5 | BS52: 281.5 | BT52: 252.5 | BU52: 353.9 | BV52: 343.2 | BW52: 316.2 | BX52: 288.8 | BY52: 261.8 | BZ52: 234.9 | CA52: 478.6 | CB52: 467.1 | CC52: 438.1 | CD52: 408.6 | CE52: 379.6 | CF52: 350.6 | CG52: 445.1 | CH52: 434.5 | CI52: 407.5 | CJ52: 380 | CK52: 353.1 | CL52: 326.1 | CM52: 426 | CN52: 414.5 | CO52: 385.5 | CP52: 356 | CQ52: 327 | CR52: 298 | CS52: 396.2 | CT52: 385.5 | CU52: 358.6 | CV52: 331.1 | CW52: 304.2 | CX52: 277.2 | CY52: 392.5 | CZ52: 381 | DA52: 352 | DB52: 322.5 | DC52: 293.5 | DD52: 264.5 | DE52: 365.1 | DF52: 354.4 | DG52: 327.4 | DH52: 300 | DI52: 273 | DJ52: 246 | DK52: 464.7 | DL52: 453.2 | DM52: 424.2 | DN52: 394.7 | DO52: 365.7 | DP52: 336.7 | DQ52: 432.2 | DR52: 421.5 | DS52: 394.6 | DT52: 367.1 | DU52: 340.2 | DV52: 313.2 | DW52: 432.2 | DX52: 420.7 | DY52: 391.7 | DZ52: 362.2 | EA52: 333.2 | EB52: 304.2 | EC52: 402 | ED52: 391.3 | EE52: 364.3 | EF52: 336.9 | EG52: 309.9 | EH52: 283 | EI52: 511.6 | EJ52: 500.1 | EK52: 471.1 | EL52: 441.6 | EM52: 412.6 | EN52: 383.6 | EO52: 475.8 | EP52: 465.1 | EQ52: 438.2 | ER52: 410.7 | ES52: 383.8 | ET52: 356.8 | EU52: 585.5 | EV52: 574 | EW52: 545 | EX52: 515.5 | EY52: 486.5 | EZ52: 457.5 | FA52: 544.6 | FB52: 533.9 | FC52: 506.9 | FD52: 479.5 | FE52: 452.5 | FF52: 425.5 | FG52: 374.6 | FH52: 363.1 | FI52: 334.1 | FJ52: 304.6 | FK52: 275.6 | FL52: 246.6 | FM52: 348.4 | FN52: 337.7 | FO52: 310.8 | FP52: 283.3 | FQ52: 256.4 | FR52: 229.4 | FS52: 395.4 | FT52: 383.9 | FU52: 354.9 | FV52: 325.4 | FW52: 296.4 | FX52: 267.4 | FY52: 367.8 | FZ52: 357.1 | GA52: 330.1 | GB52: 302.7 | GC52: 275.7 | GD52: 248.7 | GE52: 395.4 | GF52: 383.9 | GG52: 354.9 | GH52: 325.4 | GI52: 296.4 | GJ52: 267.4 | GK52: 367.8 | GL52: 357.1 | GM52: 330.1 | GN52: 302.7 | GO52: 275.7 | GP52: 248.7 | GQ52: 379.6 | GR52: 368.1 | GS52: 339.1 | GT52: 309.6 | GU52: 280.6 | GV52: 251.6 | GW52: 353.1 | GX52: 342.4 | GY52: 315.4 | GZ52: 288 | HA52: 261 | HB52: 234 | HC52: 535.3 | HD52: 523.8 | HE52: 494.8 | HF52: 465.3 | HG52: 436.3 | HH52: 407.3 | HI52: 497.9 | HJ52: 487.2 | HK52: 460.2 | HL52: 432.8 | HM52: 405.8 | HN52: 378.8 | HO52: 379.6 | HP52: 368.1 | HQ52: 339.1 | HR52: 309.6 | HS52: 280.6 | HT52: 251.6 | HU52: 353.1 | HV52: 342.4 | HW52: 315.4 | HX52: 288 | HY52: 261 | HZ52: 234 | IA52: 360.7 | IB52: 349.2 | IC52: 320.2 | ID52: 290.7 | IE52: 261.7 | IF52: 232.7 | IG52: 335.5 | IH52: 324.8 | II52: 297.8 | IJ52: 270.4 | IK52: 243.4 | IL52: 216.5 | IM52: 353.1 | IN52: 341.6 | IO52: 312.6 | IP52: 283.1 | IQ52: 254.1 | IR52: 225.1 | IS52: 328.4 | IT52: 317.7 | IU52: 290.8 | IV52: 263.3 | IW52: 236.4 | IX52: 209.4 | IY52: 545.7 | IZ52: 534.2 | JA52: 505.2 | JB52: 475.7 | JC52: 446.7 | JD52: 417.7 | JE52: 507.6 | JF52: 496.9 | JG52: 469.9 | JH52: 442.5 | JI52: 415.5 | JJ52: 388.5 | JK52: 363.2 | JL52: 351.7 | JM52: 322.7 | JN52: 293.2 | JO52: 264.2 | JP52: 235.2 | JQ52: 337.8 | JR52: 327.1 | JS52: 300.2 | JT52: 272.7 | JU52: 245.8 | JV52: 218.8 | JW52: 375.4 | JX52: 363.9 | JY52: 334.9 | JZ52: 305.4 | KA52: 276.4 | KB52: 247.4 | KC52: 349.2 | KD52: 338.5 | KE52: 311.5 | KF52: 284.1 | KG52: 257.1 | KH52: 230.1 | KI52: 388.4 | KJ52: 376.9 | KK52: 347.9 | KL52: 318.4 | KM52: 289.4 | KN52: 260.4 | KO52: 361.3 | KP52: 350.6 | KQ52: 323.6 | KR52: 296.2 | KS52: 269.2 | KT52: 242.2 | KU52: 372.8 | KV52: 361.3 | KW52: 332.3 | KX52: 302.8 | KY52: 273.8 | KZ52: 244.8 | LA52: 346.8 | LB52: 336.1 | LC52: 309.1 | LD52: 281.7 | LE52: 254.7 | LF52: 227.7 | LG52: 361.2 | LH52: 349.7 | LI52: 320.7 | LJ52: 291.2 | LK52: 262.2 | LL52: 233.2 | LM52: 336 | LN52: 325.3 | LO52: 298.3 | LP52: 270.9 | LQ52: 243.9 | LR52: 216.9 | LS52: 470.9 | LT52: 459.4 | LU52: 430.4 | LV52: 400.9 | LW52: 371.9 | LX52: 342.9 | LY52: 438 | LZ52: 427.3 | MA52: 400.3 | MB52: 372.9 | MC52: 345.9 | MD52: 318.9 | ME52: 452.1 | MF52: 440.6 | MG52: 411.6 | MH52: 382.1 | MI52: 353.1 | MJ52: 324.1 | MK52: 420.5 | ML52: 409.8 | MM52: 382.8 | MN52: 355.4 | MO52: 328.4 | MP52: 301.5 | MQ52: 410 | MR52: 398.5 | MS52: 369.5 | MT52: 340 | MU52: 311 | MV52: 282 | MW52: 381.3 | MX52: 370.7 | MY52: 343.7 | MZ52: 316.2 | NA52: 289.3 | NB52: 262.3 | NC52: 381.4 | ND52: 369.9 | NE52: 340.9 | NF52: 311.4 | NG52: 282.4 | NH52: 253.4 | NI52: 354.8 | NJ52: 344.1 | NK52: 317.1 | NL52: 289.7 | NM52: 262.7 | NN52: 235.7 | NO52: 485.7 | NP52: 474.2 | NQ52: 445.2 | NR52: 415.7 | NS52: 386.7 | NT52: 357.7 | NU52: 451.8 | NV52: 441.1 | NW52: 414.1 | NX52: 386.7 | NY52: 359.7 | NZ52: 332.7 | OA52: 456.5 | OB52: 445 | OC52: 416 | OD52: 386.5 | OE52: 357.5 | OF52: 328.5 | OG52: 424.6 | OH52: 413.9 | OI52: 386.9 | OJ52: 359.5 | OK52: 332.5 | OL52: 305.6 | OM52: 332.7 | ON52: 321.2 | OO52: 292.2 | OP52: 262.7 | OQ52: 233.7 | OR52: 204.7 | OS52: 309.5 | OT52: 298.8 | OU52: 271.8 | OV52: 244.4 | OW52: 217.4 | OX52: 190.8 | OY52: 492.5 | OZ52: 481 | PA52: 452 | PB52: 422.5 | PC52: 393.5 | PD52: 364.5 | PE52: 458.1 | PF52: 447.4 | PG52: 420.4 | PH52: 393 | PI52: 366 | PJ52: 339 | PK52: 448.2 | PL52: 436.7 | PM52: 407.7 | PN52: 378.2 | PO52: 349.2 | PP52: 320.2 | PQ52: 416.9 | PR52: 406.2 | PS52: 379.2 | PT52: 351.8 | PU52: 324.8 | PV52: 297.8 | PW52: 410.9 | PX52: 399.4 | PY52: 370.4 | PZ52: 340.9 | QA52: 311.9 | QB52: 282.9 | QC52: 382.2 | QD52: 371.5 | QE52: 344.5 | QF52: 317.1 | QG52: 290.1 | QH52: 263.1 | QI52: 402.7 | QJ52: 391.2 | QK52: 362.2 | QL52: 332.7 | QM52: 303.7 | QN52: 274.7 | QO52: 374.6 | QP52: 363.9 | QQ52: 336.9 | QR52: 309.5 | QS52: 282.5 | QT52: 255.5 | RG52: 346.7 | RH52: 335.2 | RI52: 306.2 | RJ52: 276.7 | RK52: 247.7 | RL52: 218.7 | RM52: 322.5 | RN52: 311.8 | RO52: 284.8 | RP52: 257.4 | RQ52: 230.4 | RR52: 203.4 | RS52: 429.9 | RT52: 418.4 | RU52: 389.4 | RV52: 359.9 | RW52: 330.9 | RX52: 301.9 | RY52: 399.9 | RZ52: 389.2 | SA52: 362.2 | SB52: 334.8 | SC52: 307.8 | SD52: 280.8 | SE52: 408.5 | SF52: 397 | SG52: 368 | SH52: 338.5 | SI52: 309.5 | SJ52: 280.5 | SK52: 380 | SL52: 369.3 | SM52: 342.3 | SN52: 314.9 | SO52: 287.9 | SP52: 260.9 | SQ52: 408.5 | SR52: 397 | SS52: 368 | ST52: 338.5 | SU52: 309.5 | SV52: 280.5 | SW52: 380 | SX52: 369.3 | SY52: 342.3 | SZ52: 314.9 | TA52: 287.9 | TB52: 260.9
C53: TAR-DIV | D53: PrimaTel | F53: 53 | G53: 452.3 | H53: 440.8 | I53: 411.8 | J53: 382.3 | K53: 353.3 | L53: 324.3 | M53: 420.7 | N53: 410 | O53: 383 | P53: 355.6 | Q53: 328.6 | R53: 301.6 | S53: 429.7 | T53: 418.2 | U53: 389.2 | V53: 359.7 | W53: 330.7 | X53: 301.7 | Y53: 399.7 | Z53: 389 | AA53: 362 | AB53: 334.6 | AC53: 307.6 | AD53: 280.6 | AE53: 442.5 | AF53: 431 | AG53: 402 | AH53: 372.5 | AI53: 343.5 | AJ53: 314.5 | AK53: 411.6 | AL53: 400.9 | AM53: 373.9 | AN53: 346.5 | AO53: 319.5 | AP53: 292.5 | AQ53: 390.6 | AR53: 379.1 | AS53: 350.1 | AT53: 320.6 | AU53: 291.6 | AV53: 262.6 | AW53: 363.3 | AX53: 352.6 | AY53: 325.6 | AZ53: 298.2 | BA53: 271.2 | BB53: 244.3 | BC53: 389.8 | BD53: 378.3 | BE53: 349.3 | BF53: 319.8 | BG53: 290.8 | BH53: 261.8 | BI53: 362.6 | BJ53: 351.9 | BK53: 324.9 | BL53: 297.5 | BM53: 270.5 | BN53: 243.5 | BO53: 386.2 | BP53: 374.7 | BQ53: 345.7 | BR53: 316.2 | BS53: 287.2 | BT53: 258.2 | BU53: 359.2 | BV53: 348.5 | BW53: 321.6 | BX53: 294.1 | BY53: 267.1 | BZ53: 240.2 | CA53: 485.7 | CB53: 474.2 | CC53: 445.2 | CD53: 415.7 | CE53: 386.7 | CF53: 357.7 | CG53: 451.8 | CH53: 441.1 | CI53: 414.1 | CJ53: 386.7 | CK53: 359.7 | CL53: 332.7 | CM53: 434.8 | CN53: 423.3 | CO53: 394.3 | CP53: 364.8 | CQ53: 335.8 | CR53: 306.8 | CS53: 404.4 | CT53: 393.7 | CU53: 366.7 | CV53: 339.3 | CW53: 312.3 | CX53: 285.4 | CY53: 400.6 | CZ53: 389.1 | DA53: 360.1 | DB53: 330.6 | DC53: 301.6 | DD53: 272.6 | DE53: 372.6 | DF53: 361.9 | DG53: 334.9 | DH53: 307.5 | DI53: 280.5 | DJ53: 253.6 | DK53: 471.7 | DL53: 460.2 | DM53: 431.2 | DN53: 401.7 | DO53: 372.7 | DP53: 343.7 | DQ53: 438.7 | DR53: 428 | DS53: 401.1 | DT53: 373.6 | DU53: 346.7 | DV53: 319.7 | DW53: 438.7 | DX53: 427.2 | DY53: 398.2 | DZ53: 368.7 | EA53: 339.7 | EB53: 310.7 | EC53: 408 | ED53: 397.3 | EE53: 370.4 | EF53: 342.9 | EG53: 316 | EH53: 289 | EI53: 519.2 | EJ53: 507.7 | EK53: 478.7 | EL53: 449.2 | EM53: 420.2 | EN53: 391.2 | EO53: 482.9 | EP53: 472.2 | EQ53: 445.2 | ER53: 417.8 | ES53: 390.8 | ET53: 363.9 | EU53: 594.2 | EV53: 582.7 | EW53: 553.7 | EX53: 524.2 | EY53: 495.2 | EZ53: 466.2 | FA53: 552.7 | FB53: 542 | FC53: 515 | FD53: 487.6 | FE53: 460.6 | FF53: 433.6 | FG53: 378 | FH53: 366.5 | FI53: 337.5 | FJ53: 308 | FK53: 279 | FL53: 250 | FM53: 351.6 | FN53: 340.9 | FO53: 313.9 | FP53: 286.5 | FQ53: 259.5 | FR53: 232.5 | FS53: 401.3 | FT53: 389.8 | FU53: 360.8 | FV53: 331.3 | FW53: 302.3 | FX53: 273.3 | FY53: 373.3 | FZ53: 362.6 | GA53: 335.6 | GB53: 308.2 | GC53: 281.2 | GD53: 254.2 | GE53: 399 | GF53: 387.5 | GG53: 358.5 | GH53: 329 | GI53: 300 | GJ53: 271 | GK53: 371.1 | GL53: 360.4 | GM53: 333.5 | GN53: 306 | GO53: 279 | GP53: 252.1 | GQ53: 383.1 | GR53: 371.6 | GS53: 342.6 | GT53: 313.1 | GU53: 284.1 | GV53: 255.1 | GW53: 356.3 | GX53: 345.6 | GY53: 318.7 | GZ53: 291.2 | HA53: 264.3 | HB53: 237.3 | HC53: 543.3 | HD53: 531.8 | HE53: 502.8 | HF53: 473.3 | HG53: 444.3 | HH53: 415.3 | HI53: 505.3 | HJ53: 494.6 | HK53: 467.7 | HL53: 440.2 | HM53: 413.2 | HN53: 386.3 | HO53: 385.3 | HP53: 373.8 | HQ53: 344.8 | HR53: 315.3 | HS53: 286.3 | HT53: 257.3 | HU53: 358.4 | HV53: 347.7 | HW53: 320.7 | HX53: 293.3 | HY53: 266.3 | HZ53: 239.3 | IA53: 366 | IB53: 354.5 | IC53: 325.5 | ID53: 296 | IE53: 267 | IF53: 238 | IG53: 340.4 | IH53: 329.7 | II53: 302.8 | IJ53: 275.3 | IK53: 248.4 | IL53: 221.4 | IM53: 358.3 | IN53: 346.8 | IO53: 317.8 | IP53: 288.3 | IQ53: 259.3 | IR53: 230.3 | IS53: 333.3 | IT53: 322.6 | IU53: 295.6 | IV53: 268.2 | IW53: 241.2 | IX53: 214.2 | IY53: 553.9 | IZ53: 542.4 | JA53: 513.4 | JB53: 483.9 | JC53: 454.9 | JD53: 425.9 | JE53: 515.2 | JF53: 504.5 | JG53: 477.5 | JH53: 450.1 | JI53: 423.1 | JJ53: 396.1 | JK53: 368.7 | JL53: 357.2 | JM53: 328.2 | JN53: 298.7 | JO53: 269.7 | JP53: 240.7 | JQ53: 342.9 | JR53: 332.2 | JS53: 305.3 | JT53: 277.8 | JU53: 250.9 | JV53: 223.9 | JW53: 381 | JX53: 369.5 | JY53: 340.5 | JZ53: 311 | KA53: 282 | KB53: 253 | KC53: 354.4 | KD53: 343.7 | KE53: 316.7 | KF53: 289.3 | KG53: 262.3 | KH53: 235.3 | KI53: 394.1 | KJ53: 382.6 | KK53: 353.6 | KL53: 324.1 | KM53: 295.1 | KN53: 266.1 | KO53: 366.6 | KP53: 355.9 | KQ53: 328.9 | KR53: 301.5 | KS53: 274.5 | KT53: 247.5 | KU53: 378.4 | KV53: 366.9 | KW53: 337.9 | KX53: 308.4 | KY53: 279.4 | KZ53: 250.4 | LA53: 352 | LB53: 341.3 | LC53: 314.3 | LD53: 286.9 | LE53: 259.9 | LF53: 232.9 | LG53: 366.6 | LH53: 355.1 | LI53: 326.1 | LJ53: 296.6 | LK53: 267.6 | LL53: 238.6 | LM53: 341 | LN53: 330.3 | LO53: 303.3 | LP53: 275.9 | LQ53: 248.9 | LR53: 221.9 | LS53: 469.8 | LT53: 458.3 | LU53: 429.3 | LV53: 399.8 | LW53: 370.8 | LX53: 341.8 | LY53: 437 | LZ53: 426.3 | MA53: 399.3 | MB53: 371.9 | MC53: 344.9 | MD53: 317.9 | ME53: 451.1 | MF53: 439.6 | MG53: 410.6 | MH53: 381.1 | MI53: 352.1 | MJ53: 323.1 | MK53: 419.6 | ML53: 408.9 | MM53: 381.9 | MN53: 354.5 | MO53: 327.5 | MP53: 300.5 | MQ53: 416.1 | MR53: 404.6 | MS53: 375.6 | MT53: 346.1 | MU53: 317.1 | MV53: 288.1 | MW53: 387 | MX53: 376.3 | MY53: 349.4 | MZ53: 321.9 | NA53: 295 | NB53: 268 | NC53: 389.2 | ND53: 377.7 | NE53: 348.7 | NF53: 319.2 | NG53: 290.2 | NH53: 261.2 | NI53: 362 | NJ53: 351.3 | NK53: 324.3 | NL53: 296.9 | NM53: 269.9 | NN53: 243 | NO53: 492.9 | NP53: 481.4 | NQ53: 452.4 | NR53: 422.9 | NS53: 393.9 | NT53: 364.9 | NU53: 458.4 | NV53: 447.8 | NW53: 420.8 | NX53: 393.3 | NY53: 366.4 | NZ53: 339.4 | OA53: 463.3 | OB53: 451.8 | OC53: 422.8 | OD53: 393.3 | OE53: 364.3 | OF53: 335.3 | OG53: 430.9 | OH53: 420.2 | OI53: 393.3 | OJ53: 365.8 | OK53: 338.8 | OL53: 311.9 | OM53: 337.7 | ON53: 326.2 | OO53: 297.2 | OP53: 267.7 | OQ53: 238.7 | OR53: 209.7 | OS53: 314.1 | OT53: 303.4 | OU53: 276.4 | OV53: 249 | OW53: 222 | OX53: 195.1 | OY53: 494.2 | OZ53: 482.7 | PA53: 453.7 | PB53: 424.2 | PC53: 395.2 | PD53: 366.2 | PE53: 459.7 | PF53: 449 | PG53: 422 | PH53: 394.6 | PI53: 367.6 | PJ53: 340.6 | PK53: 452.3 | PL53: 440.8 | PM53: 411.8 | PN53: 382.3 | PO53: 353.3 | PP53: 324.3 | PQ53: 420.7 | PR53: 410 | PS53: 383 | PT53: 355.6 | PU53: 328.6 | PV53: 301.6 | PW53: 417.1 | PX53: 405.6 | PY53: 376.6 | PZ53: 347.1 | QA53: 318.1 | QB53: 289.1 | QC53: 388 | QD53: 377.3 | QE53: 350.3 | QF53: 322.9 | QG53: 295.9 | QH53: 268.9 | QI53: 408.7 | QJ53: 397.2 | QK53: 368.2 | QL53: 338.7 | QM53: 309.7 | QN53: 280.7 | QO53: 380.1 | QP53: 369.4 | QQ53: 342.5 | QR53: 315 | QS53: 288.1 | QT53: 261.1 | RG53: 351.8 | RH53: 340.3 | RI53: 311.3 | RJ53: 281.8 | RK53: 252.8 | RL53: 223.8 | RM53: 327.2 | RN53: 316.5 | RO53: 289.6 | RP53: 262.1 | RQ53: 235.2 | RR53: 208.2 | RS53: 436.4 | RT53: 424.9 | RU53: 395.9 | RV53: 366.4 | RW53: 337.4 | RX53: 308.4 | RY53: 405.9 | RZ53: 395.2 | SA53: 368.2 | SB53: 340.8 | SC53: 313.8 | SD53: 286.9 | SE53: 414.5 | SF53: 403 | SG53: 374 | SH53: 344.5 | SI53: 315.5 | SJ53: 286.5 | SK53: 385.5 | SL53: 374.8 | SM53: 347.9 | SN53: 320.4 | SO53: 293.5 | SP53: 266.5 | SQ53: 414.5 | SR53: 403 | SS53: 374 | ST53: 344.5 | SU53: 315.5 | SV53: 286.5 | SW53: 385.5 | SX53: 374.8 | SY53: 347.9 | SZ53: 320.4 | TA53: 293.5 | TB53: 266.5
D54: SanaTel | F54: 54 | G54: 449.7 | H54: 438.2 | I54: 409.2 | J54: 379.7 | K54: 350.7 | L54: 321.7 | M54: 418.3 | N54: 407.6 | O54: 380.6 | P54: 353.2 | Q54: 326.2 | R54: 299.2 | S54: 427.2 | T54: 415.7 | U54: 386.7 | V54: 357.2 | W54: 328.2 | X54: 299.2 | Y54: 397.3 | Z54: 386.7 | AA54: 359.7 | AB54: 332.2 | AC54: 305.3 | AD54: 278.3 | AE54: 440 | AF54: 428.5 | AG54: 399.5 | AH54: 370 | AI54: 341 | AJ54: 312 | AK54: 409.2 | AL54: 398.6 | AM54: 371.6 | AN54: 344.1 | AO54: 317.2 | AP54: 290.2 | AQ54: 392.8 | AR54: 381.3 | AS54: 352.3 | AT54: 322.8 | AU54: 293.8 | AV54: 264.8 | AW54: 365.4 | AX54: 354.7 | AY54: 327.7 | AZ54: 300.3 | BA54: 273.3 | BB54: 246.3 | BC54: 392 | BD54: 380.5 | BE54: 351.5 | BF54: 322 | BG54: 293 | BH54: 264 | BI54: 364.6 | BJ54: 353.9 | BK54: 326.9 | BL54: 299.5 | BM54: 272.5 | BN54: 245.6 | BO54: 384 | BP54: 372.5 | BQ54: 343.5 | BR54: 314 | BS54: 285 | BT54: 256 | BU54: 357.2 | BV54: 346.5 | BW54: 319.5 | BX54: 292.1 | BY54: 265.1 | BZ54: 238.1 | CA54: 483 | CB54: 471.5 | CC54: 442.5 | CD54: 413 | CE54: 384 | CF54: 355 | CG54: 449.2 | CH54: 438.5 | CI54: 411.6 | CJ54: 384.1 | CK54: 357.2 | CL54: 330.2 | CM54: 429.9 | CN54: 418.4 | CO54: 389.4 | CP54: 359.9 | CQ54: 330.9 | CR54: 301.9 | CS54: 399.9 | CT54: 389.2 | CU54: 362.2 | CV54: 334.8 | CW54: 307.8 | CX54: 280.8 | CY54: 396.1 | CZ54: 384.6 | DA54: 355.6 | DB54: 326.1 | DC54: 297.1 | DD54: 268.1 | DE54: 368.4 | DF54: 357.7 | DG54: 330.8 | DH54: 303.3 | DI54: 276.4 | DJ54: 249.4 | DK54: 469 | DL54: 457.5 | DM54: 428.5 | DN54: 399 | DO54: 370 | DP54: 341 | DQ54: 436.2 | DR54: 425.5 | DS54: 398.6 | DT54: 371.1 | DU54: 344.1 | DV54: 317.2 | DW54: 436.2 | DX54: 424.7 | DY54: 395.7 | DZ54: 366.2 | EA54: 337.2 | EB54: 308.2 | EC54: 405.7 | ED54: 395 | EE54: 368.1 | EF54: 340.6 | EG54: 313.6 | EH54: 286.7 | EI54: 516.3 | EJ54: 504.8 | EK54: 475.8 | EL54: 446.3 | EM54: 417.3 | EN54: 388.3 | EO54: 480.2 | EP54: 469.5 | EQ54: 442.5 | ER54: 415.1 | ES54: 388.1 | ET54: 361.2 | EU54: 590.9 | EV54: 579.4 | EW54: 550.4 | EX54: 520.9 | EY54: 491.9 | EZ54: 462.9 | FA54: 549.6 | FB54: 538.9 | FC54: 511.9 | FD54: 484.5 | FE54: 457.5 | FF54: 430.5 | FG54: 382.3 | FH54: 370.8 | FI54: 341.8 | FJ54: 312.3 | FK54: 283.3 | FL54: 254.3 | FM54: 355.6 | FN54: 344.9 | FO54: 317.9 | FP54: 290.5 | FQ54: 263.5 | FR54: 236.5 | FS54: 403.6 | FT54: 392.1 | FU54: 363.1 | FV54: 333.6 | FW54: 304.6 | FX54: 275.6 | FY54: 375.4 | FZ54: 364.7 | GA54: 337.7 | GB54: 310.3 | GC54: 283.3 | GD54: 256.4 | GE54: 403.6 | GF54: 392.1 | GG54: 363.1 | GH54: 333.6 | GI54: 304.6 | GJ54: 275.6 | GK54: 375.4 | GL54: 364.7 | GM54: 337.7 | GN54: 310.3 | GO54: 283.3 | GP54: 256.4 | GQ54: 387.4 | GR54: 375.9 | GS54: 346.9 | GT54: 317.4 | GU54: 288.4 | GV54: 259.4 | GW54: 360.3 | GX54: 349.6 | GY54: 322.7 | GZ54: 295.2 | HA54: 268.3 | HB54: 241.3 | HC54: 540.2 | HD54: 528.7 | HE54: 499.7 | HF54: 470.2 | HG54: 441.2 | HH54: 412.2 | HI54: 502.4 | HJ54: 491.7 | HK54: 464.8 | HL54: 437.3 | HM54: 410.4 | HN54: 383.4 | HO54: 387.5 | HP54: 376 | HQ54: 347 | HR54: 317.5 | HS54: 288.5 | HT54: 259.5 | HU54: 360.4 | HV54: 349.7 | HW54: 322.8 | HX54: 295.3 | HY54: 268.4 | HZ54: 241.4 | IA54: 368.1 | IB54: 356.6 | IC54: 327.6 | ID54: 298.1 | IE54: 269.1 | IF54: 240.1 | IG54: 342.4 | IH54: 331.7 | II54: 304.7 | IJ54: 277.3 | IK54: 250.3 | IL54: 223.3 | IM54: 360.3 | IN54: 348.8 | IO54: 319.8 | IP54: 290.3 | IQ54: 261.3 | IR54: 232.3 | IS54: 335.1 | IT54: 324.4 | IU54: 297.5 | IV54: 270 | IW54: 243.1 | IX54: 216.1 | IY54: 550.8 | IZ54: 539.3 | JA54: 510.3 | JB54: 480.8 | JC54: 451.8 | JD54: 422.8 | JE54: 512.3 | JF54: 501.6 | JG54: 474.6 | JH54: 447.2 | JI54: 420.2 | JJ54: 393.3 | JK54: 370.7 | JL54: 359.2 | JM54: 330.2 | JN54: 300.7 | JO54: 271.7 | JP54: 242.7 | JQ54: 344.8 | JR54: 334.1 | JS54: 307.1 | JT54: 279.7 | JU54: 252.7 | JV54: 225.8 | JW54: 378.8 | JX54: 367.3 | JY54: 338.3 | JZ54: 308.8 | KA54: 279.8 | KB54: 250.8 | KC54: 352.3 | KD54: 341.6 | KE54: 314.7 | KF54: 287.2 | KG54: 260.3 | KH54: 233.3 | KI54: 396.4 | KJ54: 384.9 | KK54: 355.9 | KL54: 326.4 | KM54: 297.4 | KN54: 268.4 | KO54: 368.7 | KP54: 358 | KQ54: 331 | KR54: 303.6 | KS54: 276.6 | KT54: 249.7 | KU54: 380.5 | KV54: 369 | KW54: 340 | KX54: 310.5 | KY54: 281.5 | KZ54: 252.5 | LA54: 353.9 | LB54: 343.2 | LC54: 316.2 | LD54: 288.8 | LE54: 261.8 | LF54: 234.9 | LG54: 368.6 | LH54: 357.1 | LI54: 328.1 | LJ54: 298.6 | LK54: 269.6 | LL54: 240.6 | LM54: 342.8 | LN54: 332.2 | LO54: 305.2 | LP54: 277.7 | LQ54: 250.8 | LR54: 223.8 | LS54: 480.6 | LT54: 469.1 | LU54: 440.1 | LV54: 410.6 | LW54: 381.6 | LX54: 352.6 | LY54: 447 | LZ54: 436.3 | MA54: 409.3 | MB54: 381.9 | MC54: 354.9 | MD54: 328 | ME54: 461.4 | MF54: 449.9 | MG54: 420.9 | MH54: 391.4 | MI54: 362.4 | MJ54: 333.4 | MK54: 429.2 | ML54: 418.5 | MM54: 391.5 | MN54: 364.1 | MO54: 337.1 | MP54: 310.1 | MQ54: 413.7 | MR54: 402.2 | MS54: 373.2 | MT54: 343.7 | MU54: 314.7 | MV54: 285.7 | MW54: 384.8 | MX54: 374.1 | MY54: 347.1 | MZ54: 319.7 | NA54: 292.7 | NB54: 265.8 | NC54: 389.2 | ND54: 377.7 | NE54: 348.7 | NF54: 319.2 | NG54: 290.2 | NH54: 261.2 | NI54: 362 | NJ54: 351.3 | NK54: 324.3 | NL54: 296.9 | NM54: 269.9 | NN54: 243 | NO54: 490.1 | NP54: 478.6 | NQ54: 449.6 | NR54: 420.1 | NS54: 391.1 | NT54: 362.1 | NU54: 455.8 | NV54: 445.1 | NW54: 418.2 | NX54: 390.7 | NY54: 363.8 | NZ54: 336.8 | OA54: 460.7 | OB54: 449.2 | OC54: 420.2 | OD54: 390.7 | OE54: 361.7 | OF54: 332.7 | OG54: 428.5 | OH54: 417.8 | OI54: 390.8 | OJ54: 363.4 | OK54: 336.4 | OL54: 309.5 | OM54: 339.6 | ON54: 328.1 | OO54: 299.1 | OP54: 269.6 | OQ54: 240.6 | OR54: 211.6 | OS54: 315.9 | OT54: 305.2 | OU54: 278.2 | OV54: 250.8 | OW54: 223.8 | OX54: 196.8 | OY54: 491.3 | OZ54: 479.8 | PA54: 450.8 | PB54: 421.3 | PC54: 392.3 | PD54: 363.3 | PE54: 457 | PF54: 446.3 | PG54: 419.3 | PH54: 391.9 | PI54: 364.9 | PJ54: 337.9 | PK54: 447.1 | PL54: 435.6 | PM54: 406.6 | PN54: 377.1 | PO54: 348.1 | PP54: 319.1 | PQ54: 415.9 | PR54: 405.2 | PS54: 378.2 | PT54: 350.8 | PU54: 323.8 | PV54: 296.8 | PW54: 414.7 | PX54: 403.2 | PY54: 374.2 | PZ54: 344.7 | QA54: 315.7 | QB54: 286.7 | QC54: 385.7 | QD54: 375 | QE54: 348.1 | QF54: 320.6 | QG54: 293.7 | QH54: 266.7 | QI54: 406.4 | QJ54: 394.9 | QK54: 365.9 | QL54: 336.4 | QM54: 307.4 | QN54: 278.4 | QO54: 378 | QP54: 367.3 | QQ54: 340.3 | QR54: 312.9 | QS54: 285.9 | QT54: 259 | RG54: 353.8 | RH54: 342.3 | RI54: 313.3 | RJ54: 283.8 | RK54: 254.8 | RL54: 225.8 | RM54: 329.1 | RN54: 318.4 | RO54: 291.4 | RP54: 264 | RQ54: 237 | RR54: 210 | RS54: 429 | RT54: 417.5 | RU54: 388.5 | RV54: 359 | RW54: 330 | RX54: 301 | RY54: 399 | RZ54: 388.3 | SA54: 361.4 | SB54: 333.9 | SC54: 306.9 | SD54: 280 | SE54: 407.5 | SF54: 396 | SG54: 367 | SH54: 337.5 | SI54: 308.5 | SJ54: 279.5 | SK54: 379 | SL54: 368.3 | SM54: 341.4 | SN54: 313.9 | SO54: 287 | SP54: 260 | SQ54: 407.5 | SR54: 396 | SS54: 367 | ST54: 337.5 | SU54: 308.5 | SV54: 279.5 | SW54: 379 | SX54: 368.3 | SY54: 341.4 | SZ54: 313.9 | TA54: 287 | TB54: 260
D55: CallDoc | F55: 55 | G55: 449.7 | H55: 438.2 | I55: 409.2 | J55: 379.7 | K55: 350.7 | L55: 321.7 | M55: 418.3 | N55: 407.6 | O55: 380.6 | P55: 353.2 | Q55: 326.2 | R55: 299.2 | S55: 427.2 | T55: 415.7 | U55: 386.7 | V55: 357.2 | W55: 328.2 | X55: 299.2 | Y55: 397.3 | Z55: 386.7 | AA55: 359.7 | AB55: 332.2 | AC55: 305.3 | AD55: 278.3 | AE55: 440 | AF55: 428.5 | AG55: 399.5 | AH55: 370 | AI55: 341 | AJ55: 312 | AK55: 409.2 | AL55: 398.6 | AM55: 371.6 | AN55: 344.1 | AO55: 317.2 | AP55: 290.2 | AQ55: 388.4 | AR55: 376.9 | AS55: 347.9 | AT55: 318.4 | AU55: 289.4 | AV55: 260.4 | AW55: 361.3 | AX55: 350.6 | AY55: 323.6 | AZ55: 296.2 | BA55: 269.2 | BB55: 242.2 | BC55: 387.6 | BD55: 376.1 | BE55: 347.1 | BF55: 317.6 | BG55: 288.6 | BH55: 259.6 | BI55: 360.5 | BJ55: 349.8 | BK55: 322.9 | BL55: 295.4 | BM55: 268.4 | BN55: 241.5 | BO55: 384 | BP55: 372.5 | BQ55: 343.5 | BR55: 314 | BS55: 285 | BT55: 256 | BU55: 357.2 | BV55: 346.5 | BW55: 319.5 | BX55: 292.1 | BY55: 265.1 | BZ55: 238.1 | CA55: 483 | CB55: 471.5 | CC55: 442.5 | CD55: 413 | CE55: 384 | CF55: 355 | CG55: 449.2 | CH55: 438.5 | CI55: 411.6 | CJ55: 384.1 | CK55: 357.2 | CL55: 330.2 | CM55: 429.9 | CN55: 418.4 | CO55: 389.4 | CP55: 359.9 | CQ55: 330.9 | CR55: 301.9 | CS55: 399.9 | CT55: 389.2 | CU55: 362.2 | CV55: 334.8 | CW55: 307.8 | CX55: 280.8 | CY55: 396.1 | CZ55: 384.6 | DA55: 355.6 | DB55: 326.1 | DC55: 297.1 | DD55: 268.1 | DE55: 368.4 | DF55: 357.7 | DG55: 330.8 | DH55: 303.3 | DI55: 276.4 | DJ55: 249.4 | DK55: 469 | DL55: 457.5 | DM55: 428.5 | DN55: 399 | DO55: 370 | DP55: 341 | DQ55: 436.2 | DR55: 425.5 | DS55: 398.6 | DT55: 371.1 | DU55: 344.1 | DV55: 317.2 | DW55: 436.2 | DX55: 424.7 | DY55: 395.7 | DZ55: 366.2 | EA55: 337.2 | EB55: 308.2 | EC55: 405.7 | ED55: 395 | EE55: 368.1 | EF55: 340.6 | EG55: 313.6 | EH55: 286.7 | EI55: 516.3 | EJ55: 504.8 | EK55: 475.8 | EL55: 446.3 | EM55: 417.3 | EN55: 388.3 | EO55: 480.2 | EP55: 469.5 | EQ55: 442.5 | ER55: 415.1 | ES55: 388.1 | ET55: 361.2 | EU55: 590.9 | EV55: 579.4 | EW55: 550.4 | EX55: 520.9 | EY55: 491.9 | EZ55: 462.9 | FA55: 549.6 | FB55: 538.9 | FC55: 511.9 | FD55: 484.5 | FE55: 457.5 | FF55: 430.5 | FG55: 378 | FH55: 366.5 | FI55: 337.5 | FJ55: 308 | FK55: 279 | FL55: 250 | FM55: 351.6 | FN55: 340.9 | FO55: 313.9 | FP55: 286.5 | FQ55: 259.5 | FR55: 232.5 | FS55: 399 | FT55: 387.5 | FU55: 358.5 | FV55: 329 | FW55: 300 | FX55: 271 | FY55: 371.1 | FZ55: 360.4 | GA55: 333.5 | GB55: 306 | GC55: 279 | GD55: 252.1 | GE55: 399 | GF55: 387.5 | GG55: 358.5 | GH55: 329 | GI55: 300 | GJ55: 271 | GK55: 371.1 | GL55: 360.4 | GM55: 333.5 | GN55: 306 | GO55: 279 | GP55: 252.1 | GQ55: 383.1 | GR55: 371.6 | GS55: 342.6 | GT55: 313.1 | GU55: 284.1 | GV55: 255.1 | GW55: 356.3 | GX55: 345.6 | GY55: 318.7 | GZ55: 291.2 | HA55: 264.3 | HB55: 237.3 | HC55: 540.2 | HD55: 528.7 | HE55: 499.7 | HF55: 470.2 | HG55: 441.2 | HH55: 412.2 | HI55: 502.4 | HJ55: 491.7 | HK55: 464.8 | HL55: 437.3 | HM55: 410.4 | HN55: 383.4 | HO55: 383.1 | HP55: 371.6 | HQ55: 342.6 | HR55: 313.1 | HS55: 284.1 | HT55: 255.1 | HU55: 356.3 | HV55: 345.6 | HW55: 318.7 | HX55: 291.2 | HY55: 264.3 | HZ55: 237.3 | IA55: 364 | IB55: 352.5 | IC55: 323.5 | ID55: 294 | IE55: 265 | IF55: 236 | IG55: 338.6 | IH55: 327.9 | II55: 300.9 | IJ55: 273.5 | IK55: 246.5 | IL55: 219.5 | IM55: 356.3 | IN55: 344.8 | IO55: 315.8 | IP55: 286.3 | IQ55: 257.3 | IR55: 228.3 | IS55: 331.4 | IT55: 320.7 | IU55: 293.7 | IV55: 266.3 | IW55: 239.3 | IX55: 212.4 | IY55: 550.8 | IZ55: 539.3 | JA55: 510.3 | JB55: 480.8 | JC55: 451.8 | JD55: 422.8 | JE55: 512.3 | JF55: 501.6 | JG55: 474.6 | JH55: 447.2 | JI55: 420.2 | JJ55: 393.3 | JK55: 366.6 | JL55: 355.1 | JM55: 326.1 | JN55: 296.6 | JO55: 267.6 | JP55: 238.6 | JQ55: 341 | JR55: 330.3 | JS55: 303.3 | JT55: 275.9 | JU55: 248.9 | JV55: 221.9 | JW55: 378.8 | JX55: 367.3 | JY55: 338.3 | JZ55: 308.8 | KA55: 279.8 | KB55: 250.8 | KC55: 352.3 | KD55: 341.6 | KE55: 314.7 | KF55: 287.2 | KG55: 260.3 | KH55: 233.3 | KI55: 391.9 | KJ55: 380.4 | KK55: 351.4 | KL55: 321.9 | KM55: 292.9 | KN55: 263.9 | KO55: 364.5 | KP55: 353.8 | KQ55: 326.9 | KR55: 299.4 | KS55: 272.4 | KT55: 245.5 | KU55: 376.2 | KV55: 364.7 | KW55: 335.7 | KX55: 306.2 | KY55: 277.2 | KZ55: 248.2 | LA55: 349.9 | LB55: 339.2 | LC55: 312.3 | LD55: 284.8 | LE55: 257.8 | LF55: 230.9 | LG55: 364.5 | LH55: 353 | LI55: 324 | LJ55: 294.5 | LK55: 265.5 | LL55: 236.5 | LM55: 339 | LN55: 328.3 | LO55: 301.4 | LP55: 273.9 | LQ55: 247 | LR55: 220 | LS55: 475.2 | LT55: 463.7 | LU55: 434.7 | LV55: 405.2 | LW55: 376.2 | LX55: 347.2 | LY55: 442 | LZ55: 431.3 | MA55: 404.3 | MB55: 376.9 | MC55: 349.9 | MD55: 322.9 | ME55: 456.2 | MF55: 444.7 | MG55: 415.7 | MH55: 386.2 | MI55: 357.2 | MJ55: 328.2 | MK55: 424.3 | ML55: 413.6 | MM55: 386.7 | MN55: 359.2 | MO55: 332.2 | MP55: 305.3 | MQ55: 413.7 | MR55: 402.2 | MS55: 373.2 | MT55: 343.7 | MU55: 314.7 | MV55: 285.7 | MW55: 384.8 | MX55: 374.1 | MY55: 347.1 | MZ55: 319.7 | NA55: 292.7 | NB55: 265.8 | NC55: 384.9 | ND55: 373.4 | NE55: 344.4 | NF55: 314.9 | NG55: 285.9 | NH55: 256.9 | NI55: 358 | NJ55: 347.3 | NK55: 320.3 | NL55: 292.9 | NM55: 265.9 | NN55: 239 | NO55: 490.1 | NP55: 478.6 | NQ55: 449.6 | NR55: 420.1 | NS55: 391.1 | NT55: 362.1 | NU55: 455.8 | NV55: 445.1 | NW55: 418.2 | NX55: 390.7 | NY55: 363.8 | NZ55: 336.8 | OA55: 460.7 | OB55: 449.2 | OC55: 420.2 | OD55: 390.7 | OE55: 361.7 | OF55: 332.7 | OG55: 428.5 | OH55: 417.8 | OI55: 390.8 | OJ55: 363.4 | OK55: 336.4 | OL55: 309.5 | OM55: 335.8 | ON55: 324.3 | OO55: 295.3 | OP55: 265.8 | OQ55: 236.8 | OR55: 207.8 | OS55: 312.3 | OT55: 301.6 | OU55: 274.7 | OV55: 247.2 | OW55: 220.3 | OX55: 193.3 | OY55: 497 | OZ55: 485.5 | PA55: 456.5 | PB55: 427 | PC55: 398 | PD55: 369 | PE55: 462.3 | PF55: 451.6 | PG55: 424.6 | PH55: 397.2 | PI55: 370.2 | PJ55: 343.2 | PK55: 452.3 | PL55: 440.8 | PM55: 411.8 | PN55: 382.3 | PO55: 353.3 | PP55: 324.3 | PQ55: 420.7 | PR55: 410 | PS55: 383 | PT55: 355.6 | PU55: 328.6 | PV55: 301.6 | PW55: 414.7 | PX55: 403.2 | PY55: 374.2 | PZ55: 344.7 | QA55: 315.7 | QB55: 286.7 | QC55: 385.7 | QD55: 375 | QE55: 348.1 | QF55: 320.6 | QG55: 293.7 | QH55: 266.7 | QI55: 406.4 | QJ55: 394.9 | QK55: 365.9 | QL55: 336.4 | QM55: 307.4 | QN55: 278.4 | QO55: 378 | QP55: 367.3 | QQ55: 340.3 | QR55: 312.9 | QS55: 285.9 | QT55: 259 | RG55: 349.8 | RH55: 338.3 | RI55: 309.3 | RJ55: 279.8 | RK55: 250.8 | RL55: 221.8 | RM55: 325.4 | RN55: 314.7 | RO55: 287.7 | RP55: 260.3 | RQ55: 233.3 | RR55: 206.3 | RS55: 433.9 | RT55: 422.4 | RU55: 393.4 | RV55: 363.9 | RW55: 334.9 | RX55: 305.9 | RY55: 403.6 | RZ55: 392.9 | SA55: 365.9 | SB55: 338.5 | SC55: 311.5 | SD55: 284.5 | SE55: 412.2 | SF55: 400.7 | SG55: 371.7 | SH55: 342.2 | SI55: 313.2 | SJ55: 284.2 | SK55: 383.4 | SL55: 372.7 | SM55: 345.7 | SN55: 318.3 | SO55: 291.3 | SP55: 264.4 | SQ55: 412.2 | SR55: 400.7 | SS55: 371.7 | ST55: 342.2 | SU55: 313.2 | SV55: 284.2 | SW55: 383.4 | SX55: 372.7 | SY55: 345.7 | SZ55: 318.3 | TA55: 291.3 | TB55: 264.4
C56: TAR-HMO | D56: BasicPlus | F56: 56 | AE56: 450 | AF56: 438.5 | AG56: 409.5 | AH56: 380 | AI56: 351 | AJ56: 322 | AK56: 418.5 | AL56: 407.9 | AM56: 380.9 | AN56: 353.4 | AO56: 326.5 | AP56: 299.5 | AQ56: 397.2 | AR56: 385.7 | AS56: 356.7 | AT56: 327.2 | AU56: 298.2 | AV56: 269.2 | AW56: 369.4 | AX56: 358.8 | AY56: 331.8 | AZ56: 304.3 | BA56: 277.4 | BB56: 250.4 | BC56: 396.4 | BD56: 384.9 | BE56: 355.9 | BF56: 326.4 | BG56: 297.4 | BH56: 268.4 | BI56: 368.7 | BJ56: 358 | BK56: 331 | BL56: 303.6 | BM56: 276.6 | BN56: 249.7 | BO56: 392.7 | BP56: 381.2 | BQ56: 352.2 | BR56: 322.7 | BS56: 293.7 | BT56: 264.7 | BU56: 365.3 | BV56: 354.6 | BW56: 327.6 | BX56: 300.2 | BY56: 273.2 | BZ56: 246.2 | CA56: 494 | CB56: 482.5 | CC56: 453.5 | CD56: 424 | CE56: 395 | CF56: 366 | CG56: 459.5 | CH56: 448.8 | CI56: 421.8 | CJ56: 394.4 | CK56: 367.4 | CL56: 340.4 | CM56: 439.6 | CN56: 428.1 | CO56: 399.1 | CP56: 369.6 | CQ56: 340.6 | CR56: 311.6 | CS56: 408.9 | CT56: 398.2 | CU56: 371.2 | CV56: 343.8 | CW56: 316.8 | CX56: 289.8 | CY56: 405.1 | CZ56: 393.6 | DA56: 364.6 | DB56: 335.1 | DC56: 306.1 | DD56: 277.1 | DE56: 376.8 | DF56: 366.1 | DG56: 339.1 | DH56: 311.7 | DI56: 284.7 | DJ56: 257.8 | DK56: 479.7 | DL56: 468.2 | DM56: 439.2 | DN56: 409.7 | DO56: 380.7 | DP56: 351.7 | DQ56: 446.2 | DR56: 435.5 | DS56: 408.5 | DT56: 381.1 | DU56: 354.1 | DV56: 327.1 | DW56: 446.1 | DX56: 434.6 | DY56: 405.6 | DZ56: 376.1 | EA56: 347.1 | EB56: 318.1 | EC56: 414.9 | ED56: 404.2 | EE56: 377.3 | EF56: 349.8 | EG56: 322.9 | EH56: 295.9 | EI56: 528 | EJ56: 516.5 | EK56: 487.5 | EL56: 458 | EM56: 429 | EN56: 400 | EO56: 491.1 | EP56: 480.4 | EQ56: 453.4 | ER56: 426 | ES56: 399 | ET56: 372 | FS56: 408.1 | FT56: 396.6 | FU56: 367.6 | FV56: 338.1 | FW56: 309.1 | FX56: 280.1 | FY56: 379.6 | FZ56: 368.9 | GA56: 341.9 | GB56: 314.5 | GC56: 287.5 | GD56: 260.5 | GE56: 408.1 | GF56: 396.6 | GG56: 367.6 | GH56: 338.1 | GI56: 309.1 | GJ56: 280.1 | GK56: 379.6 | GL56: 368.9 | GM56: 341.9 | GN56: 314.5 | GO56: 287.5 | GP56: 260.5 | GQ56: 391.8 | GR56: 380.3 | GS56: 351.3 | GT56: 321.8 | GU56: 292.8 | GV56: 263.8 | GW56: 364.4 | GX56: 353.7 | GY56: 326.8 | GZ56: 299.3 | HA56: 272.4 | HB56: 245.4 | HO56: 391.8 | HP56: 380.3 | HQ56: 351.3 | HR56: 321.8 | HS56: 292.8 | HT56: 263.8 | HU56: 364.4 | HV56: 353.7 | HW56: 326.8 | HX56: 299.3 | HY56: 272.4 | HZ56: 245.4 | IA56: 372.2 | IB56: 360.7 | IC56: 331.7 | ID56: 302.2 | IE56: 273.2 | IF56: 244.2 | IG56: 346.2 | IH56: 335.5 | II56: 308.5 | IJ56: 281.1 | IK56: 254.1 | IL56: 227.2 | IM56: 364.4 | IN56: 352.9 | IO56: 323.9 | IP56: 294.4 | IQ56: 265.4 | IR56: 236.4 | IS56: 338.9 | IT56: 328.2 | IU56: 301.3 | IV56: 273.8 | IW56: 246.9 | IX56: 219.9 | IY56: 563.3 | IZ56: 551.8 | JA56: 522.8 | JB56: 493.3 | JC56: 464.3 | JD56: 435.3 | JE56: 523.9 | JF56: 513.2 | JG56: 486.3 | JH56: 458.8 | JI56: 431.8 | JJ56: 404.9 | KI56: 400.8 | KJ56: 389.3 | KK56: 360.3 | KL56: 330.8 | KM56: 301.8 | KN56: 272.8 | KO56: 372.8 | KP56: 362.1 | KQ56: 335.1 | KR56: 307.7 | KS56: 280.7 | KT56: 253.8 | KU56: 384.8 | KV56: 373.3 | KW56: 344.3 | KX56: 314.8 | KY56: 285.8 | KZ56: 256.8 | LA56: 357.9 | LB56: 347.2 | LC56: 320.2 | LD56: 292.8 | LE56: 265.8 | LF56: 238.9 | LG56: 372.8 | LH56: 361.3 | LI56: 332.3 | LJ56: 302.8 | LK56: 273.8 | LL56: 244.8 | LM56: 346.8 | LN56: 336.1 | LO56: 309.1 | LP56: 281.7 | LQ56: 254.7 | LR56: 227.7 | LS56: 486 | LT56: 474.5 | LU56: 445.5 | LV56: 416 | LW56: 387 | LX56: 358 | LY56: 452 | LZ56: 441.3 | MA56: 414.4 | MB56: 386.9 | MC56: 360 | MD56: 333 | ME56: 466.6 | MF56: 455.1 | MG56: 426.1 | MH56: 396.6 | MI56: 367.6 | MJ56: 338.6 | MK56: 434 | ML56: 423.3 | MM56: 396.3 | MN56: 368.9 | MO56: 341.9 | MP56: 314.9 | MQ56: 423.1 | MR56: 411.6 | MS56: 382.6 | MT56: 353.1 | MU56: 324.1 | MV56: 295.1 | MW56: 393.5 | MX56: 382.8 | MY56: 355.9 | MZ56: 328.4 | NA56: 301.5 | NB56: 274.5 | NC56: 393.6 | ND56: 382.1 | NE56: 353.1 | NF56: 323.6 | NG56: 294.6 | NH56: 265.6 | NI56: 366.1 | NJ56: 355.4 | NK56: 328.4 | NL56: 301 | NM56: 274 | NN56: 247.1 | OM56: 343.4 | ON56: 331.9 | OO56: 302.9 | OP56: 273.4 | OQ56: 244.4 | OR56: 215.4 | OS56: 319.4 | OT56: 308.7 | OU56: 281.7 | OV56: 254.3 | OW56: 227.3 | OX56: 200.4 | OY56: 508.3 | OZ56: 496.8 | PA56: 467.8 | PB56: 438.3 | PC56: 409.3 | PD56: 380.3 | PE56: 472.8 | PF56: 462.1 | PG56: 435.1 | PH56: 407.7 | PI56: 380.7 | PJ56: 353.7 | PK56: 462.5 | PL56: 451 | PM56: 422 | PN56: 392.5 | PO56: 363.5 | PP56: 334.5 | PQ56: 430.2 | PR56: 419.5 | PS56: 392.5 | PT56: 365.1 | PU56: 338.1 | PV56: 311.1 | RG56: 357.8 | RH56: 346.3 | RI56: 317.3 | RJ56: 287.8 | RK56: 258.8 | RL56: 229.8 | RM56: 332.8 | RN56: 322.1 | RO56: 295.1 | RP56: 267.7 | RQ56: 240.7 | RR56: 213.8 | RS56: 443.7 | RT56: 432.2 | RU56: 403.2 | RV56: 373.7 | RW56: 344.7 | RX56: 315.7 | RY56: 412.7 | RZ56: 402 | SA56: 375 | SB56: 347.6 | SC56: 320.6 | SD56: 293.7 | SE56: 421.6 | SF56: 410.1 | SG56: 381.1 | SH56: 351.6 | SI56: 322.6 | SJ56: 293.6 | SK56: 392.1 | SL56: 381.4 | SM56: 354.5 | SN56: 327 | SO56: 300.1 | SP56: 273.1 | SQ56: 421.6 | SR56: 410.1 | SS56: 381.1 | ST56: 351.6 | SU56: 322.6 | SV56: 293.6 | SW56: 392.1 | SX56: 381.4 | SY56: 354.5 | SZ56: 327 | TA56: 300.1 | TB56: 273.1
A57: 360 | B57: Krankenkasse Luzerner Hinterland | C57: TAR-BASE | D57: Grundversicherung | F57: 57 | AE57: 473.6 | AF57: 461.95 | AG57: 432.75 | AH57: 403.6 | AI57: 374.45 | AJ57: 345.25 | AK57: 449.9 | AL57: 438.85 | AM57: 411.1 | AN57: 383.4 | AO57: 355.75 | AP57: 328 | AQ57: 420.9 | AR57: 409.25 | AS57: 380.05 | AT57: 350.9 | AU57: 321.75 | AV57: 292.55 | AW57: 399.85 | AX57: 388.8 | AY57: 361.05 | AZ57: 333.35 | BA57: 305.65 | BB57: 277.9 | CA57: 593.9 | CB57: 582.25 | CC57: 553.05 | CD57: 523.9 | CE57: 494.75 | CF57: 465.55 | CG57: 564.2 | CH57: 553.15 | CI57: 525.4 | CJ57: 497.7 | CK57: 470 | CL57: 442.25 | CM57: 507.7 | CN57: 496.05 | CO57: 466.85 | CP57: 437.7 | CQ57: 408.55 | CR57: 379.35 | CS57: 482.3 | CT57: 471.25 | CU57: 443.5 | CV57: 415.8 | CW57: 388.1 | CX57: 360.4 | CY57: 465.6 | CZ57: 453.95 | DA57: 424.75 | DB57: 395.6 | DC57: 366.45 | DD57: 337.25 | DE57: 442.3 | DF57: 431.25 | DG57: 403.5 | DH57: 375.8 | DI57: 348.15 | DJ57: 320.4 | HO57: 411.5 | HP57: 399.85 | HQ57: 370.65 | HR57: 341.5 | HS57: 312.35 | HT57: 283.15 | HU57: 390.95 | HV57: 379.85 | HW57: 352.1 | HX57: 324.45 | HY57: 296.75 | HZ57: 269 | IA57: 387.4 | IB57: 375.75 | IC57: 346.55 | ID57: 317.4 | IE57: 288.25 | IF57: 259.05 | IG57: 368.05 | IH57: 356.95 | II57: 329.2 | IJ57: 301.55 | IK57: 273.85 | IL57: 246.1 | IM57: 375.1 | IN57: 363.45 | IO57: 334.25 | IP57: 305.1 | IQ57: 275.95 | IR57: 246.75 | IS57: 356.35 | IT57: 345.3 | IU57: 317.55 | IV57: 289.85 | IW57: 262.15 | IX57: 234.4 | JK57: 380 | JL57: 368.35 | JM57: 339.15 | JN57: 310 | JO57: 280.85 | JP57: 251.65 | JQ57: 361 | JR57: 349.95 | JS57: 322.2 | JT57: 294.5 | JU57: 266.8 | JV57: 239.05 | JW57: 394 | JX57: 382.35 | JY57: 353.15 | JZ57: 324 | KA57: 294.85 | KB57: 265.65 | KC57: 374.3 | KD57: 363.25 | KE57: 335.5 | KF57: 307.8 | KG57: 280.1 | KH57: 252.35 | MQ57: 414.4 | MR57: 402.75 | MS57: 373.55 | MT57: 344.4 | MU57: 315.25 | MV57: 286.05 | MW57: 393.7 | MX57: 382.6 | MY57: 354.85 | MZ57: 327.2 | NA57: 299.5 | NB57: 271.75 | OM57: 396.9 | ON57: 385.25 | OO57: 356.05 | OP57: 326.9 | OQ57: 297.75 | OR57: 268.55 | OS57: 377.05 | OT57: 366 | OU57: 338.25 | OV57: 310.55 | OW57: 282.85 | OX57: 255.1 | RG57: 389.7 | RH57: 378.05 | RI57: 348.85 | RJ57: 319.7 | RK57: 290.55 | RL57: 261.35 | RM57: 370.2 | RN57: 359.15 | RO57: 331.4 | RP57: 303.7 | RQ57: 276 | RR57: 248.3 | RS57: 518.3 | RT57: 506.65 | RU57: 477.45 | RV57: 448.3 | RW57: 419.15 | RX57: 389.95 | RY57: 492.4 | RZ57: 481.3 | SA57: 453.6 | SB57: 425.9 | SC57: 398.2 | SD57: 370.45 | SE57: 462.2 | SF57: 450.55 | SG57: 421.35 | SH57: 392.2 | SI57: 363.05 | SJ57: 333.85 | SK57: 439.1 | SL57: 428 | SM57: 400.3 | SN57: 372.6 | SO57: 344.9 | SP57: 317.15 | SQ57: 426.8 | SR57: 415.15 | SS57: 385.95 | ST57: 356.8 | SU57: 327.65 | SV57: 298.45 | SW57: 405.45 | SX57: 394.4 | SY57: 366.65 | SZ57: 338.95 | TA57: 311.25 | TB57: 283.55
C58: TAR-HAM | D58: Hausmed | F58: 58 | AE58: 449.9 | AF58: 438.85 | AG58: 411.1 | AH58: 383.4 | AI58: 355.75 | AJ58: 328 | AK58: 427.4 | AL58: 416.9 | AM58: 390.55 | AN58: 364.25 | AO58: 337.95 | AP58: 311.6 | AQ58: 399.85 | AR58: 388.8 | AS58: 361.05 | AT58: 333.35 | AU58: 305.65 | AV58: 277.9 | AW58: 379.85 | AX58: 369.35 | AY58: 343 | AZ58: 316.7 | BA58: 290.35 | BB58: 264 | CA58: 564.2 | CB58: 553.15 | CC58: 525.4 | CD58: 497.7 | CE58: 470 | CF58: 442.25 | CG58: 536 | CH58: 525.5 | CI58: 499.15 | CJ58: 472.8 | CK58: 446.5 | CL58: 420.15 | CM58: 482.3 | CN58: 471.25 | CO58: 443.5 | CP58: 415.8 | CQ58: 388.1 | CR58: 360.4 | CS58: 458.2 | CT58: 447.7 | CU58: 421.35 | CV58: 395 | CW58: 368.7 | CX58: 342.4 | CY58: 442.3 | CZ58: 431.25 | DA58: 403.5 | DB58: 375.8 | DC58: 348.15 | DD58: 320.4 | DE58: 420.2 | DF58: 409.7 | DG58: 383.35 | DH58: 357 | DI58: 330.75 | DJ58: 304.4 | HO58: 390.95 | HP58: 379.85 | HQ58: 352.1 | HR58: 324.45 | HS58: 296.75 | HT58: 269 | HU58: 371.4 | HV58: 360.85 | HW58: 334.5 | HX58: 308.25 | HY58: 281.9 | HZ58: 255.55 | IA58: 368.05 | IB58: 356.95 | IC58: 329.2 | ID58: 301.55 | IE58: 273.85 | IF58: 246.1 | IG58: 349.65 | IH58: 339.1 | II58: 312.75 | IJ58: 286.45 | IK58: 260.15 | IL58: 233.8 | IM58: 356.35 | IN58: 345.3 | IO58: 317.55 | IP58: 289.85 | IQ58: 262.15 | IR58: 234.4 | IS58: 338.55 | IT58: 328.05 | IU58: 301.65 | IV58: 275.35 | IW58: 249.05 | IX58: 222.7 | JK58: 361 | JL58: 349.95 | JM58: 322.2 | JN58: 294.5 | JO58: 266.8 | JP58: 239.05 | JQ58: 342.95 | JR58: 332.45 | JS58: 306.1 | JT58: 279.8 | JU58: 253.45 | JV58: 227.1 | JW58: 374.3 | JX58: 363.25 | JY58: 335.5 | JZ58: 307.8 | KA58: 280.1 | KB58: 252.35 | KC58: 355.6 | KD58: 345.1 | KE58: 318.75 | KF58: 292.4 | KG58: 266.1 | KH58: 239.75 | MQ58: 393.7 | MR58: 382.6 | MS58: 354.85 | MT58: 327.2 | MU58: 299.5 | MV58: 271.75 | MW58: 374 | MX58: 363.45 | MY58: 337.1 | MZ58: 310.85 | NA58: 284.55 | NB58: 258.15 | OM58: 377.05 | ON58: 366 | OO58: 338.25 | OP58: 310.55 | OQ58: 282.85 | OR58: 255.1 | OS58: 358.2 | OT58: 347.7 | OU58: 321.35 | OV58: 295 | OW58: 268.7 | OX58: 242.35 | RG58: 370.2 | RH58: 359.15 | RI58: 331.4 | RJ58: 303.7 | RK58: 276 | RL58: 248.3 | RM58: 351.7 | RN58: 341.2 | RO58: 314.85 | RP58: 288.5 | RQ58: 262.2 | RR58: 235.9 | RS58: 492.4 | RT58: 481.3 | RU58: 453.6 | RV58: 425.9 | RW58: 398.2 | RX58: 370.45 | RY58: 467.8 | RZ58: 457.25 | SA58: 430.9 | SB58: 404.6 | SC58: 378.3 | SD58: 351.95 | SE58: 439.1 | SF58: 428 | SG58: 400.3 | SH58: 372.6 | SI58: 344.9 | SJ58: 317.15 | SK58: 417.15 | SL58: 406.6 | SM58: 380.3 | SN58: 353.95 | SO58: 327.65 | SP58: 301.3 | SQ58: 405.45 | SR58: 394.4 | SS58: 366.65 | ST58: 338.95 | SU58: 311.25 | SV58: 283.55 | SW58: 385.2 | SX58: 374.7 | SY58: 348.3 | SZ58: 322 | TA58: 295.7 | TB58: 269.35
A59: 376 | B59: KPT Krankenkasse AG | C59: TAR-BASE | D59: Grundversicherung | F59: 59 | G59: 503 | H59: 491.4 | I59: 462.2 | J59: 433 | L59: 374.7 | M59: 477.9 | N59: 466.8 | O59: 439.1 | P59: 411.4 | R59: 356 | S59: 445 | T59: 433.4 | U59: 404.2 | V59: 375 | X59: 316.7 | Y59: 422.8 | Z59: 411.7 | AA59: 384 | AB59: 356.3 | AD59: 300.9 | AE59: 499 | AF59: 487.4 | AG59: 458.2 | AH59: 429 | AJ59: 370.7 | AK59: 474.1 | AL59: 463 | AM59: 435.3 | AN59: 407.6 | AP59: 352.2 | AQ59: 470 | AR59: 458.4 | AS59: 429.2 | AT59: 400 | AV59: 341.7 | AW59: 446.5 | AX59: 435.5 | AY59: 407.7 | AZ59: 380 | BB59: 324.6 | BC59: 368 | BD59: 356.4 | BE59: 327.2 | BF59: 298 | BH59: 239.7 | BI59: 349.6 | BJ59: 338.6 | BK59: 310.8 | BL59: 283.1 | BN59: 227.7 | BO59: 442 | BP59: 430.4 | BQ59: 401.2 | BR59: 372 | BT59: 313.7 | BU59: 419.9 | BV59: 408.9 | BW59: 381.1 | BX59: 353.4 | BZ59: 298 | CA59: 555 | CB59: 543.4 | CC59: 514.2 | CD59: 485 | CF59: 426.7 | CG59: 527.3 | CH59: 516.2 | CI59: 488.5 | CJ59: 460.8 | CL59: 405.4 | CM59: 489 | CN59: 477.4 | CO59: 448.2 | CP59: 419 | CR59: 360.7 | CS59: 464.6 | CT59: 453.5 | CU59: 425.8 | CV59: 398.1 | CX59: 342.7 | CY59: 462 | CZ59: 450.4 | DA59: 421.2 | DB59: 392 | DD59: 333.7 | DE59: 438.9 | DF59: 427.9 | DG59: 400.1 | DH59: 372.4 | DJ59: 317 | DK59: 557 | DL59: 545.4 | DM59: 516.2 | DN59: 487 | DP59: 428.7 | DQ59: 529.2 | DR59: 518.1 | DS59: 490.4 | DT59: 462.7 | DV59: 407.3 | DW59: 533 | DX59: 521.4 | DY59: 492.2 | DZ59: 463 | EB59: 404.7 | EC59: 506.4 | ED59: 495.3 | EE59: 467.6 | EF59: 439.9 | EH59: 384.5 | EI59: 650 | EJ59: 638.4 | EK59: 609.2 | EL59: 580 | EN59: 521.7 | EO59: 617.5 | EP59: 606.5 | EQ59: 578.7 | ER59: 551 | ET59: 495.6 | EU59: 675 | EV59: 663.4 | EW59: 634.2 | EX59: 605 | EZ59: 546.7 | FA59: 641.3 | FB59: 630.2 | FC59: 602.5 | FD59: 574.8 | FF59: 519.4 | FG59: 406 | FH59: 394.4 | FI59: 365.2 | FJ59: 336 | FL59: 277.7 | FM59: 385.7 | FN59: 374.7 | FO59: 346.9 | FP59: 319.2 | FR59: 263.8 | FS59: 435 | FT59: 423.4 | FU59: 394.2 | FV59: 365 | FX59: 306.7 | FY59: 413.3 | FZ59: 402.2 | GA59: 374.5 | GB59: 346.8 | GD59: 291.4 | GE59: 424 | GF59: 412.4 | GG59: 383.2 | GH59: 354 | GJ59: 295.7 | GK59: 402.8 | GL59: 391.8 | GM59: 364 | GN59: 336.3 | GP59: 280.9 | GQ59: 424 | GR59: 412.4 | GS59: 383.2 | GT59: 354 | GV59: 295.7 | GW59: 402.8 | GX59: 391.8 | GY59: 364 | GZ59: 336.3 | HB59: 280.9 | HC59: 512 | HD59: 500.4 | HE59: 471.2 | HF59: 442 | HH59: 383.7 | HI59: 486.4 | HJ59: 475.4 | HK59: 447.6 | HL59: 419.9 | HN59: 364.5 | HO59: 478 | HP59: 466.4 | HQ59: 437.2 | HR59: 408 | HT59: 349.7 | HU59: 454.1 | HV59: 443.1 | HW59: 415.3 | HX59: 387.6 | HZ59: 332.2 | IA59: 432 | IB59: 420.4 | IC59: 391.2 | ID59: 362 | IF59: 303.7 | IG59: 410.4 | IH59: 399.4 | II59: 371.6 | IJ59: 343.9 | IL59: 288.5 | IM59: 410 | IN59: 398.4 | IO59: 369.2 | IP59: 340 | IR59: 281.7 | IS59: 389.5 | IT59: 378.5 | IU59: 350.7 | IV59: 323 | IX59: 267.6 | IY59: 673 | IZ59: 661.4 | JA59: 632.2 | JB59: 603 | JD59: 544.7 | JE59: 639.4 | JF59: 628.3 | JG59: 600.6 | JH59: 572.9 | JJ59: 517.5 | JK59: 390 | JL59: 378.4 | JM59: 349.2 | JN59: 320 | JP59: 261.7 | JQ59: 370.5 | JR59: 359.5 | JS59: 331.7 | JT59: 304 | JV59: 248.6 | JW59: 401 | JX59: 389.4 | JY59: 360.2 | JZ59: 331 | KB59: 272.7 | KC59: 381 | KD59: 369.9 | KE59: 342.2 | KF59: 314.5 | KH59: 259.1 | KI59: 462 | KJ59: 450.4 | KK59: 421.2 | KL59: 392 | KN59: 333.7 | KO59: 438.9 | KP59: 427.9 | KQ59: 400.1 | KR59: 372.4 | KT59: 317 | KU59: 434 | KV59: 422.4 | KW59: 393.2 | KX59: 364 | KZ59: 305.7 | LA59: 412.3 | LB59: 401.3 | LC59: 373.5 | LD59: 345.8 | LF59: 290.4 | LG59: 417 | LH59: 405.4 | LI59: 376.2 | LJ59: 347 | LL59: 288.7 | LM59: 396.2 | LN59: 385.1 | LO59: 357.4 | LP59: 329.7 | LR59: 274.3 | LS59: 514 | LT59: 502.4 | LU59: 473.2 | LV59: 444 | LX59: 385.7 | LY59: 488.3 | LZ59: 477.3 | MA59: 449.5 | MB59: 421.8 | MD59: 366.4 | ME59: 477 | MF59: 465.4 | MG59: 436.2 | MH59: 407 | MJ59: 348.7 | MK59: 453.2 | ML59: 442.1 | MM59: 414.4 | MN59: 386.7 | MP59: 331.3 | MQ59: 443 | MR59: 431.4 | MS59: 402.2 | MT59: 373 | MV59: 314.7 | MW59: 420.9 | MX59: 409.8 | MY59: 382.1 | MZ59: 354.4 | NB59: 299 | NC59: 429 | ND59: 417.4 | NE59: 388.2 | NF59: 359 | NH59: 300.7 | NI59: 407.6 | NJ59: 396.5 | NK59: 368.8 | NL59: 341.1 | NN59: 285.7 | NO59: 544 | NP59: 532.4 | NQ59: 503.2 | NR59: 474 | NT59: 415.7 | NU59: 516.8 | NV59: 505.8 | NW59: 478 | NX59: 450.3 | NZ59: 394.9 | OA59: 507 | OB59: 495.4 | OC59: 466.2 | OD59: 437 | OF59: 378.7 | OG59: 481.7 | OH59: 470.6 | OI59: 442.9 | OJ59: 415.2 | OL59: 359.8 | OM59: 359 | ON59: 347.4 | OO59: 318.2 | OP59: 289 | OR59: 230.7 | OS59: 341.1 | OT59: 330 | OU59: 302.3 | OV59: 274.6 | OX59: 219.2 | OY59: 618 | OZ59: 606.4 | PA59: 577.2 | PB59: 548 | PD59: 489.7 | PE59: 587.1 | PF59: 576.1 | PG59: 548.3 | PH59: 520.6 | PJ59: 465.2 | PK59: 554 | PL59: 542.4 | PM59: 513.2 | PN59: 484 | PP59: 425.7 | PQ59: 526.3 | PR59: 515.3 | PS59: 487.5 | PT59: 459.8 | PV59: 404.4 | PW59: 460 | PX59: 448.4 | PY59: 419.2 | PZ59: 390 | QB59: 331.7 | QC59: 437 | QD59: 426 | QE59: 398.2 | QF59: 370.5 | QH59: 315.1 | QI59: 401 | QJ59: 389.4 | QK59: 360.2 | QL59: 331 | QN59: 272.7 | QO59: 381 | QP59: 369.9 | QQ59: 342.2 | QR59: 314.5 | QT59: 259.1 | QU59: 209 | QV59: 197.4 | QW59: 168.2 | QX59: 139 | QZ59: 110.3 | RA59: 198.6 | RB59: 187.5 | RC59: 159.8 | RD59: 132.1 | RF59: 105 | RG59: 396 | RH59: 384.4 | RI59: 355.2 | RJ59: 326 | RL59: 267.7 | RM59: 376.2 | RN59: 365.2 | RO59: 337.4 | RP59: 309.7 | RR59: 254.3 | RS59: 546 | RT59: 534.4 | RU59: 505.2 | RV59: 476 | RX59: 417.7 | RY59: 518.7 | RZ59: 507.7 | SA59: 479.9 | SB59: 452.2 | SD59: 396.8 | SE59: 466 | SF59: 454.4 | SG59: 425.2 | SH59: 396 | SJ59: 337.7 | SK59: 442.7 | SL59: 431.7 | SM59: 403.9 | SN59: 376.2 | SP59: 320.8 | SQ59: 440 | SR59: 428.4 | SS59: 399.2 | ST59: 370 | SV59: 311.7 | SW59: 418 | SX59: 407 | SY59: 379.2 | SZ59: 351.5 | TB59: 296.1
C60: TAR-HAM | D60: KPTwin.doc | F60: 60 | G60: 446.8 | H60: 435.2 | I60: 406 | J60: 376.8 | L60: 318.5 | M60: 424.5 | N60: 413.4 | O60: 385.7 | P60: 358 | R60: 302.6 | S60: 397.5 | T60: 385.9 | U60: 356.7 | V60: 327.5 | X60: 269.2 | Y60: 377.6 | Z60: 366.6 | AA60: 338.9 | AB60: 311.1 | AD60: 255.7 | AE60: 443.4 | AF60: 431.8 | AG60: 402.6 | AH60: 373.4 | AJ60: 315.1 | AK60: 421.2 | AL60: 410.2 | AM60: 382.5 | AN60: 354.7 | AP60: 299.3 | AQ60: 418.7 | AR60: 407.1 | AS60: 377.9 | AT60: 348.7 | AV60: 290.4 | AW60: 397.8 | AX60: 386.7 | AY60: 359 | AZ60: 331.3 | BB60: 275.9 | BC60: 332 | BD60: 320.4 | BE60: 291.2 | BF60: 262 | BH60: 203.7 | BI60: 315.4 | BJ60: 304.4 | BK60: 276.6 | BL60: 248.9 | BN60: 193.5 | BO60: 394.9 | BP60: 383.3 | BQ60: 354.1 | BR60: 324.9 | BT60: 266.6 | BU60: 375.2 | BV60: 364.1 | BW60: 336.4 | BX60: 308.7 | BZ60: 253.3 | CA60: 491 | CB60: 479.4 | CC60: 450.2 | CD60: 421 | CF60: 362.7 | CG60: 466.5 | CH60: 455.4 | CI60: 427.7 | CJ60: 400 | CL60: 344.6 | CM60: 434.9 | CN60: 423.3 | CO60: 394.1 | CP60: 364.9 | CR60: 306.6 | CS60: 413.2 | CT60: 402.1 | CU60: 374.4 | CV60: 346.7 | CX60: 291.3 | CY60: 411.9 | CZ60: 400.3 | DA60: 371.1 | DB60: 341.9 | DD60: 283.6 | DE60: 391.3 | DF60: 380.3 | DG60: 352.5 | DH60: 324.8 | DJ60: 269.4 | DK60: 492.7 | DL60: 481.1 | DM60: 451.9 | DN60: 422.7 | DP60: 364.4 | DQ60: 468.1 | DR60: 457 | DS60: 429.3 | DT60: 401.6 | DV60: 346.2 | DW60: 472.3 | DX60: 460.7 | DY60: 431.5 | DZ60: 402.3 | EB60: 344 | EC60: 448.7 | ED60: 437.7 | EE60: 409.9 | EF60: 382.2 | EH60: 326.8 | EI60: 571.7 | EJ60: 560.1 | EK60: 530.9 | EL60: 501.7 | EN60: 443.4 | EO60: 543.1 | EP60: 532.1 | EQ60: 504.4 | ER60: 476.6 | ET60: 421.2 | EU60: 593 | EV60: 581.4 | EW60: 552.2 | EX60: 523 | EZ60: 464.7 | FA60: 563.4 | FB60: 552.3 | FC60: 524.6 | FD60: 496.9 | FF60: 441.5 | FG60: 364.3 | FH60: 352.7 | FI60: 323.5 | FJ60: 294.3 | FL60: 236 | FM60: 346.1 | FN60: 335.1 | FO60: 307.3 | FP60: 279.6 | FR60: 224.2 | FS60: 389 | FT60: 377.4 | FU60: 348.2 | FV60: 319 | FX60: 260.7 | FY60: 369.6 | FZ60: 358.5 | GA60: 330.8 | GB60: 303.1 | GD60: 247.7 | GE60: 379.6 | GF60: 368 | GG60: 338.8 | GH60: 309.6 | GJ60: 251.3 | GK60: 360.6 | GL60: 349.6 | GM60: 321.9 | GN60: 294.1 | GP60: 238.7 | GQ60: 379.6 | GR60: 368 | GS60: 338.8 | GT60: 309.6 | GV60: 251.3 | GW60: 360.6 | GX60: 349.6 | GY60: 321.9 | GZ60: 294.1 | HB60: 238.7 | HC60: 454.4 | HD60: 442.8 | HE60: 413.6 | HF60: 384.4 | HH60: 326.1 | HI60: 431.7 | HJ60: 420.7 | HK60: 392.9 | HL60: 365.2 | HN60: 309.8 | HO60: 425.5 | HP60: 413.9 | HQ60: 384.7 | HR60: 355.5 | HT60: 297.2 | HU60: 404.2 | HV60: 393.2 | HW60: 365.5 | HX60: 337.7 | HZ60: 282.3 | IA60: 386.4 | IB60: 374.8 | IC60: 345.6 | ID60: 316.4 | IF60: 258.1 | IG60: 367.1 | IH60: 356.1 | II60: 328.3 | IJ60: 300.6 | IL60: 245.2 | IM60: 367.7 | IN60: 356.1 | IO60: 326.9 | IP60: 297.7 | IR60: 239.4 | IS60: 349.3 | IT60: 338.3 | IU60: 310.6 | IV60: 282.8 | IX60: 227.4 | IY60: 591.3 | IZ60: 579.7 | JA60: 550.5 | JB60: 521.3 | JD60: 463 | JE60: 561.7 | JF60: 550.7 | JG60: 523 | JH60: 495.2 | JJ60: 439.9 | JK60: 350.7 | JL60: 339.1 | JM60: 309.9 | JN60: 280.7 | JP60: 222.4 | JQ60: 333.2 | JR60: 322.1 | JS60: 294.4 | JT60: 266.7 | JV60: 211.3 | JW60: 360.1 | JX60: 348.5 | JY60: 319.3 | JZ60: 290.1 | KB60: 231.8 | KC60: 342.1 | KD60: 331.1 | KE60: 303.3 | KF60: 275.6 | KH60: 220.2 | KI60: 411.9 | KJ60: 400.3 | KK60: 371.1 | KL60: 341.9 | KN60: 283.6 | KO60: 391.3 | KP60: 380.3 | KQ60: 352.5 | KR60: 324.8 | KT60: 269.4 | KU60: 388.1 | KV60: 376.5 | KW60: 347.3 | KX60: 318.1 | KZ60: 259.8 | LA60: 368.7 | LB60: 357.7 | LC60: 329.9 | LD60: 302.2 | LF60: 246.8 | LG60: 373.7 | LH60: 362.1 | LI60: 332.9 | LJ60: 303.7 | LL60: 245.4 | LM60: 355 | LN60: 344 | LO60: 316.3 | LP60: 288.5 | LR60: 233.1 | LS60: 456.1 | LT60: 444.5 | LU60: 415.3 | LV60: 386.1 | LX60: 327.8 | LY60: 433.3 | LZ60: 422.3 | MA60: 394.5 | MB60: 366.8 | MD60: 311.4 | ME60: 424.7 | MF60: 413.1 | MG60: 383.9 | MH60: 354.7 | MJ60: 296.4 | MK60: 403.5 | ML60: 392.4 | MM60: 364.7 | MN60: 337 | MP60: 281.6 | MQ60: 395.8 | MR60: 384.2 | MS60: 355 | MT60: 325.8 | MV60: 267.5 | MW60: 376 | MX60: 365 | MY60: 337.3 | MZ60: 309.5 | NB60: 254.1 | NC60: 383.9 | ND60: 372.3 | NE60: 343.1 | NF60: 313.9 | NH60: 255.6 | NI60: 364.7 | NJ60: 353.7 | NK60: 325.9 | NL60: 298.2 | NN60: 242.8 | NO60: 481.6 | NP60: 470 | NQ60: 440.8 | NR60: 411.6 | NT60: 353.3 | NU60: 457.5 | NV60: 446.5 | NW60: 418.8 | NX60: 391 | NZ60: 335.6 | OA60: 450.2 | OB60: 438.6 | OC60: 409.4 | OD60: 380.2 | OF60: 321.9 | OG60: 427.7 | OH60: 416.7 | OI60: 388.9 | OJ60: 361.2 | OL60: 305.8 | OM60: 324.4 | ON60: 312.8 | OO60: 283.6 | OP60: 254.4 | OR60: 196.1 | OS60: 308.2 | OT60: 297.2 | OU60: 269.4 | OV60: 241.7 | OX60: 186.3 | OY60: 544.5 | OZ60: 532.9 | PA60: 503.7 | PB60: 474.5 | PD60: 416.2 | PE60: 517.3 | PF60: 506.3 | PG60: 478.5 | PH60: 450.8 | PJ60: 395.4 | PK60: 490.1 | PL60: 478.5 | PM60: 449.3 | PN60: 420.1 | PP60: 361.8 | PQ60: 465.6 | PR60: 454.6 | PS60: 426.8 | PT60: 399.1 | PV60: 343.7 | PW60: 410.2 | PX60: 398.6 | PY60: 369.4 | PZ60: 340.2 | QB60: 281.9 | QC60: 389.7 | QD60: 378.7 | QE60: 350.9 | QF60: 323.2 | QH60: 267.8 | QI60: 360.1 | QJ60: 348.5 | QK60: 319.3 | QL60: 290.1 | QN60: 231.8 | QO60: 342.1 | QP60: 331.1 | QQ60: 303.3 | QR60: 275.6 | QT60: 220.2 | RG60: 355.8 | RH60: 344.2 | RI60: 315 | RJ60: 285.8 | RL60: 227.5 | RM60: 338 | RN60: 327 | RO60: 299.3 | RP60: 271.5 | RR60: 216.1 | RS60: 483.3 | RT60: 471.7 | RU60: 442.5 | RV60: 413.3 | RX60: 355 | RY60: 459.1 | RZ60: 448.1 | SA60: 420.4 | SB60: 392.6 | SD60: 337.3 | SE60: 415.3 | SF60: 403.7 | SG60: 374.5 | SH60: 345.3 | SJ60: 287 | SK60: 394.5 | SL60: 383.5 | SM60: 355.8 | SN60: 328 | SP60: 272.7 | SQ60: 393.2 | SR60: 381.6 | SS60: 352.4 | ST60: 323.2 | SV60: 264.9 | SW60: 373.5 | SX60: 362.5 | SY60: 334.8 | SZ60: 307 | TB60: 251.7
